Workbook

Sheet NOTES
A2: The model has actual and test data to illustrate the workings of the model. | D2: ='Model update'!C5 -> 2020
A4: Issue | B4: Location | C4: Item | D4: Comment
A6: 1 | B6: 'Model update'!C25 | C6: CPI | D6: ="Updated June "&D2-1&" CPI for "&D2 -> Updated June 2019 CPI for 2020 | E6: NOTE: This worksheet is programmed to update for each year - use as checklist and note any placeholders or changes
E7: NOTE: Worksheet names in this file are programmed to update each year once each worksheet is accessed and a cell is selected
A8: =A6+1 -> 2 | B8: 'Model update'!G37:G41 | C8: Real Vanilla WACC (rvw) | D8: ="Updated "&$D$2&" value for Jemena, placeholders for others" -> Updated 2020 value for Jemena, placeholders for others
A10: =A8+1 -> 3 | B10: 'Model update'!G54:G58 | C10: ="DuoS Xt for "&D2 -> DuoS Xt for 2020 | D10: ="Updated "&$D$2&" value for Jemena, placeholders for others" -> Updated 2020 value for Jemena, placeholders for others
A12: =A10+1 -> 4 | B12: 'Model update'!G66:G70 | C12: ="Metering Xt for "&D2 -> Metering Xt for 2020 | D12: ="Updated "&$D$2&" value for Jemena, placeholders for others" -> Updated 2020 value for Jemena, placeholders for others
A14: =A12+1 -> 5 | B14: 'Model update'!H79:H83 | C14: Real Pre-tax WACC (rptw) | D14: ="Updated "&$D$2&" value for Jemena, placeholders for others" -> Updated 2020 value for Jemena, placeholders for others
A16: =A14+1 -> 6 | B16: 'Model update'!G94:G98 | C16: ="f factor (t) "&D2 -> f factor (t) 2020 | D16: Values may require updating
A18: =A16+1 -> 7 | B18: 'Model update'!G105:G109 | C18: ="S factor (t) "&D2 -> S factor (t) 2020 | D18: Values may require updating
A20: =A18+1 -> 8 | B20: 'Model update'!G116:G120 | C20: ="Pass through amounts (t) "&D2 -> Pass through amounts (t) 2020 | D20: ="NIL for "&D2 -> NIL for 2020
A22: =A20+1 -> 9 | B22: 'Model update'!G127:G131 | C22: ="Licence Fee (t-1) "&$D$2-2&"-"&$D$2-1 -> Licence Fee (t-1) 2018-2019 | D22: ="Placeholders used, "&D2-1&" figures escalated" -> Placeholders used, 2019 figures escalated
A24: =A22+1 -> 10 | B24: ="'"&$D$2&"DistRevCapForm'!H21" -> '2020DistRevCapForm'!H21 | C24: Dist - Table 3 - t-2 AAR | D24: ="Updated from "&$D$2-1&" model" -> Updated from 2019 model
B25: ="'"&$D$2&"DistRevCapForm'!H28" -> '2020DistRevCapForm'!H28 | C25: Dist - Table 4 - t-1 approved under/over recovery
B26: ="'"&$D$2&"DistRevCapForm'!C55" -> '2020DistRevCapForm'!C55 | C26: Dist - Table 6 - Licence fee t-2
B27: ="'"&$D$2&"DistRevCapForm'!C57" -> '2020DistRevCapForm'!C57 | C27: Dist - Table 6 - Pass through (2014/15)
B28: ="'"&$D$2&"DistRevCapForm'!C71" -> '2020DistRevCapForm'!C71 | C28: Dist - Table 7 - U/O balance b/f
B29: ="Est"&$D$2-1&"DistRev!D6:P35" -> Est2019DistRev!D6:P35 | C29: ="Dist - "&D2-1&" tariffs" -> Dist - 2019 tariffs
B30: ="Est"&$D$2-1&"DistRev!R6:AD35" -> Est2019DistRev!R6:AD35 | C30: ="Dist - Estimated "&D2-1&" quantities" -> Dist - Estimated 2019 quantities
A32: =A24+1 -> 11 | B32: ="'"&$D$2&"DistRevCapForm'!C47" -> '2020DistRevCapForm'!C47 | C32: Dist - Table 6 - t-2 revenue | D32: ="Updated from "&$D$2-2&" Annual RIN" -> Updated from 2018 Annual RIN
A34: =A32+1 -> 12 | B34: ="'"&$D$2&"TransRevCont'!C20:C23" -> '2020TransRevCont'!C20:C23 | C34: Trans - Table 3 - Trans charges forecasts t | D34: ="Updated from "&$D$2-1&" model" -> Updated from 2019 model
B35: ="'"&$D$2&"TransRevCont'!D42:D45" -> '2020TransRevCont'!D42:D45 | C35: Trans - Table 4 - Trans charges estimates t-1
B36: ="'"&$D$2&"TransRevCont'!C60" -> '2020TransRevCont'!C60 | C36: Trans - Table 5 - U/O balance b/f
B37: ="Est"&$D$2-1&"TransRev!D6:P35" -> Est2019TransRev!D6:P35 | C37: ="Trans - "&D2-1&" tariffs" -> Trans - 2019 tariffs
B38: ="Est"&$D$2-1&"TransRev!R6:AD35" -> Est2019TransRev!R6:AD35 | C38: ="Trans - Estimated "&D2-1&" quantities" -> Trans - Estimated 2019 quantities
A40: =A34+1 -> 13 | B40: ="'"&$D$2&"TransRevCont'!C34" -> '2020TransRevCont'!C34 | C40: Trans - Table 4 - t-2 revenue | D40: ="Updated from "&$D$2-2&" Annual RIN" -> Updated from 2018 Annual RIN
B41: TUoS cost audit template'!F4 | C41: Trans - t-2 AEMO charges
B42: TUoS cost audit template'!F11:F12 | C42: Trans - t-2 connection charges
B43: TUoS cost audit template'!C20:E22 | C43: Trans - t-2 internetwork charges
B44: TUoS cost audit template'!F29 | C44: Trans - t-2 embedded generators
A46: =A40+1 -> 14 | B46: ="'"&$D$2&"JSRevCont'!C20:C21" -> '2020JSRevCont'!C20:C21 | C46: JUoS - Table 3 - FiT charges forecasts t | D46: ="Updated from "&$D$2-1&" model" -> Updated from 2019 model
B47: ="'"&$D$2&"JSRevCont'!D40:D41" -> '2020JSRevCont'!D40:D41 | C47: JUoS - Table 4 - FiT charges estiamtes t-1
B48: ="'"&$D$2&"JSRevCont'!C56" -> '2020JSRevCont'!C56 | C48: JUoS - Table 5 - U/O blance b/f
B49: ="Est"&$D$2-1&"JSRev!D6:P35" -> Est2019JSRev!D6:P35 | C49: ="JUoS - "&D2-1&" tariffs" -> JUoS - 2019 tariffs
B50: ="Est"&$D$2-1&"JSRev!R6:AD35" -> Est2019JSRev!R6:AD35 | C50: ="JUoS - Estimated "&D2-1&" quantities" -> JUoS - Estimated 2019 quantities
A52: =A46+1 -> 15 | B52: ="'"&$D$2&"JSRevCont'!C32" -> '2020JSRevCont'!C32 | C52: JUoS - Table 4 - t-2 revenue | D52: ="Updated from "&$D$2-2&" Annual RIN" -> Updated from 2018 Annual RIN
B53: JS cost audit template'!F4:F5 | C53: JUoS - t-2 FiT charges
A55: =A52+1 -> 16 | B55: ="Prop"&D2&"TSSComp!R6:AD35" -> Prop2020TSSComp!R6:AD35 | C55: ="Indicative "&D2&" tariffs" -> Indicative 2020 tariffs | D55: ="Updated from "&$D$2-1&" model" -> Updated from 2019 model
A57: DNSP required to populate/update with relevant data:
A59: =A55+1 -> 17 | B59: ="'Indicative prices for "&D2+1&"'!A1:O65" -> 'Indicative prices for 2021'!A1:O65 | C59: ="TSS indicative prices for "&D2+1 -> TSS indicative prices for 2021 | D59: DNSP required to populate with relevant data
A61: =A59+1 -> 18 | B61: The following is test data to illustrate the workings of the model. | D61: Input data required from DNSPs
B62: Metering!D8:D11 | C62: ="Proposed Metering Tariffs P(t) for "&D2 -> Proposed Metering Tariffs P(t) for 2020
B63: Metering!F8:F11 | C63: ="Forecast Quantities (Qt) for "&D2 -> Forecast Quantities (Qt) for 2020
B64: Metering!D80:D83 | C64: ="Estimated Quantities (Qt-1) for "&D2-1 -> Estimated Quantities (Qt-1) for 2019
B66: ="'Prop"&$D$2&"DistTar!D6:P35" -> 'Prop2020DistTar!D6:P35 | C66: ="Proposed Distribution Tariffs (Pt) for "&D2 -> Proposed Distribution Tariffs (Pt) for 2020
B67: ="'Prop"&$D$2&"DistTar!AF6:AR35" -> 'Prop2020DistTar!AF6:AR35 | C67: ="Forecast Quantities (Qt) for "&D2 -> Forecast Quantities (Qt) for 2020
B68: ="Est"&$D$2-1&"DistRev!R6:AD35" -> Est2019DistRev!R6:AD35 | C68: ="Estimated Distribution Quantities (Qt-1) for "&D2-1 -> Estimated Distribution Quantities (Qt-1) for 2019
B70: ="'Prop"&D2&"TransTar!D6:P34" -> 'Prop2020TransTar!D6:P34 | C70: ="Proposed Transmission Tariffs (Pt) for "&D2 -> Proposed Transmission Tariffs (Pt) for 2020
B71: ="'"&$D$2&"TransRevCont'!C20:C23" -> '2020TransRevCont'!C20:C23 | C71: Table 3 - Transmission charges for year t
B72: ="'"&$D$2&"TransRevCont'!D42:D45" -> '2020TransRevCont'!D42:D45 | C72: Transmission charges for year t-1
B74: ="'Prop"&D2&"JSTar!D6:P35" -> 'Prop2020JSTar!D6:P35 | C74: ="Proposed Jurisdictional scheme Tariffs (Pt) for "&D2 -> Proposed Jurisdictional scheme Tariffs (Pt) for 2020
B75: ="'"&$D$2&"JSRevCont'!C20:C21" -> '2020JSRevCont'!C20:C21 | C75: Table 3 - PFIT & TFIT charges for year t
B76: ="'"&$D$2&"JSRevCont'!D40:D41" -> '2020JSRevCont'!D40:D41 | C76: PFIT & TFIT charges for year t-1

Sheet Formulae
B2: DUoS
B3: Figure 14.1 Revenue cap formulae
B4: (1) | H4: i=1,..,n and j=1,..,m and t=1,..,5
B5: (2) | H5: t = 1,2,…,5
B6: (3) | H6: t = 1
B7: (4) | H7: t = 2,…,5
B9: where;
C10: is the total annual revenue in year t.
D11: is the price of component 'j' of tariff 'i' in year t.
D12: is the forecast quantity of component 'j' of tariff 'i' in year t.
C13: is the adjusted annual smoothed revenue requirement for year t.
D14: is the annual adjustment f–factor scheme amount in year t. This amount will be calculated as per the method set out in the relevant f–factor scheme.
D15: is the sum of:
B16: · the final carryover amount from the application of the DMIS from the 2011–15 regulatory control period. This amount will be calculated using the method set out in the DMIS and will be deducted from/added to allowed revenue in the 2017 pricing proposal.
D17: is the sum of:
B18: · the recovery of license fee charges by the Victorian Essential Services Commission indexed by one and a half years of interest, calculated using the following method:
B20: where:
C21: are the licence fees paid by DNSP to the Victorian Essential Services Commission in the financial year ending in June of regulatory year t–1,
C22: is the approved nominal weighted average cost of capital (WACC) for the relevant regulatory year using the following method:
B25: · any under or over recovery of actual revenue collected through DUoS charges in regulatory year t–2 as calculated using the method in appendix A,
B26: · the AER approved pass through amounts (positive or negative) with respect to regulatory year t.
C27: is the annual smoothed revenue requirement as stated in the Post Tax Revenue Model (PTRM) for year t (when year t is the first year of the 2016–20 regulatory control period).[43]
C28: is the s‑factor determined in accordance with the service target performance incentive scheme (STPIS) for regulatory year t.[44]
C29: is the annual percentage change in the ABS CPI All Groups, Weighted Average of Eight Capital Cities[45] from the June quarter in year t–2 to the June quarter in year t–1, calculated using the following method :
B30: The ABS CPI All Groups, Weighted Average of Eight Capital Cities for the June quarter in regulatory year t–1
B31: divided by
B32: The ABS CPI All Groups, Weighted Average of Eight Capital Cities for the June quarter in regulatory year t–2
B33: minus one.
B34: For example, for the 2017 regulatory year, t–2 is June quarter 2015 and t–1 is June quarter 2016 and for the 2018 regulatory year, t–2 is June quarter 2016 and t–1 is June quarter 2017 and so on.
C35: is the X factor for each year of the 2016–20 regulatory control period as determined in the PTRM, and annually revised for the return on debt update in accordance with the formula specified in attachment 3—rate of return—calculated for the relevant year.
B38: [43] | C38: Our final F&A stated that if necessary an adjustment for inflation may be required to the annual smoothed revenue requirement for year t. However, as the annual smoothed revenue requirement for year t as stated in our preliminary decision PTRM is in nominal dollars there is no need to adjust it for inflation. This approach is consistent with past regulatory practice.
B39: [44] | C39: For the first two regulatory years of the 2016–20 regulatory control period, the value of St is to be adjusted to account for the change in revenue requirements between the regulatory control periods, as explained in attachment 11. In the formulas in the STPIS, the AR(t+1) is equivalent to ARt in this formula. Calculations of the S factor adjustment are to be made accordingly.
B40: [45] | C40: If the ABS does not or ceases to publish the index, then CPI will mean an index which the AER considers is the best available alternative index
B44: Figure 14.2 Side constraints [46]
C50: where each tariff class has "n" tariffs, with each up to "m" components, and where:
D51: is the proposed price for component ‘j’ of tariff 'i' for year t.
C52: is the price charged for component ‘j’ of tariff 'i' in year t–1.
D53: is the forecast quantity of component ‘j’ of tariff 'i' in year t.
C54: is the annual percentage change in the ABS CPI All Groups, Weighted Average of Eight Capital Cities[4] from the June quarter in year t–2 to the June quarter in year t–1, calculated using the following method :
C55: The ABS CPI All Groups, Weighted Average of Eight Capital Cities[47] for the June quarter in regulatory year t–1
C56: divided by
C57: The ABS CPI All Groups, Weighted Average of Eight Capital Cities for the June quarter in regulatory year t–2
C58: minus one.
B59: For example, for the 2017 regulatory year, t–2 is June quarter 2015 and t–1 is June quarter 2016 and for the 2018 regulatory year, t–2 is June quarter 2016 and t–1 is June quarter 2017 and so on.
D60: is the X factor for each year of the 2016–20 regulatory control period as determined in the PTRM, and annually revised for the return on debt update in accordance with the formula specified in attachment 3—rate of return—calculated for the relevant year. If X>0, then X will be set equal to zero for the purposes of the side constraint formula.
C61: is the s‑factor determined in accordance with the STPIS for regulatory year t.[5]
D62: is the annual percentage change from the f–factor scheme amount in year t. This amount will be calculated as per the method set out in attachment 19—f–factor scheme.
D63: is the annual percentage change from the final carryover amount from the application of the DMIS from the 2011–15 regulatory control period. This amount will be calculated using the method set out in the DMIS and will be deducted from/added to allowed revenue in the 2017 pricing proposal.
D64: is annual percentage change from the sum of:
B65: · the recovery of license fee charges by the Victorian Essential Services Commission indexed by one and a half years of interest, calculated using the following method:
B67: where:
B68: are the licence fees paid byDNSP to the Victorian Essential Services Commission in the financial year ending in June of regulatory year t–1,
C69: is the approved nominal weighted average cost of capital (WACC) for the relevant regulatory year using the following method:
B72: where the
B73: is as set out in our final decision PTRM and updated annually
B74: · the AER approved pass through amounts (positive or negative) with respect to regulatory year t.
B75: With the exception of the CPI, X factor and S factor, the percentage for each of the other factors above can be calculated by dividing the incremental revenues (as used in the total annual revenue formula) for each factor by the expected revenues for regulatory year t–1 (based on the prices in year t–1 multiplied by the forecast quantities for year t).
B77: [46] | C77: All parameters are in nominal terms unless otherwise specified.
B78: [47] | C78: If the ABS does not or ceases to publish the index, then CPI will mean an index which the AER considers is the best available alternative index.
H83: Table 14.1 | I83: Example calculation of DUoS unders and overs account ($'000, nominal)
I84: Year t–2 | J84: Year t–1 | K84: Year t
I85: (actual) | J85: (estimate) | K85: (forecast)
H86: (A) Revenue from DUoS charges | I86: 46 779 | J86: 40 269 | K86: 39 510
H87: (B) Less TAR for regulatory year = | I87: 43 039 | J87: 41 427 | K87: 44 429
H88: + Adjusted annual smoothed revenues (AARt) | I88: 40 189 | J88: 41 393 | K88: 44 393
H89: + f–factor scheme amount (It) | I89: –12 | J89: 10 | K89: 14
H90: + DMIS carryover amount (Tt) | I90: 1013 | J90: 0 | K90: 0
H91: + Annual adjustments (Bt)a = | I91: 1849 | J91: 24 | K91: 22
H92: + License fee recovery | I92: 25 | J92: 24 | K92: 22
H93: + Approved pass through amounts | I93: 1824 | J93: 0 | K93: 0
H95: (A minus B) Under/over recovery of revenue for regulatory year | I95: 3740 | J95: –1158 | K95: –4919b
H97: DUoS unders and overs account
H98: Nominal WACC (per cent) | I98: 0.05 | J98: 0.055 | K98: 0.06
H99: Opening balance | I99: 1737 | J99: 5656c | K99: 4778
H100: Interest on opening balance | I100: 87 | J100: 311 | K100: 287
H101: Under/over recovery of revenue for regulatory year | I101: 3740 | J101: –1158 | K101: –4919b
H102: Interest on under/over recovery for regulatory year | I102: 92 | J102: –31 | K102: –145
H103: Closing balance | I103: 5656 | J103: 4778 | K103: 0d
G104: Notes: | H104: (a) Bt parameter calculations in the DUoS unders and overs account exclude approved DUoS revenue under/over recovery for regulatory year.
H105: (b) Approved DUoS revenue under/over recovery for regulatory year t.
H106: (c) Opening balance is the previous year's closing balance.
H107: (d) The DNSP is expected to achieve a closing balance as close to zero as practicable in its DUoS unders and overs account in each forecast year in its annual pricing proposals in the 2016–20 regulatory control period.
H113: Table 14.2 | I113: Example calculation of designated pricing proposal charges unders and overs account ($'000, nominal)
I114: Year t–2 | J114: Year t–1 | K114: Year t
I115: (actual) | J115: (estimate) | K115: (forecast)
H116: (A) Revenue from designated pricing proposal charges (DPPC) | I116: 40 077 | J116: 34 944 | K116: 36 609
H117: (B) Less DPPC related payments for regulatory year = | I117: 34 365 | J117: 38 734 | K117: 39 200
H118: + DPPC charges to be paid to TNSP | I118: 33 672 | J118: 37 933 | K118: 38 000
H119: + Avoided TUoS/DPPC payments | I119: 572 | J119: 734 | K119: 800
H120: + Inter–distributor payments | I120: 121 | J120: 67 | K120: 400
H122: (A minus B) Under/over recovery of revenue for regulatory year | I122: 5712 | J122: –3790 | K122: –2540a
H124: DPPC unders and overs account
H125: Nominal WACC (per cent) | I125: 0.05 | J125: 0.055 | K125: 0.06
H126: Opening balance | I126: 167 | J126: 6028b | K126: 2467
H127: Interest on opening balance | I127: 8 | J127: 332 | K127: 148
H128: Under/over recovery of revenue for regulatory year | I128: 5712 | J128: –3790 | K128: –2540a
H129: Interest on under/over recovery for regulatory year | I129: 141 | J129: –103 | K129: –75
H130: Closing balance | I130: 6028 | J130: 2467 | K130: 0c
G131: Notes: | H131: (a) Approved DPPC revenue under/over recovery for regulatory year t.
H132: (b) Opening balance is the previous year's closing balance.
H133: (c)The DNSP is expected to achieve a closing balance as close to zero as practicable in its DPPC unders and overs account in each forecast year in its annual pricing proposals in the 2016–20 regulatory control period.
H139: Table 14.3 Example calculation of jurisdictional scheme amounts unders and overs account ($'000, nominal)
I140: Year t–2 | J140: Year t–1 | K140: Year t
I141: (actual) | J141: (estimate) | K141: (forecast)
H142: (A) Revenue from jurisdictional schemes | I142: 19 777 | J142: 23 121 | K142: 26 965
H143: (B) Less jurisdictional scheme payments for regulatory year = | I143: 20 272 | J143: 20 959 | K143: 28 641
H144: + Jurisdictional scheme 1 payments | I144: 14 159 | J144: 13 954 | K144: 13 961
H145: + Jurisdictional scheme 2 payments | I145: 6113 | J145: 7005 | K145: 14 680
H147: (A minus B) Under/over recovery of revenue for regulatory year | I147: –495 | J147: 2162 | K147: –1676a
H149: Jurisdictional scheme amount unders and overs account
H150: Nominal WACC (per cent) | I150: 0.05 | J150: 0.055 | K150: 0.06
H151: Opening balance | I151: –52 | J151: –562b | K151: 1628
H152: Interest on opening balance | I152: –3 | J152: –31 | K152: 98
H153: Under/over recovery of revenue for regulatory year | I153: –495 | J153: 2162 | K153: –1676a
H154: Interest on under/over recovery for regulatory year | I154: –12 | J154: 59 | K154: –50
H155: Closing balance | I155: –562 | J155: 1628 | K155: 0c
G156: Notes: | H156: (a) Approved jurisdictional scheme amounts revenue under/over recovery for regulatory year t.
H157: (b) Opening balance is the previous year's closing balance.
H158: (c) The DNSP is expected to achieve a closing balance as close to zero as practicable in its jurisdictional scheme amount unders and overs account in each forecast year in its annual pricing proposals in the 2016–20 regulatory control period.
B166: Metering
B167: Figure 16.3 | C167: Annual metering charges revenue cap formula
A168: (1) | H168: i=1,..,n and j=1,..,m and t=1,..,5
A170: (2) | H170: t = 1,2,…,5
A172: (3) | H172: t = 1,2,…,5
B175: where;
C176: is the total annual revenue for annual metering charges in year t.
E177: is the price of component 'j' of metering service 'i' in year t.
E178: is the forecast quantity of component 'j' of metering service 'i' in year t.
D179: is the annual revenue requirement for year t. When year t is the first year of the 2016–20 regulatory control period,
D180: is the annual revenue requirement in the annual metering charges Post Tax Revenue Model (PTRM) for year t.
E181: is equal to zero for all years except 2017 and is a once off adjustment to 2017 charges for the unders and overs recoveries relating to Advanced Metering Infrastructure actual revenues and actual costs incurred in 2014 and 2015.
E182: is the sum of annual adjustment factors in year t as calculated in the unders and overs account in appendix C.
D184: is the annual revenue requirement for year t–1.
C185: is the annual percentage change in the ABS CPI All Groups, Weighted Average of Eight Capital Cities[39] from the June quarter in year t–2 to the June quarter in year t–1, calculated using the following method:
B186: The ABS CPI All Groups, Weighted Average of Eight Capital Cities for the June quarter in regulatory year t–1
B187: divided by
B188: The ABS CPI All Groups, Weighted Average of Eight Capital Cities for the June quarter in regulatory year t–2
B189: minus one.
B190: For example, for the 2017 regulatory year, t–2 is June quarter 2015 and t–1 is June quarter 2016 and for the 2018 regulatory year, t–2 is June quarter 2016 and t–1 is June quarter 2017 and so on.
D191: is the X factor for each year of the 2016–20 regulatory control period as determined in the annual metering charges PTRM.
B194: [39] | C194: If the ABS does not or ceases to publish the index, then CPI will mean an index which the AER considers is the best available alternative index
B199: Figure 16.4 Side constraints
B201: where:
E202: is the price of annual metering charges service 'i' in year t.
D203: is the price of annual metering charges service 'i' in year t–1.
C204: is the annual percentage change in the ABS CPI All Groups, Weighted Average of Eight Capital Cities from the June quarter in year t–2 to the June quarter in year t–1, calculated using the following method:
B205: The ABS CPI All Groups, Weighted Average of Eight Capital Cities[40] for the June quarter in regulatory year t–1
B206: divided by
B207: The ABS CPI All Groups, Weighted Average of Eight Capital Cities for the June quarter in regulatory year t–2
B208: minus one.
B209: For example, for the 2017 regulatory year, t–2 is June quarter 2015 and t–1 is June quarter 2016 and for the 2018 regulatory year, t–2 is June quarter 2016 and t–1 is June quarter 2017 and so on.
D210: is the X factor for each year of the 2016–20 regulatory control period as determined in the annual metering charges PTRM.
E211: is the annual percentage change for the unders and overs recoveries relating to Advanced Metering Infrastructure actual revenues and actual costs incurred in 2014 and 2015. It is equal to zero for all years except 2017 and is a once off adjustment to 2017 charges.
E212: is the annual percentage change from the sum of annual adjustment factors in year t as calculated in the unders and overs account in appendix C.
B213: With the exception of the CPI and the X factor, the percentage for each of the other factors above can be calculated by dividing the incremental revenues (as used in the total annual revenue formula) for each factor by the expected revenues for regulatory year t–1 (based on the prices in year t–1 multiplied by the forecast quantities for year t).
B215: [40] | C215: If the ABS does not or ceases to publish the index, then CPI will mean an index which the AER considers is the best available alternative index.
H220: Table 16.xx | I220: Example calculation of annual metering charges unders and overs account ($'000, nominal)
I221: Year t–2 | J221: Year t–1 | K221: Year t
I222: (actual) | J222: (estimate) | K222: (forecast)
H223: (A) Revenue from annual metering charges | I223: 8 449 | J223: 7 389 | K223: 6 460
H224: (B) Less TARM for regulatory year = | I224: 7 366 | J224: 7 422 | K224: 7 573
H225: + Annual revenue requirement (ARt) | I225: 7 349 | J225: 7 412 | K225: 7 559
H226: + T factor (Tt) – true‑ups relating to the AMI–Order in Council | I226: 17 | J226: 10 | K226: 14
H228: (A minus B) Under/over recovery of revenue for regulatory year | I228: 1 083 | J228: –33 | K228: –1 113a
H230: Annual metering charges unders and overs account
H231: Nominal WACC (per cent) | I231: 0.05 | J231: 0.055 | K231: 0.06
H232: Opening balance | I232: –50 | J232: 1 057b | K232: 1 081
H233: Interest on opening balance | I233: –3 | J233: 58 | K233: 65
H234: Under/over recovery of revenue for regulatory year | I234: 1 083 | J234: –33 | K234: –1 113b
H235: Interest on under/over recovery for regulatory year | I235: 27 | J235: –1 | K235: –33
H236: Closing balance | I236: 1 057 | J236: 1 081 | K236: 0c
G237: Notes: | H237: (a) Approved annual metering charges revenue under/over recovery for regulatory year t. This is the Bt parameter in the annual metering charges revenue cap formula.
H238: (b) Opening balance is the previous year's closing balance.
H239: (c) The DNSP is expected to achieve a closing balance as close to zero as practicable in its annual metering charges unders and overs account in each forecast year in its annual pricing proposals in the 2016–20 regulatory control period.

Sheet Model update
A3: Tariff Approval Template for | C3: =A54 -> Jemena
A5: calendar year commencing | C5: 2020
A7: t | B7: = | C7: =C5 -> 2020
A8: t-1 | B8: = | C8: =C7-1 -> 2019
A9: t-2 | B9: = | C9: 2018
A10: t-3 | B10: = | C10: 2017
A11: t-4 | B11: = | C11: 2016
A13: Please fill in yellow highlighted cells where appropriate
A15: CPI | B15: The ABS changed the index reference base in September 2012 from 1989-90 to 2011-12.
A16: CPI Index Sept 2011 | C16: 99.8
A17: CPI Index Sept 2012 | C17: 101.8 | E17: CPI 2013 | F17: =C17/C16-1 -> 0.02004008016
A18: CPI Index Sept 2013 | C18: 104 | E18: CPI 2014 | F18: =C18/C17-1 -> 0.02161100196
A19: CPI Index Sept 2014 | C19: 106.4 | E19: CPI 2015 | F19: =C19/C18-1 -> 0.02307692308
A20: CPI Index Sept 2015 | C20: 108 | E20: CPI 2016 | F20: =C20/C19-1 -> 0.01503759398
A21: CPI Index June 2015 | C21: 107.5
A22: CPI Index June 2016 | C22: 108.6 | E22: CPI 2017 | F22: =IF(OR(C21="",C22=""),0,C22/C21-1) -> 0.01023255814
A23: CPI Index June 2017 | C23: 110.7 | E23: CPI 2018 | F23: =IF(OR(C22="",C23=""),0,C23/C22-1) -> 0.01933701657
A24: CPI Index June 2018 | C24: 113 | E24: CPI 2019 | F24: 0.02077687444
A25: CPI Index June 2019 | C25: 114.8 | E25: CPI 2020 | F25: 0.01592920354
A28: ="CPI " &$C$9 -> CPI 2018 | C28: =VLOOKUP(A28,E$17:F$25,2,FALSE) -> 0.01933701657 | D28: (t-2)
A29: ="CPI " &$C$8 -> CPI 2019 | C29: =VLOOKUP(A29,E$17:F$25,2,FALSE) -> 0.02077687444 | D29: (t-1)
A30: ="CPI " &$C$5 -> CPI 2020 | C30: =VLOOKUP(A30,E$17:F$25,2,FALSE) -> 0.01592920354 | D30: (t)
A35: Real Vanilla WACC (rvw)
A36: ="rvw for "&C$5 -> rvw for 2020 | D36: rvw for 2016 | E36: rvw for 2017 | F36: rvw for 2018 | G36: rvw for 2019 | H36: rvw for 2020
A37: =$A$54 -> Jemena | B37: =HLOOKUP($A$36,$D$36:$H$41,2,FALSE) -> 0.03656195102 | D37: 0.03932862871 | E37: 0.03873057145 | F37: 0.03821466541 | G37: 0.03766911607 | H37: 0.03656195102
A38: =$A$55 -> CitiPower | B38: =HLOOKUP($A$36,$D$36:$H$41,3,FALSE) -> 0.03508047475 | D38: 0.0367000241 | E38: 0.03612756881 | F38: 0.03563047885 | G38: 0.03508047475 | H38: 0.03508047475
A39: =$A$56 -> Powercor | B39: =HLOOKUP($A$36,$D$36:$H$41,4,FALSE) -> 0.03508047475 | D39: 0.0367000241 | E39: 0.03612756881 | F39: 0.03563047885 | G39: 0.03508047475 | H39: 0.03508047475
A40: =$A$57 -> AusNet Services | B40: =HLOOKUP($A$36,$D$36:$H$41,5,FALSE) -> 0.03742733406 | D40: 0.03871679489 | E40: 0.03826233619 | F40: 0.03801328469 | G40: 0.03742733406 | H40: 0.03742733406
A41: =$A$58 -> United Energy | B41: =HLOOKUP($A$36,$D$36:$H$41,6,FALSE) -> 0.03751614965 | D41: 0.0393301904 | E41: 0.03869503169 | F41: 0.03812382202 | G41: 0.03751614965 | H41: 0.03751614965
A43: ="rvw (t) "&C$5 -> rvw (t) 2020 | B43: =VLOOKUP(C$3,A37:B41,2,FALSE) -> 0.03656195102 | C43: (t) | D43: =VLOOKUP($C$3,$A$37:$H$41,4,FALSE) -> 0.03932862871 | E43: =VLOOKUP($C$3,$A37:$H$41,5,FALSE) -> 0.03873057145 | F43: =VLOOKUP($C$3,$A$37:$H$41,6,FALSE) -> 0.03821466541 | G43: =VLOOKUP($C$3,$A$37:$H$41,7,FALSE) -> 0.03766911607 | H43: =VLOOKUP($C$3,$A$37:$H$41,8,FALSE) -> 0.03656195102
A45: ="rvw for "&C$5-1 -> rvw for 2019 | B45: =IF(C$5=2016,F$184,HLOOKUP($A45,D$36:H$43,8,FALSE)) -> 0.03766911607 | C45: (t-1)
A47: ="rvw for "&C$5-2 -> rvw for 2018 | B47: =IF(OR(C$5=2016,C$5=2017),F$183,HLOOKUP($A47,D$36:H$43,8,FALSE)) -> 0.03821466541 | C47: (t-2)
A52: DuoS
A53: ="Xt for "&C$5 -> Xt for 2020 | D53: AR for 2016 | E53: Xt for 2017 | F53: Xt for 2018 | G53: Xt for 2019 | H53: Xt for 2020
A54: Jemena | B54: =IF(C$5=2016,"n/a",HLOOKUP($A$53,$E$53:$H$58,2,FALSE)) -> -0.01712086467 | D54: 238498758 | E54: -0.0325 | F54: 0.0027 | G54: -0.01194800863 | H54: -0.01712086467
A55: CitiPower | B55: =IF(C$5=2016,"n/a",HLOOKUP($A$53,$E$53:$H$58,3,FALSE)) -> -0.02947637269 | D55: 282881283 | E55: 0.004 | F55: -0.0005 | G55: -0.001232459035 | H55: -0.02947637269
A56: Powercor | B56: =IF(C$5=2016,"n/a",HLOOKUP($A$53,$E$53:$H$58,4,FALSE)) -> -0.03390125883 | D56: 621773294 | E56: 0.0468 | F56: -0.0081 | G56: -0.03021164125 | H56: -0.03390125883
A57: AusNet Services | B57: =IF(C$5=2016,"n/a",HLOOKUP($A$53,$E$53:$H$58,5,FALSE)) -> -0.03013217637 | D57: 586045137 | E57: 0.003 | F57: -0.0184 | G57: -0.03013217637 | H57: -0.03013217637
A58: United Energy | B58: =IF(C$5=2016,"n/a",HLOOKUP($A$53,$E$53:$H$58,6,FALSE)) -> -0.003957117526 | D58: 375069867 | E58: -0.0383 | F58: -0.0316 | G58: -0.02611202001 | H58: -0.003957117526
A60: ="Xt for"&C$5 -> Xt for2020 | B60: =VLOOKUP(C$3,A54:B58,2,FALSE) -> -0.01712086467 | D60: =VLOOKUP($C$3,$A$54:$H$58,4,FALSE) -> 238498758 | E60: =VLOOKUP($C$3,$A$54:$H$58,5,FALSE) -> -0.0325 | F60: =VLOOKUP($C$3,$A$54:$H$58,6,FALSE) -> 0.0027 | G60: =VLOOKUP($C$3,$A$54:$H$58,7,FALSE) -> -0.01194800863 | H60: =VLOOKUP($C$3,$A$54:$H$58,8,FALSE) -> -0.01712086467
A64: Metering
A65: ="Xt for "&C$5 -> Xt for 2020 | D65: AR for 2016 | E65: Xt for 2017 | F65: Xt for 2018 | G65: Xt for 2019 | H65: Xt for 2020
A66: Jemena | B66: =IF(C$5=2016,"n/a",HLOOKUP($A$65,$E$65:$H$70,2,FALSE)) -> -0.01247641622 | D66: 44212949.02 | E66: 0.3473 | F66: -0.0136 | G66: -0.01181844246 | H66: -0.01247641622
A67: CitiPower | B67: =IF(C$5=2016,"n/a",HLOOKUP($A$65,$E$65:$H$70,3,FALSE)) -> 0.075 | D67: 32973195.04 | E67: 0.1402 | F67: 0.0767 | G67: 0.07936799905 | H67: 0.075
A68: Powercor | B68: =IF(C$5=2016,"n/a",HLOOKUP($A$65,$E$65:$H$70,4,FALSE)) -> 0.08 | D68: 79145313.2 | E68: 0.1096 | F68: 0.0819 | G68: 0.08490086085 | H68: 0.08
A69: AusNet Services | B69: =IF(C$5=2016,"n/a",HLOOKUP($A$65,$E$65:$H$70,5,FALSE)) -> 0.165 | D69: 92754610.44 | E69: 0.0231 | F69: 0.1658 | G69: 0.1693485927 | H69: 0.165
A70: United Energy | B70: =IF(C$5=2016,"n/a",HLOOKUP($A$65,$E$65:$H$70,6,FALSE)) -> 0.055 | D70: 62733316.95 | E70: 0.3081 | F70: 0.057 | G70: 0.05954200889 | H70: 0.055
A72: ="Xt for"&C$5 -> Xt for2020 | B72: =VLOOKUP(C$3,A66:B70,2,FALSE) -> -0.01247641622 | D72: =VLOOKUP($C$3,$A$66:$H$70,4,FALSE) -> 44212949.02 | E72: =VLOOKUP($C$3,$A$66:$H$70,5,FALSE) -> 0.3473 | F72: =VLOOKUP($C$3,$A$66:$H$70,6,FALSE) -> -0.0136 | G72: =VLOOKUP($C$3,$A$66:$H$70,7,FALSE) -> -0.01181844246 | H72: =VLOOKUP($C$3,$A$66:$H$70,8,FALSE) -> -0.01247641622
A76: DuoS
A77: Real Pre-tax WACC (rptw)
A78: ="rptw for "&C$5 -> rptw for 2020 | D78: rptw for 2016 | E78: rptw for 2017 | F78: rptw for 2018 | G78: rptw for 2019 | H78: rptw for 2020
A79: =$A$54 -> Jemena | B79: =HLOOKUP($A$78,$D$78:$H$83,2,FALSE) -> 0.04419676788 | D79: 0.04723374708 | E79: 0.04663553542 | F79: 0.04611949618 | G79: 0.04530393293 | H79: 0.04419676788
A80: =$A$55 -> CitiPower | B80: =HLOOKUP($A$78,$D$78:$H$83,3,FALSE) -> 0.04257942963 | D80: 0.04696344556 | E80: 0.04636538831 | F80: 0.04584948227 | G80: 0.04257942963 | H80: 0.04257942963
A81: =$A$56 -> Powercor | B81: =HLOOKUP($A$78,$D$78:$H$83,4,FALSE) -> 0.04158200864 | D81: 0.04347088828 | E81: 0.0428982852 | F81: 0.0424010669 | G81: 0.04158200864 | H81: 0.04158200864
A82: =$A$57 -> AusNet Services | B82: =HLOOKUP($A$78,$D$78:$H$83,5,FALSE) -> 0.04377949723 | D82: 0.04533877046 | E82: 0.04488419444 | F82: 0.04463507863 | G82: 0.04377949723 | H82: 0.04377949723
A83: =$A$58 -> United Energy | B83: =HLOOKUP($A$78,$D$78:$H$83,6,FALSE) -> 0.04610722815 | D83: 0.04819181771 | E83: 0.04755649502 | F83: 0.04698513788 | G83: 0.04610722815 | H83: 0.04610722815
A85: ="rptw (t) "&C$5 -> rptw (t) 2020 | B85: =VLOOKUP(C$3,A79:B83,2,FALSE) -> 0.04419676788 | C85: (t) | D85: =VLOOKUP($C$3,$A$79:$H$83,4,FALSE) -> 0.04723374708 | E85: =VLOOKUP($C$3,$A79:$H$83,5,FALSE) -> 0.04663553542 | F85: =VLOOKUP($C$3,$A$79:$H$83,6,FALSE) -> 0.04611949618 | G85: =VLOOKUP($C$3,$A$79:$H$83,7,FALSE) -> 0.04530393293 | H85: =VLOOKUP($C$3,$A$79:$H$83,8,FALSE) -> 0.04419676788
A87: ="rptw for "&C$5-1 -> rptw for 2019 | B87: =IF(C$5=2016,B$184,HLOOKUP($A87,D$78:H$85,8,FALSE)) -> 0.04530393293 | C87: (t-1)
A89: ="rptw for "&C$5-2 -> rptw for 2018 | B89: =IF(OR(C$5=2016,C$5=2017),B$183,HLOOKUP($A89,D$78:H$85,8,FALSE)) -> 0.04611949618 | C89: (t-2)
A93: F factor Scheme | B93: =$C$5 -> 2020 | D93: 2016 | E93: =+D93+1 -> 2017 | F93: =+E93+1 -> 2018 | G93: 2019 | H93: 2020
A94: =$A$54 -> Jemena | B94: =HLOOKUP($B$93,$D$93:$H$98,2,FALSE) -> 112800 | D94: -680000 | E94: 70000 | F94: 655000 | G94: 117300 | H94: 112800
A95: =$A$55 -> CitiPower | B95: =HLOOKUP($B$93,$D$93:$H$98,3,FALSE) -> 36300 | D95: -15000 | E95: 410000 | F95: 140000 | G95: 43200 | H95: 36300
A96: =$A$56 -> Powercor | B96: =HLOOKUP($B$93,$D$93:$H$98,4,FALSE) -> 995100 | D96: -1530000 | E96: 1420000 | F96: 1755000 | G96: 4639200 | H96: 995100
A97: =$A$57 -> AusNet Services | B97: =HLOOKUP($B$93,$D$93:$H$98,5,FALSE) -> 316200 | D97: 1870000 | E97: 3420000 | F97: 750000 | G97: 1485000 | H97: 316200
A98: =$A$58 -> United Energy | B98: =HLOOKUP($B$93,$D$93:$H$98,6,FALSE) -> 5100 | D98: -2245000 | E98: 555000 | F98: 1000000 | G98: 224400 | H98: 5100
A100: ="Ifactor (t) "&C$5 -> Ifactor (t) 2020 | B100: =VLOOKUP(C$3,A94:B98,2,FALSE) -> 112800 | D100: =VLOOKUP($C$3,$A$94:$H$98,4,FALSE) -> -680000 | E100: =VLOOKUP($C$3,$A$94:$H$98,5,FALSE) -> 70000 | F100: =VLOOKUP($C$3,$A$94:$H$98,6,FALSE) -> 655000 | G100: =VLOOKUP($C$3,$A$94:$H$98,7,FALSE) -> 117300 | H100: =VLOOKUP($C$3,$A$94:$H$98,8,FALSE) -> 112800
A104: S factor Scheme | B104: =$C$5 -> 2020 | D104: 2016 | E104: =+D104+1 -> 2017 | F104: =+E104+1 -> 2018 | G104: 2019 | H104: 2020
A105: =$A$54 -> Jemena | B105: =HLOOKUP($B$104,$D$104:$H$109,2,FALSE) -> 0.00307537808 | D105: 0.03997406406 | E105: 0.01488310469 | F105: -0.03971153723 | G105: 0.006950679651 | H105: 0.00307537808
A106: =$A$55 -> CitiPower | B106: =HLOOKUP($B$104,$D$104:$H$109,3,FALSE) -> 0.01356911181 | D106: -0.01268789003 | E106: 0.004032145684 | F106: 0.01857052664 | G106: -0.009608708052 | H106: 0.01356911181
A107: =$A$56 -> Powercor | B107: =HLOOKUP($B$104,$D$104:$H$109,4,FALSE) -> 0.003551089156 | D107: -0.01184910821 | E107: 0.05100648542 | F107: -0.01384168227 | G107: -0.0009709084886 | H107: 0.003551089156
A108: =$A$57 -> AusNet Services | B108: =HLOOKUP($B$104,$D$104:$H$109,5,FALSE) -> -0.007004839182 | D108: 0.03357397489 | E108: 0.03217876587 | F108: -0.06343364122 | G108: 0.01506523806 | H108: -0.007004839182
A109: =$A$58 -> United Energy | B109: =HLOOKUP($B$104,$D$104:$H$109,6,FALSE) -> 0.005050561939 | D109: -0.02947870448 | E109: 0.02836672327 | F109: 0.02276703882 | G109: 0.01682414399 | H109: 0.005050561939
A111: ="S factor (t) "&C$5 -> S factor (t) 2020 | B111: =VLOOKUP(C$3,A105:B109,2,FALSE) -> 0.00307537808 | D111: =VLOOKUP($C$3,$A$105:$H$109,4,FALSE) -> 0.03997406406 | E111: =VLOOKUP($C$3,$A$105:$H$109,5,FALSE) -> 0.01488310469 | F111: =VLOOKUP($C$3,$A$105:$H$109,6,FALSE) -> -0.03971153723 | G111: =VLOOKUP($C$3,$A$105:$H$109,7,FALSE) -> 0.006950679651 | H111: =VLOOKUP($C$3,$A$105:$H$109,8,FALSE) -> 0.00307537808
A115: Pass through Amounts | B115: =$C$5 -> 2020 | D115: 2016 | E115: =+D115+1 -> 2017 | F115: =+E115+1 -> 2018 | G115: 2019 | H115: 2020
A116: =$A$54 -> Jemena | B116: =HLOOKUP($B$115,$D$115:$H$120,2,FALSE) -> 0 | D116: 0 | E116: 0 | F116: 0 | G116: 0 | H116: 0
A117: =$A$55 -> CitiPower | B117: =HLOOKUP($B$115,$D$115:$H$120,3,FALSE) -> 0 | D117: 0 | E117: 0 | F117: 0 | G117: 0 | H117: 0
A118: =$A$56 -> Powercor | B118: =HLOOKUP($B$115,$D$115:$H$120,4,FALSE) -> 0 | D118: 0 | E118: 0 | F118: 0 | G118: 0 | H118: 0
A119: =$A$57 -> AusNet Services | B119: =HLOOKUP($B$115,$D$115:$H$120,5,FALSE) -> 0 | D119: =-(5723000*(1+0.0975)) -> -6280992.5 | E119: 0 | F119: 0 | G119: 0 | H119: 0
A120: =$A$58 -> United Energy | B120: =HLOOKUP($B$115,$D$115:$H$120,6,FALSE) -> 0 | D120: 0 | E120: 0 | F120: 0 | G120: 0 | H120: 0
A122: ="Pass through amounts (t) "&C$5 -> Pass through amounts (t) 2020 | B122: =VLOOKUP(C$3,A116:B120,2,FALSE) -> 0 | D122: =VLOOKUP($C$3,$A$116:$H$120,4,FALSE) -> 0 | E122: =VLOOKUP($C$3,$A$116:$H$120,5,FALSE) -> 0 | F122: =VLOOKUP($C$3,$A$116:$H$120,6,FALSE) -> 0 | G122: =VLOOKUP($C$3,$A$116:$H$120,7,FALSE) -> 0 | H122: =VLOOKUP($C$3,$A$116:$H$120,8,FALSE) -> 0
A126: License Fees | B126: =$C$5 -> 2020 | D126: 2016 | E126: =+D126+1 -> 2017 | F126: =+E126+1 -> 2018 | G126: 2019 | H126: 2020
A127: =$A$54 -> Jemena | B127: =HLOOKUP($B$126,$D$126:$H$131,2,FALSE) -> 130256 | D127: 36033 | E127: 39516 | F127: 76545 | G127: 77350 | H127: 130256
A128: =$A$55 -> CitiPower | B128: =HLOOKUP($B$126,$D$126:$H$131,3,FALSE) -> 83585.8502 | D128: 36475 | E128: 40445 | F128: 78091 | G128: 78912 | H128: =G128*(1+((1+'Model update'!$B$45)*(1+'Model update'!$C$29)-1)) -> 83585.8502
A129: =$A$56 -> Powercor | B129: =HLOOKUP($B$126,$D$126:$H$131,4,FALSE) -> 198103.2951 | D129: 85205 | E129: 94964 | F129: 185081 | G129: 187026 | H129: =G129*(1+((1+'Model update'!$B$45)*(1+'Model update'!$C$29)-1)) -> 198103.2951
A130: =$A$57 -> AusNet Services | B130: =HLOOKUP($B$126,$D$126:$H$131,5,FALSE) -> 180072.046 | D130: 74811 | E130: 85031 | F130: 168235 | G130: 170003 | H130: =G130*(1+((1+'Model update'!$B$45)*(1+'Model update'!$C$29)-1)) -> 180072.046
A131: =$A$58 -> United Energy | B131: =HLOOKUP($B$126,$D$126:$H$131,6,FALSE) -> 169397.1398 | D131: 74197 | E131: 81712 | F131: 158262 | G131: 159925 | H131: =G131*(1+((1+'Model update'!$B$45)*(1+'Model update'!$C$29)-1)) -> 169397.1398
A133: ="Licence Fee (t-1) "&TEXT(C$5-2,"####")&"-"&RIGHT(TEXT(C$5-1,"##"),2) -> Licence Fee (t-1) 2018-19 | B133: =VLOOKUP(C$3,A127:B131,2,FALSE) -> 130256 | D133: =VLOOKUP($C$3,$A$127:$H$131,4,FALSE) -> 36033 | E133: =VLOOKUP($C$3,$A$127:$H$131,5,FALSE) -> 39516 | F133: =VLOOKUP($C$3,$A$127:$H$131,6,FALSE) -> 76545 | G133: =VLOOKUP($C$3,$A$127:$H$131,7,FALSE) -> 77350 | H133: =VLOOKUP($C$3,$A$127:$H$131,8,FALSE) -> 130256
A137: DMIA Carryover adjustment | B137: =$C$5 -> 2020 | D137: 2016 | E137: =+D137+1 -> 2017 | F137: =+E137+1 -> 2018 | G137: 2019 | H137: 2020
A138: =$A$54 -> Jemena | B138: =HLOOKUP($B$137,$D$137:$H$142,2,FALSE) -> 0 | E138: =H154 -> -91239.84446
A139: =$A$55 -> CitiPower | B139: =HLOOKUP($B$137,$D$137:$H$142,3,FALSE) -> 0
A140: =$A$56 -> Powercor | B140: =HLOOKUP($B$137,$D$137:$H$142,4,FALSE) -> 0
A141: =$A$57 -> AusNet Services | B141: =HLOOKUP($B$137,$D$137:$H$142,5,FALSE) -> 0
A142: =$A$58 -> United Energy | B142: =HLOOKUP($B$137,$D$137:$H$142,6,FALSE) -> 0 | E142: =H163 -> -479660.6938
A144: ="T factor (t) "&C$5 -> T factor (t) 2020 | B144: =VLOOKUP(C$3,A138:B142,2,FALSE) -> 0 | D144: =VLOOKUP($C$3,$A$138:$H$142,4,FALSE) -> 0 | E144: =VLOOKUP($C$3,$A$138:$H$142,5,FALSE) -> -91239.84446 | F144: =VLOOKUP($C$3,$A$138:$H$142,6,FALSE) -> 0 | G144: =VLOOKUP($C$3,$A$138:$H$142,7,FALSE) -> 0 | H144: =VLOOKUP($C$3,$A$138:$H$142,8,FALSE) -> 0
A147: DMIA Carryover adjustment
A148: Jemena | C148: 2011-15 | D148: 2016 | E148: 2017
A149: CPI - PTRM | D149: 0.02323079821 | E149: 0.02323079821
A150: Nominal Vanilla WACC - PTRM | C150: 0.1033058648 | D150: =(1+D149)*(1+D37)-1 -> 0.06347306235 | E150: =(1+E149)*(1+E37)-1 -> 0.06286111175
C152: 2011 | D152: 2012 | E152: 2013 | F152: 2014 | G152: 2015 | H152: Total
A153: Ex-ante revenue minus ex post expenditure ($nominal) | C153: -263938 | D153: -16375.4 | E153: 163676.6714 | F153: 153066.6261 | G153: 125690.5855 | H153: =SUM(C153:G153) -> 162120.4829
A154: DMIA Carryover adjustment | C154: =0-(C153/(1+$C150))*(1+$C150)^5*(1+$D150)*(1+$E150) -> 442067.5528 | D154: =C154-(D153/(1+$C150))*(1+$C150)^4*(1+$D150)*(1+$E150) -> 466926.4987 | E154: =D154-(E153/(1+$C150))*(1+$C150)^3*(1+$D150)*(1+$E150) -> 241719.6213 | F154: =E154-(F153/(1+$C150))*(1+$C150)^2*(1+$D150)*(1+$E150) -> 50831.26114 | G154: =F154-(G153/(1+$C150))*(1+$C150)^1*(1+$D150)*(1+$E150) -> -91239.84446 | H154: =G154 -> -91239.84446
A157: UED | C157: 2011-15 | D157: 2016 | E157: 2017
A158: CPI - PTRM | D158: 0.02323079821 | E158: 0.02323079821
A159: Nominal Vanilla WACC - PTRM | C159: 0.09489772882 | D159: =(1+D158)*(1+D41)-1 -> 0.06347466033 | E159: =(1+E158)*(1+E41)-1 -> 0.06282474637
C161: 2011 | D161: 2012 | E161: 2013 | F161: 2014 | G161: 2015 | H161: Total
A162: Ex-ante revenue minus ex post expenditure ($nominal) | C162: 406960 | D162: 327739.2 | E162: 91075.34272 | F162: -227853.7479 | G162: -450364.8291 | H162: =SUM(C162:G162) -> 147555.9658
A163: DMIA Carryover adjustment | C163: =0-(C162/(1+$C159))*(1+$C159)^5*(1+$D159)*(1+$E159) -> -661050.6678 | D163: =C163-(D162/(1+$C159))*(1+$C159)^4*(1+$D159)*(1+$E159) -> -1147276.309 | E163: =D163-(E162/(1+$C159))*(1+$C159)^3*(1+$D159)*(1+$E159) -> -1270682.438 | F163: =E163-(F162/(1+$C159))*(1+$C159)^2*(1+$D159)*(1+$E159) -> -988702.2892 | G163: =F163-(G162/(1+$C159))*(1+$C159)^1*(1+$D159)*(1+$E159) -> -479660.6938 | H163: =G163 -> -479660.6938
A172: Regulatory Period 2011-15
A174: DuoS
A175: Real Pre-tax WACC for distribution tariffs | D175: Real Vanilla WACC for distribution tariffs
A177: =$A$54 -> Jemena | B177: 0.087 | D177: =$A$54 -> Jemena | F177: 0.0756
A178: =$A$55 -> CitiPower | B178: 0.0786 | D178: =$A$55 -> CitiPower | F178: 0.0674
A179: =$A$56 -> Powercor | B179: 0.0776 | D179: =$A$56 -> Powercor | F179: 0.0674
A180: =$A$57 -> AusNet Services | B180: 0.078 | D180: =$A$57 -> AusNet Services | F180: 0.0699
A181: =$A$58 -> United Energy | B181: 0.0791 | D181: =$A$58 -> United Energy | F181: 0.0674
A183: pretax WACCD | B183: =VLOOKUP($C$3,A177:B181,2,FALSE) -> 0.087 | D183: Real Vanilla WACCD | F183: =VLOOKUP($C$3,D177:F181,3,FALSE) -> 0.0756
A188: Pass Through Costs | E188: 2014 | F188: 2015
A190: =A204 -> F Factor pass through | E190: =B204 -> 370000 | F190: =C204 -> -855000
A191: VBRC | E191: =B215 -> 0 | F191: =C215 -> 0
A192: Powerline Replacement program | E192: =B226 -> 0 | F192: =C226 -> 0
A193: TOTAL PASS THROUGH AMOUNTS | E193: =SUM(E190:E192) -> 370000 | F193: =SUM(F190:F192) -> -855000
A197: F factor Scheme | B197: 2014 | C197: 2015
A198: =$A$54 -> Jemena | B198: 370000 | C198: -855000
A199: =$A$55 -> CitiPower | B199: 10000 | C199: -65000
A200: =$A$56 -> Powercor | B200: 2470000 | C200: -2405000
A201: =$A$57 -> AusNet Services | B201: 1970000 | C201: 2020000
A202: =$A$58 -> United Energy | B202: 980000 | C202: -70000
A204: F Factor pass through | B204: =VLOOKUP($C$3,$A$198:$C$202,2,FALSE) -> 370000 | C204: =VLOOKUP($C$3,$A$198:$C$202,3,FALSE) -> -855000
A208: VBRC | B208: 2014 | C208: 2015
A209: =$A$54 -> Jemena | B209: 0 | C209: 0
A210: =$A$55 -> CitiPower | B210: 0 | C210: 0
A211: =$A$56 -> Powercor | B211: =H245 -> 7193170.454 | C211: =I245 -> 8768550.378
A212: =$A$57 -> AusNet Services | B212: =H262 -> 6039778.158 | C212: =I262 -> 8341755.212
A213: =$A$58 -> United Energy | B213: 0 | C213: 0
A215: VBRC pass through | B215: =VLOOKUP($C$3,$A$209:$C$213,2,FALSE) -> 0 | C215: =VLOOKUP($C$3,$A$209:$C$213,3,FALSE) -> 0
A219: Powerline Replacement program | B219: 2014 | C219: 2015
A220: =$A$54 -> Jemena | B220: 0 | C220: 0
A221: =$A$55 -> CitiPower | B221: 0 | C221: 0
A222: =$A$56 -> Powercor | B222: =H249 -> 0 | C222: 8777690.455
A223: =$A$57 -> AusNet Services | B223: 0 | C223: 5723419.31
A224: =$A$58 -> United Energy | B224: 0 | C224: 0
A226: Powerline Replacement program | B226: =VLOOKUP($C$3,$A$219:$C$224,2,FALSE) -> 0 | C226: =VLOOKUP($C$3,$A$219:$C$224,3,FALSE) -> 0
A231: VBRC
A233: Powercor | E233: 2011 | F233: 2012 | G233: 2013 | H233: 2014 | I233: 2015
A234: Pass through amounts approved (Nominal $) - Forecast CPI | G234: 10270612 | H234: 7181525 | I234: 8777217
A235: (As per AER's Final Decision on Powercor's VBRC pass through, table 7.2, 7 March 2012)
A236: Forecast CPI in PTRM | E236: 0.0257487534 | F236: 0.0257487534 | G236: 0.0257487534 | H236: 0.0257487534 | I236: 0.0257487534
E237: =1+E236 -> 1.025748753 | F237: =E237*(1+F236) -> 1.052160505 | G237: =F237*(1+G236) -> 1.079252326 | H237: =G237*(1+H236) -> 1.107041729 | I237: =H237*(1+I236) -> 1.135546673
A239: Pass through amounts approved (Real $2010) | G239: =G234/G237 -> 9516414.047 | H239: =H234/H237 -> 6487131.257 | I239: =I234/I237 -> 7729507.918
A242: Actual CPI | E242: =173.3/168.6-1 -> 0.02787663108 | F242: =179.4/173.3-1 -> 0.03519907675 | G242: =C17/C16-1 -> 0.02004008016 | H242: =C18/C17-1 -> 0.02161100196 | I242: =C19/C18-1 -> 0.02307692308
E243: =1+E242 -> 1.027876631 | F243: =E243*(1+F242) -> 1.06405694 | G243: =F243*(1+G242) -> 1.085380726 | H243: =G243*(1+H242) -> 1.108836891 | I243: 1.134425434
A245: Pass through amounts approved (Nominal $) - Actual CPI | G245: =G239*G243 -> 10328932.39 | H245: =H239*H243 -> 7193170.454 | I245: =I239*I243 -> 8768550.378
A250: AusNet Services | E250: 2011 | F250: 2012 | G250: 2013 | H250: 2014 | I250: 2015
A251: Pass through amounts approved (Nominal $) - Forecast CPI | G251: 5790000 | H251: 6030000 | I251: 8350000
A252: As per AER's Final Decision on AusNet Services's VBRC pass through, table 1.3, 19 October 2012
A253: Forecast CPI in PTRM | E253: 0.0257487534 | F253: 0.0257487534 | G253: 0.0257487534 | H253: 0.0257487534 | I253: 0.0257487534
E254: =1+E253 -> 1.025748753 | F254: =E254*(1+F253) -> 1.052160505 | G254: =F254*(1+G253) -> 1.079252326 | H254: =G254*(1+H253) -> 1.107041729 | I254: =H254*(1+I253) -> 1.135546673
A256: Pass through amounts approved (Real $2010) | G256: =G251/G254 -> 5364825.127 | H256: =H251/H254 -> 5446949.148 | I256: =I251/I254 -> 7353286.482
A259: Actual CPI | E259: =173.3/168.6-1 -> 0.02787663108 | F259: =179.4/173.3-1 -> 0.03519907675 | G259: =C17/C16-1 -> 0.02004008016 | H259: =C18/C17-1 -> 0.02161100196 | I259: =C19/C18-1 -> 0.02307692308
E260: =1+E259 -> 1.027876631 | F260: =E260*(1+F259) -> 1.06405694 | G260: =F260*(1+G259) -> 1.085380726 | H260: =G260*(1+H259) -> 1.108836891 | I260: 1.134425434
A262: Pass through amounts approved (Nominal $) - Actual CPI | G262: =G256*G260 -> 5822877.791 | H262: =H256*H260 -> 6039778.158 | I262: =I256*I260 -> 8341755.212
A270: AMI Transitional Adjustment in 2018 prices ($)
A271: =C3 -> Jemena
C272: 2009 | D272: 2010 | E272: 2011 | F272: 2012 | G272: 2013 | H272: 2014 | I272: 2015 | J272: 2016 | K272: 2017 | L272: 2018 | M272: 2019 | N272: 2020
A273: CPI | C273: 0.04981084489 | D273: 0.01261261261 | E273: 0.02787663108 | F273: 0.03519907675 | G273: =$F17 -> 0.02004008016 | H273: =$F18 -> 0.02161100196 | I273: =$F19 -> 0.02307692308 | J273: =$F20 -> 0.01503759398 | K273: =$F22 -> 0.01023255814 | L273: =$F23 -> 0.01933701657 | M273: =$F24 -> 0.02077687444 | N273: =$F25 -> 0.01592920354
A275: Vanilla' WACC (Real) | C275: 0.06771645866 | D275: =$C275 -> 0.06771645866 | E275: =$C275 -> 0.06771645866 | F275: 0.06771645866 | G275: 0.06771645866 | H275: 0.05023909437 | I275: =H275 -> 0.05023909437 | J275: =D43 -> 0.03932862871 | K275: =E43 -> 0.03873057145 | L275: =F43 -> 0.03821466541 | M275: =G43 -> 0.03766911607 | N275: =H43 -> 0.03656195102
A276: Vanilla' WACC (nominal) | C276: =(1+C275)*(1+C273)-1 -> 0.1209003176 | D276: 0.08118315273 | E276: 0.09748079647 | F276: 0.1052990922 | G276: 0.08911358208 | H276: 0.0729358135 | I276: 0.07447538116 | J276: 0.05495763064 | K276: 0.04935944242 | L276: 0.05829063961 | M276: 0.059228637 | N276: 0.05307355732
A278: Future value index | C278: =(1+C276)^0.5 -> 1.058725799 | D278: =C278*(D276+1) -> 1.144676497 | E278: 1.256260474 | F278: 1.388543561 | G278: 1.512281652 | H278: 1.622581145 | I278: 1.743423494 | J278: 1.839237918 | K278: 1.930021676 | L278: 2.042523874 | M278: 2.163499779 | N278: 2.278324409
A280: AMI Transitional Adjustment - Revenue and Costs 2009-2015
A281: Over \ (under) recovery of revenue and costs (000's)
A282: NPV at 1 January 2009 | D282: 1152.528241
A284: AMI Transitional Adjustment in 2018 prices ($) | D284: =-D282*L278*10^3 -> -2354066.449
A286: AMI Transitional Adjustment - Revenue 2016-2020
A287: Increase \ (Reduction) in revenue 2016-2020 (000's)
A288: NPV at 1 January 2016 | D288: -4503.087938
A290: AMI Transitional Adjustment in 2018 prices ($) | D290: =D288*L278/I278*10^3 -> -5275634.207
L291: =L272 -> 2018 | M291: =M272 -> 2019 | N291: 2020
A292: Total AMI Transitional Adjustment in 2018 prices ($) | D292: =SUM(D284,D290) -> -7629700.656 | H292: AMI Transitional Adjustment in Nominal prices ($) | L292: =D292/3 -> -2543233.552 | M292: =L292*M278/L278 -> -2693865.809 | N292: =L292*N278/L278 -> -2836838.85

Sheet Metering
B1: ="Tariff Approval - "&'Model update'!C3 -> Tariff Approval - Jemena
B3: ="PROPOSED "&'Model update'!$C$5&" METERING TARIFFS AND REVENUE" -> PROPOSED 2020 METERING TARIFFS AND REVENUE
D5: ="Proposed Metering Tariffs P(t) for " &'Model update'!$C$5 -> Proposed Metering Tariffs P(t) for 2020 | E5: ="Current Metering Tariffs P(t-1) for" &'Model update'!$C$8 -> Current Metering Tariffs P(t-1) for2019 | F5: ="Forecast Quantities (Qt) for "&'Model update'!$C$5 -> Forecast Quantities (Qt) for 2020 | H5: ="Forecast Revenue (Pt "&'Model update'!$C$5&")*(Qt " &'Model update'!$C$5&")" -> Forecast Revenue (Pt 2020)*(Qt 2020) | I5: ="Revenue (Pt-1 "&'Model update'!$C$8&")*(Qt " &'Model update'!$C$5&")" -> Revenue (Pt-1 2019)*(Qt 2020) | K5: Movement | L5: Side Constraint
B6: Proposed tariff | C6: Existing tariff | D6: PropTar $/Cust/year | E6: ExistTar $/Cust/year | F6: FcastVol Cust # | H6: PropRev Fixed | I6: ExistRev Fixed
B8: Single phase single element meter | C8: Single phase single element meter | D8: 79.6380048 | E8: 79.84 | F8: 267323.2409 | H8: =D8*F8 -> 21289089.54 | I8: =E8*F8 -> 21343087.55 | K8: =IFERROR(H8/I8,"") -> 0.99747 | L8: =IF(B8="","",IF(K8<$I$30,"COMPLIANT","BREACHED")) -> COMPLIANT
B9: Single phase single element meter with contactor | C9: Single phase single element meter with contactor | D9: 79.552576 | E9: 79.84 | F9: 35352.34979 | H9: 2812370.493 | I9: 2822531.607 | K9: =IFERROR(H9/I9,"") -> 0.9964 | L9: COMPLIANT
B10: Three phase direct connected meter | C10: Three phase direct connected meter | D10: 96.60071 | E10: 96.94 | F10: 44895.64272 | H10: 4336950.962 | I10: 4352183.605 | K10: 0.9965 | L10: COMPLIANT
B11: Three phase Current transformer connected meter | C11: Three phase Current transformer connected meter | D11: 107.671825 | E11: 108.05 | F11: 1804.627706 | H11: 194307.5586 | I11: 194990.0236 | K11: 0.9965 | L11: COMPLIANT
H12: 0 | I12: 0
H13: 0 | I13: 0
H14: 0 | I14: 0
H15: 0 | I15: 0
H16: 0 | I16: 0
H17: =SUM(H7:H16) -> 28632718.55 | I17: =SUM(I7:I16) -> 28712792.79
B22: Year (t) | D22: ='Model update'!C5 -> 2020 | E22: =D22-1 -> 2019
B24: Table 1- Compliance with AER Final Determination Total Metering Annual Revenue | H24: Metering tariff rebalancing control
B25: Revenue from Metering charges for year t | D25: =H17 -> 28632718.55 | H25: ="CPI "&'Model update'!$C$5 -> CPI 2020 | I25: =D37 -> 0.01592920354
B26: Total Annual Metering Revenue for year t | D26: =D33 -> 28632720.11 | H26: ="X "& 'Model update'!$C$5 -> X 2020 | I26: =MIN(D38,0) -> -0.01247641622
D27: =IF(D25="","",IF(D26>=D25,"METERING REVENUE CAP FORMULA COMPLIANT","METERING REVENUE CAP FORMULA BREACHED")) -> METERING REVENUE CAP FORMULA COMPLIANT | H27: ="Tt "&'Model update'!$C$5 -> Tt 2020 | I27: =(D31-E31)/I$17 -> -0.004979419539
H28: ="Bt "&'Model update'!$C$5 -> Bt 2020 | I28: =(D32-E32)/I$17 -> -0.002020000364
B29: Table 2 - Total Annual Revenue for year t (TARMt)
B30: Adjusted Annual Smoothed Metering Revenue for year t | D30: =D39 -> 32000047.93 | I30: =(1+I25)*(1-I26)*(1+0.02)+SUM(I27:I28) -> 1.042177026
B31: T factor for year t | D31: =INDEX('Model update'!$L$292:$N$292,1,MATCH($D$22,'Model update'!$L$291:$N$291,0)) -> -2836838.85 | E31: =INDEX('Model update'!$L$292:$N$292,1,MATCH($E$22,'Model update'!$L$291:$N$291,0)) -> -2693865.809
B32: B factor for year t | D32: =-F68*(1+F66)^0.5 -> -530488.9669 | E32: -472489.115
B33: Total Annual Revenue for year t | D33: =SUM(D30:D32) -> 28632720.11
B35: Table 3 - Adjusted Annual Revenue for year t (ARt)
B36: Adjusted Annual Smoothed Revenue for year t-1 | D36: 31110161.69
B37: CPI for period t | D37: ='Model update'!C30 -> 0.01592920354
B38: X factor for period t | D38: ='Model update'!B72 -> -0.01247641622
B39: Adjusted Annual Smoothed Revenue for year t | D39: =IF(D22=2016,'Model update'!D72,(D36*(1+D37)*(1-D38))) -> 32000047.93
B44: Table 4 - Metering Services Recovery Arrangements
D45: Year t-2 | E45: Year t-1 | F45: Year t
D46: (actual) | E46: (estimate) | F46: (forecast)
D47: =E47-1 -> 2018 | E47: =F47-1 -> 2019 | F47: =D$22 -> 2020
B49: (A) Revenue from Metering proposal charges | D49: 27105676.39 | E49: =E89 -> 27943767.44 | F49: =D25 -> 28632718.55
B52: (B) Less TARM for regulatory year = | D52: =SUM(D53:D54) -> 27577729.59 | E52: =SUM(E53:E54) -> 28416295.88 | F52: =SUM(F53:F54) -> 29163209.08
B53: + Adjusted annual smoothed revenue | D53: 30120963.14 | E53: =D36 -> 31110161.69 | F53: =D30 -> 32000047.93
B54: + T factor | D54: -2543233.552 | E54: =E31 -> -2693865.809 | F54: =D31 -> -2836838.85
B57: (A minus B) Under/over recovery of revenue for regulatory year | D57: =D49-D52 -> -472053.1982 | E57: =E49-E52 -> -472528.4414 | F57: =F49-F52 -> -530490.5243
B61: Table 5 - Metering Services Unders and Overs Account
D62: Year t-2 | E62: Year t-1 | F62: Year t
D63: (actual) | E63: (estimate) | F63: (forecast)
B64: Calendar year | D64: =E64-1 -> 2018 | E64: =F64-1 -> 2019 | F64: =D$22 -> 2020
B66: Nominal WACC | D66: =(1+'Model update'!$B$47)*(1+'Model update'!$C$28)-1 -> 0.05829063961 | E66: =(1+'Model update'!$B$45)*(1+'Model update'!$C$29)-1 -> 0.059228637 | F66: =(1+'Model update'!$B$43)*(1+'Model update'!$C$30)-1 -> 0.05307355732
B68: Opening balance | D68: 1353868.032 | E68: =D72 -> 947169.38 | F68: =E72 -> 516948.1696
B69: Interest on Opening balance | D69: =D68*D66 -> 78917.83354 | E69: =E68*E66 -> 56099.55139 | F69: =F68*F66 -> 27436.27831
B70: Under/over recovery of revenue for regulatory year | D70: =D57 -> -472053.1982 | E70: =E57 -> -472528.4414 | F70: =F57 -> -530490.5243
B71: Interest on under/over recovery for regulatory year | D71: =D70*((1+D66)^0.5-1) -> -13563.28757 | E71: =E70*((1+E66)^0.5-1) -> -13792.32031 | F71: =F70*((1+F66)^0.5-1) -> -13895.5219
B72: Closing balance of Metering Services overs/ (unders) account | D72: =SUM(D68:D71) -> 947169.38 | E72: =SUM(E68:E71) -> 516948.1696 | F72: -1.598209806
B74: The DNSP is expected to achieve a closing balance as close to zero as practicable in its annual metering charges unders and overs account in each forecast year in its annual pricing proposals in the 2016–20 regulatory control period.
C77: ="Current Metering Tariffs P(t-1) for " &'Model update'!$C$8 -> Current Metering Tariffs P(t-1) for 2019 | D77: ="Estimated Quantities (Qt-1) for "&'Model update'!$C$5-1 -> Estimated Quantities (Qt-1) for 2019 | E77: ="Revenue (Pt-1 "&'Model update'!$C$8&")*(Qt-1 " &'Model update'!$C$5-1&")" -> Revenue (Pt-1 2019)*(Qt-1 2019)
B78: Existing tariff | C78: ExistTar $/Cust/year | D78: FcastVol Cust # | E78: ExistRev Fixed
B80: Single phase single element meter | C80: =E8 -> 79.84 | D80: 265889 | E80: =C80*D80 -> 21228577.76
B81: Single phase single element meter with contactor | C81: =E9 -> 79.84 | D81: 32554 | E81: 2599111.36
B82: Three phase direct connected meter | C82: 96.94 | D82: 40563 | E82: 3932177.22
B83: Three phase Current transformer connected meter | C83: 108.05 | D83: 1702 | E83: 183901.1
E84: 0
E85: 0
E86: 0
E87: 0
E88: 0
E89: =SUM(E79:E88) -> 27943767.44

Sheet Prop2020DistTar
B1: ="Tariff Approval - "&'Model update'!$C$3 -> Tariff Approval - Jemena | C1: ="Prop"&'Model update'!$C$5&"DistTar" -> Prop2020DistTar
B3: ="PROPOSED "&'Model update'!$C$5&" DISTRIBUTION TARIFFS" -> PROPOSED 2020 DISTRIBUTION TARIFFS
D4: ="Proposed Distribution Tariffs (Pt) for "&'Model update'!$C$5 -> Proposed Distribution Tariffs (Pt) for 2020 | R4: ="Current Distribution Tariffs (Pt-1) for "&'Model update'!$C$8 -> Current Distribution Tariffs (Pt-1) for 2019 | AF4: ="Forecast Quantities (Qt) for "&'Model update'!$C$5 -> Forecast Quantities (Qt) for 2020 | AT4: ="Forecast Revenue (Pt "&'Model update'!$C$5&")*(Qt " &'Model update'!$C$5&")" -> Forecast Revenue (Pt 2020)*(Qt 2020) | BI4: ="Revenue (Pt-1 "&'Model update'!$C$8&")*(Qt " &'Model update'!$C$5&")" -> Revenue (Pt-1 2019)*(Qt 2020)
B5: Proposed tariff | C5: Existing tariff | D5: PropTar Fixed | E5: PropTar PkBlk1 | F5: PropTar Shoulder summer | G5: PropTar peak non-summer | H5: PropTar Shoulder non-summer | I5: PropTar OPkBlk1 | J5: PropTar off peak non-summer | K5: PropTar OPkBlk3 | L5: PropTar OPkBlk4 | M5: PropTar DemBlk1 | N5: PropTar DemBlk2 | O5: PropTar DemBlk3 | P5: PropTar DemBlk4 | R5: ExistTar Fixed | S5: ExistTar PkBlk1 | T5: ExistTar Shoulder summer | U5: ExistTar peak non-summer | V5: ExistTar Shoulder non-summer | W5: ExistTar OPkBlk1 | X5: ExistTar off peak non-summer | Y5: ExistTar OPkBlk3 | Z5: ExistTar OPkBlk4 | AA5: ExistTar DemBlk1 | AB5: ExistTar DemBlk2 | AC5: ExistTar DemBlk3 | AD5: ExistTar DemBlk4 | AF5: FcastVol Fixed | AG5: FcastVol PkBlk1 | AH5: FcastVol Shoulder summer | AI5: FcastVol peak non-summer | AJ5: FcastVol Shoulder non-summer | AK5: FcastVol OPkBlk1 | AL5: FcastVol off peak non-summer | AM5: FcastVol OPkBlk3 | AN5: FcastVol OPkBlk4 | AO5: FcastVol DemBlk1 | AP5: FcastVol DemBlk2 | AQ5: FcastVol DemBlk3 | AR5: FcastVol DemBlk4 | AT5: PropRev Fixed | AU5: PropRev PkBlk1 | AV5: PropRev Shoulder summer | AW5: PropRev peak non-summer | AX5: PropRev Shoulder non-summer | AY5: PropRev OPkBlk1 | AZ5: PropRev off peak non-summer | BA5: PropRev OPkBlk3 | BB5: PropRev OPkBlk4 | BC5: PropRev DemBlk1 | BD5: PropRev DemBlk2 | BE5: PropRev DemBlk3 | BF5: PropRev DemBlk4 | BG5: PropRev Total | BI5: ExistRev Fixed | BJ5: ExistRev PkBlk1 | BK5: ExistRev Shoulder summer | BL5: ExistRev peak non-summer | BM5: ExistRev Shoulder non-summer | BN5: ExistRev OPkBlk1 | BO5: ExistRev off peak non-summer | BP5: ExistRev OPkBlk3 | BQ5: ExistRev OPkBlk4 | BR5: ExistRev DemBlk1 | BS5: ExistRev DemBlk2 | BT5: ExistRev DemBlk3 | BU5: ExistRev DemBlk4 | BV5: ExistRev Total
B6: =C6 -> Residential - General Purpose | C6: =Est2019DistRev!B6 -> Residential - General Purpose | D6: 58.659 | E6: 7.821 | F6: 0 | G6: 0 | H6: 0 | I6: 0 | J6: 0 | K6: 0 | L6: 0 | M6: 0 | N6: 0 | O6: 0 | P6: 0 | R6: =Est2019DistRev!D6 -> 51.008 | S6: =Est2019DistRev!E6 -> 7.562 | T6: =Est2019DistRev!F6 -> 0 | U6: =Est2019DistRev!G6 -> 0 | V6: =Est2019DistRev!H6 -> 0 | W6: =Est2019DistRev!I6 -> 0 | X6: =Est2019DistRev!J6 -> 0 | Y6: =Est2019DistRev!K6 -> 0 | Z6: =Est2019DistRev!L6 -> 0 | AA6: =Est2019DistRev!M6 -> 0 | AB6: =Est2019DistRev!N6 -> 0 | AC6: =Est2019DistRev!O6 -> 0 | AD6: =Est2019DistRev!P6 -> 0 | AF6: 306575.3081 | AG6: 1266807387 | AH6: 0 | AI6: 0 | AJ6: 0 | AK6: 0 | AL6: 0 | AM6: 0 | AN6: 0 | AO6: 0 | AP6: 0 | AQ6: 0 | AR6: 0 | AT6: =D6*AF6 -> 17983401 | AU6: =E6/100*AG6 -> 99077005.74 | AV6: 0 | AW6: 0 | AX6: 0 | AY6: 0 | AZ6: 0 | BA6: 0 | BB6: 0 | BC6: =M6*AO6 -> 0 | BD6: 0 | BE6: 0 | BF6: 0 | BG6: =SUM(AT6:BF6) -> 117060406.7 | BI6: =R6*AF6 -> 15637793.31 | BJ6: =S6/100*AG6 -> 95795974.6 | BK6: 0 | BL6: 0 | BM6: 0 | BN6: 0 | BO6: 0 | BP6: 0 | BQ6: 0 | BR6: =AA6*AO6 -> 0 | BS6: 0 | BT6: 0 | BU6: 0 | BV6: =SUM(BI6:BU6) -> 111433767.9
B7: =C7 -> Residential - General Purpose Demand | C7: =Est2019DistRev!B7 -> Residential - General Purpose Demand | D7: 58.659 | E7: 3.443 | F7: 0 | G7: 0 | H7: 0 | I7: 0 | J7: 0 | K7: 0 | L7: 0 | M7: 60.031 | N7: 0 | O7: 0 | P7: 0 | R7: =Est2019DistRev!D7 -> 51.008 | S7: =Est2019DistRev!E7 -> 3.329 | T7: =Est2019DistRev!F7 -> 0 | U7: =Est2019DistRev!G7 -> 0 | V7: =Est2019DistRev!H7 -> 0 | W7: =Est2019DistRev!I7 -> 0 | X7: =Est2019DistRev!J7 -> 0 | Y7: =Est2019DistRev!K7 -> 0 | Z7: =Est2019DistRev!L7 -> 0 | AA7: =Est2019DistRev!M7 -> 59.091 | AB7: =Est2019DistRev!N7 -> 0 | AC7: =Est2019DistRev!O7 -> 0 | AD7: =Est2019DistRev!P7 -> 0 | AF7: 5.134764017 | AG7: 21217.48495 | AH7: 0 | AI7: 0 | AJ7: 0 | AK7: 0 | AL7: 0 | AM7: 0 | AN7: 0 | AO7: 18.72011342 | AP7: 0 | AQ7: 0 | AR7: 0 | AT7: =D7*AF7 -> 301.2001224 | AU7: =E7/100*AG7 -> 730.518007 | AV7: 0 | AW7: 0 | AX7: 0 | AY7: 0 | AZ7: 0 | BA7: 0 | BB7: 0 | BC7: =M7*AO7 -> 1123.787129 | BD7: =N7*AP7 -> 0 | BE7: =O7*AQ7 -> 0 | BF7: =P7*AR7 -> 0 | BG7: =SUM(AT7:BF7) -> 2155.505258 | BI7: =R7*AF7 -> 261.914043 | BJ7: =S7/100*AG7 -> 706.3300741 | BK7: =T7/100*AH7 -> 0 | BL7: =U7/100*AI7 -> 0 | BM7: =V7/100*AJ7 -> 0 | BN7: =W7/100*AK7 -> 0 | BO7: =X7/100*AL7 -> 0 | BP7: =Y7/100*AM7 -> 0 | BQ7: =Z7/100*AN7 -> 0 | BR7: =AA7*AO7 -> 1106.190222 | BS7: =AB7*AP7 -> 0 | BT7: =AC7*AQ7 -> 0 | BU7: =AD7*AR7 -> 0 | BV7: =SUM(BI7:BU7) -> 2074.434339
B8: Residential - Flexible | C8: =Est2019DistRev!B8 -> Residential - Flexible | D8: 58.659 | E8: 12.601 | F8: 7.821 | G8: 12.601 | H8: 7.821 | I8: 3.80212356 | J8: 3.802 | K8: 0 | L8: 0 | M8: 0 | N8: 0 | O8: 0 | P8: 0 | R8: =Est2019DistRev!D8 -> 51.008 | S8: =Est2019DistRev!E8 -> 12.183 | T8: =Est2019DistRev!F8 -> 7.562 | U8: =Est2019DistRev!G8 -> 12.183 | V8: =Est2019DistRev!H8 -> 7.562 | W8: =Est2019DistRev!I8 -> 3.676 | X8: =Est2019DistRev!J8 -> 3.676 | Y8: =Est2019DistRev!K8 -> 0 | Z8: =Est2019DistRev!L8 -> 0 | AA8: =Est2019DistRev!M8 -> 0 | AB8: =Est2019DistRev!N8 -> 0 | AC8: =Est2019DistRev!O8 -> 0 | AD8: =Est2019DistRev!P8 -> 0 | AF8: 1066.249258 | AG8: 513894.5572 | AH8: 963834.6369 | AI8: 676158.9282 | AJ8: 1257062.401 | AK8: 1020330.267 | AL8: 821885.2976 | AM8: 0 | AN8: 0 | AO8: 0 | AP8: 0 | AQ8: 0 | AR8: 0 | AT8: 62545.11525 | AU8: 64755.85316 | AV8: 75381.50695 | AW8: 85202.78655 | AX8: 98314.85039 | AY8: 38794.21745 | AZ8: 31248.07901 | BA8: 0 | BB8: 0 | BC8: 0 | BD8: 0 | BE8: 0 | BF8: 0 | BG8: 456242.4088 | BI8: 54387.24217 | BJ8: 62607.77391 | BK8: 72885.17524 | BL8: 82376.44223 | BM8: 95059.05878 | BN8: 37507.3406 | BO8: 30212.50354 | BP8: 0 | BQ8: 0 | BR8: 0 | BS8: 0 | BT8: 0 | BU8: 0 | BV8: 435035.5365
B9: Residential - Time of Use Interval Meter | C9: =Est2019DistRev!B9 -> Residential - Time of Use Interval Meter | D9: 58.659 | E9: 12.67 | F9: 0 | G9: 0 | H9: 0 | I9: 1.844 | J9: 0 | K9: 0 | L9: 0 | M9: 0 | N9: 0 | O9: 0 | P9: 0 | R9: =Est2019DistRev!D9 -> 51.008 | S9: =Est2019DistRev!E9 -> 12.183 | T9: =Est2019DistRev!F9 -> 0 | U9: =Est2019DistRev!G9 -> 0 | V9: =Est2019DistRev!H9 -> 0 | W9: =Est2019DistRev!I9 -> 1.844 | X9: =Est2019DistRev!J9 -> 0 | Y9: =Est2019DistRev!K9 -> 0 | Z9: =Est2019DistRev!L9 -> 0 | AA9: =Est2019DistRev!M9 -> 0 | AB9: =Est2019DistRev!N9 -> 0 | AC9: =Est2019DistRev!O9 -> 0 | AD9: =Est2019DistRev!P9 -> 0 | AF9: 14984.05089 | AG9: 31652210.5 | AH9: 0 | AI9: 0 | AJ9: 0 | AK9: 32760180.55 | AL9: 0 | AM9: 0 | AN9: 0 | AO9: 0 | AP9: 0 | AQ9: 0 | AR9: 0 | AT9: 878949.4414 | AU9: 4010335.07 | AV9: 0 | AW9: 0 | AX9: 0 | AY9: 604097.7294 | AZ9: 0 | BA9: 0 | BB9: 0 | BC9: 0 | BD9: 0 | BE9: 0 | BF9: 0 | BG9: 5493382.241 | BI9: 764306.468 | BJ9: 3856188.805 | BK9: 0 | BL9: 0 | BM9: 0 | BN9: 604097.7294 | BO9: 0 | BP9: 0 | BQ9: 0 | BR9: 0 | BS9: 0 | BT9: 0 | BU9: 0 | BV9: 5224593.003
B10: Residential - TOU | C10: =Est2019DistRev!B10 -> Residential - TOU | D10: 99.122 | E10: 8.739 | F10: 0 | G10: 0 | H10: 0 | I10: 1.475 | J10: 0 | K10: 0 | L10: 0 | M10: 0 | N10: 0 | O10: 0 | P10: 0 | R10: =Est2019DistRev!D10 -> 86.193 | S10: =Est2019DistRev!E10 -> 8.403 | T10: =Est2019DistRev!F10 -> 0 | U10: =Est2019DistRev!G10 -> 0 | V10: =Est2019DistRev!H10 -> 0 | W10: =Est2019DistRev!I10 -> 1.475 | X10: =Est2019DistRev!J10 -> 0 | Y10: =Est2019DistRev!K10 -> 0 | Z10: =Est2019DistRev!L10 -> 0 | AA10: =Est2019DistRev!M10 -> 0 | AB10: =Est2019DistRev!N10 -> 0 | AC10: =Est2019DistRev!O10 -> 0 | AD10: =Est2019DistRev!P10 -> 0 | AF10: 1371.286329 | AG10: 5320045.464 | AH10: 0 | AI10: 0 | AJ10: 0 | AK10: 5826260.514 | AL10: 0 | AM10: 0 | AN10: 0 | AO10: 0 | AP10: 0 | AQ10: 0 | AR10: 0 | AT10: 135924.6435 | AU10: 464918.7731 | AV10: 0 | AW10: 0 | AX10: 0 | AY10: 85937.34258 | AZ10: 0 | BA10: 0 | BB10: 0 | BC10: 0 | BD10: 0 | BE10: 0 | BF10: 0 | BG10: 686780.7592 | BI10: 118195.2826 | BJ10: 447043.4204 | BK10: 0 | BL10: 0 | BM10: 0 | BN10: 85937.34258 | BO10: 0 | BP10: 0 | BQ10: 0 | BR10: 0 | BS10: 0 | BT10: 0 | BU10: 0 | BV10: 651176.0455
B11: Residential - Off Peak Only | C11: =Est2019DistRev!B11 -> Residential - Off Peak Only | D11: 0 | E11: 0 | F11: 0 | G11: 0 | H11: 0 | I11: 1.7 | J11: 0 | K11: 0 | L11: 0 | M11: 0 | N11: 0 | O11: 0 | P11: 0 | R11: =Est2019DistRev!D11 -> 0 | S11: =Est2019DistRev!E11 -> 0 | T11: =Est2019DistRev!F11 -> 0 | U11: =Est2019DistRev!G11 -> 0 | V11: =Est2019DistRev!H11 -> 0 | W11: =Est2019DistRev!I11 -> 1.7 | X11: =Est2019DistRev!J11 -> 0 | Y11: =Est2019DistRev!K11 -> 0 | Z11: =Est2019DistRev!L11 -> 0 | AA11: =Est2019DistRev!M11 -> 0 | AB11: =Est2019DistRev!N11 -> 0 | AC11: =Est2019DistRev!O11 -> 0 | AD11: =Est2019DistRev!P11 -> 0 | AF11: 0 | AG11: 0 | AH11: 0 | AI11: 0 | AJ11: 0 | AK11: 35918450.4 | AL11: 0 | AM11: 0 | AN11: 0 | AO11: 0 | AP11: 0 | AQ11: 0 | AR11: 0 | AT11: 0 | AU11: 0 | AV11: 0 | AW11: 0 | AX11: 0 | AY11: 610613.6568 | AZ11: 0 | BA11: 0 | BB11: 0 | BC11: 0 | BD11: 0 | BE11: 0 | BF11: 0 | BG11: 610613.6568 | BI11: 0 | BJ11: 0 | BK11: 0 | BL11: 0 | BM11: 0 | BN11: 610613.6568 | BO11: 0 | BP11: 0 | BQ11: 0 | BR11: 0 | BS11: 0 | BT11: 0 | BU11: 0 | BV11: 610613.6568
B12: Small Business - General Purpose | C12: =Est2019DistRev!B12 -> Small Business - General Purpose | D12: 101.483 | E12: 9.346 | F12: 0 | G12: 0 | H12: 0 | I12: 0 | J12: 0 | K12: 0 | L12: 0 | M12: 0 | N12: 0 | O12: 0 | P12: 0 | R12: =Est2019DistRev!D12 -> 94.773 | S12: =Est2019DistRev!E12 -> 9.021 | T12: =Est2019DistRev!F12 -> 0 | U12: =Est2019DistRev!G12 -> 0 | V12: =Est2019DistRev!H12 -> 0 | W12: =Est2019DistRev!I12 -> 0 | X12: =Est2019DistRev!J12 -> 0 | Y12: =Est2019DistRev!K12 -> 0 | Z12: =Est2019DistRev!L12 -> 0 | AA12: =Est2019DistRev!M12 -> 0 | AB12: =Est2019DistRev!N12 -> 0 | AC12: =Est2019DistRev!O12 -> 0 | AD12: =Est2019DistRev!P12 -> 0 | AF12: 16418.55905 | AG12: 206322791.9 | AH12: 0 | AI12: 0 | AJ12: 0 | AK12: 0 | AL12: 0 | AM12: 0 | AN12: 0 | AO12: 0 | AP12: 0 | AQ12: 0 | AR12: 0 | AT12: 1666204.628 | AU12: 19282928.13 | AV12: 0 | AW12: 0 | AX12: 0 | AY12: 0 | AZ12: 0 | BA12: 0 | BB12: 0 | BC12: 0 | BD12: 0 | BE12: 0 | BF12: 0 | BG12: 20949132.76 | BI12: 1556036.097 | BJ12: 18612379.06 | BK12: 0 | BL12: 0 | BM12: 0 | BN12: 0 | BO12: 0 | BP12: 0 | BQ12: 0 | BR12: 0 | BS12: 0 | BT12: 0 | BU12: 0 | BV12: 20168415.15
B13: Small Business - General Purpose Demand | C13: =Est2019DistRev!B13 -> Small Business - General Purpose Demand | D13: 101.483 | E13: 7.371 | F13: 0 | G13: 0 | H13: 0 | I13: 0 | J13: 0 | K13: 0 | L13: 0 | M13: 58.183 | N13: 0 | O13: 0 | P13: 0 | R13: =Est2019DistRev!D13 -> 94.773 | S13: =Est2019DistRev!E13 -> 7.1 | T13: =Est2019DistRev!F13 -> 0 | U13: =Est2019DistRev!G13 -> 0 | V13: =Est2019DistRev!H13 -> 0 | W13: =Est2019DistRev!I13 -> 0 | X13: =Est2019DistRev!J13 -> 0 | Y13: =Est2019DistRev!K13 -> 0 | Z13: =Est2019DistRev!L13 -> 0 | AA13: =Est2019DistRev!M13 -> 57.272 | AB13: =Est2019DistRev!N13 -> 0 | AC13: =Est2019DistRev!O13 -> 0 | AD13: =Est2019DistRev!P13 -> 0 | AF13: 1.344102883 | AG13: 48984.18044 | AH13: 0 | AI13: 0 | AJ13: 0 | AK13: 0 | AL13: 0 | AM13: 0 | AN13: 0 | AO13: 14.96792971 | AP13: 0 | AQ13: 0 | AR13: 0 | AT13: 136.4035929 | AU13: 3610.62394 | AV13: 0 | AW13: 0 | AX13: 0 | AY13: 0 | AZ13: 0 | BA13: 0 | BB13: 0 | BC13: 870.8790542 | BD13: 0 | BE13: 0 | BF13: 0 | BG13: 4617.906587 | BI13: 127.3846626 | BJ13: 3477.876811 | BK13: 0 | BL13: 0 | BM13: 0 | BN13: 0 | BO13: 0 | BP13: 0 | BQ13: 0 | BR13: 857.2432702 | BS13: 0 | BT13: 0 | BU13: 0 | BV13: 4462.504744
B14: Small Business - TOU Weekdays | C14: =Est2019DistRev!B14 -> Small Business - TOU Weekdays | D14: 156.027 | E14: 11.056 | F14: 0 | G14: 0 | H14: 0 | I14: 1.818 | J14: 0 | K14: 0 | L14: 0 | M14: 0 | N14: 0 | O14: 0 | P14: 0 | R14: =Est2019DistRev!D14 -> 141.843 | S14: =Est2019DistRev!E14 -> 10.649 | T14: =Est2019DistRev!F14 -> 0 | U14: =Est2019DistRev!G14 -> 0 | V14: =Est2019DistRev!H14 -> 0 | W14: =Est2019DistRev!I14 -> 1.818 | X14: =Est2019DistRev!J14 -> 0 | Y14: =Est2019DistRev!K14 -> 0 | Z14: =Est2019DistRev!L14 -> 0 | AA14: =Est2019DistRev!M14 -> 0 | AB14: =Est2019DistRev!N14 -> 0 | AC14: =Est2019DistRev!O14 -> 0 | AD14: =Est2019DistRev!P14 -> 0 | AF14: 7696.463709 | AG14: 170924694.6 | AH14: 0 | AI14: 0 | AJ14: 0 | AK14: 111481488.5 | AL14: 0 | AM14: 0 | AN14: 0 | AO14: 0 | AP14: 0 | AQ14: 0 | AR14: 0 | AT14: 1200856.143 | AU14: 18897434.24 | AV14: 0 | AW14: 0 | AX14: 0 | AY14: 2026733.462 | AZ14: 0 | BA14: 0 | BB14: 0 | BC14: 0 | BD14: 0 | BE14: 0 | BF14: 0 | BG14: 22125023.84 | BI14: 1091689.502 | BJ14: 18201770.73 | BK14: 0 | BL14: 0 | BM14: 0 | BN14: 2026733.462 | BO14: 0 | BP14: 0 | BQ14: 0 | BR14: 0 | BS14: 0 | BT14: 0 | BU14: 0 | BV14: 21320193.7
B15: Small Business - TOU Weekdays Demand | C15: =Est2019DistRev!B15 -> Small Business - TOU Weekdays Demand | D15: 225.879 | E15: 6.809 | F15: 0 | G15: 0 | H15: 0 | I15: 2.121 | J15: 0 | K15: 0 | L15: 0 | M15: 66.547395 | N15: 0 | O15: 0 | P15: 0 | R15: =Est2019DistRev!D15 -> 209.147 | S15: =Est2019DistRev!E15 -> 6.572 | T15: =Est2019DistRev!F15 -> 0 | U15: =Est2019DistRev!G15 -> 0 | V15: =Est2019DistRev!H15 -> 0 | W15: =Est2019DistRev!I15 -> 2.121 | X15: =Est2019DistRev!J15 -> 0 | Y15: =Est2019DistRev!K15 -> 0 | Z15: =Est2019DistRev!L15 -> 0 | AA15: =Est2019DistRev!M15 -> 64.297 | AB15: =Est2019DistRev!N15 -> 0 | AC15: =Est2019DistRev!O15 -> 0 | AD15: =Est2019DistRev!P15 -> 0 | AF15: 667.2837814 | AG15: 69784438.34 | AH15: 0 | AI15: 0 | AJ15: 0 | AK15: 48547711.91 | AL15: 0 | AM15: 0 | AN15: 0 | AO15: 52693.96892 | AP15: 0 | AQ15: 0 | AR15: 0 | AT15: 150725.3932 | AU15: 4751622.407 | AV15: 0 | AW15: 0 | AX15: 0 | AY15: 1029696.97 | AZ15: 0 | BA15: 0 | BB15: 0 | BC15: 3506646.364 | BD15: 0 | BE15: 0 | BF15: 0 | BG15: 9438691.133 | BI15: 139560.401 | BJ15: 4586233.288 | BK15: 0 | BL15: 0 | BM15: 0 | BN15: 1029696.97 | BO15: 0 | BP15: 0 | BQ15: 0 | BR15: 3388064.12 | BS15: 0 | BT15: 0 | BU15: 0 | BV15: 9143554.778
B16: Small Business - TOU Opt out | C16: =Est2019DistRev!B16 -> Small Business - TOU Opt out | D16: 225.879 | E16: 11.056 | F16: 0 | G16: 0 | H16: 0 | I16: 1.818 | J16: 0 | K16: 0 | L16: 0 | M16: 0 | N16: 0 | O16: 0 | P16: 0 | R16: =Est2019DistRev!D16 -> 209.147 | S16: =Est2019DistRev!E16 -> 10.649 | T16: =Est2019DistRev!F16 -> 0 | U16: =Est2019DistRev!G16 -> 0 | V16: =Est2019DistRev!H16 -> 0 | W16: =Est2019DistRev!I16 -> 1.818 | X16: =Est2019DistRev!J16 -> 0 | Y16: =Est2019DistRev!K16 -> 0 | Z16: =Est2019DistRev!L16 -> 0 | AA16: =Est2019DistRev!M16 -> 0 | AB16: =Est2019DistRev!N16 -> 0 | AC16: =Est2019DistRev!O16 -> 0 | AD16: =Est2019DistRev!P16 -> 0 | AF16: 51 | AG16: 5349072.517 | AH16: 0 | AI16: 0 | AJ16: 0 | AK16: 0 | AL16: 0 | AM16: 0 | AN16: 0 | AO16: 0 | AP16: 0 | AQ16: 0 | AR16: 0 | AT16: 11519.829 | AU16: 591393.4575 | AV16: 0 | AW16: 0 | AX16: 0 | AY16: 0 | AZ16: 0 | BA16: 0 | BB16: 0 | BC16: 0 | BD16: 0 | BE16: 0 | BF16: 0 | BG16: 602913.2865 | BI16: 10666.497 | BJ16: 569622.7323 | BK16: 0 | BL16: 0 | BM16: 0 | BN16: 0 | BO16: 0 | BP16: 0 | BQ16: 0 | BR16: 0 | BS16: 0 | BT16: 0 | BU16: 0 | BV16: 580289.2293
B17: Small Business - TOU Extended | C17: =Est2019DistRev!B17 -> Small Business - TOU Extended | D17: 156.027 | E17: 9.793 | F17: 0 | G17: 0 | H17: 0 | I17: 1.97 | J17: 0 | K17: 0 | L17: 0 | M17: 0 | N17: 0 | O17: 0 | P17: 0 | R17: =Est2019DistRev!D17 -> 141.843 | S17: =Est2019DistRev!E17 -> 9.38 | T17: =Est2019DistRev!F17 -> 0 | U17: =Est2019DistRev!G17 -> 0 | V17: =Est2019DistRev!H17 -> 0 | W17: =Est2019DistRev!I17 -> 1.97 | X17: =Est2019DistRev!J17 -> 0 | Y17: =Est2019DistRev!K17 -> 0 | Z17: =Est2019DistRev!L17 -> 0 | AA17: =Est2019DistRev!M17 -> 0 | AB17: =Est2019DistRev!N17 -> 0 | AC17: =Est2019DistRev!O17 -> 0 | AD17: =Est2019DistRev!P17 -> 0 | AF17: 2331.830229 | AG17: 41771214.93 | AH17: 0 | AI17: 0 | AJ17: 0 | AK17: 12782107.32 | AL17: 0 | AM17: 0 | AN17: 0 | AO17: 0 | AP17: 0 | AQ17: 0 | AR17: 0 | AT17: 363828.4752 | AU17: 4090655.079 | AV17: 0 | AW17: 0 | AX17: 0 | AY17: 251807.5141 | AZ17: 0 | BA17: 0 | BB17: 0 | BC17: 0 | BD17: 0 | BE17: 0 | BF17: 0 | BG17: 4706291.068 | BI17: 330753.7952 | BJ17: 3918139.961 | BK17: 0 | BL17: 0 | BM17: 0 | BN17: 251807.5141 | BO17: 0 | BP17: 0 | BQ17: 0 | BR17: 0 | BS17: 0 | BT17: 0 | BU17: 0 | BV17: 4500701.27
B18: Small Business - TOU Extended Demand | C18: =Est2019DistRev!B18 -> Small Business - TOU Extended Demand | D18: 225.879 | E18: 5.171 | F18: 0 | G18: 0 | H18: 0 | I18: 2.261 | J18: 0 | K18: 0 | L18: 0 | M18: 66.547395 | N18: 0 | O18: 0 | P18: 0 | R18: =Est2019DistRev!D18 -> 209.147 | S18: =Est2019DistRev!E18 -> 4.945 | T18: =Est2019DistRev!F18 -> 0 | U18: =Est2019DistRev!G18 -> 0 | V18: =Est2019DistRev!H18 -> 0 | W18: =Est2019DistRev!I18 -> 2.261 | X18: =Est2019DistRev!J18 -> 0 | Y18: =Est2019DistRev!K18 -> 0 | Z18: =Est2019DistRev!L18 -> 0 | AA18: =Est2019DistRev!M18 -> 64.297 | AB18: =Est2019DistRev!N18 -> 0 | AC18: =Est2019DistRev!O18 -> 0 | AD18: =Est2019DistRev!P18 -> 0 | AF18: 115.4249261 | AG18: 18810985.69 | AH18: 0 | AI18: 0 | AJ18: 0 | AK18: 5531396.48 | AL18: 0 | AM18: 0 | AN18: 0 | AO18: 11957.52292 | AP18: 0 | AQ18: 0 | AR18: 0 | AT18: 26072.06688 | AU18: 972716.0701 | AV18: 0 | AW18: 0 | AX18: 0 | AY18: 125064.8744 | AZ18: 0 | BA18: 0 | BB18: 0 | BC18: 795742.0007 | BD18: 0 | BE18: 0 | BF18: 0 | BG18: 1919595.012 | BI18: 24140.77702 | BJ18: 930203.2424 | BK18: 0 | BL18: 0 | BM18: 0 | BN18: 125064.8744 | BO18: 0 | BP18: 0 | BQ18: 0 | BR18: 768832.8509 | BS18: 0 | BT18: 0 | BU18: 0 | BV18: 1848241.745
B19: Small Business - Unmetered Supply | C19: =Est2019DistRev!B19 -> Small Business - Unmetered Supply | D19: 0 | E19: 10.485 | F19: 0 | G19: 0 | H19: 0 | I19: 1.888 | J19: 0 | K19: 0 | L19: 0 | M19: 0 | N19: 0 | O19: 0 | P19: 0 | R19: =Est2019DistRev!D19 -> 0 | S19: =Est2019DistRev!E19 -> 10.121 | T19: =Est2019DistRev!F19 -> 0 | U19: =Est2019DistRev!G19 -> 0 | V19: =Est2019DistRev!H19 -> 0 | W19: =Est2019DistRev!I19 -> 1.888 | X19: =Est2019DistRev!J19 -> 0 | Y19: =Est2019DistRev!K19 -> 0 | Z19: =Est2019DistRev!L19 -> 0 | AA19: =Est2019DistRev!M19 -> 0 | AB19: =Est2019DistRev!N19 -> 0 | AC19: =Est2019DistRev!O19 -> 0 | AD19: =Est2019DistRev!P19 -> 0 | AF19: 0 | AG19: 11872124.14 | AH19: 0 | AI19: 0 | AJ19: 0 | AK19: 26427874.32 | AL19: 0 | AM19: 0 | AN19: 0 | AO19: 0 | AP19: 0 | AQ19: 0 | AR19: 0 | AT19: 0 | AU19: 1244792.216 | AV19: 0 | AW19: 0 | AX19: 0 | AY19: 498958.2671 | AZ19: 0 | BA19: 0 | BB19: 0 | BC19: 0 | BD19: 0 | BE19: 0 | BF19: 0 | BG19: 1743750.483 | BI19: 0 | BJ19: 1201577.684 | BK19: 0 | BL19: 0 | BM19: 0 | BN19: 498958.2671 | BO19: 0 | BP19: 0 | BQ19: 0 | BR19: 0 | BS19: 0 | BT19: 0 | BU19: 0 | BV19: 1700535.951
B20: Large Business - LV 0.4 - 0.8 GWh | C20: =Est2019DistRev!B20 -> Large Business - LV 0.4 - 0.8 GWh | D20: 2465.437 | E20: 2.018 | F20: 0 | G20: 0 | H20: 0 | I20: 0.639 | J20: 0 | K20: 0 | L20: 0 | M20: 100.021 | N20: 0 | O20: 0 | P20: 0 | R20: =Est2019DistRev!D20 -> 2231.165 | S20: =Est2019DistRev!E20 -> 1.968 | T20: =Est2019DistRev!F20 -> 0 | U20: =Est2019DistRev!G20 -> 0 | V20: =Est2019DistRev!H20 -> 0 | W20: =Est2019DistRev!I20 -> 0.639 | X20: =Est2019DistRev!J20 -> 0 | Y20: =Est2019DistRev!K20 -> 0 | Z20: =Est2019DistRev!L20 -> 0 | AA20: =Est2019DistRev!M20 -> 96.639 | AB20: =Est2019DistRev!N20 -> 0 | AC20: =Est2019DistRev!O20 -> 0 | AD20: =Est2019DistRev!P20 -> 0 | AF20: 749.2560244 | AG20: 175307653.6 | AH20: 0 | AI20: 0 | AJ20: 0 | AK20: 112610508.3 | AL20: 0 | AM20: 0 | AN20: 0 | AO20: 158812.0352 | AP20: 0 | AQ20: 0 | AR20: 0 | AT20: 1847243.525 | AU20: 3537708.45 | AV20: 0 | AW20: 0 | AX20: 0 | AY20: 719581.1481 | AZ20: 0 | BA20: 0 | BB20: 0 | BC20: 15884538.58 | BD20: 0 | BE20: 0 | BF20: 0 | BG20: 21989071.7 | BI20: 1671713.818 | BJ20: 3450054.623 | BK20: 0 | BL20: 0 | BM20: 0 | BN20: 719581.1481 | BO20: 0 | BP20: 0 | BQ20: 0 | BR20: 15347436.27 | BS20: 0 | BT20: 0 | BU20: 0 | BV20: 21188785.86
B21: Large Business – LVEN Annual Consumption <= 0.8 GWh | C21: =Est2019DistRev!B21 -> Large Business – LVEN Annual Consumption <= 0.8 GWh | D21: 2465.437 | E21: 2.036 | F21: 0 | G21: 0 | H21: 0 | I21: 0.639 | J21: 0 | K21: 0 | L21: 0 | M21: 112.849 | N21: 0 | O21: 0 | P21: 0 | R21: =Est2019DistRev!D21 -> 2231.165 | S21: =Est2019DistRev!E21 -> 1.985 | T21: =Est2019DistRev!F21 -> 0 | U21: =Est2019DistRev!G21 -> 0 | V21: =Est2019DistRev!H21 -> 0 | W21: =Est2019DistRev!I21 -> 0.639 | X21: =Est2019DistRev!J21 -> 0 | Y21: =Est2019DistRev!K21 -> 0 | Z21: =Est2019DistRev!L21 -> 0 | AA21: =Est2019DistRev!M21 -> 109.033 | AB21: =Est2019DistRev!N21 -> 0 | AC21: =Est2019DistRev!O21 -> 0 | AD21: =Est2019DistRev!P21 -> 0 | AF21: 70.7 | AG21: 20519791.04 | AH21: 0 | AI21: 0 | AJ21: 0 | AK21: 14174690.69 | AL21: 0 | AM21: 0 | AN21: 0 | AO21: 17202.08125 | AP21: 0 | AQ21: 0 | AR21: 0 | AT21: 174306.3959 | AU21: 417782.9456 | AV21: 0 | AW21: 0 | AX21: 0 | AY21: 90576.27353 | AZ21: 0 | BA21: 0 | BB21: 0 | BC21: 1941237.667 | BD21: 0 | BE21: 0 | BF21: 0 | BG21: 2623903.282 | BI21: 157743.3655 | BJ21: 407317.8521 | BK21: 0 | BL21: 0 | BM21: 0 | BN21: 90576.27353 | BO21: 0 | BP21: 0 | BQ21: 0 | BR21: 1875594.525 | BS21: 0 | BT21: 0 | BU21: 0 | BV21: 2531232.016
B22: Large Business - LV 0.8+ - 2.2 GWh | C22: =Est2019DistRev!B22 -> Large Business - LV 0.8+ - 2.2 GWh | D22: 4315.529 | E22: 1.377 | F22: 0 | G22: 0 | H22: 0 | I22: 0.628 | J22: 0 | K22: 0 | L22: 0 | M22: 92.453 | N22: 0 | O22: 0 | P22: 0 | R22: =Est2019DistRev!D22 -> 3905.456 | S22: =Est2019DistRev!E22 -> 1.343 | T22: =Est2019DistRev!F22 -> 0 | U22: =Est2019DistRev!G22 -> 0 | V22: =Est2019DistRev!H22 -> 0 | W22: =Est2019DistRev!I22 -> 0.628 | X22: =Est2019DistRev!J22 -> 0 | Y22: =Est2019DistRev!K22 -> 0 | Z22: =Est2019DistRev!L22 -> 0 | AA22: =Est2019DistRev!M22 -> 89.327 | AB22: =Est2019DistRev!N22 -> 0 | AC22: =Est2019DistRev!O22 -> 0 | AD22: =Est2019DistRev!P22 -> 0 | AF22: 374.988246 | AG22: 269437471.1 | AH22: 0 | AI22: 0 | AJ22: 0 | AK22: 186190977.4 | AL22: 0 | AM22: 0 | AN22: 0 | AO22: 177693.8618 | AP22: 0 | AQ22: 0 | AR22: 0 | AT22: 1618272.65 | AU22: 3710153.977 | AV22: 0 | AW22: 0 | AX22: 0 | AY22: 1169279.338 | AZ22: 0 | BA22: 0 | BB22: 0 | BC22: 16428330.6 | BD22: 0 | BE22: 0 | BF22: 0 | BG22: 22926036.57 | BI22: 1464500.095 | BJ22: 3618545.237 | BK22: 0 | BL22: 0 | BM22: 0 | BN22: 1169279.338 | BO22: 0 | BP22: 0 | BQ22: 0 | BR22: 15872859.59 | BS22: 0 | BT22: 0 | BU22: 0 | BV22: 22125184.26
B23: Large Business - LVEN 0.8+ - 2.2 GWh | C23: =Est2019DistRev!B23 -> Large Business - LVEN 0.8+ - 2.2 GWh | D23: 4315.529 | E23: 1.376 | F23: 0 | G23: 0 | H23: 0 | I23: 0.628 | J23: 0 | K23: 0 | L23: 0 | M23: 101.707 | N23: 0 | O23: 0 | P23: 0 | R23: =Est2019DistRev!D23 -> 3905.456 | S23: =Est2019DistRev!E23 -> 1.342 | T23: =Est2019DistRev!F23 -> 0 | U23: =Est2019DistRev!G23 -> 0 | V23: =Est2019DistRev!H23 -> 0 | W23: =Est2019DistRev!I23 -> 0.628 | X23: =Est2019DistRev!J23 -> 0 | Y23: =Est2019DistRev!K23 -> 0 | Z23: =Est2019DistRev!L23 -> 0 | AA23: =Est2019DistRev!M23 -> 98.268 | AB23: =Est2019DistRev!N23 -> 0 | AC23: =Est2019DistRev!O23 -> 0 | AD23: =Est2019DistRev!P23 -> 0 | AF23: 44 | AG23: 28725458.95 | AH23: 0 | AI23: 0 | AJ23: 0 | AK23: 18896186.89 | AL23: 0 | AM23: 0 | AN23: 0 | AO23: 19831.31559 | AP23: 0 | AQ23: 0 | AR23: 0 | AT23: 189883.276 | AU23: 395262.3152 | AV23: 0 | AW23: 0 | AX23: 0 | AY23: 118668.0537 | AZ23: 0 | BA23: 0 | BB23: 0 | BC23: 2016983.615 | BD23: 0 | BE23: 0 | BF23: 0 | BG23: 2720797.26 | BI23: 171840.064 | BJ23: 385495.6592 | BK23: 0 | BL23: 0 | BM23: 0 | BN23: 118668.0537 | BO23: 0 | BP23: 0 | BQ23: 0 | BR23: 1948783.721 | BS23: 0 | BT23: 0 | BU23: 0 | BV23: 2624787.498
B24: Large Business - LV 2.2+ - 6.0 GWh | C24: =Est2019DistRev!B24 -> Large Business - LV 2.2+ - 6.0 GWh | D24: 6619.21 | E24: 1.26 | F24: 0 | G24: 0 | H24: 0 | I24: 0.511 | J24: 0 | K24: 0 | L24: 0 | M24: 91.455 | N24: 0 | O24: 0 | P24: 0 | R24: =Est2019DistRev!D24 -> 5990.235 | S24: =Est2019DistRev!E24 -> 1.229 | T24: =Est2019DistRev!F24 -> 0 | U24: =Est2019DistRev!G24 -> 0 | V24: =Est2019DistRev!H24 -> 0 | W24: =Est2019DistRev!I24 -> 0.511 | X24: =Est2019DistRev!J24 -> 0 | Y24: =Est2019DistRev!K24 -> 0 | Z24: =Est2019DistRev!L24 -> 0 | AA24: =Est2019DistRev!M24 -> 88.362 | AB24: =Est2019DistRev!N24 -> 0 | AC24: =Est2019DistRev!O24 -> 0 | AD24: =Est2019DistRev!P24 -> 0 | AF24: 72.65840564 | AG24: 123632421.4 | AH24: 0 | AI24: 0 | AJ24: 0 | AK24: 93477286.13 | AL24: 0 | AM24: 0 | AN24: 0 | AO24: 71075.88411 | AP24: 0 | AQ24: 0 | AR24: 0 | AT24: 480941.2452 | AU24: 1557768.509 | AV24: 0 | AW24: 0 | AX24: 0 | AY24: 477668.9321 | AZ24: 0 | BA24: 0 | BB24: 0 | BC24: 6500244.981 | BD24: 0 | BE24: 0 | BF24: 0 | BG24: 9016623.668 | BI24: 435240.9245 | BJ24: 1519442.459 | BK24: 0 | BL24: 0 | BM24: 0 | BN24: 477668.9321 | BO24: 0 | BP24: 0 | BQ24: 0 | BR24: 6280407.272 | BS24: 0 | BT24: 0 | BU24: 0 | BV24: 8712759.587
B25: Large Business - LVEN 2.2+ GWh | C25: =Est2019DistRev!B25 -> Large Business - LVEN 2.2+ GWh | D25: 6619.21 | E25: 1.26 | F25: 0 | G25: 0 | H25: 0 | I25: 0.511 | J25: 0 | K25: 0 | L25: 0 | M25: 96.583 | N25: 0 | O25: 0 | P25: 0 | R25: =Est2019DistRev!D25 -> 5990.235 | S25: =Est2019DistRev!E25 -> 1.229 | T25: =Est2019DistRev!F25 -> 0 | U25: =Est2019DistRev!G25 -> 0 | V25: =Est2019DistRev!H25 -> 0 | W25: =Est2019DistRev!I25 -> 0.511 | X25: =Est2019DistRev!J25 -> 0 | Y25: =Est2019DistRev!K25 -> 0 | Z25: =Est2019DistRev!L25 -> 0 | AA25: =Est2019DistRev!M25 -> 93.317 | AB25: =Est2019DistRev!N25 -> 0 | AC25: =Est2019DistRev!O25 -> 0 | AD25: =Est2019DistRev!P25 -> 0 | AF25: 17.35673809 | AG25: 31188816.3 | AH25: 0 | AI25: 0 | AJ25: 0 | AK25: 22454485.84 | AL25: 0 | AM25: 0 | AN25: 0 | AO25: 16630.35649 | AP25: 0 | AQ25: 0 | AR25: 0 | AT25: 114887.8943 | AU25: 392979.0854 | AV25: 0 | AW25: 0 | AX25: 0 | AY25: 114742.4227 | AZ25: 0 | BA25: 0 | BB25: 0 | BC25: 1606209.721 | BD25: 0 | BE25: 0 | BF25: 0 | BG25: 2228819.123 | BI25: 103970.94 | BJ25: 383310.5523 | BK25: 0 | BL25: 0 | BM25: 0 | BN25: 114742.4227 | BO25: 0 | BP25: 0 | BQ25: 0 | BR25: 1551894.977 | BS25: 0 | BT25: 0 | BU25: 0 | BV25: 2153918.892
B26: Large Business - LVMS 2.2+ - 6.0 GWh | C26: =Est2019DistRev!B26 -> Large Business - LVMS 2.2+ - 6.0 GWh | D26: 3901.284 | E26: 1.247 | F26: 0 | G26: 0 | H26: 0 | I26: 0.511 | J26: 0 | K26: 0 | L26: 0 | M26: 62.088 | N26: 0 | O26: 0 | P26: 0 | R26: =Est2019DistRev!D26 -> 3530.574 | S26: =Est2019DistRev!E26 -> 1.216 | T26: =Est2019DistRev!F26 -> 0 | U26: =Est2019DistRev!G26 -> 0 | V26: =Est2019DistRev!H26 -> 0 | W26: =Est2019DistRev!I26 -> 0.511 | X26: =Est2019DistRev!J26 -> 0 | Y26: =Est2019DistRev!K26 -> 0 | Z26: =Est2019DistRev!L26 -> 0 | AA26: =Est2019DistRev!M26 -> 59.988 | AB26: =Est2019DistRev!N26 -> 0 | AC26: =Est2019DistRev!O26 -> 0 | AD26: =Est2019DistRev!P26 -> 0 | AF26: 11 | AG26: 10947685.65 | AH26: 0 | AI26: 0 | AJ26: 0 | AK26: 8831426.158 | AL26: 0 | AM26: 0 | AN26: 0 | AO26: 7857.658684 | AP26: 0 | AQ26: 0 | AR26: 0 | AT26: 42914.124 | AU26: 136517.64 | AV26: 0 | AW26: 0 | AX26: 0 | AY26: 45128.58767 | AZ26: 0 | BA26: 0 | BB26: 0 | BC26: 487866.3124 | BD26: 0 | BE26: 0 | BF26: 0 | BG26: 712426.6641 | BI26: 38836.314 | BJ26: 133123.8575 | BK26: 0 | BL26: 0 | BM26: 0 | BN26: 45128.58767 | BO26: 0 | BP26: 0 | BQ26: 0 | BR26: 471365.2291 | BS26: 0 | BT26: 0 | BU26: 0 | BV26: 688453.9883
B27: Large Business - LV 6.0+ GWh | C27: =Est2019DistRev!B27 -> Large Business - LV 6.0+ GWh | D27: 9072.511 | E27: 1.225 | F27: 0 | G27: 0 | H27: 0 | I27: 0.455 | J27: 0 | K27: 0 | L27: 0 | M27: 87.833 | N27: 0 | O27: 0 | P27: 0 | R27: =Est2019DistRev!D27 -> 8210.417 | S27: =Est2019DistRev!E27 -> 1.194 | T27: =Est2019DistRev!F27 -> 0 | U27: =Est2019DistRev!G27 -> 0 | V27: =Est2019DistRev!H27 -> 0 | W27: =Est2019DistRev!I27 -> 0.455 | X27: =Est2019DistRev!J27 -> 0 | Y27: =Est2019DistRev!K27 -> 0 | Z27: =Est2019DistRev!L27 -> 0 | AA27: =Est2019DistRev!M27 -> 84.863 | AB27: =Est2019DistRev!N27 -> 0 | AC27: =Est2019DistRev!O27 -> 0 | AD27: =Est2019DistRev!P27 -> 0 | AF27: 19 | AG27: 54016087.34 | AH27: 0 | AI27: 0 | AJ27: 0 | AK27: 45267619.45 | AL27: 0 | AM27: 0 | AN27: 0 | AO27: 24539.6823 | AP27: 0 | AQ27: 0 | AR27: 0 | AT27: 172377.709 | AU27: 661697.0699 | AV27: 0 | AW27: 0 | AX27: 0 | AY27: 205967.6685 | AZ27: 0 | BA27: 0 | BB27: 0 | BC27: 2155393.915 | BD27: 0 | BE27: 0 | BF27: 0 | BG27: 3195436.363 | BI27: 155997.923 | BJ27: 644952.0829 | BK27: 0 | BL27: 0 | BM27: 0 | BN27: 205967.6685 | BO27: 0 | BP27: 0 | BQ27: 0 | BR27: 2082511.059 | BS27: 0 | BT27: 0 | BU27: 0 | BV27: 3089428.733
B28: Large Business - LVMS 6.0+ GWh | C28: =Est2019DistRev!B28 -> Large Business - LVMS 6.0+ GWh | D28: 5268.972 | E28: 1.225 | F28: 0 | G28: 0 | H28: 0 | I28: 0.455 | J28: 0 | K28: 0 | L28: 0 | M28: 62.193 | N28: 0 | O28: 0 | P28: 0 | R28: =Est2019DistRev!D28 -> 4768.3 | S28: =Est2019DistRev!E28 -> 1.194 | T28: =Est2019DistRev!F28 -> 0 | U28: =Est2019DistRev!G28 -> 0 | V28: =Est2019DistRev!H28 -> 0 | W28: =Est2019DistRev!I28 -> 0.455 | X28: =Est2019DistRev!J28 -> 0 | Y28: =Est2019DistRev!K28 -> 0 | Z28: =Est2019DistRev!L28 -> 0 | AA28: =Est2019DistRev!M28 -> 60.09 | AB28: =Est2019DistRev!N28 -> 0 | AC28: =Est2019DistRev!O28 -> 0 | AD28: =Est2019DistRev!P28 -> 0 | AF28: 31 | AG28: 51574099.3 | AH28: 0 | AI28: 0 | AJ28: 0 | AK28: 40147645.06 | AL28: 0 | AM28: 0 | AN28: 0 | AO28: 29061.41144 | AP28: 0 | AQ28: 0 | AR28: 0 | AT28: 163338.132 | AU28: 631782.7164 | AV28: 0 | AW28: 0 | AX28: 0 | AY28: 182671.785 | AZ28: 0 | BA28: 0 | BB28: 0 | BC28: 1807416.362 | BD28: 0 | BE28: 0 | BF28: 0 | BG28: 2785208.995 | BI28: 147817.3 | BJ28: 615794.7456 | BK28: 0 | BL28: 0 | BM28: 0 | BN28: 182671.785 | BO28: 0 | BP28: 0 | BQ28: 0 | BR28: 1746300.214 | BS28: 0 | BT28: 0 | BU28: 0 | BV28: 2692584.044
B29: Large Business - HV | C29: =Est2019DistRev!B29 -> Large Business - HV | D29: 6494.215 | E29: 0.819 | F29: 0 | G29: 0 | H29: 0 | I29: 0.237 | J29: 0 | K29: 0 | L29: 0 | M29: 73.632 | N29: 0 | O29: 0 | P29: 0 | R29: =Est2019DistRev!D29 -> 6069.36 | S29: =Est2019DistRev!E29 -> 0.797 | T29: =Est2019DistRev!F29 -> 0 | U29: =Est2019DistRev!G29 -> 0 | V29: =Est2019DistRev!H29 -> 0 | W29: =Est2019DistRev!I29 -> 0.237 | X29: =Est2019DistRev!J29 -> 0 | Y29: =Est2019DistRev!K29 -> 0 | Z29: =Est2019DistRev!L29 -> 0 | AA29: =Est2019DistRev!M29 -> 71.142 | AB29: =Est2019DistRev!N29 -> 0 | AC29: =Est2019DistRev!O29 -> 0 | AD29: =Est2019DistRev!P29 -> 0 | AF29: 79.96666667 | AG29: 261382203.5 | AH29: 0 | AI29: 0 | AJ29: 0 | AK29: 207377504.5 | AL29: 0 | AM29: 0 | AN29: 0 | AO29: 179403.3486 | AP29: 0 | AQ29: 0 | AR29: 0 | AT29: 519320.7262 | AU29: 2140720.246 | AV29: 0 | AW29: 0 | AX29: 0 | AY29: 491484.6857 | AZ29: 0 | BA29: 0 | BB29: 0 | BC29: 13209827.36 | BD29: 0 | BE29: 0 | BF29: 0 | BG29: 16361353.02 | BI29: 485346.488 | BJ29: 2083216.162 | BK29: 0 | BL29: 0 | BM29: 0 | BN29: 491484.6857 | BO29: 0 | BP29: 0 | BQ29: 0 | BR29: 12763113.03 | BS29: 0 | BT29: 0 | BU29: 0 | BV29: 15823160.36
B30: Large Business – HVEN | C30: =Est2019DistRev!B30 -> Large Business – HVEN | D30: 6494.215 | E30: 0.822 | F30: 0 | G30: 0 | H30: 0 | I30: 0.237 | J30: 0 | K30: 0 | L30: 0 | M30: 75.863 | N30: 0 | O30: 0 | P30: 0 | R30: =Est2019DistRev!D30 -> 6069.36 | S30: =Est2019DistRev!E30 -> 0.8 | T30: =Est2019DistRev!F30 -> 0 | U30: =Est2019DistRev!G30 -> 0 | V30: =Est2019DistRev!H30 -> 0 | W30: =Est2019DistRev!I30 -> 0.237 | X30: =Est2019DistRev!J30 -> 0 | Y30: =Est2019DistRev!K30 -> 0 | Z30: =Est2019DistRev!L30 -> 0 | AA30: =Est2019DistRev!M30 -> 73.298 | AB30: =Est2019DistRev!N30 -> 0 | AC30: =Est2019DistRev!O30 -> 0 | AD30: =Est2019DistRev!P30 -> 0 | AF30: 2 | AG30: 10026148.25 | AH30: 0 | AI30: 0 | AJ30: 0 | AK30: 7861827.181 | AL30: 0 | AM30: 0 | AN30: 0 | AO30: 3283.976925 | AP30: 0 | AQ30: 0 | AR30: 0 | AT30: 12988.43 | AU30: 82414.93861 | AV30: 0 | AW30: 0 | AX30: 0 | AY30: 18632.53042 | AZ30: 0 | BA30: 0 | BB30: 0 | BC30: 249132.3415 | BD30: 0 | BE30: 0 | BF30: 0 | BG30: 363168.2405 | BI30: 12138.72 | BJ30: 80209.186 | BK30: 0 | BL30: 0 | BM30: 0 | BN30: 18632.53042 | BO30: 0 | BP30: 0 | BQ30: 0 | BR30: 240708.9407 | BS30: 0 | BT30: 0 | BU30: 0 | BV30: 351689.3771
B31: Large Business - HVRF | C31: =Est2019DistRev!B31 -> Large Business - HVRF | D31: 6494.215 | E31: 0.811 | F31: 0 | G31: 0 | H31: 0 | I31: 0.237 | J31: 0 | K31: 0 | L31: 0 | M31: 67.658 | N31: 0 | O31: 0 | P31: 0 | R31: =Est2019DistRev!D31 -> 6069.36 | S31: =Est2019DistRev!E31 -> 0.789 | T31: =Est2019DistRev!F31 -> 0 | U31: =Est2019DistRev!G31 -> 0 | V31: =Est2019DistRev!H31 -> 0 | W31: =Est2019DistRev!I31 -> 0.237 | X31: =Est2019DistRev!J31 -> 0 | Y31: =Est2019DistRev!K31 -> 0 | Z31: =Est2019DistRev!L31 -> 0 | AA31: =Est2019DistRev!M31 -> 65.37 | AB31: =Est2019DistRev!N31 -> 0 | AC31: =Est2019DistRev!O31 -> 0 | AD31: =Est2019DistRev!P31 -> 0 | AF31: 1.966666667 | AG31: 20779374.23 | AH31: 0 | AI31: 0 | AJ31: 0 | AK31: 18296465.43 | AL31: 0 | AM31: 0 | AN31: 0 | AO31: 12318.36753 | AP31: 0 | AQ31: 0 | AR31: 0 | AT31: 12771.95617 | AU31: 168520.725 | AV31: 0 | AW31: 0 | AX31: 0 | AY31: 43362.62307 | AZ31: 0 | BA31: 0 | BB31: 0 | BC31: 833436.1103 | BD31: 0 | BE31: 0 | BF31: 0 | BG31: 1058091.415 | BI31: 11936.408 | BJ31: 163949.2627 | BK31: 0 | BL31: 0 | BM31: 0 | BN31: 43362.62307 | BO31: 0 | BP31: 0 | BQ31: 0 | BR31: 805251.6854 | BS31: 0 | BT31: 0 | BU31: 0 | BV31: 1024499.979
B32: Large Business - HV Ann Cons >= 55GWh | C32: =Est2019DistRev!B32 -> Large Business - HV Ann Cons >= 55GWh | D32: 6066.261 | E32: 0.782 | F32: 0 | G32: 0 | H32: 0 | I32: 0.184 | J32: 0 | K32: 0 | L32: 0 | M32: 65.328 | N32: 0 | O32: 0 | P32: 0 | R32: =Est2019DistRev!D32 -> 5669.403 | S32: =Est2019DistRev!E32 -> 0.761 | T32: =Est2019DistRev!F32 -> 0 | U32: =Est2019DistRev!G32 -> 0 | V32: =Est2019DistRev!H32 -> 0 | W32: =Est2019DistRev!I32 -> 0.184 | X32: =Est2019DistRev!J32 -> 0 | Y32: =Est2019DistRev!K32 -> 0 | Z32: =Est2019DistRev!L32 -> 0 | AA32: =Est2019DistRev!M32 -> 63.119 | AB32: =Est2019DistRev!N32 -> 0 | AC32: =Est2019DistRev!O32 -> 0 | AD32: =Est2019DistRev!P32 -> 0 | AF32: 1 | AG32: 30160498.85 | AH32: 0 | AI32: 0 | AJ32: 0 | AK32: 26819057.71 | AL32: 0 | AM32: 0 | AN32: 0 | AO32: 10095.62244 | AP32: 0 | AQ32: 0 | AR32: 0 | AT32: 6066.261 | AU32: 235855.101 | AV32: 0 | AW32: 0 | AX32: 0 | AY32: 49347.06619 | AZ32: 0 | BA32: 0 | BB32: 0 | BC32: 659526.8229 | BD32: 0 | BE32: 0 | BF32: 0 | BG32: 950795.2511 | BI32: 5669.403 | BJ32: 229521.3963 | BK32: 0 | BL32: 0 | BM32: 0 | BN32: 49347.06619 | BO32: 0 | BP32: 0 | BQ32: 0 | BR32: 637225.5929 | BS32: 0 | BT32: 0 | BU32: 0 | BV32: 921763.4584
B33: Large Business - Subtransmission | C33: =Est2019DistRev!B33 -> Large Business - Subtransmission | D33: 40563.08 | E33: 0.153 | F33: 0 | G33: 0 | H33: 0 | I33: 0.045 | J33: 0 | K33: 0 | L33: 0 | M33: 20.197 | N33: 0 | O33: 0 | P33: 0 | R33: =Est2019DistRev!D33 -> 39040.5 | S33: =Est2019DistRev!E33 -> 0.149 | T33: =Est2019DistRev!F33 -> 0 | U33: =Est2019DistRev!G33 -> 0 | V33: =Est2019DistRev!H33 -> 0 | W33: =Est2019DistRev!I33 -> 0.045 | X33: =Est2019DistRev!J33 -> 0 | Y33: =Est2019DistRev!K33 -> 0 | Z33: =Est2019DistRev!L33 -> 0 | AA33: =Est2019DistRev!M33 -> 19.514 | AB33: =Est2019DistRev!N33 -> 0 | AC33: =Est2019DistRev!O33 -> 0 | AD33: =Est2019DistRev!P33 -> 0 | AE33: =Est2019DistRev!Q33 -> 0 | AF33: 3 | AG33: 127353390.8 | AH33: 0 | AI33: 0 | AJ33: 0 | AK33: 137331201.1 | AL33: 0 | AM33: 0 | AN33: 0 | AO33: 62414.39064 | AP33: 0 | AQ33: 0 | AR33: 0 | AT33: 121689.24 | AU33: 194850.688 | AV33: 0 | AW33: 0 | AX33: 0 | AY33: 61799.04047 | AZ33: 0 | BA33: 0 | BB33: 0 | BC33: 1260583.448 | BD33: 0 | BE33: 0 | BF33: 0 | BG33: 1638922.416 | BI33: 117121.5 | BJ33: 189756.5524 | BK33: 0 | BL33: 0 | BM33: 0 | BN33: 61799.04047 | BO33: 0 | BP33: 0 | BQ33: 0 | BR33: 1217954.419 | BS33: 0 | BT33: 0 | BU33: 0 | BV33: 1586631.512
B34: Large Business - Subtransmission MA | C34: =Est2019DistRev!B34 -> Large Business - Subtransmission MA | D34: 40563.08 | E34: 0.153 | F34: 0 | G34: 0 | H34: 0 | I34: 0.045 | J34: 0 | K34: 0 | L34: 0 | M34: 20.281 | N34: 0 | O34: 0 | P34: 0 | R34: =Est2019DistRev!D34 -> 39040.5 | S34: =Est2019DistRev!E34 -> 0.149 | T34: =Est2019DistRev!F34 -> 0 | U34: =Est2019DistRev!G34 -> 0 | V34: =Est2019DistRev!H34 -> 0 | W34: =Est2019DistRev!I34 -> 0.045 | X34: =Est2019DistRev!J34 -> 0 | Y34: =Est2019DistRev!K34 -> 0 | Z34: =Est2019DistRev!L34 -> 0 | AA34: =Est2019DistRev!M34 -> 19.595 | AB34: =Est2019DistRev!N34 -> 0 | AC34: =Est2019DistRev!O34 -> 0 | AD34: =Est2019DistRev!P34 -> 0 | AE34: =Est2019DistRev!Q34 -> 0 | AF34: 1 | AG34: 72878283.53 | AH34: 0 | AI34: 0 | AJ34: 0 | AK34: 72553526.24 | AL34: 0 | AM34: 0 | AN34: 0 | AO34: 43108.52324 | AP34: 0 | AQ34: 0 | AR34: 0 | AT34: 40563.08 | AU34: 111503.7738 | AV34: 0 | AW34: 0 | AX34: 0 | AY34: 32649.08681 | AZ34: 0 | BA34: 0 | BB34: 0 | BC34: 874283.9598 | BD34: 0 | BE34: 0 | BF34: 0 | BG34: 1058999.9 | BI34: 39040.5 | BJ34: 108588.6425 | BK34: 0 | BL34: 0 | BM34: 0 | BN34: 32649.08681 | BO34: 0 | BP34: 0 | BQ34: 0 | BR34: 844711.5129 | BS34: 0 | BT34: 0 | BU34: 0 | BV34: 1024989.742
B35: =C35 -> Large Business - Subtransmission EG | C35: =Est2019DistRev!B35 -> Large Business - Subtransmission EG | D35: 31516.884 | E35: 0.146 | F35: 0 | G35: 0 | H35: 0 | I35: 0.023 | J35: 0 | K35: 0 | L35: 0 | M35: 3.478 | N35: 0 | O35: 0 | P35: 0 | R35: =Est2019DistRev!D35 -> 30333.863 | S35: =Est2019DistRev!E35 -> 0.142 | T35: =Est2019DistRev!F35 -> 0 | U35: =Est2019DistRev!G35 -> 0 | V35: =Est2019DistRev!H35 -> 0 | W35: =Est2019DistRev!I35 -> 0.023 | X35: =Est2019DistRev!J35 -> 0 | Y35: =Est2019DistRev!K35 -> 0 | Z35: =Est2019DistRev!L35 -> 0 | AA35: =Est2019DistRev!M35 -> 3.36 | AB35: =Est2019DistRev!N35 -> 0 | AC35: =Est2019DistRev!O35 -> 0 | AD35: =Est2019DistRev!P35 -> 0 | AE35: =Est2019DistRev!Q35 -> 0 | AF35: 1 | AG35: 1437945.657 | AH35: 0 | AI35: 0 | AJ35: 0 | AK35: 1708117.938 | AL35: 0 | AM35: 0 | AN35: 0 | AO35: 32052.45056 | AP35: 0 | AQ35: 0 | AR35: 0 | AT35: =D35*AF35 -> 31516.884 | AU35: =E35/100*AG35 -> 2099.400659 | AV35: 0 | AW35: 0 | AX35: 0 | AY35: 392.8671258 | AZ35: 0 | BA35: 0 | BB35: 0 | BC35: =M35*AO35 -> 111478.4231 | BD35: =N35*AP35 -> 0 | BE35: =O35*AQ35 -> 0 | BF35: =P35*AR35 -> 0 | BG35: =SUM(AT35:BF35) -> 145487.5748 | BI35: =R35*AF35 -> 30333.863 | BJ35: =S35/100*AG35 -> 2041.882833 | BK35: =T35/100*AH35 -> 0 | BL35: =U35/100*AI35 -> 0 | BM35: =V35/100*AJ35 -> 0 | BN35: =W35/100*AK35 -> 392.8671258 | BO35: =X35/100*AL35 -> 0 | BP35: =Y35/100*AM35 -> 0 | BQ35: =Z35/100*AN35 -> 0 | BR35: =AA35*AO35 -> 107696.2339 | BS35: =AB35*AP35 -> 0 | BT35: =AC35*AQ35 -> 0 | BU35: =AD35*AR35 -> 0 | BV35: =SUM(BI35:BU35) -> 140464.8468
AT36: 0 | AU36: 0 | AV36: 0 | AW36: 0 | AX36: 0 | AY36: 0 | AZ36: 0 | BA36: 0 | BB36: 0 | BC36: 0 | BD36: 0 | BE36: 0 | BF36: 0 | BG36: 0 | BI36: 0 | BJ36: 0 | BK36: 0 | BL36: 0 | BM36: 0 | BN36: 0 | BO36: 0 | BP36: 0 | BQ36: 0 | BR36: 0 | BS36: 0 | BT36: 0 | BU36: 0 | BV36: 0
AT37: 0 | AU37: 0 | AV37: 0 | AW37: 0 | AX37: 0 | AY37: 0 | AZ37: 0 | BA37: 0 | BB37: 0 | BC37: 0 | BD37: 0 | BE37: 0 | BF37: 0 | BG37: 0 | BI37: 0 | BJ37: 0 | BK37: 0 | BL37: 0 | BM37: 0 | BN37: 0 | BO37: 0 | BP37: 0 | BQ37: 0 | BR37: 0 | BS37: 0 | BT37: 0 | BU37: 0 | BV37: 0
AT38: 0 | AU38: 0 | AV38: 0 | AW38: 0 | AX38: 0 | AY38: 0 | AZ38: 0 | BA38: 0 | BB38: =L38/100*AN38 -> 0 | BC38: 0 | BD38: 0 | BE38: 0 | BF38: 0 | BG38: 0 | BI38: 0 | BJ38: 0 | BK38: 0 | BL38: 0 | BM38: 0 | BN38: 0 | BO38: 0 | BP38: 0 | BQ38: 0 | BR38: 0 | BS38: 0 | BT38: 0 | BU38: 0 | BV38: 0
AT39: 0 | AU39: 0 | AV39: 0 | AW39: 0 | AX39: 0 | AY39: 0 | AZ39: 0 | BA39: 0 | BB39: 0 | BC39: 0 | BD39: 0 | BE39: 0 | BF39: 0 | BG39: 0 | BI39: 0 | BJ39: 0 | BK39: 0 | BL39: 0 | BM39: 0 | BN39: 0 | BO39: 0 | BP39: 0 | BQ39: 0 | BR39: 0 | BS39: 0 | BT39: 0 | BU39: 0 | BV39: 0
AT40: 0 | AU40: 0 | AV40: 0 | AW40: 0 | AX40: 0 | AY40: 0 | AZ40: 0 | BA40: 0 | BB40: 0 | BC40: 0 | BD40: 0 | BE40: 0 | BF40: 0 | BG40: 0 | BI40: 0 | BJ40: 0 | BK40: 0 | BL40: 0 | BM40: 0 | BN40: 0 | BO40: 0 | BP40: 0 | BQ40: 0 | BR40: 0 | BS40: 0 | BT40: 0 | BU40: 0 | BV40: 0
AT41: 0 | AU41: 0 | AV41: 0 | AW41: 0 | AX41: 0 | AY41: 0 | AZ41: 0 | BA41: 0 | BB41: 0 | BC41: 0 | BD41: 0 | BE41: 0 | BF41: 0 | BG41: 0 | BI41: 0 | BJ41: 0 | BK41: 0 | BL41: 0 | BM41: 0 | BN41: 0 | BO41: 0 | BP41: 0 | BQ41: 0 | BR41: 0 | BS41: 0 | BT41: 0 | BU41: 0 | BV41: 0
AT42: 0 | AU42: 0 | AV42: 0 | AW42: 0 | AX42: 0 | AY42: 0 | AZ42: 0 | BA42: 0 | BB42: 0 | BC42: 0 | BD42: 0 | BE42: 0 | BF42: 0 | BG42: 0 | BI42: 0 | BJ42: 0 | BK42: 0 | BL42: 0 | BM42: 0 | BN42: 0 | BO42: 0 | BP42: 0 | BQ42: 0 | BR42: 0 | BS42: 0 | BT42: 0 | BU42: 0 | BV42: 0
AT43: 0 | AU43: 0 | AV43: 0 | AW43: 0 | AX43: 0 | AY43: 0 | AZ43: 0 | BA43: 0 | BB43: 0 | BC43: 0 | BD43: 0 | BE43: 0 | BF43: 0 | BG43: 0 | BI43: 0 | BJ43: 0 | BK43: 0 | BL43: 0 | BM43: 0 | BN43: 0 | BO43: 0 | BP43: 0 | BQ43: 0 | BR43: 0 | BS43: 0 | BT43: 0 | BU43: 0 | BV43: 0
AT44: 0 | AU44: 0 | AV44: 0 | AW44: 0 | AX44: 0 | AY44: 0 | AZ44: 0 | BA44: 0 | BB44: 0 | BC44: 0 | BD44: 0 | BE44: 0 | BF44: 0 | BG44: 0 | BI44: 0 | BJ44: 0 | BK44: 0 | BL44: 0 | BM44: 0 | BN44: 0 | BO44: 0 | BP44: 0 | BQ44: 0 | BR44: 0 | BS44: 0 | BT44: 0 | BU44: 0 | BV44: 0
AT45: 0 | AU45: 0 | AV45: 0 | AW45: 0 | AX45: 0 | AY45: 0 | AZ45: 0 | BA45: 0 | BB45: 0 | BC45: 0 | BD45: 0 | BE45: 0 | BF45: 0 | BG45: 0 | BI45: 0 | BJ45: 0 | BK45: 0 | BL45: 0 | BM45: 0 | BN45: 0 | BO45: 0 | BP45: 0 | BQ45: 0 | BR45: 0 | BS45: 0 | BT45: 0 | BU45: 0 | BV45: 0
AT46: 0 | AU46: 0 | AV46: 0 | AW46: 0 | AX46: 0 | AY46: 0 | AZ46: 0 | BA46: 0 | BB46: 0 | BC46: 0 | BD46: 0 | BE46: 0 | BF46: 0 | BG46: 0 | BI46: 0 | BJ46: 0 | BK46: 0 | BL46: 0 | BM46: 0 | BN46: 0 | BO46: 0 | BP46: 0 | BQ46: 0 | BR46: 0 | BS46: 0 | BT46: 0 | BU46: 0 | BV46: 0
AT47: 0 | AU47: 0 | AV47: 0 | AW47: 0 | AX47: 0 | AY47: 0 | AZ47: 0 | BA47: 0 | BB47: 0 | BC47: 0 | BD47: 0 | BE47: 0 | BF47: 0 | BG47: 0 | BI47: 0 | BJ47: 0 | BK47: 0 | BL47: 0 | BM47: 0 | BN47: 0 | BO47: 0 | BP47: 0 | BQ47: 0 | BR47: 0 | BS47: 0 | BT47: 0 | BU47: 0 | BV47: 0
AT48: 0 | AU48: 0 | AV48: 0 | AW48: 0 | AX48: 0 | AY48: 0 | AZ48: 0 | BA48: 0 | BB48: 0 | BC48: 0 | BD48: 0 | BE48: 0 | BF48: 0 | BG48: 0 | BI48: 0 | BJ48: 0 | BK48: 0 | BL48: 0 | BM48: 0 | BN48: 0 | BO48: 0 | BP48: 0 | BQ48: 0 | BR48: 0 | BS48: 0 | BT48: 0 | BU48: 0 | BV48: 0
AT49: 0 | AU49: 0 | AV49: 0 | AW49: 0 | AX49: 0 | AY49: 0 | AZ49: 0 | BA49: 0 | BB49: 0 | BC49: 0 | BD49: 0 | BE49: 0 | BF49: 0 | BG49: 0 | BI49: 0 | BJ49: 0 | BK49: 0 | BL49: 0 | BM49: 0 | BN49: 0 | BO49: 0 | BP49: 0 | BQ49: 0 | BR49: 0 | BS49: 0 | BT49: 0 | BU49: 0 | BV49: 0
AT50: 0 | AU50: 0 | AV50: 0 | AW50: 0 | AX50: 0 | AY50: 0 | AZ50: 0 | BA50: 0 | BB50: 0 | BC50: 0 | BD50: 0 | BE50: 0 | BF50: 0 | BG50: 0 | BI50: 0 | BJ50: 0 | BK50: 0 | BL50: 0 | BM50: 0 | BN50: 0 | BO50: 0 | BP50: 0 | BQ50: 0 | BR50: 0 | BS50: 0 | BT50: 0 | BU50: 0 | BV50: 0
AT51: 0 | AU51: 0 | AV51: 0 | AW51: 0 | AX51: 0 | AY51: 0 | AZ51: 0 | BA51: 0 | BB51: 0 | BC51: 0 | BD51: 0 | BE51: 0 | BF51: 0 | BG51: 0 | BI51: 0 | BJ51: 0 | BK51: 0 | BL51: 0 | BM51: 0 | BN51: 0 | BO51: 0 | BP51: 0 | BQ51: 0 | BR51: 0 | BS51: 0 | BT51: 0 | BU51: 0 | BV51: 0
AT52: 0 | AU52: 0 | AV52: 0 | AW52: 0 | AX52: 0 | AY52: 0 | AZ52: 0 | BA52: 0 | BB52: 0 | BC52: 0 | BD52: 0 | BE52: 0 | BF52: 0 | BG52: 0 | BI52: 0 | BJ52: 0 | BK52: 0 | BL52: 0 | BM52: 0 | BN52: 0 | BO52: 0 | BP52: 0 | BQ52: 0 | BR52: 0 | BS52: 0 | BT52: 0 | BU52: 0 | BV52: 0
AT53: 0 | AU53: 0 | AV53: 0 | AW53: 0 | AX53: 0 | AY53: 0 | AZ53: 0 | BA53: 0 | BB53: 0 | BC53: 0 | BD53: 0 | BE53: 0 | BF53: 0 | BG53: 0 | BI53: 0 | BJ53: 0 | BK53: 0 | BL53: 0 | BM53: 0 | BN53: 0 | BO53: 0 | BP53: 0 | BQ53: 0 | BR53: 0 | BS53: 0 | BT53: 0 | BU53: 0 | BV53: 0
AT54: 0 | AU54: 0 | AV54: 0 | AW54: 0 | AX54: 0 | AY54: 0 | AZ54: 0 | BA54: 0 | BB54: 0 | BC54: 0 | BD54: 0 | BE54: 0 | BF54: 0 | BG54: 0 | BI54: 0 | BJ54: 0 | BK54: 0 | BL54: 0 | BM54: 0 | BN54: 0 | BO54: 0 | BP54: 0 | BQ54: 0 | BR54: 0 | BS54: 0 | BT54: 0 | BU54: 0 | BV54: 0
AT55: 0 | AU55: 0 | AV55: 0 | AW55: 0 | AX55: 0 | AY55: 0 | AZ55: 0 | BA55: 0 | BB55: 0 | BC55: 0 | BD55: 0 | BE55: 0 | BF55: 0 | BG55: 0 | BI55: 0 | BJ55: 0 | BK55: 0 | BL55: 0 | BM55: 0 | BN55: 0 | BO55: 0 | BP55: 0 | BQ55: 0 | BR55: 0 | BS55: 0 | BT55: 0 | BU55: 0 | BV55: 0
AT56: 0 | AU56: 0 | AV56: 0 | AW56: 0 | AX56: 0 | AY56: 0 | AZ56: 0 | BA56: 0 | BB56: 0 | BC56: 0 | BD56: 0 | BE56: 0 | BF56: 0 | BG56: 0 | BI56: 0 | BJ56: 0 | BK56: 0 | BL56: 0 | BM56: 0 | BN56: 0 | BO56: 0 | BP56: 0 | BQ56: 0 | BR56: 0 | BS56: 0 | BT56: 0 | BU56: 0 | BV56: 0
AT57: 0 | AU57: 0 | AV57: 0 | AW57: 0 | AX57: 0 | AY57: 0 | AZ57: 0 | BA57: 0 | BB57: 0 | BC57: 0 | BD57: 0 | BE57: 0 | BF57: 0 | BG57: 0 | BI57: 0 | BJ57: 0 | BK57: 0 | BL57: 0 | BM57: 0 | BN57: 0 | BO57: 0 | BP57: 0 | BQ57: 0 | BR57: 0 | BS57: 0 | BT57: 0 | BU57: 0 | BV57: 0
AT58: 0 | AU58: 0 | AV58: 0 | AW58: 0 | AX58: 0 | AY58: 0 | AZ58: 0 | BA58: 0 | BB58: 0 | BC58: 0 | BD58: 0 | BE58: 0 | BF58: 0 | BG58: 0 | BI58: 0 | BJ58: 0 | BK58: 0 | BL58: 0 | BM58: 0 | BN58: 0 | BO58: 0 | BP58: 0 | BQ58: 0 | BR58: 0 | BS58: 0 | BT58: 0 | BU58: 0 | BV58: 0
AT59: 0 | AU59: 0 | AV59: 0 | AW59: 0 | AX59: 0 | AY59: 0 | AZ59: 0 | BA59: 0 | BB59: 0 | BC59: 0 | BD59: 0 | BE59: 0 | BF59: 0 | BG59: 0 | BI59: 0 | BJ59: 0 | BK59: 0 | BL59: 0 | BM59: 0 | BN59: 0 | BO59: 0 | BP59: 0 | BQ59: 0 | BR59: 0 | BS59: 0 | BT59: 0 | BU59: 0 | BV59: 0
AT60: 0 | AU60: 0 | AV60: 0 | AW60: 0 | AX60: 0 | AY60: 0 | AZ60: 0 | BA60: 0 | BB60: 0 | BC60: 0 | BD60: 0 | BE60: 0 | BF60: 0 | BG60: 0 | BI60: 0 | BJ60: 0 | BK60: 0 | BL60: 0 | BM60: 0 | BN60: 0 | BO60: 0 | BP60: 0 | BQ60: 0 | BR60: 0 | BS60: 0 | BT60: 0 | BU60: 0 | BV60: 0
AT61: 0 | AU61: 0 | AV61: 0 | AW61: 0 | AX61: 0 | AY61: 0 | AZ61: 0 | BA61: 0 | BB61: 0 | BC61: 0 | BD61: 0 | BE61: 0 | BF61: 0 | BG61: 0 | BI61: 0 | BJ61: 0 | BK61: 0 | BL61: 0 | BM61: 0 | BN61: 0 | BO61: 0 | BP61: 0 | BQ61: 0 | BR61: 0 | BS61: 0 | BT61: 0 | BU61: 0 | BV61: 0
AT62: 0 | AU62: 0 | AV62: 0 | AW62: 0 | AX62: 0 | AY62: 0 | AZ62: 0 | BA62: 0 | BB62: 0 | BC62: 0 | BD62: 0 | BE62: 0 | BF62: 0 | BG62: 0 | BI62: 0 | BJ62: 0 | BK62: 0 | BL62: 0 | BM62: 0 | BN62: 0 | BO62: 0 | BP62: 0 | BQ62: 0 | BR62: 0 | BS62: 0 | BT62: 0 | BU62: 0 | BV62: 0
AT63: 0 | AU63: 0 | AV63: 0 | AW63: 0 | AX63: 0 | AY63: 0 | AZ63: 0 | BA63: 0 | BB63: 0 | BC63: 0 | BD63: 0 | BE63: 0 | BF63: 0 | BG63: 0 | BI63: 0 | BJ63: 0 | BK63: 0 | BL63: 0 | BM63: 0 | BN63: 0 | BO63: 0 | BP63: 0 | BQ63: 0 | BR63: 0 | BS63: 0 | BT63: 0 | BU63: 0 | BV63: 0
AT64: 0 | AU64: 0 | AV64: 0 | AW64: 0 | AX64: 0 | AY64: 0 | AZ64: 0 | BA64: 0 | BB64: 0 | BC64: 0 | BD64: 0 | BE64: 0 | BF64: 0 | BG64: 0 | BI64: 0 | BJ64: 0 | BK64: 0 | BL64: 0 | BM64: 0 | BN64: 0 | BO64: 0 | BP64: 0 | BQ64: 0 | BR64: 0 | BS64: 0 | BT64: 0 | BU64: 0 | BV64: 0
AT65: 0 | AU65: 0 | AV65: 0 | AW65: 0 | AX65: 0 | AY65: 0 | AZ65: 0 | BA65: 0 | BB65: 0 | BC65: 0 | BD65: 0 | BE65: 0 | BF65: 0 | BG65: 0 | BI65: 0 | BJ65: 0 | BK65: 0 | BL65: 0 | BM65: 0 | BN65: 0 | BO65: 0 | BP65: 0 | BQ65: 0 | BR65: 0 | BS65: 0 | BT65: 0 | BU65: 0 | BV65: 0
AF66: =SUM(AF6:AF65) -> 352763.8279 | AG66: 3118566391 | AH66: 963834.6369 | AI66: 676158.9282 | AJ66: 1257062.401 | AK66: 1294294326 | AL66: 821885.2976 | AM66: 0 | AN66: 0 | AO66: 930066.1467 | AP66: 0 | AQ66: 0 | AR66: 0 | AT66: =SUM(AT6:AT65) -> 28029545.86 | AU66: 167830515.8 | AV66: 75381.50695 | AW66: 85202.78655 | AX66: 98314.85039 | AY66: 9093656.142 | AZ66: 31248.07901 | BA66: 0 | BB66: 0 | BC66: 70330873.25 | BD66: 0 | BE66: 0 | BF66: 0 | BG66: 275574738.2 | BI66: =SUM(BI6:BI65) -> 24777166.3 | BJ66: 162201245.7 | BK66: 72885.17524 | BL66: 82376.44223 | BM66: 95059.05878 | BN66: 9092369.265 | BO66: 30212.50354 | BP66: 0 | BQ66: 0 | BR66: 67952674.67 | BS66: 0 | BT66: 0 | BU66: 0 | BV66: 264303989.1

Sheet 2020DistRevCapForm
B2: ="Tariff Approval - "&'Model update'!$C$3 -> Tariff Approval - Jemena | C2: ='Model update'!$C$5&"DistRevCapForm" -> 2020DistRevCapForm
B4: DUoS
B6: Year (t) | C6: ='Model update'!C5 -> 2020 | H6: =C6-1 -> 2019
B8: Table 1- Compliance with AER Final Determination Total Annual Revenue
B9: Revenue from DUoS charges for year t | C9: =Prop2020DistTar!BG66 -> 275574738.2
B10: Total Annual Revenue for year t | C10: =C18 -> 275574994.2
C11: =IF(C9="","",IF(C10>=C9,"DUoS REVENUE CAP FORMULA COMPLIANT","DUoS REVENUE CAP FORMULA BREACHED")) -> DUoS REVENUE CAP FORMULA COMPLIANT
B13: Table 2 - Total Annual Revenue for year t (TARt)
B14: Adjusted Annual Smoothed Revenue for year t | C14: =C25 -> 276342829.6 | H14: =H25 -> 266611342.8
B15: I factor for year t (F factor Scheme) | C15: ='Model update'!B$100 -> 112800 | H15: =INDEX('Model update'!$D$100:$H$100,1,MATCH($H$6,'Model update'!$D$93:$H$93,0)) -> 117300
B16: T factor for year t (DMIS carry over amount) | C16: ='Model update'!B144 -> 0 | H16: =INDEX('Model update'!$D$144:$H$144,1,MATCH($H$6,'Model update'!$D$137:$H$137,0)) -> 0
B17: B factor for year t | C17: =C32 -> -880635.4199 | H17: =H32 -> -11289569.63
B18: Total Annual Revenue for year t | C18: =C14+C15+C16+C17 -> 275574994.2 | H18: =H14+H15+H16+H17 -> 255439073.1
B20: Table 3 - Adjusted Annual Revenue for year t (AARt)
B21: Adjusted Annual Smoothed Revenue for year t-1 | C21: =H25 -> 266611342.8 | H21: 256319354.1
B22: CPI for period t | C22: ='Model update'!C30 -> 0.01592920354 | H22: ='Model update'!C29 -> 0.02077687444
B23: X factor for period t | C23: ='Model update'!B60 -> -0.01712086467 | H23: =INDEX('Model update'!$E$60:$H$60,1,MATCH("Xt for "&$H$6,'Model update'!$E$53:$H$53,0)) -> -0.01194800863
B24: S factor for period t | C24: ='Model update'!B111 -> 0.00307537808 | H24: =INDEX('Model update'!$D$111:$H$111,1,MATCH($H$6,'Model update'!$D$104:$H$104,0)) -> 0.006950679651
B25: Adjusted Annual Smoothed Revenue for year t | C25: =IF(C6=2016,'Model update'!D60*(1+C24),(C21*(1+C22)*(1-C23)*(1+C24))) -> 276342829.6 | H25: =IF(H6=2016,'Model update'!D60*(1+H24),(H21*(1+H22)*(1-H23)*(1+H24))) -> 266611342.8
B27: Table 4- B factor for year t
B28: DUoS revenue under/over recovery approved | C28: =-E71*(1+E69)^0.5 -> -1021808.309 | H28: -11373855.06
B29: License Fee Recovery Amount for year t | C29: =C38 -> 141172.8889 | H29: =H38 -> 84285.43046
B30: Approved Pass through Amount for year t | C30: ='Model update'!B122 -> 0 | H30: =INDEX('Model update'!$D$122:$H$122,1,MATCH($H$6,'Model update'!$D$115:$H$115,0)) -> 0
B31: Pass Through revenue under/over recovery for years 2014 and 2015
B32: B factor for year t | C32: =SUM(C28:C31) -> -880635.4199 | H32: =SUM(H28:H31) -> -11289569.63
B34: Table 5 - License Fee Recovery Amount for year t
B35: Lt-1 | C35: ='Model update'!B133 -> 130256 | H35: =INDEX('Model update'!$D$133:$H$133,1,MATCH($H$6,'Model update'!$D$126:$H$126,0)) -> 77350
B36: Nominal WACC t | C36: =(1+'Model update'!$B$43)*(1+'Model update'!$C$30)-1 -> 0.05307355732 | H36: =(1+'Model update'!$B$45)*(1+'Model update'!$C$29)-1 -> 0.059228637
B37: Nominal WACC t-1 | C37: =(1+'Model update'!$B$45)*(1+'Model update'!$C$29)-1 -> 0.059228637 | H37: =(1+'Model update'!$B$47)*(1+'Model update'!$C$28)-1 -> 0.05829063961
B38: License Fee Recovery Amount for year t | C38: =C35*(1+C36)*(1+C37)^0.5 -> 141172.8889 | H38: =H35*(1+H36)*(1+H37)^0.5 -> 84285.43046
B42: Table 6 - DUoS Recovery Arrangements
C43: Year t-2 | D43: Year t-1 | E43: Year t
C44: (actual) | D44: (estimate) | E44: (forecast)
C45: =D45-1 -> 2018 | D45: =E45-1 -> 2019 | E45: =C$6 -> 2020
B47: (A) Revenue from DUoS Charges | C47: 250466150.2 | D47: =Est2019DistRev!AS66 -> 255438998.9 | E47: =C9 -> 275574738.2
B50: (B) Less TAR for regulatory year = | C50: =SUM(C51:C54) -> 257057336.1 | D50: =SUM(D51:D54) -> 266812928.2 | E50: =SUM(E51:E54) -> 276596802.5
B51: + Adjusted annual smoothed revenue | C51: =H21 -> 256319354.1 | D51: =C21 -> 266611342.8 | E51: =C14 -> 276342829.6
B52: +It | C52: =INDEX('Model update'!$D$100:$H$100,1,MATCH($C$45,'Model update'!$D$93:$H$93,0)) -> 655000 | D52: =H15 -> 117300 | E52: =C15 -> 112800
B53: +Tt | C53: =INDEX('Model update'!$D$144:$H$144,1,MATCH($C$45,'Model update'!$D$137:$H$137,0)) -> 0 | D53: =H16 -> 0 | E53: =C16 -> 0
B54: +Bt = | C54: =SUM(C55:C57) -> 82982 | D54: =SUM(D55:D57) -> 84285.43046 | E54: =SUM(E55:E57) -> 141172.8889
B55: +Licence fee recovery | C55: 82982 | D55: =H29 -> 84285.43046 | E55: =C29 -> 141172.8889
B56: +Approved pass throughs | C56: =INDEX('Model update'!$D$122:$H$122,1,MATCH($C$45,'Model update'!$D$115:$H$115,0)) -> 0 | D56: =H30 -> 0 | E56: =C30 -> 0
B57: +Pass Through revenue under/over recovery for years 2014 and 2015 | C57: 0 | D57: =H31 -> 0
B60: (A minus B) Under/over recovery of revenue for regulatory year | C60: =C47-C50 -> -6591185.892 | D60: =D47-D50 -> -11373929.3 | E60: =E47-E50 -> -1022064.234
B64: Table 7 - DUoS Unders and Overs Account
C65: Year t-2 | D65: Year t-1 | E65: Year t
C66: (actual) | D66: (estimate) | E66: (forecast)
B67: Calendar year | C67: =D67-1 -> 2018 | D67: =E67-1 -> 2019 | E67: =C$6 -> 2020
B69: Nominal WACC | C69: =(1+'Model update'!$B$47)*(1+'Model update'!$C$28)-1 -> 0.05829063961 | D69: =(1+'Model update'!$B$45)*(1+'Model update'!$C$29)-1 -> 0.059228637 | E69: =(1+'Model update'!$B$43)*(1+'Model update'!$C$30)-1 -> 0.05307355732
B71: Opening balance | C71: 17738014.42 | D71: =C75 -> 11991407.22 | E71: =D75 -> 995726.524
B72: Interest on Opening balance | C72: =C71*C69 -> 1033960.206 | D72: =D71*D69 -> 710234.7053 | E72: =E71*E69 -> 52846.74874
B73: Under/over recovery of revenue for regulatory year | C73: =C60 -> -6591185.892 | D73: =D60 -> -11373929.3 | E73: =E60 -> -1022064.234
B74: Interest on under/over recovery for regulatory year | C74: =C73*((1+C69)^0.5-1) -> -189381.5147 | D74: =D73*((1+D69)^0.5-1) -> -331986.1033 | E74: =E73*((1+E69)^0.5-1) -> -26771.66754
B75: Closing balance of DUoS overs/ (unders) account | C75: =SUM(C71:C74) -> 11991407.22 | D75: =SUM(D71:D74) -> 995726.524 | E75: -262.6290509
B77: The DNSP is expected to achieve a closing balance as close to zero as practicable in its DUoS unders and overs account in each forecast year in its annual pricing proposals in the 2016–20 regulatory control period.

Sheet 2020DistTarRebalCont
B1: ="Tariff Approval - "&'Model update'!C3 -> Tariff Approval - Jemena | C1: ='Model update'!$C$5&"DistTarRebalCont" -> 2020DistTarRebalCont
B3: ='Model update'!C5&" DISTRIBUTION TARIFF REBALANCING CONTROL" -> 2020 DISTRIBUTION TARIFF REBALANCING CONTROL
B6: Distribution tariff rebalancing control
B8: ="CPI "&'Model update'!$C$5 -> CPI 2020 | C8: ='2020DistRevCapForm'!C22 -> 0.01592920354
B9: ="X "& 'Model update'!$C$5 -> X 2020 | C9: =MIN('2020DistRevCapForm'!C23,0) -> -0.01712086467
B10: ="St "&'Model update'!$C$5 -> St 2020 | C10: ='2020DistRevCapForm'!C24 -> 0.00307537808
B11: ="It "&'Model update'!$C$5 -> It 2020 | C11: =('2020DistRevCapForm'!C15-'2020DistRevCapForm'!H15)/Prop2020DistTar!BV$66 -> -1.702584973e-05
B12: ="Tt "&'Model update'!$C$5 -> Tt 2020 | C12: =('2020DistRevCapForm'!C16-'2020DistRevCapForm'!H16)/Prop2020DistTar!BV$66 -> 0
B13: ="Bt "&'Model update'!$C$5 -> Bt 2020 | C13: =('2020DistRevCapForm'!C17-'2020DistRevCapForm'!H17)/Prop2020DistTar!BV$66 -> 0.03938243327
C16: =(1+C8)*(1-C9)*(1+0.02)*(1+C10)+SUM(C11:C13) -> 1.096596069
B20: Rebalancing control summary | C20: ="Pt-1*(Qt " &'Model update'!$C$5&")" -> Pt-1*(Qt 2020) | D20: ="Pt*(Qt " &'Model update'!$C$5&")" -> Pt*(Qt 2020)
B21: Tariff Class (Input Class Name) | C21: Existing ($) | D21: Proposed ($) | E21: Movement
B22: Residential | C22: =IF(B22="","",SUMIF($B$39:$B$98,$B22,$I$39:$I$98)) -> 118357260.6 | D22: =IF(B22="","",SUMIF($B$39:$B$98,$B22,$F$39:$F$98)) -> 124309581.3 | E22: =IF(B22="","",D22/C22) -> 1.050291133 | F22: =IF(B22="","",IF(E22<$C$16,"COMPLIANT","BREACHED")) -> COMPLIANT
B23: Small Business | C23: 59266394.33 | D23: 61490015.49 | E23: 1.03751909 | F23: COMPLIANT
B24: Large Business - LV | C24: 65807134.88 | D24: 68198323.62 | E24: 1.036336314 | F24: COMPLIANT
B25: Large Business - HV | C25: 18121113.18 | D25: 18733407.93 | E25: 1.033789025 | F25: COMPLIANT
B26: Large Business - Subtransmission | C26: 2752086.101 | D26: 2843409.891 | E26: 1.033183479 | F26: COMPLIANT
B34: Check Total | C34: =IF(ABS(SUM(C22:C33)-I99)<0.01,"Ok","Error") -> Ok | D34: =IF(ABS(SUM(D22:D33)-F99)<0.01,"Ok","Error") -> Ok
C35: =IF(ABS(SUM(C22:C33)-Prop2020DistTar!BV66)<0.01,"Ok","Error") -> Ok | D35: =IF(ABS(SUM(D22:D33)-Prop2020DistTar!BG66)<0.01,"Ok","Error") -> Ok
F37: ="Revenue (Pt "&'Model update'!$C$5&")*(Qt " &'Model update'!$C$5&")" -> Revenue (Pt 2020)*(Qt 2020) | I37: ="Revenue (Pt-1 "&'Model update'!$C$8&")*(Qt " &'Model update'!$C$5&")" -> Revenue (Pt-1 2019)*(Qt 2020)
A38: New Tariff Test | B38: Destination tariff class | C38: Source tariff class | D38: Proposed tariff | E38: Existing tariff | F38: PropRev Total | I38: ExistRev Total
A39: =OR(EXACT(D39,Prop2020DistTar!C$6:C$65)) -> TRUE | B39: Residential | C39: Residential | D39: =IF(Prop2020DistTar!B6="","",Prop2020DistTar!B6) -> Residential - General Purpose | E39: =IF(Prop2020DistTar!C6="","",Prop2020DistTar!C6) -> Residential - General Purpose | F39: =Prop2020DistTar!BG6 -> 117060406.7 | I39: =Prop2020DistTar!BV6 -> 111433767.9
A40: =OR(EXACT(D40,Prop2020DistTar!C$6:C$65)) -> TRUE | B40: Residential | C40: Residential | D40: =IF(Prop2020DistTar!B7="","",Prop2020DistTar!B7) -> Residential - General Purpose Demand | E40: =IF(Prop2020DistTar!C7="","",Prop2020DistTar!C7) -> Residential - General Purpose Demand | F40: =Prop2020DistTar!BG7 -> 2155.505258 | I40: =Prop2020DistTar!BV7 -> 2074.434339
A41: =OR(EXACT(D41,Prop2020DistTar!C$6:C$65)) -> TRUE | B41: Residential | C41: Residential | D41: =IF(Prop2020DistTar!B8="","",Prop2020DistTar!B8) -> Residential - Flexible | E41: =IF(Prop2020DistTar!C8="","",Prop2020DistTar!C8) -> Residential - Flexible | F41: =Prop2020DistTar!BG8 -> 456242.4088 | I41: =Prop2020DistTar!BV8 -> 435035.5365
A42: =OR(EXACT(D42,Prop2020DistTar!C$6:C$65)) -> TRUE | B42: Residential | C42: Residential | D42: =IF(Prop2020DistTar!B9="","",Prop2020DistTar!B9) -> Residential - Time of Use Interval Meter | E42: =IF(Prop2020DistTar!C9="","",Prop2020DistTar!C9) -> Residential - Time of Use Interval Meter | F42: =Prop2020DistTar!BG9 -> 5493382.241 | I42: =Prop2020DistTar!BV9 -> 5224593.003
A43: =OR(EXACT(D43,Prop2020DistTar!C$6:C$65)) -> TRUE | B43: Residential | C43: Residential | D43: =IF(Prop2020DistTar!B10="","",Prop2020DistTar!B10) -> Residential - TOU | E43: =IF(Prop2020DistTar!C10="","",Prop2020DistTar!C10) -> Residential - TOU | F43: =Prop2020DistTar!BG10 -> 686780.7592 | I43: =Prop2020DistTar!BV10 -> 651176.0455
A44: =OR(EXACT(D44,Prop2020DistTar!C$6:C$65)) -> TRUE | B44: Residential | C44: Residential | D44: =IF(Prop2020DistTar!B11="","",Prop2020DistTar!B11) -> Residential - Off Peak Only | E44: =IF(Prop2020DistTar!C11="","",Prop2020DistTar!C11) -> Residential - Off Peak Only | F44: =Prop2020DistTar!BG11 -> 610613.6568 | I44: =Prop2020DistTar!BV11 -> 610613.6568
A45: =OR(EXACT(D45,Prop2020DistTar!C$6:C$65)) -> TRUE | B45: Small Business | C45: Small Business | D45: =IF(Prop2020DistTar!B12="","",Prop2020DistTar!B12) -> Small Business - General Purpose | E45: =IF(Prop2020DistTar!C12="","",Prop2020DistTar!C12) -> Small Business - General Purpose | F45: =Prop2020DistTar!BG12 -> 20949132.76 | I45: =Prop2020DistTar!BV12 -> 20168415.15
A46: =OR(EXACT(D46,Prop2020DistTar!C$6:C$65)) -> TRUE | B46: Small Business | C46: Small Business | D46: =IF(Prop2020DistTar!B13="","",Prop2020DistTar!B13) -> Small Business - General Purpose Demand | E46: =IF(Prop2020DistTar!C13="","",Prop2020DistTar!C13) -> Small Business - General Purpose Demand | F46: =Prop2020DistTar!BG13 -> 4617.906587 | I46: =Prop2020DistTar!BV13 -> 4462.504744
A47: =OR(EXACT(D47,Prop2020DistTar!C$6:C$65)) -> TRUE | B47: Small Business | C47: Small Business | D47: =IF(Prop2020DistTar!B14="","",Prop2020DistTar!B14) -> Small Business - TOU Weekdays | E47: =IF(Prop2020DistTar!C14="","",Prop2020DistTar!C14) -> Small Business - TOU Weekdays | F47: =Prop2020DistTar!BG14 -> 22125023.84 | I47: =Prop2020DistTar!BV14 -> 21320193.7
A48: =OR(EXACT(D48,Prop2020DistTar!C$6:C$65)) -> TRUE | B48: Small Business | C48: Small Business | D48: =IF(Prop2020DistTar!B15="","",Prop2020DistTar!B15) -> Small Business - TOU Weekdays Demand | E48: =IF(Prop2020DistTar!C15="","",Prop2020DistTar!C15) -> Small Business - TOU Weekdays Demand | F48: =Prop2020DistTar!BG15 -> 9438691.133 | I48: =Prop2020DistTar!BV15 -> 9143554.778
A49: =OR(EXACT(D49,Prop2020DistTar!C$6:C$65)) -> TRUE | B49: Small Business | C49: Small Business | D49: =IF(Prop2020DistTar!B16="","",Prop2020DistTar!B16) -> Small Business - TOU Opt out | E49: =IF(Prop2020DistTar!C16="","",Prop2020DistTar!C16) -> Small Business - TOU Opt out | F49: =Prop2020DistTar!BG16 -> 602913.2865 | I49: =Prop2020DistTar!BV16 -> 580289.2293
A50: =OR(EXACT(D50,Prop2020DistTar!C$6:C$65)) -> TRUE | B50: Small Business | C50: Small Business | D50: =IF(Prop2020DistTar!B17="","",Prop2020DistTar!B17) -> Small Business - TOU Extended | E50: =IF(Prop2020DistTar!C17="","",Prop2020DistTar!C17) -> Small Business - TOU Extended | F50: =Prop2020DistTar!BG17 -> 4706291.068 | I50: =Prop2020DistTar!BV17 -> 4500701.27
A51: =OR(EXACT(D51,Prop2020DistTar!C$6:C$65)) -> TRUE | B51: Small Business | C51: Small Business | D51: =IF(Prop2020DistTar!B18="","",Prop2020DistTar!B18) -> Small Business - TOU Extended Demand | E51: =IF(Prop2020DistTar!C18="","",Prop2020DistTar!C18) -> Small Business - TOU Extended Demand | F51: =Prop2020DistTar!BG18 -> 1919595.012 | I51: =Prop2020DistTar!BV18 -> 1848241.745
A52: =OR(EXACT(D52,Prop2020DistTar!C$6:C$65)) -> TRUE | B52: Small Business | C52: Small Business | D52: =IF(Prop2020DistTar!B19="","",Prop2020DistTar!B19) -> Small Business - Unmetered Supply | E52: =IF(Prop2020DistTar!C19="","",Prop2020DistTar!C19) -> Small Business - Unmetered Supply | F52: =Prop2020DistTar!BG19 -> 1743750.483 | I52: =Prop2020DistTar!BV19 -> 1700535.951
A53: =OR(EXACT(D53,Prop2020DistTar!C$6:C$65)) -> TRUE | B53: Large Business - LV | C53: Large Business - LV | D53: =IF(Prop2020DistTar!B20="","",Prop2020DistTar!B20) -> Large Business - LV 0.4 - 0.8 GWh | E53: =IF(Prop2020DistTar!C20="","",Prop2020DistTar!C20) -> Large Business - LV 0.4 - 0.8 GWh | F53: =Prop2020DistTar!BG20 -> 21989071.7 | I53: =Prop2020DistTar!BV20 -> 21188785.86
A54: =OR(EXACT(D54,Prop2020DistTar!C$6:C$65)) -> TRUE | B54: Large Business - LV | C54: Large Business - LV | D54: =IF(Prop2020DistTar!B21="","",Prop2020DistTar!B21) -> Large Business – LVEN Annual Consumption <= 0.8 GWh | E54: =IF(Prop2020DistTar!C21="","",Prop2020DistTar!C21) -> Large Business – LVEN Annual Consumption <= 0.8 GWh | F54: =Prop2020DistTar!BG21 -> 2623903.282 | I54: =Prop2020DistTar!BV21 -> 2531232.016
A55: =OR(EXACT(D55,Prop2020DistTar!C$6:C$65)) -> TRUE | B55: Large Business - LV | C55: Large Business - LV | D55: =IF(Prop2020DistTar!B22="","",Prop2020DistTar!B22) -> Large Business - LV 0.8+ - 2.2 GWh | E55: =IF(Prop2020DistTar!C22="","",Prop2020DistTar!C22) -> Large Business - LV 0.8+ - 2.2 GWh | F55: =Prop2020DistTar!BG22 -> 22926036.57 | I55: =Prop2020DistTar!BV22 -> 22125184.26
A56: =OR(EXACT(D56,Prop2020DistTar!C$6:C$65)) -> TRUE | B56: Large Business - LV | C56: Large Business - LV | D56: =IF(Prop2020DistTar!B23="","",Prop2020DistTar!B23) -> Large Business - LVEN 0.8+ - 2.2 GWh | E56: =IF(Prop2020DistTar!C23="","",Prop2020DistTar!C23) -> Large Business - LVEN 0.8+ - 2.2 GWh | F56: =Prop2020DistTar!BG23 -> 2720797.26 | I56: =Prop2020DistTar!BV23 -> 2624787.498
A57: =OR(EXACT(D57,Prop2020DistTar!C$6:C$65)) -> TRUE | B57: Large Business - LV | C57: Large Business - LV | D57: =IF(Prop2020DistTar!B24="","",Prop2020DistTar!B24) -> Large Business - LV 2.2+ - 6.0 GWh | E57: =IF(Prop2020DistTar!C24="","",Prop2020DistTar!C24) -> Large Business - LV 2.2+ - 6.0 GWh | F57: =Prop2020DistTar!BG24 -> 9016623.668 | I57: =Prop2020DistTar!BV24 -> 8712759.587
A58: =OR(EXACT(D58,Prop2020DistTar!C$6:C$65)) -> TRUE | B58: Large Business - LV | C58: Large Business - LV | D58: =IF(Prop2020DistTar!B25="","",Prop2020DistTar!B25) -> Large Business - LVEN 2.2+ GWh | E58: =IF(Prop2020DistTar!C25="","",Prop2020DistTar!C25) -> Large Business - LVEN 2.2+ GWh | F58: =Prop2020DistTar!BG25 -> 2228819.123 | I58: =Prop2020DistTar!BV25 -> 2153918.892
A59: =OR(EXACT(D59,Prop2020DistTar!C$6:C$65)) -> TRUE | B59: Large Business - LV | C59: Large Business - LV | D59: =IF(Prop2020DistTar!B26="","",Prop2020DistTar!B26) -> Large Business - LVMS 2.2+ - 6.0 GWh | E59: =IF(Prop2020DistTar!C26="","",Prop2020DistTar!C26) -> Large Business - LVMS 2.2+ - 6.0 GWh | F59: =Prop2020DistTar!BG26 -> 712426.6641 | I59: =Prop2020DistTar!BV26 -> 688453.9883
A60: =OR(EXACT(D60,Prop2020DistTar!C$6:C$65)) -> TRUE | B60: Large Business - LV | C60: Large Business - LV | D60: =IF(Prop2020DistTar!B27="","",Prop2020DistTar!B27) -> Large Business - LV 6.0+ GWh | E60: =IF(Prop2020DistTar!C27="","",Prop2020DistTar!C27) -> Large Business - LV 6.0+ GWh | F60: =Prop2020DistTar!BG27 -> 3195436.363 | I60: =Prop2020DistTar!BV27 -> 3089428.733
A61: =OR(EXACT(D61,Prop2020DistTar!C$6:C$65)) -> TRUE | B61: Large Business - LV | C61: Large Business - LV | D61: =IF(Prop2020DistTar!B28="","",Prop2020DistTar!B28) -> Large Business - LVMS 6.0+ GWh | E61: =IF(Prop2020DistTar!C28="","",Prop2020DistTar!C28) -> Large Business - LVMS 6.0+ GWh | F61: =Prop2020DistTar!BG28 -> 2785208.995 | I61: =Prop2020DistTar!BV28 -> 2692584.044
A62: =OR(EXACT(D62,Prop2020DistTar!C$6:C$65)) -> TRUE | B62: Large Business - HV | C62: Large Business - HV | D62: =IF(Prop2020DistTar!B29="","",Prop2020DistTar!B29) -> Large Business - HV | E62: =IF(Prop2020DistTar!C29="","",Prop2020DistTar!C29) -> Large Business - HV | F62: =Prop2020DistTar!BG29 -> 16361353.02 | I62: =Prop2020DistTar!BV29 -> 15823160.36
A63: =OR(EXACT(D63,Prop2020DistTar!C$6:C$65)) -> TRUE | B63: Large Business - HV | C63: Large Business - HV | D63: =IF(Prop2020DistTar!B30="","",Prop2020DistTar!B30) -> Large Business – HVEN | E63: =IF(Prop2020DistTar!C30="","",Prop2020DistTar!C30) -> Large Business – HVEN | F63: =Prop2020DistTar!BG30 -> 363168.2405 | I63: =Prop2020DistTar!BV30 -> 351689.3771
A64: =OR(EXACT(D64,Prop2020DistTar!C$6:C$65)) -> TRUE | B64: Large Business - HV | C64: Large Business - HV | D64: =IF(Prop2020DistTar!B31="","",Prop2020DistTar!B31) -> Large Business - HVRF | E64: =IF(Prop2020DistTar!C31="","",Prop2020DistTar!C31) -> Large Business - HVRF | F64: =Prop2020DistTar!BG31 -> 1058091.415 | I64: =Prop2020DistTar!BV31 -> 1024499.979
A65: =OR(EXACT(D65,Prop2020DistTar!C$6:C$65)) -> TRUE | B65: Large Business - HV | C65: Large Business - HV | D65: =IF(Prop2020DistTar!B32="","",Prop2020DistTar!B32) -> Large Business - HV Ann Cons >= 55GWh | E65: =IF(Prop2020DistTar!C32="","",Prop2020DistTar!C32) -> Large Business - HV Ann Cons >= 55GWh | F65: =Prop2020DistTar!BG32 -> 950795.2511 | I65: =Prop2020DistTar!BV32 -> 921763.4584
A66: =OR(EXACT(D66,Prop2020DistTar!C$6:C$65)) -> TRUE | B66: Large Business - Subtransmission | C66: Large Business - Subtransmission | D66: =IF(Prop2020DistTar!B33="","",Prop2020DistTar!B33) -> Large Business - Subtransmission | E66: =IF(Prop2020DistTar!C33="","",Prop2020DistTar!C33) -> Large Business - Subtransmission | F66: =Prop2020DistTar!BG33 -> 1638922.416 | I66: =Prop2020DistTar!BV33 -> 1586631.512
A67: =OR(EXACT(D67,Prop2020DistTar!C$6:C$65)) -> TRUE | B67: Large Business - Subtransmission | C67: Large Business - Subtransmission | D67: =IF(Prop2020DistTar!B34="","",Prop2020DistTar!B34) -> Large Business - Subtransmission MA | E67: =IF(Prop2020DistTar!C34="","",Prop2020DistTar!C34) -> Large Business - Subtransmission MA | F67: =Prop2020DistTar!BG34 -> 1058999.9 | I67: =Prop2020DistTar!BV34 -> 1024989.742
A68: =OR(EXACT(D68,Prop2020DistTar!C$6:C$65)) -> TRUE | B68: Large Business - Subtransmission | C68: Large Business - Subtransmission | D68: =IF(Prop2020DistTar!B35="","",Prop2020DistTar!B35) -> Large Business - Subtransmission EG | E68: =IF(Prop2020DistTar!C35="","",Prop2020DistTar!C35) -> Large Business - Subtransmission EG | F68: =Prop2020DistTar!BG35 -> 145487.5748 | I68: =Prop2020DistTar!BV35 -> 140464.8468
A69: =OR(EXACT(D69,Prop2020DistTar!C$6:C$65)) -> TRUE | D69: =IF(Prop2020DistTar!B36="","",Prop2020DistTar!B36) ->  | E69: =IF(Prop2020DistTar!C36="","",Prop2020DistTar!C36) ->  | F69: =Prop2020DistTar!BG36 -> 0 | I69: =Prop2020DistTar!BV36 -> 0
A70: =OR(EXACT(D70,Prop2020DistTar!C$6:C$65)) -> TRUE | D70: =IF(Prop2020DistTar!B37="","",Prop2020DistTar!B37) ->  | E70: =IF(Prop2020DistTar!C37="","",Prop2020DistTar!C37) ->  | F70: =Prop2020DistTar!BG37 -> 0 | I70: =Prop2020DistTar!BV37 -> 0
A71: =OR(EXACT(D71,Prop2020DistTar!C$6:C$65)) -> TRUE | D71: =IF(Prop2020DistTar!B38="","",Prop2020DistTar!B38) ->  | E71: =IF(Prop2020DistTar!C38="","",Prop2020DistTar!C38) ->  | F71: =Prop2020DistTar!BG38 -> 0 | I71: =Prop2020DistTar!BV38 -> 0
A72: =OR(EXACT(D72,Prop2020DistTar!C$6:C$65)) -> TRUE | D72: =IF(Prop2020DistTar!B39="","",Prop2020DistTar!B39) ->  | E72: =IF(Prop2020DistTar!C39="","",Prop2020DistTar!C39) ->  | F72: =Prop2020DistTar!BG39 -> 0 | I72: =Prop2020DistTar!BV39 -> 0
A73: =OR(EXACT(D73,Prop2020DistTar!C$6:C$65)) -> TRUE | D73: =IF(Prop2020DistTar!B40="","",Prop2020DistTar!B40) ->  | E73: =IF(Prop2020DistTar!C40="","",Prop2020DistTar!C40) ->  | F73: =Prop2020DistTar!BG40 -> 0 | I73: =Prop2020DistTar!BV40 -> 0
A74: =OR(EXACT(D74,Prop2020DistTar!C$6:C$65)) -> TRUE | D74: =IF(Prop2020DistTar!B41="","",Prop2020DistTar!B41) ->  | E74: =IF(Prop2020DistTar!C41="","",Prop2020DistTar!C41) ->  | F74: =Prop2020DistTar!BG41 -> 0 | I74: =Prop2020DistTar!BV41 -> 0
A75: =OR(EXACT(D75,Prop2020DistTar!C$6:C$65)) -> TRUE | D75: =IF(Prop2020DistTar!B42="","",Prop2020DistTar!B42) ->  | E75: =IF(Prop2020DistTar!C42="","",Prop2020DistTar!C42) ->  | F75: =Prop2020DistTar!BG42 -> 0 | I75: =Prop2020DistTar!BV42 -> 0
A76: =OR(EXACT(D76,Prop2020DistTar!C$6:C$65)) -> TRUE | D76: =IF(Prop2020DistTar!B43="","",Prop2020DistTar!B43) ->  | E76: =IF(Prop2020DistTar!C43="","",Prop2020DistTar!C43) ->  | F76: =Prop2020DistTar!BG43 -> 0 | I76: =Prop2020DistTar!BV43 -> 0
A77: =OR(EXACT(D77,Prop2020DistTar!C$6:C$65)) -> TRUE | D77: =IF(Prop2020DistTar!B44="","",Prop2020DistTar!B44) ->  | E77: =IF(Prop2020DistTar!C44="","",Prop2020DistTar!C44) ->  | F77: =Prop2020DistTar!BG44 -> 0 | I77: =Prop2020DistTar!BV44 -> 0
A78: =OR(EXACT(D78,Prop2020DistTar!C$6:C$65)) -> TRUE | D78: =IF(Prop2020DistTar!B45="","",Prop2020DistTar!B45) ->  | E78: =IF(Prop2020DistTar!C45="","",Prop2020DistTar!C45) ->  | F78: =Prop2020DistTar!BG45 -> 0 | I78: =Prop2020DistTar!BV45 -> 0
A79: =OR(EXACT(D79,Prop2020DistTar!C$6:C$65)) -> TRUE | D79: =IF(Prop2020DistTar!B46="","",Prop2020DistTar!B46) ->  | E79: =IF(Prop2020DistTar!C46="","",Prop2020DistTar!C46) ->  | F79: =Prop2020DistTar!BG46 -> 0 | I79: =Prop2020DistTar!BV46 -> 0
A80: =OR(EXACT(D80,Prop2020DistTar!C$6:C$65)) -> TRUE | D80: =IF(Prop2020DistTar!B47="","",Prop2020DistTar!B47) ->  | E80: =IF(Prop2020DistTar!C47="","",Prop2020DistTar!C47) ->  | F80: =Prop2020DistTar!BG47 -> 0 | I80: =Prop2020DistTar!BV47 -> 0
A81: =OR(EXACT(D81,Prop2020DistTar!C$6:C$65)) -> TRUE | D81: =IF(Prop2020DistTar!B48="","",Prop2020DistTar!B48) ->  | E81: =IF(Prop2020DistTar!C48="","",Prop2020DistTar!C48) ->  | F81: =Prop2020DistTar!BG48 -> 0 | I81: =Prop2020DistTar!BV48 -> 0
A82: =OR(EXACT(D82,Prop2020DistTar!C$6:C$65)) -> TRUE | D82: =IF(Prop2020DistTar!B49="","",Prop2020DistTar!B49) ->  | E82: =IF(Prop2020DistTar!C49="","",Prop2020DistTar!C49) ->  | F82: =Prop2020DistTar!BG49 -> 0 | I82: =Prop2020DistTar!BV49 -> 0
A83: =OR(EXACT(D83,Prop2020DistTar!C$6:C$65)) -> TRUE | D83: =IF(Prop2020DistTar!B50="","",Prop2020DistTar!B50) ->  | E83: =IF(Prop2020DistTar!C50="","",Prop2020DistTar!C50) ->  | F83: =Prop2020DistTar!BG50 -> 0 | I83: =Prop2020DistTar!BV50 -> 0
A84: =OR(EXACT(D84,Prop2020DistTar!C$6:C$65)) -> TRUE | D84: =IF(Prop2020DistTar!B51="","",Prop2020DistTar!B51) ->  | E84: =IF(Prop2020DistTar!C51="","",Prop2020DistTar!C51) ->  | F84: =Prop2020DistTar!BG51 -> 0 | I84: =Prop2020DistTar!BV51 -> 0
A85: =OR(EXACT(D85,Prop2020DistTar!C$6:C$65)) -> TRUE | D85: =IF(Prop2020DistTar!B52="","",Prop2020DistTar!B52) ->  | E85: =IF(Prop2020DistTar!C52="","",Prop2020DistTar!C52) ->  | F85: =Prop2020DistTar!BG52 -> 0 | I85: =Prop2020DistTar!BV52 -> 0
A86: =OR(EXACT(D86,Prop2020DistTar!C$6:C$65)) -> TRUE | D86: =IF(Prop2020DistTar!B53="","",Prop2020DistTar!B53) ->  | E86: =IF(Prop2020DistTar!C53="","",Prop2020DistTar!C53) ->  | F86: =Prop2020DistTar!BG53 -> 0 | I86: =Prop2020DistTar!BV53 -> 0
A87: =OR(EXACT(D87,Prop2020DistTar!C$6:C$65)) -> TRUE | D87: =IF(Prop2020DistTar!B54="","",Prop2020DistTar!B54) ->  | E87: =IF(Prop2020DistTar!C54="","",Prop2020DistTar!C54) ->  | F87: =Prop2020DistTar!BG54 -> 0 | I87: =Prop2020DistTar!BV54 -> 0
A88: =OR(EXACT(D88,Prop2020DistTar!C$6:C$65)) -> TRUE | D88: =IF(Prop2020DistTar!B55="","",Prop2020DistTar!B55) ->  | E88: =IF(Prop2020DistTar!C55="","",Prop2020DistTar!C55) ->  | F88: =Prop2020DistTar!BG55 -> 0 | I88: =Prop2020DistTar!BV55 -> 0
A89: =OR(EXACT(D89,Prop2020DistTar!C$6:C$65)) -> TRUE | D89: =IF(Prop2020DistTar!B56="","",Prop2020DistTar!B56) ->  | E89: =IF(Prop2020DistTar!C56="","",Prop2020DistTar!C56) ->  | F89: =Prop2020DistTar!BG56 -> 0 | I89: =Prop2020DistTar!BV56 -> 0
A90: =OR(EXACT(D90,Prop2020DistTar!C$6:C$65)) -> TRUE | D90: =IF(Prop2020DistTar!B57="","",Prop2020DistTar!B57) ->  | E90: =IF(Prop2020DistTar!C57="","",Prop2020DistTar!C57) ->  | F90: =Prop2020DistTar!BG57 -> 0 | I90: =Prop2020DistTar!BV57 -> 0
A91: =OR(EXACT(D91,Prop2020DistTar!C$6:C$65)) -> TRUE | D91: =IF(Prop2020DistTar!B58="","",Prop2020DistTar!B58) ->  | E91: =IF(Prop2020DistTar!C58="","",Prop2020DistTar!C58) ->  | F91: =Prop2020DistTar!BG58 -> 0 | I91: =Prop2020DistTar!BV58 -> 0
A92: =OR(EXACT(D92,Prop2020DistTar!C$6:C$65)) -> TRUE | D92: =IF(Prop2020DistTar!B59="","",Prop2020DistTar!B59) ->  | E92: =IF(Prop2020DistTar!C59="","",Prop2020DistTar!C59) ->  | F92: =Prop2020DistTar!BG59 -> 0 | I92: =Prop2020DistTar!BV59 -> 0
A93: =OR(EXACT(D93,Prop2020DistTar!C$6:C$65)) -> TRUE | D93: =IF(Prop2020DistTar!B60="","",Prop2020DistTar!B60) ->  | E93: =IF(Prop2020DistTar!C60="","",Prop2020DistTar!C60) ->  | F93: =Prop2020DistTar!BG60 -> 0 | I93: =Prop2020DistTar!BV60 -> 0
A94: =OR(EXACT(D94,Prop2020DistTar!C$6:C$65)) -> TRUE | D94: =IF(Prop2020DistTar!B61="","",Prop2020DistTar!B61) ->  | E94: =IF(Prop2020DistTar!C61="","",Prop2020DistTar!C61) ->  | F94: =Prop2020DistTar!BG61 -> 0 | I94: =Prop2020DistTar!BV61 -> 0
A95: =OR(EXACT(D95,Prop2020DistTar!C$6:C$65)) -> TRUE | D95: =IF(Prop2020DistTar!B62="","",Prop2020DistTar!B62) ->  | E95: =IF(Prop2020DistTar!C62="","",Prop2020DistTar!C62) ->  | F95: =Prop2020DistTar!BG62 -> 0 | I95: =Prop2020DistTar!BV62 -> 0
A96: =OR(EXACT(D96,Prop2020DistTar!C$6:C$65)) -> TRUE | D96: =IF(Prop2020DistTar!B63="","",Prop2020DistTar!B63) ->  | E96: =IF(Prop2020DistTar!C63="","",Prop2020DistTar!C63) ->  | F96: =Prop2020DistTar!BG63 -> 0 | I96: =Prop2020DistTar!BV63 -> 0
A97: =OR(EXACT(D97,Prop2020DistTar!C$6:C$65)) -> TRUE | D97: =IF(Prop2020DistTar!B64="","",Prop2020DistTar!B64) ->  | E97: =IF(Prop2020DistTar!C64="","",Prop2020DistTar!C64) ->  | F97: =Prop2020DistTar!BG64 -> 0 | I97: =Prop2020DistTar!BV64 -> 0
A98: =OR(EXACT(D98,Prop2020DistTar!C$6:C$65)) -> TRUE | D98: =IF(Prop2020DistTar!B65="","",Prop2020DistTar!B65) ->  | E98: =IF(Prop2020DistTar!C65="","",Prop2020DistTar!C65) ->  | F98: =Prop2020DistTar!BG65 -> 0 | I98: =Prop2020DistTar!BV65 -> 0
F99: =SUM(F39:F98) -> 275574738.2 | I99: =SUM(I39:I98) -> 264303989.1 | BJ99: =SUM(BJ39:BJ98) -> 0

Sheet Est2019DistRev
B1: ="Tariff Approval - "&'Model update'!C3 -> Tariff Approval - Jemena | D1: ="Est"&'Model update'!$C$5-1&"DistRev" -> Est2019DistRev
B3: ="ESTIMATED "&'Model update'!$C$8&" Distribution Revenue" -> ESTIMATED 2019 Distribution Revenue
D4: ="Current Distribution Tariffs (Pt-1) for "&'Model update'!$C$8 -> Current Distribution Tariffs (Pt-1) for 2019 | R4: =" Estimated Distribution Quantities for "&'Model update'!$C$8&" (Qt-1)" -> Estimated Distribution Quantities for 2019 (Qt-1) | AF4: ="Estimated Revenue (Pt-1 "&'Model update'!$C$8&")*(Qt-1 " &'Model update'!$C$8&")" -> Estimated Revenue (Pt-1 2019)*(Qt-1 2019)
B5: ="Tariffs "&'Model update'!C8 -> Tariffs 2019 | D5: CurrentTar Fixed | E5: CurrentTar PkBlk1 | F5: CurrentTar Shoulder summer | G5: CurrentTar peak non-summer | H5: CurrentTar Shoulder non-summer | I5: CurrentTar OPkBlk1 | J5: CurrentTar off peak non-summer | K5: CurrentTar OPkBlk3 | L5: CurrentTar OPkBlk4 | M5: CurrentTar DemBlk1 | N5: CurrentTar DemBlk2 | O5: CurrentTar DemBlk3 | P5: CurrentTar DemBlk4 | R5: EstVol Fixed | S5: EstVol PkBlk1 | T5: EstVol Shoulder summer | U5: EstVol peak non-summer | V5: EstVol Shoulder non-summer | W5: EstVol OPkBlk1 | X5: EstVol off peak non-summer | Y5: EstVol OPkBlk3 | Z5: EstVol OPkBlk4 | AA5: EstVol DemBlk1 | AB5: EstVol DemBlk2 | AC5: EstVol DemBlk3 | AD5: EstVol DemBlk4 | AF5: EstRev Fixed | AG5: EstRev PkBlk1 | AH5: EstRev Shoulder summer | AI5: EstRev peak non-summer | AJ5: EstRev Shoulder non-summer | AK5: EstRev OPkBlk1 | AL5: EstRev off peak non-summer | AM5: EstRev OPkBlk3 | AN5: EstRev OPkBlk4 | AO5: EstRev DemBlk1 | AP5: EstRev DemBlk2 | AQ5: EstRev DemBlk3 | AR5: EstRev DemBlk4 | AS5: EstRev Total
B6: Residential - General Purpose | D6: 51.008 | E6: 7.562 | F6: 0 | G6: 0 | H6: 0 | I6: 0 | J6: 0 | K6: 0 | L6: 0 | M6: 0 | N6: 0 | O6: 0 | P6: 0 | R6: 301686.4437 | S6: 1176483463 | T6: 0 | U6: 0 | V6: 0 | W6: 0 | X6: 0 | Y6: 0 | Z6: 0 | AA6: 0 | AB6: 0 | AC6: 0 | AD6: 0 | AF6: =D6*R6 -> 15388422.12 | AG6: =E6/100*S6 -> 88965679.48 | AH6: 0 | AI6: 0 | AJ6: 0 | AK6: 0 | AL6: 0 | AM6: 0 | AN6: 0 | AO6: =M6*AA6 -> 0 | AP6: 0 | AQ6: 0 | AR6: 0 | AS6: =SUM(AF6:AR6) -> 104354101.6
B7: Residential - General Purpose Demand | D7: 51.008 | E7: 3.329 | F7: 0 | G7: 0 | H7: 0 | I7: 0 | J7: 0 | K7: 0 | L7: 0 | M7: 59.091 | N7: 0 | O7: 0 | P7: 0 | R7: 1.001220543 | S7: 3199.47119 | T7: 0 | U7: 0 | V7: 0 | W7: 0 | X7: 0 | Y7: 0 | Z7: 0 | AA7: 50.58160812 | AB7: 0 | AC7: 0 | AD7: 0 | AF7: =D7*R7 -> 51.07025746 | AG7: =E7/100*S7 -> 106.5103959 | AH7: 0 | AI7: 0 | AJ7: 0 | AK7: 0 | AL7: 0 | AM7: 0 | AN7: 0 | AO7: =M7*AA7 -> 2988.917805 | AP7: =N7*AB7 -> 0 | AQ7: =O7*AC7 -> 0 | AR7: =P7*AD7 -> 0 | AS7: =SUM(AF7:AR7) -> 3146.498458
B8: Residential - Flexible | D8: 51.008 | E8: 12.183 | F8: 7.562 | G8: 12.183 | H8: 7.562 | I8: 3.676 | J8: 3.676 | K8: 0 | L8: 0 | M8: 0 | N8: 0 | O8: 0 | P8: 0 | R8: 1000 | S8: 729714.5627 | T8: 1368615.722 | U8: 960125.0095 | V8: 1784990.184 | W8: 1448837.789 | X8: 1167051.999 | Y8: 0 | Z8: 0 | AA8: 0 | AB8: 0 | AC8: 0 | AD8: 0 | AF8: 51008 | AG8: 88901.12517 | AH8: 103494.7209 | AI8: 116972.0299 | AJ8: 134980.9577 | AK8: 53259.27714 | AL8: 42900.8315 | AM8: 0 | AN8: 0 | AO8: 0 | AP8: 0 | AQ8: 0 | AR8: 0 | AS8: 591516.9423
B9: Residential - Time of Use Interval Meter | D9: 51.008 | E9: 12.183 | F9: 0 | G9: 0 | H9: 0 | I9: 1.844 | J9: 0 | K9: 0 | L9: 0 | M9: 0 | N9: 0 | O9: 0 | P9: 0 | R9: 15783.3079 | S9: 38414734.81 | T9: 0 | U9: 0 | V9: 0 | W9: 39759423.7 | X9: 0 | Y9: 0 | Z9: 0 | AA9: 0 | AB9: 0 | AC9: 0 | AD9: 0 | AF9: 805074.9695 | AG9: 4680067.142 | AH9: 0 | AI9: 0 | AJ9: 0 | AK9: 733163.773 | AL9: 0 | AM9: 0 | AN9: 0 | AO9: 0 | AP9: 0 | AQ9: 0 | AR9: 0 | AS9: 6218305.885
B10: Residential - TOU | D10: 86.193 | E10: 8.403 | F10: 0 | G10: 0 | H10: 0 | I10: 1.475 | J10: 0 | K10: 0 | L10: 0 | M10: 0 | N10: 0 | O10: 0 | P10: 0 | R10: 1607.472743 | S10: 6286480.773 | T10: 0 | U10: 0 | V10: 0 | W10: 6884654.453 | X10: 0 | Y10: 0 | Z10: 0 | AA10: 0 | AB10: 0 | AC10: 0 | AD10: 0 | AF10: 138552.8981 | AG10: 528252.9793 | AH10: 0 | AI10: 0 | AJ10: 0 | AK10: 101548.6532 | AL10: 0 | AM10: 0 | AN10: 0 | AO10: 0 | AP10: 0 | AQ10: 0 | AR10: 0 | AS10: 768354.5306
B11: Residential - Off Peak Only | D11: 0 | E11: 0 | F11: 0 | G11: 0 | H11: 0 | I11: 1.7 | J11: 0 | K11: 0 | L11: 0 | M11: 0 | N11: 0 | O11: 0 | P11: 0 | R11: 0 | S11: 0 | T11: 0 | U11: 0 | V11: 0 | W11: 35388865.33 | X11: 0 | Y11: 0 | Z11: 0 | AA11: 0 | AB11: 0 | AC11: 0 | AD11: 0 | AF11: 0 | AG11: 0 | AH11: 0 | AI11: 0 | AJ11: 0 | AK11: 601610.7107 | AL11: 0 | AM11: 0 | AN11: 0 | AO11: 0 | AP11: 0 | AQ11: 0 | AR11: 0 | AS11: 601610.7107
B12: Small Business - General Purpose | D12: 94.773 | E12: 9.021 | F12: 0 | G12: 0 | H12: 0 | I12: 0 | J12: 0 | K12: 0 | L12: 0 | M12: 0 | N12: 0 | O12: 0 | P12: 0 | R12: 16330.65672 | S12: 200365882 | T12: 0 | U12: 0 | V12: 0 | W12: 0 | X12: 0 | Y12: 0 | Z12: 0 | AA12: 0 | AB12: 0 | AC12: 0 | AD12: 0 | AF12: 1547705.329 | AG12: 18075006.22 | AH12: 0 | AI12: 0 | AJ12: 0 | AK12: 0 | AL12: 0 | AM12: 0 | AN12: 0 | AO12: 0 | AP12: 0 | AQ12: 0 | AR12: 0 | AS12: 19622711.55
B13: Small Business - General Purpose Demand | D13: 94.773 | E13: 7.1 | F13: 0 | G13: 0 | H13: 0 | I13: 0 | J13: 0 | K13: 0 | L13: 0 | M13: 57.272 | N13: 0 | O13: 0 | P13: 0 | R13: 1.001826222 | S13: 0 | T13: 0 | U13: 0 | V13: 0 | W13: 0 | X13: 0 | Y13: 0 | Z13: 0 | AA13: 120.4626903 | AB13: 0 | AC13: 0 | AD13: 0 | AF13: 94.94607653 | AG13: 0 | AH13: 0 | AI13: 0 | AJ13: 0 | AK13: 0 | AL13: 0 | AM13: 0 | AN13: 0 | AO13: 6899.1392 | AP13: 0 | AQ13: 0 | AR13: 0 | AS13: 6994.085276
B14: Small Business - TOU Weekdays | D14: 141.843 | E14: 10.649 | F14: 0 | G14: 0 | H14: 0 | I14: 1.818 | J14: 0 | K14: 0 | L14: 0 | M14: 0 | N14: 0 | O14: 0 | P14: 0 | R14: 7570.796506 | S14: 164109568.5 | T14: 0 | U14: 0 | V14: 0 | W14: 107036487.7 | X14: 0 | Y14: 0 | Z14: 0 | AB14: 0 | AC14: 0 | AD14: 0 | AF14: 1073864.489 | AG14: 17476027.95 | AH14: 0 | AI14: 0 | AJ14: 0 | AK14: 1945923.347 | AL14: 0 | AM14: 0 | AN14: 0 | AO14: 0 | AP14: 0 | AQ14: 0 | AR14: 0 | AS14: 20495815.79
B15: Small Business - TOU Weekdays Demand | D15: 209.147 | E15: 6.572 | F15: 0 | G15: 0 | H15: 0 | I15: 2.121 | J15: 0 | K15: 0 | L15: 0 | M15: 64.297 | N15: 0 | O15: 0 | P15: 0 | R15: 724.0324079 | S15: 73421991.06 | T15: 0 | U15: 0 | V15: 0 | W15: 51078288.44 | X15: 0 | Y15: 0 | Z15: 0 | AA15: 60952.52378 | AB15: 0 | AC15: 0 | AD15: 0 | AF15: 151429.206 | AG15: 4825293.252 | AH15: 0 | AI15: 0 | AJ15: 0 | AK15: 1083370.498 | AL15: 0 | AM15: 0 | AN15: 0 | AO15: 3919064.422 | AP15: 0 | AQ15: 0 | AR15: 0 | AS15: 9979157.378
B16: Small Business - TOU Opt out | D16: 209.147 | E16: 10.649 | F16: 0 | G16: 0 | H16: 0 | I16: 1.818 | J16: 0 | K16: 0 | L16: 0 | M16: 0 | N16: 0 | O16: 0 | P16: 0 | R16: 9 | S16: 0 | T16: 0 | U16: 0 | V16: 0 | W16: 0 | X16: 0 | Y16: 0 | Z16: 0 | AB16: 0 | AC16: 0 | AD16: 0 | AF16: 1882.323 | AG16: 0 | AH16: 0 | AI16: 0 | AJ16: 0 | AK16: 0 | AL16: 0 | AM16: 0 | AN16: 0 | AO16: 0 | AP16: 0 | AQ16: 0 | AR16: 0 | AS16: 1882.323
B17: Small Business - TOU Extended | D17: 141.843 | E17: 9.38 | F17: 0 | G17: 0 | H17: 0 | I17: 1.97 | J17: 0 | K17: 0 | L17: 0 | M17: 0 | N17: 0 | O17: 0 | P17: 0 | R17: 2204.800723 | S17: 44161400.27 | T17: 0 | U17: 0 | V17: 0 | W17: 13513510.64 | X17: 0 | Y17: 0 | Z17: 0 | AB17: 0 | AC17: 0 | AD17: 0 | AF17: 312735.5489 | AG17: 4142339.345 | AH17: 0 | AI17: 0 | AJ17: 0 | AK17: 266216.1596 | AL17: 0 | AM17: 0 | AN17: 0 | AO17: 0 | AP17: 0 | AQ17: 0 | AR17: 0 | AS17: 4721291.053
B18: Small Business - TOU Extended Demand | D18: 209.147 | E18: 4.945 | F18: 0 | G18: 0 | H18: 0 | I18: 2.261 | J18: 0 | K18: 0 | L18: 0 | M18: 64.297 | N18: 0 | O18: 0 | P18: 0 | R18: 113.8928135 | S18: 17007407.77 | T18: 0 | U18: 0 | V18: 0 | W18: 5001051.888 | X18: 0 | Y18: 0 | Z18: 0 | AA18: 10805.42002 | AB18: 0 | AC18: 0 | AD18: 0 | AF18: 23820.34027 | AG18: 841016.3145 | AH18: 0 | AI18: 0 | AJ18: 0 | AK18: 113073.7832 | AL18: 0 | AM18: 0 | AN18: 0 | AO18: 694756.091 | AP18: 0 | AQ18: 0 | AR18: 0 | AS18: 1672666.529
B19: Small Business - Unmetered Supply | D19: 0 | E19: 10.121 | F19: 0 | G19: 0 | H19: 0 | I19: 1.888 | J19: 0 | K19: 0 | L19: 0 | M19: 0 | N19: 0 | O19: 0 | P19: 0 | S19: 11563166.52 | T19: 0 | U19: 0 | V19: 0 | W19: 25740120.96 | X19: 0 | Y19: 0 | Z19: 0 | AB19: 0 | AC19: 0 | AD19: 0 | AF19: 0 | AG19: 1170308.083 | AH19: 0 | AI19: 0 | AJ19: 0 | AK19: 485973.4837 | AL19: 0 | AM19: 0 | AN19: 0 | AO19: 0 | AP19: 0 | AQ19: 0 | AR19: 0 | AS19: 1656281.567
B20: Large Business - LV 0.4 - 0.8 GWh | D20: 2231.165 | E20: 1.968 | F20: 0 | G20: 0 | H20: 0 | I20: 0.639 | J20: 0 | K20: 0 | L20: 0 | M20: 96.639 | N20: 0 | O20: 0 | P20: 0 | R20: 787.9057242 | S20: 177669042.6 | T20: 0 | U20: 0 | V20: 0 | W20: 114127368.6 | X20: 0 | Y20: 0 | Z20: 0 | AA20: 148592.5231 | AB20: 0 | AC20: 0 | AD20: 0 | AF20: 1757947.675 | AG20: 3496526.758 | AH20: 0 | AI20: 0 | AJ20: 0 | AK20: 729273.8852 | AL20: 0 | AM20: 0 | AN20: 0 | AO20: 14359832.84 | AP20: 0 | AQ20: 0 | AR20: 0 | AS20: 20343581.16
B21: Large Business – LVEN Annual Consumption <= 0.8 GWh | D21: 2231.165 | E21: 1.985 | F21: 0 | G21: 0 | H21: 0 | I21: 0.639 | J21: 0 | K21: 0 | L21: 0 | M21: 109.033 | N21: 0 | O21: 0 | P21: 0 | R21: 69.51925736 | S21: 26628111.53 | T21: 0 | U21: 0 | V21: 0 | W21: 18394205.09 | X21: 0 | Y21: 0 | Z21: 0 | AA21: 12631.46 | AB21: 0 | AC21: 0 | AD21: 0 | AF21: 155108.9339 | AG21: 528568.0139 | AH21: 0 | AI21: 0 | AJ21: 0 | AK21: 117538.9705 | AL21: 0 | AM21: 0 | AN21: 0 | AO21: 1377245.978 | AP21: 0 | AQ21: 0 | AR21: 0 | AS21: 2178461.896
B22: Large Business - LV 0.8+ - 2.2 GWh | D22: 3905.456 | E22: 1.343 | F22: 0 | G22: 0 | H22: 0 | I22: 0.628 | J22: 0 | K22: 0 | L22: 0 | M22: 89.327 | N22: 0 | O22: 0 | P22: 0 | R22: 378.7002524 | S22: 248248736.1 | T22: 0 | U22: 0 | V22: 0 | W22: 171548799.9 | X22: 0 | Y22: 0 | Z22: 0 | AA22: 177995.9966 | AB22: 0 | AC22: 0 | AD22: 0 | AF22: 1478997.173 | AG22: 3333980.526 | AH22: 0 | AI22: 0 | AJ22: 0 | AK22: 1077326.463 | AL22: 0 | AM22: 0 | AN22: 0 | AO22: 15899848.39 | AP22: 0 | AQ22: 0 | AR22: 0 | AS22: 21790152.55
B23: Large Business - LVEN 0.8+ - 2.2 GWh | D23: 3905.456 | E23: 1.342 | F23: 0 | G23: 0 | H23: 0 | I23: 0.628 | J23: 0 | K23: 0 | L23: 0 | M23: 98.268 | N23: 0 | O23: 0 | P23: 0 | R23: 43.7184462 | S23: 42504195.74 | T23: 0 | U23: 0 | V23: 0 | W23: 27960118.15 | X23: 0 | Y23: 0 | Z23: 0 | AA23: 15557.7673 | AB23: 0 | AC23: 0 | AD23: 0 | AF23: 170740.468 | AG23: 570406.3069 | AH23: 0 | AI23: 0 | AJ23: 0 | AK23: 175589.542 | AL23: 0 | AM23: 0 | AN23: 0 | AO23: 1528830.677 | AP23: 0 | AQ23: 0 | AR23: 0 | AS23: 2445566.994
B24: Large Business - LV 2.2+ - 6.0 GWh | D24: 5990.235 | E24: 1.229 | F24: 0 | G24: 0 | H24: 0 | I24: 0.511 | J24: 0 | K24: 0 | L24: 0 | M24: 88.362 | N24: 0 | O24: 0 | P24: 0 | R24: 68.09921351 | S24: 112557828.5 | T24: 0 | U24: 0 | V24: 0 | W24: 85103892.83 | X24: 0 | Y24: 0 | Z24: 0 | AA24: 68062.284 | AB24: 0 | AC24: 0 | AD24: 0 | AF24: 407930.2922 | AG24: 1383335.712 | AH24: 0 | AI24: 0 | AJ24: 0 | AK24: 434880.8923 | AL24: 0 | AM24: 0 | AN24: 0 | AO24: 6014119.539 | AP24: 0 | AQ24: 0 | AR24: 0 | AS24: 8240266.436
B25: Large Business - LVEN 2.2+ GWh | D25: 5990.235 | E25: 1.229 | F25: 0 | G25: 0 | H25: 0 | I25: 0.511 | J25: 0 | K25: 0 | L25: 0 | M25: 93.317 | N25: 0 | O25: 0 | P25: 0 | R25: 23.7110561 | S25: 46012309.97 | T25: 0 | U25: 0 | V25: 0 | W25: 33126706.47 | X25: 0 | Y25: 0 | Z25: 0 | AA25: 16068.8071 | AB25: 0 | AC25: 0 | AD25: 0 | AF25: 142034.7981 | AG25: 565491.2895 | AH25: 0 | AI25: 0 | AJ25: 0 | AK25: 169277.4701 | AL25: 0 | AM25: 0 | AN25: 0 | AO25: 1499492.872 | AP25: 0 | AQ25: 0 | AR25: 0 | AS25: 2376296.43
B26: Large Business - LVMS 2.2+ - 6.0 GWh | D26: 3530.574 | E26: 1.216 | F26: 0 | G26: 0 | H26: 0 | I26: 0.511 | J26: 0 | K26: 0 | L26: 0 | M26: 59.988 | N26: 0 | O26: 0 | P26: 0 | R26: 9.489905592 | S26: 10547630.32 | T26: 0 | U26: 0 | V26: 0 | W26: 8508704.15 | X26: 0 | Y26: 0 | Z26: 0 | AA26: 8214.0472 | AB26: 0 | AC26: 0 | AD26: 0 | AF26: 33504.81395 | AG26: 128259.1847 | AH26: 0 | AI26: 0 | AJ26: 0 | AK26: 43479.47821 | AL26: 0 | AM26: 0 | AN26: 0 | AO26: 492744.2634 | AP26: 0 | AQ26: 0 | AR26: 0 | AS26: 697987.7403
B27: Large Business - LV 6.0+ GWh | D27: 8210.417 | E27: 1.194 | F27: 0 | G27: 0 | H27: 0 | I27: 0.455 | J27: 0 | K27: 0 | L27: 0 | M27: 84.863 | N27: 0 | O27: 0 | P27: 0 | R27: 19.94934005 | S27: 53512172.17 | T27: 0 | U27: 0 | V27: 0 | W27: 44845318.59 | X27: 0 | Y27: 0 | Z27: 0 | AA27: 24090.3584 | AB27: 0 | AC27: 0 | AD27: 0 | AF27: 163792.4007 | AG27: 638935.3357 | AH27: 0 | AI27: 0 | AJ27: 0 | AK27: 204046.1996 | AL27: 0 | AM27: 0 | AN27: 0 | AO27: 2044380.085 | AP27: 0 | AQ27: 0 | AR27: 0 | AS27: 3051154.021
B28: Large Business - LVMS 6.0+ GWh | D28: 4768.3 | E28: 1.194 | F28: 0 | G28: 0 | H28: 0 | I28: 0.455 | J28: 0 | K28: 0 | L28: 0 | M28: 60.09 | N28: 0 | O28: 0 | P28: 0 | R28: 31.26710731 | S28: 45265727.44 | T28: 0 | U28: 0 | V28: 0 | W28: 35236918.99 | X28: 0 | Y28: 0 | Z28: 0 | AA28: 31405.6672 | AB28: 0 | AC28: 0 | AD28: 0 | AF28: 149090.9478 | AG28: 540472.7856 | AH28: 0 | AI28: 0 | AJ28: 0 | AK28: 160327.9814 | AL28: 0 | AM28: 0 | AN28: 0 | AO28: 1887166.542 | AP28: 0 | AQ28: 0 | AR28: 0 | AS28: 2737058.257
B29: Large Business - HV | D29: 6069.36 | E29: 0.797 | F29: 0 | G29: 0 | H29: 0 | I29: 0.237 | J29: 0 | K29: 0 | L29: 0 | M29: 71.142 | N29: 0 | O29: 0 | P29: 0 | R29: 82 | S29: 234092242.4 | T29: 0 | U29: 0 | V29: 0 | W29: 185725976.8 | X29: 0 | Y29: 0 | Z29: 0 | AA29: 172015.5139 | AB29: 0 | AC29: 0 | AD29: 0 | AF29: 497687.52 | AG29: 1865715.172 | AH29: 0 | AI29: 0 | AJ29: 0 | AK29: 440170.5651 | AL29: 0 | AM29: 0 | AN29: 0 | AO29: 12237527.69 | AP29: 0 | AQ29: 0 | AR29: 0 | AS29: 15041100.95
B30: Large Business – HVEN | D30: 6069.36 | E30: 0.8 | F30: 0 | G30: 0 | H30: 0 | I30: 0.237 | J30: 0 | K30: 0 | L30: 0 | M30: 73.298 | N30: 0 | O30: 0 | P30: 0 | R30: 2 | S30: 19354907.87 | T30: 0 | U30: 0 | V30: 0 | W30: 15176809.37 | X30: 0 | Y30: 0 | Z30: 0 | AA30: 3213.3352 | AB30: 0 | AC30: 0 | AD30: 0 | AF30: 12138.72 | AG30: 154839.2629 | AH30: 0 | AI30: 0 | AJ30: 0 | AK30: 35969.03822 | AL30: 0 | AM30: 0 | AN30: 0 | AO30: 235531.0435 | AP30: 0 | AQ30: 0 | AR30: 0 | AS30: 438478.0646
B31: Large Business - HVRF | D31: 6069.36 | E31: 0.789 | F31: 0 | G31: 0 | H31: 0 | I31: 0.237 | J31: 0 | K31: 0 | L31: 0 | M31: 65.37 | N31: 0 | O31: 0 | P31: 0 | R31: 4.649315068 | S31: 47442355.76 | T31: 0 | U31: 0 | V31: 0 | W31: 41773511.2 | X31: 0 | Y31: 0 | Z31: 0 | AA31: 26423.3271 | AB31: 0 | AC31: 0 | AD31: 0 | AF31: 28218.3669 | AG31: 374320.1869 | AH31: 0 | AI31: 0 | AJ31: 0 | AK31: 99003.22153 | AL31: 0 | AM31: 0 | AN31: 0 | AO31: 1727292.893 | AP31: 0 | AQ31: 0 | AR31: 0 | AS31: 2228834.668
B32: Large Business - HV Ann Cons >= 55GWh | D32: 5669.403 | E32: 0.761 | F32: 0 | G32: 0 | H32: 0 | I32: 0.184 | J32: 0 | K32: 0 | L32: 0 | M32: 63.119 | N32: 0 | O32: 0 | P32: 0 | R32: 1.084931507 | S32: 24210050.04 | T32: 0 | U32: 0 | V32: 0 | W32: 21527851.13 | X32: 0 | Y32: 0 | Z32: 0 | AA32: 11217.80112 | AB32: 0 | AC32: 0 | AD32: 0 | AF32: 6150.91394 | AG32: 184238.4808 | AH32: 0 | AI32: 0 | AJ32: 0 | AK32: 39611.24607 | AL32: 0 | AM32: 0 | AN32: 0 | AO32: 708056.3888 | AP32: 0 | AQ32: 0 | AR32: 0 | AS32: 938057.0296
B33: Large Business - Subtransmission | D33: 39040.5 | E33: 0.149 | F33: 0 | G33: 0 | H33: 0 | I33: 0.045 | J33: 0 | K33: 0 | L33: 0 | M33: 19.514 | N33: 0 | O33: 0 | P33: 0 | R33: 2 | S33: 110447526.3 | T33: 0 | U33: 0 | V33: 0 | W33: 119100805.6 | X33: 0 | Y33: 0 | Z33: 0 | AA33: 39635.49 | AB33: 0 | AC33: 0 | AD33: 0 | AF33: 78081 | AG33: 164566.8142 | AH33: 0 | AI33: 0 | AJ33: 0 | AK33: 53595.3625 | AL33: 0 | AM33: 0 | AN33: 0 | AO33: 773446.9519 | AP33: 0 | AQ33: 0 | AR33: 0 | AS33: 1069690.129
B34: Large Business - Subtransmission MA | D34: 39040.5 | E34: 0.149 | F34: 0 | G34: 0 | H34: 0 | I34: 0.045 | J34: 0 | K34: 0 | L34: 0 | M34: 19.595 | N34: 0 | O34: 0 | P34: 0 | R34: 1 | S34: 68232338.71 | T34: 0 | U34: 0 | V34: 0 | W34: 67928284.49 | X34: 0 | Y34: 0 | Z34: 0 | AA34: 42484 | AB34: 0 | AC34: 0 | AD34: 0 | AF34: 39040.5 | AG34: 101666.1847 | AH34: 0 | AI34: 0 | AJ34: 0 | AK34: 30567.72802 | AL34: 0 | AM34: 0 | AN34: 0 | AO34: 832473.98 | AP34: 0 | AQ34: 0 | AR34: 0 | AS34: 1003748.393
B35: Large Business - Subtransmission EG | D35: 30333.863 | E35: 0.142 | F35: 0 | G35: 0 | H35: 0 | I35: 0.023 | J35: 0 | K35: 0 | L35: 0 | M35: 3.36 | N35: 0 | O35: 0 | P35: 0 | R35: 1 | S35: 7138026.819 | T35: 0 | U35: 0 | V35: 0 | W35: 8479174.156 | X35: 0 | Y35: 0 | Z35: 0 | AA35: 36401.09 | AB35: 0 | AC35: 0 | AD35: 0 | AF35: 30333.863 | AG35: 10135.99808 | AH35: 0 | AI35: 0 | AJ35: 0 | AK35: 1950.210056 | AL35: 0 | AM35: 0 | AN35: 0 | AO35: 122307.6624 | AP35: 0 | AQ35: 0 | AR35: 0 | AS35: 164727.7335
AF36: 0 | AG36: 0 | AH36: 0 | AI36: 0 | AJ36: 0 | AK36: 0 | AL36: 0 | AM36: 0 | AN36: 0 | AO36: 0 | AP36: 0 | AQ36: 0 | AR36: 0 | AS36: 0
AF37: 0 | AG37: 0 | AH37: 0 | AI37: 0 | AJ37: 0 | AK37: 0 | AL37: 0 | AM37: 0 | AN37: 0 | AO37: 0 | AP37: 0 | AQ37: 0 | AR37: 0 | AS37: 0
AF38: 0 | AG38: 0 | AH38: 0 | AI38: 0 | AJ38: 0 | AK38: 0 | AL38: 0 | AM38: 0 | AN38: =L38/100*Z38 -> 0 | AO38: 0 | AP38: 0 | AQ38: 0 | AR38: 0 | AS38: 0
AF39: 0 | AG39: 0 | AH39: 0 | AI39: 0 | AJ39: 0 | AK39: 0 | AL39: 0 | AM39: 0 | AN39: 0 | AO39: 0 | AP39: 0 | AQ39: 0 | AR39: 0 | AS39: 0
AF40: 0 | AG40: 0 | AH40: 0 | AI40: 0 | AJ40: 0 | AK40: 0 | AL40: 0 | AM40: 0 | AN40: 0 | AO40: 0 | AP40: 0 | AQ40: 0 | AR40: 0 | AS40: 0
AF41: 0 | AG41: 0 | AH41: 0 | AI41: 0 | AJ41: 0 | AK41: 0 | AL41: 0 | AM41: 0 | AN41: 0 | AO41: 0 | AP41: 0 | AQ41: 0 | AR41: 0 | AS41: 0
AF42: 0 | AG42: 0 | AH42: 0 | AI42: 0 | AJ42: 0 | AK42: 0 | AL42: 0 | AM42: 0 | AN42: 0 | AO42: 0 | AP42: 0 | AQ42: 0 | AR42: 0 | AS42: 0
AF43: 0 | AG43: 0 | AH43: 0 | AI43: 0 | AJ43: 0 | AK43: 0 | AL43: 0 | AM43: 0 | AN43: 0 | AO43: 0 | AP43: 0 | AQ43: 0 | AR43: 0 | AS43: 0
AF44: 0 | AG44: 0 | AH44: 0 | AI44: 0 | AJ44: 0 | AK44: 0 | AL44: 0 | AM44: 0 | AN44: 0 | AO44: 0 | AP44: 0 | AQ44: 0 | AR44: 0 | AS44: 0
AF45: 0 | AG45: 0 | AH45: 0 | AI45: 0 | AJ45: 0 | AK45: 0 | AL45: 0 | AM45: 0 | AN45: 0 | AO45: 0 | AP45: 0 | AQ45: 0 | AR45: 0 | AS45: 0
AF46: 0 | AG46: 0 | AH46: 0 | AI46: 0 | AJ46: 0 | AK46: 0 | AL46: 0 | AM46: 0 | AN46: 0 | AO46: 0 | AP46: 0 | AQ46: 0 | AR46: 0 | AS46: 0
AF47: 0 | AG47: 0 | AH47: 0 | AI47: 0 | AJ47: 0 | AK47: 0 | AL47: 0 | AM47: 0 | AN47: 0 | AO47: 0 | AP47: 0 | AQ47: 0 | AR47: 0 | AS47: 0
AF48: 0 | AG48: 0 | AH48: 0 | AI48: 0 | AJ48: 0 | AK48: 0 | AL48: 0 | AM48: 0 | AN48: 0 | AO48: 0 | AP48: 0 | AQ48: 0 | AR48: 0 | AS48: 0
AF49: 0 | AG49: 0 | AH49: 0 | AI49: 0 | AJ49: 0 | AK49: 0 | AL49: 0 | AM49: 0 | AN49: 0 | AO49: 0 | AP49: 0 | AQ49: 0 | AR49: 0 | AS49: 0
AF50: 0 | AG50: 0 | AH50: 0 | AI50: 0 | AJ50: 0 | AK50: 0 | AL50: 0 | AM50: 0 | AN50: 0 | AO50: 0 | AP50: 0 | AQ50: 0 | AR50: 0 | AS50: 0
AF51: 0 | AG51: 0 | AH51: 0 | AI51: 0 | AJ51: 0 | AK51: 0 | AL51: 0 | AM51: 0 | AN51: 0 | AO51: 0 | AP51: 0 | AQ51: 0 | AR51: 0 | AS51: 0
AF52: 0 | AG52: 0 | AH52: 0 | AI52: 0 | AJ52: 0 | AK52: 0 | AL52: 0 | AM52: 0 | AN52: 0 | AO52: 0 | AP52: 0 | AQ52: 0 | AR52: 0 | AS52: 0
AF53: 0 | AG53: 0 | AH53: 0 | AI53: 0 | AJ53: 0 | AK53: 0 | AL53: 0 | AM53: 0 | AN53: 0 | AO53: 0 | AP53: 0 | AQ53: 0 | AR53: 0 | AS53: 0
AF54: 0 | AG54: 0 | AH54: 0 | AI54: 0 | AJ54: 0 | AK54: 0 | AL54: 0 | AM54: 0 | AN54: 0 | AO54: 0 | AP54: 0 | AQ54: 0 | AR54: 0 | AS54: 0
AF55: 0 | AG55: 0 | AH55: 0 | AI55: 0 | AJ55: 0 | AK55: 0 | AL55: 0 | AM55: 0 | AN55: 0 | AO55: 0 | AP55: 0 | AQ55: 0 | AR55: 0 | AS55: 0
AF56: 0 | AG56: 0 | AH56: 0 | AI56: 0 | AJ56: 0 | AK56: 0 | AL56: 0 | AM56: 0 | AN56: 0 | AO56: 0 | AP56: 0 | AQ56: 0 | AR56: 0 | AS56: 0
AF57: 0 | AG57: 0 | AH57: 0 | AI57: 0 | AJ57: 0 | AK57: 0 | AL57: 0 | AM57: 0 | AN57: 0 | AO57: 0 | AP57: 0 | AQ57: 0 | AR57: 0 | AS57: 0
AF58: 0 | AG58: 0 | AH58: 0 | AI58: 0 | AJ58: 0 | AK58: 0 | AL58: 0 | AM58: 0 | AN58: 0 | AO58: 0 | AP58: 0 | AQ58: 0 | AR58: 0 | AS58: 0
AF59: 0 | AG59: 0 | AH59: 0 | AI59: 0 | AJ59: 0 | AK59: 0 | AL59: 0 | AM59: 0 | AN59: 0 | AO59: 0 | AP59: 0 | AQ59: 0 | AR59: 0 | AS59: 0
AF60: 0 | AG60: 0 | AH60: 0 | AI60: 0 | AJ60: 0 | AK60: 0 | AL60: 0 | AM60: 0 | AN60: 0 | AO60: 0 | AP60: 0 | AQ60: 0 | AR60: 0 | AS60: 0
AF61: 0 | AG61: 0 | AH61: 0 | AI61: 0 | AJ61: 0 | AK61: 0 | AL61: 0 | AM61: 0 | AN61: 0 | AO61: 0 | AP61: 0 | AQ61: 0 | AR61: 0 | AS61: 0
AF62: 0 | AG62: 0 | AH62: 0 | AI62: 0 | AJ62: 0 | AK62: 0 | AL62: 0 | AM62: 0 | AN62: 0 | AO62: 0 | AP62: 0 | AQ62: 0 | AR62: 0 | AS62: 0
AF63: 0 | AG63: 0 | AH63: 0 | AI63: 0 | AJ63: 0 | AK63: 0 | AL63: 0 | AM63: 0 | AN63: 0 | AO63: 0 | AP63: 0 | AQ63: 0 | AR63: 0 | AS63: 0
AF64: 0 | AG64: 0 | AH64: 0 | AI64: 0 | AJ64: 0 | AK64: 0 | AL64: 0 | AM64: 0 | AN64: 0 | AO64: 0 | AP64: 0 | AQ64: 0 | AR64: 0 | AS64: 0
AF65: 0 | AG65: 0 | AH65: 0 | AI65: 0 | AJ65: 0 | AK65: 0 | AL65: 0 | AM65: 0 | AN65: 0 | AO65: 0 | AP65: 0 | AQ65: 0 | AR65: 0 | AS65: 0
R66: =SUM(R6:R65) -> 348558.5011 | S66: 3006410211 | T66: 1368615.722 | U66: 960125.0095 | V66: 1784990.184 | W66: 1284415686 | X66: 1167051.999 | Y66: 0 | Z66: 0 | AA66: =SUM(AA6:AA65) -> 905938.4563 | AB66: 0 | AC66: 0 | AD66: 0 | AF66: 24645439.63 | AG66: 154834456.4 | AH66: 103494.7209 | AI66: 116972.0299 | AJ66: 134980.9577 | AK66: 9196747.939 | AL66: 42900.8315 | AM66: =SUM(AM6:AM65) -> 0 | AN66: 0 | AO66: 66364006.36 | AP66: 0 | AQ66: 0 | AR66: 0 | AS66: 255438998.9

Sheet Prop2020TransTar
B1: ="Tariff Approval - "&'Model update'!C3 -> Tariff Approval - Jemena | D1: ="Prop"&'Model update'!$C$5&"TransTar" -> Prop2020TransTar
B3: ="PROPOSED "&'Model update'!$C$5&" TRANSMISSION TARIFFS" -> PROPOSED 2020 TRANSMISSION TARIFFS
D4: ="Proposed Transmission Tariffs (Pt) for "&'Model update'!$C$5 -> Proposed Transmission Tariffs (Pt) for 2020 | R4: ="Forecast Quantities (Qt) for "&'Model update'!$C$5 -> Forecast Quantities (Qt) for 2020 | AF4: ="Forecast Revenue (Pt "&'Model update'!$C$5&")*(Qt " &'Model update'!$C$5&")" -> Forecast Revenue (Pt 2020)*(Qt 2020)
B5: Proposed tariff | D5: =Prop2020DistTar!D5 -> PropTar Fixed | E5: =Prop2020DistTar!E5 -> PropTar PkBlk1 | F5: =Prop2020DistTar!F5 -> PropTar Shoulder summer | G5: =Prop2020DistTar!G5 -> PropTar peak non-summer | H5: =Prop2020DistTar!H5 -> PropTar Shoulder non-summer | I5: =Prop2020DistTar!I5 -> PropTar OPkBlk1 | J5: =Prop2020DistTar!J5 -> PropTar off peak non-summer | K5: =Prop2020DistTar!K5 -> PropTar OPkBlk3 | L5: =Prop2020DistTar!L5 -> PropTar OPkBlk4 | M5: =Prop2020DistTar!M5 -> PropTar DemBlk1 | N5: =Prop2020DistTar!N5 -> PropTar DemBlk2 | O5: =Prop2020DistTar!O5 -> PropTar DemBlk3 | P5: =Prop2020DistTar!P5 -> PropTar DemBlk4 | R5: =Prop2020DistTar!AF5 -> FcastVol Fixed | S5: =Prop2020DistTar!AG5 -> FcastVol PkBlk1 | T5: =Prop2020DistTar!AH5 -> FcastVol Shoulder summer | U5: =Prop2020DistTar!AI5 -> FcastVol peak non-summer | V5: =Prop2020DistTar!AJ5 -> FcastVol Shoulder non-summer | W5: =Prop2020DistTar!AK5 -> FcastVol OPkBlk1 | X5: =Prop2020DistTar!AL5 -> FcastVol off peak non-summer | Y5: =Prop2020DistTar!AM5 -> FcastVol OPkBlk3 | Z5: =Prop2020DistTar!AN5 -> FcastVol OPkBlk4 | AA5: =Prop2020DistTar!AO5 -> FcastVol DemBlk1 | AB5: =Prop2020DistTar!AP5 -> FcastVol DemBlk2 | AC5: =Prop2020DistTar!AQ5 -> FcastVol DemBlk3 | AD5: =Prop2020DistTar!AR5 -> FcastVol DemBlk4 | AF5: PropRev Fixed | AG5: PropRev PkBlk1 | AH5: PropRev PkBlk2 | AI5: PropRev PkBlk3 | AJ5: PropRev PkBlk4 | AK5: PropRev OPkBlk1 | AL5: PropRev OPkBlk2 | AM5: PropRev OPkBlk3 | AN5: PropRev OPkBlk4 | AO5: PropRev DemBlk1 | AP5: PropRev DemBlk2 | AQ5: PropRev DemBlk3 | AR5: PropRev DemBlk4 | AS5: PropRev Total
B6: =Prop2020DistTar!B6 -> Residential - General Purpose | D6: 0.521 | E6: 0.617 | F6: 0 | G6: 0 | H6: 0 | I6: 0 | J6: 0 | K6: 0 | L6: 0 | M6: 0 | N6: 0 | O6: 0 | P6: 0 | R6: =Prop2020DistTar!AF6 -> 306575.3081 | S6: =Prop2020DistTar!AG6 -> 1266807387 | T6: =Prop2020DistTar!AH6 -> 0 | U6: =Prop2020DistTar!AI6 -> 0 | V6: =Prop2020DistTar!AJ6 -> 0 | W6: =Prop2020DistTar!AK6 -> 0 | X6: =Prop2020DistTar!AL6 -> 0 | Y6: =Prop2020DistTar!AM6 -> 0 | Z6: =Prop2020DistTar!AN6 -> 0 | AA6: =Prop2020DistTar!AO6 -> 0 | AB6: =Prop2020DistTar!AP6 -> 0 | AC6: =Prop2020DistTar!AQ6 -> 0 | AD6: =Prop2020DistTar!AR6 -> 0 | AF6: =D6*R6 -> 159725.7355 | AG6: =E6/100*S6 -> 7816201.578 | AH6: 0 | AI6: 0 | AJ6: 0 | AK6: 0 | AL6: 0 | AM6: 0 | AN6: 0 | AO6: =M6*AA6 -> 0 | AP6: 0 | AQ6: 0 | AR6: 0 | AS6: =SUM(AF6:AR6) -> 7975927.313
B7: =Prop2020DistTar!B7 -> Residential - General Purpose Demand | D7: 0.521 | E7: 0.617 | F7: 0 | G7: 0 | H7: 0 | I7: 0 | J7: 0 | K7: 0 | L7: 0 | M7: 0 | N7: 0 | O7: 0 | P7: 0 | R7: =Prop2020DistTar!AF7 -> 5.134764017 | S7: =Prop2020DistTar!AG7 -> 21217.48495 | T7: =Prop2020DistTar!AH7 -> 0 | U7: =Prop2020DistTar!AI7 -> 0 | V7: =Prop2020DistTar!AJ7 -> 0 | W7: =Prop2020DistTar!AK7 -> 0 | X7: =Prop2020DistTar!AL7 -> 0 | Y7: =Prop2020DistTar!AM7 -> 0 | Z7: =Prop2020DistTar!AN7 -> 0 | AA7: =Prop2020DistTar!AO7 -> 18.72011342 | AB7: =Prop2020DistTar!AP7 -> 0 | AC7: =Prop2020DistTar!AQ7 -> 0 | AD7: =Prop2020DistTar!AR7 -> 0 | AF7: =D7*R7 -> 2.675212053 | AG7: =E7/100*S7 -> 130.9118822 | AH7: 0 | AI7: 0 | AJ7: 0 | AK7: 0 | AL7: 0 | AM7: 0 | AN7: 0 | AO7: =M7*AA7 -> 0 | AP7: =N7*AB7 -> 0 | AQ7: =O7*AC7 -> 0 | AR7: =P7*AD7 -> 0 | AS7: =SUM(AF7:AR7) -> 133.5870942
B8: =Prop2020DistTar!B8 -> Residential - Flexible | D8: 0.521 | E8: 0.278 | F8: 0.617 | G8: 0.278 | H8: 0.617 | I8: 0.03315 | J8: 0.033 | K8: 0 | L8: 0 | M8: 0 | N8: 0 | O8: 0 | P8: 0 | R8: =Prop2020DistTar!AF8 -> 1066.249258 | S8: =Prop2020DistTar!AG8 -> 513894.5572 | T8: =Prop2020DistTar!AH8 -> 963834.6369 | U8: =Prop2020DistTar!AI8 -> 676158.9282 | V8: =Prop2020DistTar!AJ8 -> 1257062.401 | W8: =Prop2020DistTar!AK8 -> 1020330.267 | X8: =Prop2020DistTar!AL8 -> 821885.2976 | Y8: =Prop2020DistTar!AM8 -> 0 | Z8: =Prop2020DistTar!AN8 -> 0 | AA8: =Prop2020DistTar!AO8 -> 0 | AB8: =Prop2020DistTar!AP8 -> 0 | AC8: =Prop2020DistTar!AQ8 -> 0 | AD8: =Prop2020DistTar!AR8 -> 0 | AF8: 555.5158637 | AG8: 1428.626869 | AH8: 5946.85971 | AI8: 1879.721821 | AJ8: 7756.075015 | AK8: 338.2394834 | AL8: 271.2221482 | AM8: 0 | AN8: 0 | AO8: 0 | AP8: 0 | AQ8: 0 | AR8: 0 | AS8: 18176.26091
B9: =Prop2020DistTar!B9 -> Residential - Time of Use Interval Meter | D9: 0.521 | E9: 0.278 | F9: 0 | G9: 0 | H9: 0 | I9: 0.381 | J9: 0 | K9: 0 | L9: 0 | M9: 0 | N9: 0 | O9: 0 | P9: 0 | R9: =Prop2020DistTar!AF9 -> 14984.05089 | S9: =Prop2020DistTar!AG9 -> 31652210.5 | T9: =Prop2020DistTar!AH9 -> 0 | U9: =Prop2020DistTar!AI9 -> 0 | V9: =Prop2020DistTar!AJ9 -> 0 | W9: =Prop2020DistTar!AK9 -> 32760180.55 | X9: =Prop2020DistTar!AL9 -> 0 | Y9: =Prop2020DistTar!AM9 -> 0 | Z9: =Prop2020DistTar!AN9 -> 0 | AA9: =Prop2020DistTar!AO9 -> 0 | AB9: =Prop2020DistTar!AP9 -> 0 | AC9: =Prop2020DistTar!AQ9 -> 0 | AD9: =Prop2020DistTar!AR9 -> 0 | AF9: 7806.690516 | AG9: 87993.14519 | AH9: 0 | AI9: 0 | AJ9: 0 | AK9: 124816.2879 | AL9: 0 | AM9: 0 | AN9: 0 | AO9: 0 | AP9: 0 | AQ9: 0 | AR9: 0 | AS9: 220616.1236
B10: =Prop2020DistTar!B10 -> Residential - TOU | D10: 0.521 | E10: 3.122 | F10: 0 | G10: 0 | H10: 0 | I10: 1.013 | J10: 0 | K10: 0 | L10: 0 | M10: 0 | N10: 0 | O10: 0 | P10: 0 | R10: =Prop2020DistTar!AF10 -> 1371.286329 | S10: =Prop2020DistTar!AG10 -> 5320045.464 | T10: =Prop2020DistTar!AH10 -> 0 | U10: =Prop2020DistTar!AI10 -> 0 | V10: =Prop2020DistTar!AJ10 -> 0 | W10: =Prop2020DistTar!AK10 -> 5826260.514 | X10: =Prop2020DistTar!AL10 -> 0 | Y10: =Prop2020DistTar!AM10 -> 0 | Z10: =Prop2020DistTar!AN10 -> 0 | AA10: =Prop2020DistTar!AO10 -> 0 | AB10: =Prop2020DistTar!AP10 -> 0 | AC10: =Prop2020DistTar!AQ10 -> 0 | AD10: =Prop2020DistTar!AR10 -> 0 | AF10: 714.4401774 | AG10: 166091.8194 | AH10: 0 | AI10: 0 | AJ10: 0 | AK10: 59020.01901 | AL10: 0 | AM10: 0 | AN10: 0 | AO10: 0 | AP10: 0 | AQ10: 0 | AR10: 0 | AS10: 225826.2786
B11: =Prop2020DistTar!B11 -> Residential - Off Peak Only | D11: 0 | E11: 0 | F11: 0 | G11: 0 | H11: 0 | I11: 0.765 | J11: 0 | K11: 0 | L11: 0 | M11: 0 | N11: 0 | O11: 0 | P11: 0 | R11: =Prop2020DistTar!AF11 -> 0 | S11: =Prop2020DistTar!AG11 -> 0 | T11: =Prop2020DistTar!AH11 -> 0 | U11: =Prop2020DistTar!AI11 -> 0 | V11: =Prop2020DistTar!AJ11 -> 0 | W11: =Prop2020DistTar!AK11 -> 35918450.4 | X11: =Prop2020DistTar!AL11 -> 0 | Y11: =Prop2020DistTar!AM11 -> 0 | Z11: =Prop2020DistTar!AN11 -> 0 | AA11: =Prop2020DistTar!AO11 -> 0 | AB11: =Prop2020DistTar!AP11 -> 0 | AC11: =Prop2020DistTar!AQ11 -> 0 | AD11: =Prop2020DistTar!AR11 -> 0 | AF11: 0 | AG11: 0 | AH11: 0 | AI11: 0 | AJ11: 0 | AK11: 274776.1456 | AL11: 0 | AM11: 0 | AN11: 0 | AO11: 0 | AP11: 0 | AQ11: 0 | AR11: 0 | AS11: 274776.1456
B12: =Prop2020DistTar!B12 -> Small Business - General Purpose | D12: 1.027 | E12: 1.268 | F12: 0 | G12: 0 | H12: 0 | I12: 0 | J12: 0 | K12: 0 | L12: 0 | M12: 0 | N12: 0 | O12: 0 | P12: 0 | R12: =Prop2020DistTar!AF12 -> 16418.55905 | S12: =Prop2020DistTar!AG12 -> 206322791.9 | T12: =Prop2020DistTar!AH12 -> 0 | U12: =Prop2020DistTar!AI12 -> 0 | V12: =Prop2020DistTar!AJ12 -> 0 | W12: =Prop2020DistTar!AK12 -> 0 | X12: =Prop2020DistTar!AL12 -> 0 | Y12: =Prop2020DistTar!AM12 -> 0 | Z12: =Prop2020DistTar!AN12 -> 0 | AA12: =Prop2020DistTar!AO12 -> 0 | AB12: =Prop2020DistTar!AP12 -> 0 | AC12: =Prop2020DistTar!AQ12 -> 0 | AD12: =Prop2020DistTar!AR12 -> 0 | AF12: 16861.86015 | AG12: 2616173.001 | AH12: 0 | AI12: 0 | AJ12: 0 | AK12: 0 | AL12: 0 | AM12: 0 | AN12: 0 | AO12: 0 | AP12: 0 | AQ12: 0 | AR12: 0 | AS12: 2633034.861
B13: =Prop2020DistTar!B13 -> Small Business - General Purpose Demand | D13: 1.027 | E13: 1.268 | F13: 0 | G13: 0 | H13: 0 | I13: 0 | J13: 0 | K13: 0 | L13: 0 | M13: 0 | N13: 0 | O13: 0 | P13: 0 | R13: =Prop2020DistTar!AF13 -> 1.344102883 | S13: =Prop2020DistTar!AG13 -> 48984.18044 | T13: =Prop2020DistTar!AH13 -> 0 | U13: =Prop2020DistTar!AI13 -> 0 | V13: =Prop2020DistTar!AJ13 -> 0 | W13: =Prop2020DistTar!AK13 -> 0 | X13: =Prop2020DistTar!AL13 -> 0 | Y13: =Prop2020DistTar!AM13 -> 0 | Z13: =Prop2020DistTar!AN13 -> 0 | AA13: =Prop2020DistTar!AO13 -> 14.96792971 | AB13: =Prop2020DistTar!AP13 -> 0 | AC13: =Prop2020DistTar!AQ13 -> 0 | AD13: =Prop2020DistTar!AR13 -> 0 | AF13: 1.380393661 | AG13: 621.119408 | AH13: 0 | AI13: 0 | AJ13: 0 | AK13: 0 | AL13: 0 | AM13: 0 | AN13: 0 | AO13: 0 | AP13: 0 | AQ13: 0 | AR13: 0 | AS13: 622.4998016
B14: =Prop2020DistTar!B14 -> Small Business - TOU Weekdays | D14: 14.625 | E14: 2.224 | F14: 0 | G14: 0 | H14: 0 | I14: 0.695 | J14: 0 | K14: 0 | L14: 0 | M14: 0 | N14: 0 | O14: 0 | P14: 0 | R14: =Prop2020DistTar!AF14 -> 7696.463709 | S14: =Prop2020DistTar!AG14 -> 170924694.6 | T14: =Prop2020DistTar!AH14 -> 0 | U14: =Prop2020DistTar!AI14 -> 0 | V14: =Prop2020DistTar!AJ14 -> 0 | W14: =Prop2020DistTar!AK14 -> 111481488.5 | X14: =Prop2020DistTar!AL14 -> 0 | Y14: =Prop2020DistTar!AM14 -> 0 | Z14: =Prop2020DistTar!AN14 -> 0 | AA14: =Prop2020DistTar!AO14 -> 0 | AB14: =Prop2020DistTar!AP14 -> 0 | AC14: =Prop2020DistTar!AQ14 -> 0 | AD14: =Prop2020DistTar!AR14 -> 0 | AF14: 112560.7817 | AG14: 3801365.209 | AH14: 0 | AI14: 0 | AJ14: 0 | AK14: 774796.3454 | AL14: 0 | AM14: 0 | AN14: 0 | AO14: 0 | AP14: 0 | AQ14: 0 | AR14: 0 | AS14: 4688722.336
B15: =Prop2020DistTar!B15 -> Small Business - TOU Weekdays Demand | D15: 128.586 | E15: 1.08 | F15: 0 | G15: 0 | H15: 0 | I15: 0.481 | J15: 0 | K15: 0 | L15: 0 | M15: 0.599458 | N15: 0 | O15: 0 | P15: 0 | R15: =Prop2020DistTar!AF15 -> 667.2837814 | S15: =Prop2020DistTar!AG15 -> 69784438.34 | T15: =Prop2020DistTar!AH15 -> 0 | U15: =Prop2020DistTar!AI15 -> 0 | V15: =Prop2020DistTar!AJ15 -> 0 | W15: =Prop2020DistTar!AK15 -> 48547711.91 | X15: =Prop2020DistTar!AL15 -> 0 | Y15: =Prop2020DistTar!AM15 -> 0 | Z15: =Prop2020DistTar!AN15 -> 0 | AA15: =Prop2020DistTar!AO15 -> 52693.96892 | AB15: =Prop2020DistTar!AP15 -> 0 | AC15: =Prop2020DistTar!AQ15 -> 0 | AD15: =Prop2020DistTar!AR15 -> 0 | AF15: 85803.35231 | AG15: 753671.9341 | AH15: 0 | AI15: 0 | AJ15: 0 | AK15: 233514.4943 | AL15: 0 | AM15: 0 | AN15: 0 | AO15: 31587.82122 | AP15: 0 | AQ15: 0 | AR15: 0 | AS15: 1104577.602
B16: =Prop2020DistTar!B16 -> Small Business - TOU Opt out | D16: 128.586 | E16: 2.224 | F16: 0 | G16: 0 | H16: 0 | I16: 0.695 | J16: 0 | K16: 0 | L16: 0 | M16: 0 | N16: 0 | O16: 0 | P16: 0 | R16: =Prop2020DistTar!AF16 -> 51 | S16: =Prop2020DistTar!AG16 -> 5349072.517 | T16: =Prop2020DistTar!AH16 -> 0 | U16: =Prop2020DistTar!AI16 -> 0 | V16: =Prop2020DistTar!AJ16 -> 0 | W16: =Prop2020DistTar!AK16 -> 0 | X16: =Prop2020DistTar!AL16 -> 0 | Y16: =Prop2020DistTar!AM16 -> 0 | Z16: =Prop2020DistTar!AN16 -> 0 | AA16: =Prop2020DistTar!AO16 -> 0 | AB16: =Prop2020DistTar!AP16 -> 0 | AC16: =Prop2020DistTar!AQ16 -> 0 | AD16: =Prop2020DistTar!AR16 -> 0 | AF16: 6557.886 | AG16: 118963.3728 | AH16: 0 | AI16: 0 | AJ16: 0 | AK16: 0 | AL16: 0 | AM16: 0 | AN16: 0 | AO16: 0 | AP16: 0 | AQ16: 0 | AR16: 0 | AS16: 125521.2588
B17: =Prop2020DistTar!B17 -> Small Business - TOU Extended | D17: 14.625 | E17: 1.992 | F17: 0 | G17: 0 | H17: 0 | I17: 0.726 | J17: 0 | K17: 0 | L17: 0 | M17: 0 | N17: 0 | O17: 0 | P17: 0 | R17: =Prop2020DistTar!AF17 -> 2331.830229 | S17: =Prop2020DistTar!AG17 -> 41771214.93 | T17: =Prop2020DistTar!AH17 -> 0 | U17: =Prop2020DistTar!AI17 -> 0 | V17: =Prop2020DistTar!AJ17 -> 0 | W17: =Prop2020DistTar!AK17 -> 12782107.32 | X17: =Prop2020DistTar!AL17 -> 0 | Y17: =Prop2020DistTar!AM17 -> 0 | Z17: =Prop2020DistTar!AN17 -> 0 | AA17: =Prop2020DistTar!AO17 -> 0 | AB17: =Prop2020DistTar!AP17 -> 0 | AC17: =Prop2020DistTar!AQ17 -> 0 | AD17: =Prop2020DistTar!AR17 -> 0 | AF17: 34103.0171 | AG17: 832082.6015 | AH17: 0 | AI17: 0 | AJ17: 0 | AK17: 92798.09911 | AL17: 0 | AM17: 0 | AN17: 0 | AO17: 0 | AP17: 0 | AQ17: 0 | AR17: 0 | AS17: 958983.7177
B18: =Prop2020DistTar!B18 -> Small Business - TOU Extended Demand | D18: 128.586 | E18: 1.782 | F18: 0 | G18: 0 | H18: 0 | I18: 0.468 | J18: 0 | K18: 0 | L18: 0 | M18: 0.5983 | N18: 0 | O18: 0 | P18: 0 | R18: =Prop2020DistTar!AF18 -> 115.4249261 | S18: =Prop2020DistTar!AG18 -> 18810985.69 | T18: =Prop2020DistTar!AH18 -> 0 | U18: =Prop2020DistTar!AI18 -> 0 | V18: =Prop2020DistTar!AJ18 -> 0 | W18: =Prop2020DistTar!AK18 -> 5531396.48 | X18: =Prop2020DistTar!AL18 -> 0 | Y18: =Prop2020DistTar!AM18 -> 0 | Z18: =Prop2020DistTar!AN18 -> 0 | AA18: =Prop2020DistTar!AO18 -> 11957.52292 | AB18: =Prop2020DistTar!AP18 -> 0 | AC18: =Prop2020DistTar!AQ18 -> 0 | AD18: =Prop2020DistTar!AR18 -> 0 | AF18: 14842.02955 | AG18: 335211.765 | AH18: 0 | AI18: 0 | AJ18: 0 | AK18: 25886.93553 | AL18: 0 | AM18: 0 | AN18: 0 | AO18: 7154.185961 | AP18: 0 | AQ18: 0 | AR18: 0 | AS18: 383094.9161
B19: =Prop2020DistTar!B19 -> Small Business - Unmetered Supply | D19: 0 | E19: 1.349 | F19: 0 | G19: 0 | H19: 0 | I19: 0.829 | J19: 0 | K19: 0 | L19: 0 | M19: 0 | N19: 0 | O19: 0 | P19: 0 | R19: =Prop2020DistTar!AF19 -> 0 | S19: =Prop2020DistTar!AG19 -> 11872124.14 | T19: =Prop2020DistTar!AH19 -> 0 | U19: =Prop2020DistTar!AI19 -> 0 | V19: =Prop2020DistTar!AJ19 -> 0 | W19: =Prop2020DistTar!AK19 -> 26427874.32 | X19: =Prop2020DistTar!AL19 -> 0 | Y19: =Prop2020DistTar!AM19 -> 0 | Z19: =Prop2020DistTar!AN19 -> 0 | AA19: =Prop2020DistTar!AO19 -> 0 | AB19: =Prop2020DistTar!AP19 -> 0 | AC19: =Prop2020DistTar!AQ19 -> 0 | AD19: =Prop2020DistTar!AR19 -> 0 | AF19: 0 | AG19: 160154.9547 | AH19: 0 | AI19: 0 | AJ19: 0 | AK19: 219087.0781 | AL19: 0 | AM19: 0 | AN19: 0 | AO19: 0 | AP19: 0 | AQ19: 0 | AR19: 0 | AS19: 379242.0327
B20: =Prop2020DistTar!B20 -> Large Business - LV 0.4 - 0.8 GWh | D20: 95.064 | E20: 2.937 | F20: 0 | G20: 0 | H20: 0 | I20: 1.021 | J20: 0 | K20: 0 | L20: 0 | M20: 1.4121 | N20: 0 | O20: 0 | P20: 0 | R20: =Prop2020DistTar!AF20 -> 749.2560244 | S20: =Prop2020DistTar!AG20 -> 175307653.6 | T20: =Prop2020DistTar!AH20 -> 0 | U20: =Prop2020DistTar!AI20 -> 0 | V20: =Prop2020DistTar!AJ20 -> 0 | W20: =Prop2020DistTar!AK20 -> 112610508.3 | X20: =Prop2020DistTar!AL20 -> 0 | Y20: =Prop2020DistTar!AM20 -> 0 | Z20: =Prop2020DistTar!AN20 -> 0 | AA20: =Prop2020DistTar!AO20 -> 158812.0352 | AB20: =Prop2020DistTar!AP20 -> 0 | AC20: =Prop2020DistTar!AQ20 -> 0 | AD20: =Prop2020DistTar!AR20 -> 0 | AF20: 71227.2747 | AG20: 5148785.787 | AH20: 0 | AI20: 0 | AJ20: 0 | AK20: 1149753.29 | AL20: 0 | AM20: 0 | AN20: 0 | AO20: 224258.475 | AP20: 0 | AQ20: 0 | AR20: 0 | AS20: 6594024.826
B21: =Prop2020DistTar!B21 -> Large Business – LVEN Annual Consumption <= 0.8 GWh | D21: 95.064 | E21: 2.846 | F21: 0 | G21: 0 | H21: 0 | I21: 1.021 | J21: 0 | K21: 0 | L21: 0 | M21: 1.9116 | N21: 0 | O21: 0 | P21: 0 | R21: =Prop2020DistTar!AF21 -> 70.7 | S21: =Prop2020DistTar!AG21 -> 20519791.04 | T21: =Prop2020DistTar!AH21 -> 0 | U21: =Prop2020DistTar!AI21 -> 0 | V21: =Prop2020DistTar!AJ21 -> 0 | W21: =Prop2020DistTar!AK21 -> 14174690.69 | X21: =Prop2020DistTar!AL21 -> 0 | Y21: =Prop2020DistTar!AM21 -> 0 | Z21: =Prop2020DistTar!AN21 -> 0 | AA21: =Prop2020DistTar!AO21 -> 17202.08125 | AB21: =Prop2020DistTar!AP21 -> 0 | AC21: =Prop2020DistTar!AQ21 -> 0 | AD21: =Prop2020DistTar!AR21 -> 0 | AF21: 6721.0248 | AG21: 583993.253 | AH21: 0 | AI21: 0 | AJ21: 0 | AK21: 144723.592 | AL21: 0 | AM21: 0 | AN21: 0 | AO21: 32883.49852 | AP21: 0 | AQ21: 0 | AR21: 0 | AS21: 768321.3683
B22: =Prop2020DistTar!B22 -> Large Business - LV 0.8+ - 2.2 GWh | D22: 201.263 | E22: 3.013 | F22: 0 | G22: 0 | H22: 0 | I22: 1.027 | J22: 0 | K22: 0 | L22: 0 | M22: 2.4489 | N22: 0 | O22: 0 | P22: 0 | R22: =Prop2020DistTar!AF22 -> 374.988246 | S22: =Prop2020DistTar!AG22 -> 269437471.1 | T22: =Prop2020DistTar!AH22 -> 0 | U22: =Prop2020DistTar!AI22 -> 0 | V22: =Prop2020DistTar!AJ22 -> 0 | W22: =Prop2020DistTar!AK22 -> 186190977.4 | X22: =Prop2020DistTar!AL22 -> 0 | Y22: =Prop2020DistTar!AM22 -> 0 | Z22: =Prop2020DistTar!AN22 -> 0 | AA22: =Prop2020DistTar!AO22 -> 177693.8618 | AB22: =Prop2020DistTar!AP22 -> 0 | AC22: =Prop2020DistTar!AQ22 -> 0 | AD22: =Prop2020DistTar!AR22 -> 0 | AF22: 75471.25936 | AG22: 8118151.005 | AH22: 0 | AI22: 0 | AJ22: 0 | AK22: 1912181.338 | AL22: 0 | AM22: 0 | AN22: 0 | AO22: 435154.498 | AP22: 0 | AQ22: 0 | AR22: 0 | AS22: 10540958.1
B23: =Prop2020DistTar!B23 -> Large Business - LVEN 0.8+ - 2.2 GWh | D23: 201.263 | E23: 2.757 | F23: 0 | G23: 0 | H23: 0 | I23: 1.027 | J23: 0 | K23: 0 | L23: 0 | M23: 3.1671 | N23: 0 | O23: 0 | P23: 0 | R23: =Prop2020DistTar!AF23 -> 44 | S23: =Prop2020DistTar!AG23 -> 28725458.95 | T23: =Prop2020DistTar!AH23 -> 0 | U23: =Prop2020DistTar!AI23 -> 0 | V23: =Prop2020DistTar!AJ23 -> 0 | W23: =Prop2020DistTar!AK23 -> 18896186.89 | X23: =Prop2020DistTar!AL23 -> 0 | Y23: =Prop2020DistTar!AM23 -> 0 | Z23: =Prop2020DistTar!AN23 -> 0 | AA23: =Prop2020DistTar!AO23 -> 19831.31559 | AB23: =Prop2020DistTar!AP23 -> 0 | AC23: =Prop2020DistTar!AQ23 -> 0 | AD23: =Prop2020DistTar!AR23 -> 0 | AF23: 8855.572 | AG23: 791960.9034 | AH23: 0 | AI23: 0 | AJ23: 0 | AK23: 194063.8394 | AL23: 0 | AM23: 0 | AN23: 0 | AO23: 62807.75962 | AP23: 0 | AQ23: 0 | AR23: 0 | AS23: 1057688.074
B24: =Prop2020DistTar!B24 -> Large Business - LV 2.2+ - 6.0 GWh | D24: 1337.763 | E24: 3.081 | F24: 0 | G24: 0 | H24: 0 | I24: 1.026 | J24: 0 | K24: 0 | L24: 0 | M24: 2.5245 | N24: 0 | O24: 0 | P24: 0 | R24: =Prop2020DistTar!AF24 -> 72.65840564 | S24: =Prop2020DistTar!AG24 -> 123632421.4 | T24: =Prop2020DistTar!AH24 -> 0 | U24: =Prop2020DistTar!AI24 -> 0 | V24: =Prop2020DistTar!AJ24 -> 0 | W24: =Prop2020DistTar!AK24 -> 93477286.13 | X24: =Prop2020DistTar!AL24 -> 0 | Y24: =Prop2020DistTar!AM24 -> 0 | Z24: =Prop2020DistTar!AN24 -> 0 | AA24: =Prop2020DistTar!AO24 -> 71075.88411 | AB24: =Prop2020DistTar!AP24 -> 0 | AC24: =Prop2020DistTar!AQ24 -> 0 | AD24: =Prop2020DistTar!AR24 -> 0 | AF24: 97199.72671 | AG24: 3809114.903 | AH24: 0 | AI24: 0 | AJ24: 0 | AK24: 959076.9557 | AL24: 0 | AM24: 0 | AN24: 0 | AO24: 179431.0694 | AP24: 0 | AQ24: 0 | AR24: 0 | AS24: 5044822.655
B25: =Prop2020DistTar!B25 -> Large Business - LVEN 2.2+ GWh | D25: 1337.763 | E25: 2.562 | F25: 0 | G25: 0 | H25: 0 | I25: 1.022 | J25: 0 | K25: 0 | L25: 0 | M25: 4.3659 | N25: 0 | O25: 0 | P25: 0 | R25: =Prop2020DistTar!AF25 -> 17.35673809 | S25: =Prop2020DistTar!AG25 -> 31188816.3 | T25: =Prop2020DistTar!AH25 -> 0 | U25: =Prop2020DistTar!AI25 -> 0 | V25: =Prop2020DistTar!AJ25 -> 0 | W25: =Prop2020DistTar!AK25 -> 22454485.84 | X25: =Prop2020DistTar!AL25 -> 0 | Y25: =Prop2020DistTar!AM25 -> 0 | Z25: =Prop2020DistTar!AN25 -> 0 | AA25: =Prop2020DistTar!AO25 -> 16630.35649 | AB25: =Prop2020DistTar!AP25 -> 0 | AC25: =Prop2020DistTar!AQ25 -> 0 | AD25: =Prop2020DistTar!AR25 -> 0 | AF25: 23219.20202 | AG25: 799057.4736 | AH25: 0 | AI25: 0 | AJ25: 0 | AK25: 229484.8453 | AL25: 0 | AM25: 0 | AN25: 0 | AO25: 72606.4734 | AP25: 0 | AQ25: 0 | AR25: 0 | AS25: 1124367.994
B26: =Prop2020DistTar!B26 -> Large Business - LVMS 2.2+ - 6.0 GWh | D26: 1787.264 | E26: 3.309 | F26: 0 | G26: 0 | H26: 0 | I26: 1.019 | J26: 0 | K26: 0 | L26: 0 | M26: 3.375 | N26: 0 | O26: 0 | P26: 0 | R26: =Prop2020DistTar!AF26 -> 11 | S26: =Prop2020DistTar!AG26 -> 10947685.65 | T26: =Prop2020DistTar!AH26 -> 0 | U26: =Prop2020DistTar!AI26 -> 0 | V26: =Prop2020DistTar!AJ26 -> 0 | W26: =Prop2020DistTar!AK26 -> 8831426.158 | X26: =Prop2020DistTar!AL26 -> 0 | Y26: =Prop2020DistTar!AM26 -> 0 | Z26: =Prop2020DistTar!AN26 -> 0 | AA26: =Prop2020DistTar!AO26 -> 7857.658684 | AB26: =Prop2020DistTar!AP26 -> 0 | AC26: =Prop2020DistTar!AQ26 -> 0 | AD26: =Prop2020DistTar!AR26 -> 0 | AF26: 19659.904 | AG26: 362258.9181 | AH26: 0 | AI26: 0 | AJ26: 0 | AK26: 89992.23255 | AL26: 0 | AM26: 0 | AN26: 0 | AO26: 26519.59806 | AP26: 0 | AQ26: 0 | AR26: 0 | AS26: 498430.6527
B27: =Prop2020DistTar!B27 -> Large Business - LV 6.0+ GWh | D27: 3447.177 | E27: 2.691 | F27: 0 | G27: 0 | H27: 0 | I27: 1.018 | J27: 0 | K27: 0 | L27: 0 | M27: 2.7567 | N27: 0 | O27: 0 | P27: 0 | R27: =Prop2020DistTar!AF27 -> 19 | S27: =Prop2020DistTar!AG27 -> 54016087.34 | T27: =Prop2020DistTar!AH27 -> 0 | U27: =Prop2020DistTar!AI27 -> 0 | V27: =Prop2020DistTar!AJ27 -> 0 | W27: =Prop2020DistTar!AK27 -> 45267619.45 | X27: =Prop2020DistTar!AL27 -> 0 | Y27: =Prop2020DistTar!AM27 -> 0 | Z27: =Prop2020DistTar!AN27 -> 0 | AA27: =Prop2020DistTar!AO27 -> 24539.6823 | AB27: =Prop2020DistTar!AP27 -> 0 | AC27: =Prop2020DistTar!AQ27 -> 0 | AD27: =Prop2020DistTar!AR27 -> 0 | AF27: 65496.363 | AG27: 1453572.91 | AH27: 0 | AI27: 0 | AJ27: 0 | AK27: 460824.366 | AL27: 0 | AM27: 0 | AN27: 0 | AO27: 67648.54218 | AP27: 0 | AQ27: 0 | AR27: 0 | AS27: 2047542.182
B28: =Prop2020DistTar!B28 -> Large Business - LVMS 6.0+ GWh | D28: 4284.119 | E28: 2.826 | F28: 0 | G28: 0 | H28: 0 | I28: 1.018 | J28: 0 | K28: 0 | L28: 0 | M28: 3.42495 | N28: 0 | O28: 0 | P28: 0 | R28: =Prop2020DistTar!AF28 -> 31 | S28: =Prop2020DistTar!AG28 -> 51574099.3 | T28: =Prop2020DistTar!AH28 -> 0 | U28: =Prop2020DistTar!AI28 -> 0 | V28: =Prop2020DistTar!AJ28 -> 0 | W28: =Prop2020DistTar!AK28 -> 40147645.06 | X28: =Prop2020DistTar!AL28 -> 0 | Y28: =Prop2020DistTar!AM28 -> 0 | Z28: =Prop2020DistTar!AN28 -> 0 | AA28: =Prop2020DistTar!AO28 -> 29061.41144 | AB28: =Prop2020DistTar!AP28 -> 0 | AC28: =Prop2020DistTar!AQ28 -> 0 | AD28: =Prop2020DistTar!AR28 -> 0 | AF28: 132807.689 | AG28: 1457484.046 | AH28: 0 | AI28: 0 | AJ28: 0 | AK28: 408703.0267 | AL28: 0 | AM28: 0 | AN28: 0 | AO28: 99533.88112 | AP28: 0 | AQ28: 0 | AR28: 0 | AS28: 2098528.643
B29: =Prop2020DistTar!B29 -> Large Business - HV | D29: 9162.004 | E29: 2.982 | F29: 0 | G29: 0 | H29: 0 | I29: 0.757 | J29: 0 | K29: 0 | L29: 0 | M29: 2.90125 | N29: 0 | O29: 0 | P29: 0 | R29: =Prop2020DistTar!AF29 -> 79.96666667 | S29: =Prop2020DistTar!AG29 -> 261382203.5 | T29: =Prop2020DistTar!AH29 -> 0 | U29: =Prop2020DistTar!AI29 -> 0 | V29: =Prop2020DistTar!AJ29 -> 0 | W29: =Prop2020DistTar!AK29 -> 207377504.5 | X29: =Prop2020DistTar!AL29 -> 0 | Y29: =Prop2020DistTar!AM29 -> 0 | Z29: =Prop2020DistTar!AN29 -> 0 | AA29: =Prop2020DistTar!AO29 -> 179403.3486 | AB29: =Prop2020DistTar!AP29 -> 0 | AC29: =Prop2020DistTar!AQ29 -> 0 | AD29: =Prop2020DistTar!AR29 -> 0 | AF29: 732654.9199 | AG29: 7794417.307 | AH29: 0 | AI29: 0 | AJ29: 0 | AK29: 1569847.709 | AL29: 0 | AM29: 0 | AN29: 0 | AO29: 520493.9651 | AP29: 0 | AQ29: 0 | AR29: 0 | AS29: 10617413.9
B30: =Prop2020DistTar!B30 -> Large Business – HVEN | D30: 9162.004 | E30: 2.676 | F30: 0 | G30: 0 | H30: 0 | I30: 0.757 | J30: 0 | K30: 0 | L30: 0 | M30: 2.81125 | N30: 0 | O30: 0 | P30: 0 | R30: =Prop2020DistTar!AF30 -> 2 | S30: =Prop2020DistTar!AG30 -> 10026148.25 | T30: =Prop2020DistTar!AH30 -> 0 | U30: =Prop2020DistTar!AI30 -> 0 | V30: =Prop2020DistTar!AJ30 -> 0 | W30: =Prop2020DistTar!AK30 -> 7861827.181 | X30: =Prop2020DistTar!AL30 -> 0 | Y30: =Prop2020DistTar!AM30 -> 0 | Z30: =Prop2020DistTar!AN30 -> 0 | AA30: =Prop2020DistTar!AO30 -> 3283.976925 | AB30: =Prop2020DistTar!AP30 -> 0 | AC30: =Prop2020DistTar!AQ30 -> 0 | AD30: =Prop2020DistTar!AR30 -> 0 | AF30: 18324.008 | AG30: 268299.7272 | AH30: 0 | AI30: 0 | AJ30: 0 | AK30: 59514.03176 | AL30: 0 | AM30: 0 | AN30: 0 | AO30: 9232.080131 | AP30: 0 | AQ30: 0 | AR30: 0 | AS30: 355369.8471
B31: =Prop2020DistTar!B31 -> Large Business - HVRF | D31: 9162.004 | E31: 2.974 | F31: 0 | G31: 0 | H31: 0 | I31: 0.757 | J31: 0 | K31: 0 | L31: 0 | M31: 7.03375 | N31: 0 | O31: 0 | P31: 0 | R31: =Prop2020DistTar!AF31 -> 1.966666667 | S31: =Prop2020DistTar!AG31 -> 20779374.23 | T31: =Prop2020DistTar!AH31 -> 0 | U31: =Prop2020DistTar!AI31 -> 0 | V31: =Prop2020DistTar!AJ31 -> 0 | W31: =Prop2020DistTar!AK31 -> 18296465.43 | X31: =Prop2020DistTar!AL31 -> 0 | Y31: =Prop2020DistTar!AM31 -> 0 | Z31: =Prop2020DistTar!AN31 -> 0 | AA31: =Prop2020DistTar!AO31 -> 12318.36753 | AB31: =Prop2020DistTar!AP31 -> 0 | AC31: =Prop2020DistTar!AQ31 -> 0 | AD31: =Prop2020DistTar!AR31 -> 0 | AF31: 18018.60787 | AG31: 617978.5896 | AH31: 0 | AI31: 0 | AJ31: 0 | AK31: 138504.2433 | AL31: 0 | AM31: 0 | AN31: 0 | AO31: 86644.31761 | AP31: 0 | AQ31: 0 | AR31: 0 | AS31: 861145.7584
B32: =Prop2020DistTar!B32 -> Large Business - HV Ann Cons >= 55GWh | D32: 10148.747 | E32: 2.745 | F32: 0 | G32: 0 | H32: 0 | I32: 0.726 | J32: 0 | K32: 0 | L32: 0 | M32: 6.71625 | N32: 0 | O32: 0 | P32: 0 | R32: =Prop2020DistTar!AF32 -> 1 | S32: =Prop2020DistTar!AG32 -> 30160498.85 | T32: =Prop2020DistTar!AH32 -> 0 | U32: =Prop2020DistTar!AI32 -> 0 | V32: =Prop2020DistTar!AJ32 -> 0 | W32: =Prop2020DistTar!AK32 -> 26819057.71 | X32: =Prop2020DistTar!AL32 -> 0 | Y32: =Prop2020DistTar!AM32 -> 0 | Z32: =Prop2020DistTar!AN32 -> 0 | AA32: =Prop2020DistTar!AO32 -> 10095.62244 | AB32: =Prop2020DistTar!AP32 -> 0 | AC32: =Prop2020DistTar!AQ32 -> 0 | AD32: =Prop2020DistTar!AR32 -> 0 | AF32: 10148.747 | AG32: 827905.6935 | AH32: 0 | AI32: 0 | AJ32: 0 | AK32: 194706.359 | AL32: 0 | AM32: 0 | AN32: 0 | AO32: 67804.72423 | AP32: 0 | AQ32: 0 | AR32: 0 | AS32: 1100565.524
B33: =Prop2020DistTar!B33 -> Large Business - Subtransmission | D33: 15847.543 | E33: 2.268 | F33: 0 | G33: 0 | H33: 0 | I33: 0.499 | J33: 0 | K33: 0 | L33: 0 | M33: 4.23808 | N33: 0 | O33: 0 | P33: 0 | R33: =Prop2020DistTar!AF33 -> 3 | S33: =Prop2020DistTar!AG33 -> 127353390.8 | T33: =Prop2020DistTar!AH33 -> 0 | U33: =Prop2020DistTar!AI33 -> 0 | V33: =Prop2020DistTar!AJ33 -> 0 | W33: =Prop2020DistTar!AK33 -> 137331201.1 | X33: =Prop2020DistTar!AL33 -> 0 | Y33: =Prop2020DistTar!AM33 -> 0 | Z33: =Prop2020DistTar!AN33 -> 0 | AA33: =Prop2020DistTar!AO33 -> 62414.39064 | AB33: =Prop2020DistTar!AP33 -> 0 | AC33: =Prop2020DistTar!AQ33 -> 0 | AD33: =Prop2020DistTar!AR33 -> 0 | AF33: 47542.629 | AG33: 2888374.904 | AH33: 0 | AI33: 0 | AJ33: 0 | AK33: 685282.6932 | AL33: 0 | AM33: 0 | AN33: 0 | AO33: 264517.1807 | AP33: 0 | AQ33: 0 | AR33: 0 | AS33: 3885717.407
B34: =Prop2020DistTar!B34 -> Large Business - Subtransmission MA | D34: 15847.543 | E34: 2.268 | F34: 0 | G34: 0 | H34: 0 | I34: 0.499 | J34: 0 | K34: 0 | L34: 0 | M34: 4.25936 | N34: 0 | O34: 0 | P34: 0 | R34: =Prop2020DistTar!AF34 -> 1 | S34: =Prop2020DistTar!AG34 -> 72878283.53 | T34: =Prop2020DistTar!AH34 -> 0 | U34: =Prop2020DistTar!AI34 -> 0 | V34: =Prop2020DistTar!AJ34 -> 0 | W34: =Prop2020DistTar!AK34 -> 72553526.24 | X34: =Prop2020DistTar!AL34 -> 0 | Y34: =Prop2020DistTar!AM34 -> 0 | Z34: =Prop2020DistTar!AN34 -> 0 | AA34: =Prop2020DistTar!AO34 -> 43108.52324 | AB34: =Prop2020DistTar!AP34 -> 0 | AC34: =Prop2020DistTar!AQ34 -> 0 | AD34: =Prop2020DistTar!AR34 -> 0 | AF34: 15847.543 | AG34: 1652879.471 | AH34: 0 | AI34: 0 | AJ34: 0 | AK34: 362042.096 | AL34: 0 | AM34: 0 | AN34: 0 | AO34: 183614.7196 | AP34: 0 | AQ34: 0 | AR34: 0 | AS34: 2214383.829
B35: =Prop2020DistTar!B35 -> Large Business - Subtransmission EG | D35: 5058.715 | E35: 2.304 | F35: 0 | G35: 0 | H35: 0 | I35: 0.508 | J35: 0 | K35: 0 | L35: 0 | M35: 4.89328 | N35: 0 | O35: 0 | P35: 0 | R35: =Prop2020DistTar!AF35 -> 1 | S35: =Prop2020DistTar!AG35 -> 1437945.657 | T35: =Prop2020DistTar!AH35 -> 0 | U35: =Prop2020DistTar!AI35 -> 0 | V35: =Prop2020DistTar!AJ35 -> 0 | W35: =Prop2020DistTar!AK35 -> 1708117.938 | X35: =Prop2020DistTar!AL35 -> 0 | Y35: =Prop2020DistTar!AM35 -> 0 | Z35: =Prop2020DistTar!AN35 -> 0 | AA35: =Prop2020DistTar!AO35 -> 32052.45056 | AB35: =Prop2020DistTar!AP35 -> 0 | AC35: =Prop2020DistTar!AQ35 -> 0 | AD35: =Prop2020DistTar!AR35 -> 0 | AF35: =D35*R35 -> 5058.715 | AG35: =E35/100*S35 -> 33130.26794 | AH35: 0 | AI35: 0 | AJ35: 0 | AK35: 8677.239127 | AL35: 0 | AM35: 0 | AN35: 0 | AO35: =M35*AA35 -> 156841.6153 | AP35: =N35*AB35 -> 0 | AQ35: =O35*AC35 -> 0 | AR35: =P35*AD35 -> 0 | AS35: =SUM(AF35:AR35) -> 203707.8374
AF36: 0 | AG36: 0 | AH36: 0 | AI36: 0 | AJ36: 0 | AK36: 0 | AL36: 0 | AM36: 0 | AN36: 0 | AO36: 0 | AP36: 0 | AQ36: 0 | AR36: 0 | AS36: 0
AF37: 0 | AG37: 0 | AH37: 0 | AI37: 0 | AJ37: 0 | AK37: 0 | AL37: 0 | AM37: 0 | AN37: 0 | AO37: 0 | AP37: 0 | AQ37: 0 | AR37: 0 | AS37: 0
AF38: 0 | AG38: 0 | AH38: 0 | AI38: 0 | AJ38: 0 | AK38: 0 | AL38: 0 | AM38: 0 | AN38: =L38/100*Z38 -> 0 | AO38: 0 | AP38: 0 | AQ38: 0 | AR38: 0 | AS38: 0
AF39: 0 | AG39: 0 | AH39: 0 | AI39: 0 | AJ39: 0 | AK39: 0 | AL39: 0 | AM39: 0 | AN39: 0 | AO39: 0 | AP39: 0 | AQ39: 0 | AR39: 0 | AS39: 0
AF40: 0 | AG40: 0 | AH40: 0 | AI40: 0 | AJ40: 0 | AK40: 0 | AL40: 0 | AM40: 0 | AN40: 0 | AO40: 0 | AP40: 0 | AQ40: 0 | AR40: 0 | AS40: 0
AF41: 0 | AG41: 0 | AH41: 0 | AI41: 0 | AJ41: 0 | AK41: 0 | AL41: 0 | AM41: 0 | AN41: 0 | AO41: 0 | AP41: 0 | AQ41: 0 | AR41: 0 | AS41: 0
AF42: 0 | AG42: 0 | AH42: 0 | AI42: 0 | AJ42: 0 | AK42: 0 | AL42: 0 | AM42: 0 | AN42: 0 | AO42: 0 | AP42: 0 | AQ42: 0 | AR42: 0 | AS42: 0
AF43: 0 | AG43: 0 | AH43: 0 | AI43: 0 | AJ43: 0 | AK43: 0 | AL43: 0 | AM43: 0 | AN43: 0 | AO43: 0 | AP43: 0 | AQ43: 0 | AR43: 0 | AS43: 0
AF44: 0 | AG44: 0 | AH44: 0 | AI44: 0 | AJ44: 0 | AK44: 0 | AL44: 0 | AM44: 0 | AN44: 0 | AO44: 0 | AP44: 0 | AQ44: 0 | AR44: 0 | AS44: 0
AF45: 0 | AG45: 0 | AH45: 0 | AI45: 0 | AJ45: 0 | AK45: 0 | AL45: 0 | AM45: 0 | AN45: 0 | AO45: 0 | AP45: 0 | AQ45: 0 | AR45: 0 | AS45: 0
AF46: 0 | AG46: 0 | AH46: 0 | AI46: 0 | AJ46: 0 | AK46: 0 | AL46: 0 | AM46: 0 | AN46: 0 | AO46: 0 | AP46: 0 | AQ46: 0 | AR46: 0 | AS46: 0
AF47: 0 | AG47: 0 | AH47: 0 | AI47: 0 | AJ47: 0 | AK47: 0 | AL47: 0 | AM47: 0 | AN47: 0 | AO47: 0 | AP47: 0 | AQ47: 0 | AR47: 0 | AS47: 0
AF48: 0 | AG48: 0 | AH48: 0 | AI48: 0 | AJ48: 0 | AK48: 0 | AL48: 0 | AM48: 0 | AN48: 0 | AO48: 0 | AP48: 0 | AQ48: 0 | AR48: 0 | AS48: 0
AF49: 0 | AG49: 0 | AH49: 0 | AI49: 0 | AJ49: 0 | AK49: 0 | AL49: 0 | AM49: 0 | AN49: 0 | AO49: 0 | AP49: 0 | AQ49: 0 | AR49: 0 | AS49: 0
AF50: 0 | AG50: 0 | AH50: 0 | AI50: 0 | AJ50: 0 | AK50: 0 | AL50: 0 | AM50: 0 | AN50: 0 | AO50: 0 | AP50: 0 | AQ50: 0 | AR50: 0 | AS50: 0
AF51: 0 | AG51: 0 | AH51: 0 | AI51: 0 | AJ51: 0 | AK51: 0 | AL51: 0 | AM51: 0 | AN51: 0 | AO51: 0 | AP51: 0 | AQ51: 0 | AR51: 0 | AS51: 0
AF52: 0 | AG52: 0 | AH52: 0 | AI52: 0 | AJ52: 0 | AK52: 0 | AL52: 0 | AM52: 0 | AN52: 0 | AO52: 0 | AP52: 0 | AQ52: 0 | AR52: 0 | AS52: 0
AF53: 0 | AG53: 0 | AH53: 0 | AI53: 0 | AJ53: 0 | AK53: 0 | AL53: 0 | AM53: 0 | AN53: 0 | AO53: 0 | AP53: 0 | AQ53: 0 | AR53: 0 | AS53: 0
AF54: 0 | AG54: 0 | AH54: 0 | AI54: 0 | AJ54: 0 | AK54: 0 | AL54: 0 | AM54: 0 | AN54: 0 | AO54: 0 | AP54: 0 | AQ54: 0 | AR54: 0 | AS54: 0
AF55: 0 | AG55: 0 | AH55: 0 | AI55: 0 | AJ55: 0 | AK55: 0 | AL55: 0 | AM55: 0 | AN55: 0 | AO55: 0 | AP55: 0 | AQ55: 0 | AR55: 0 | AS55: 0
AF56: 0 | AG56: 0 | AH56: 0 | AI56: 0 | AJ56: 0 | AK56: 0 | AL56: 0 | AM56: 0 | AN56: 0 | AO56: 0 | AP56: 0 | AQ56: 0 | AR56: 0 | AS56: 0
AF57: 0 | AG57: 0 | AH57: 0 | AI57: 0 | AJ57: 0 | AK57: 0 | AL57: 0 | AM57: 0 | AN57: 0 | AO57: 0 | AP57: 0 | AQ57: 0 | AR57: 0 | AS57: 0
AF58: 0 | AG58: 0 | AH58: 0 | AI58: 0 | AJ58: 0 | AK58: 0 | AL58: 0 | AM58: 0 | AN58: 0 | AO58: 0 | AP58: 0 | AQ58: 0 | AR58: 0 | AS58: 0
AF59: 0 | AG59: 0 | AH59: 0 | AI59: 0 | AJ59: 0 | AK59: 0 | AL59: 0 | AM59: 0 | AN59: 0 | AO59: 0 | AP59: 0 | AQ59: 0 | AR59: 0 | AS59: 0
AF60: 0 | AG60: 0 | AH60: 0 | AI60: 0 | AJ60: 0 | AK60: 0 | AL60: 0 | AM60: 0 | AN60: 0 | AO60: 0 | AP60: 0 | AQ60: 0 | AR60: 0 | AS60: 0
AF61: 0 | AG61: 0 | AH61: 0 | AI61: 0 | AJ61: 0 | AK61: 0 | AL61: 0 | AM61: 0 | AN61: 0 | AO61: 0 | AP61: 0 | AQ61: 0 | AR61: 0 | AS61: 0
AF62: 0 | AG62: 0 | AH62: 0 | AI62: 0 | AJ62: 0 | AK62: 0 | AL62: 0 | AM62: 0 | AN62: 0 | AO62: 0 | AP62: 0 | AQ62: 0 | AR62: 0 | AS62: 0
AF63: 0 | AG63: 0 | AH63: 0 | AI63: 0 | AJ63: 0 | AK63: 0 | AL63: 0 | AM63: 0 | AN63: 0 | AO63: 0 | AP63: 0 | AQ63: 0 | AR63: 0 | AS63: 0
AF64: 0 | AG64: 0 | AH64: 0 | AI64: 0 | AJ64: 0 | AK64: 0 | AL64: 0 | AM64: 0 | AN64: 0 | AO64: 0 | AP64: 0 | AQ64: 0 | AR64: 0 | AS64: 0
AF65: 0 | AG65: 0 | AH65: 0 | AI65: 0 | AJ65: 0 | AK65: 0 | AL65: 0 | AM65: 0 | AN65: 0 | AO65: 0 | AP65: 0 | AQ65: 0 | AR65: 0 | AS65: 0
R66: =SUM(R6:R65) -> 352763.8279 | S66: 3118566391 | T66: 963834.6369 | U66: 676158.9282 | V66: 1257062.401 | W66: 1294294326 | X66: 821885.2976 | Y66: =SUM(Y6:Y65) -> 0 | Z66: 0 | AA66: 930066.1467 | AB66: 0 | AC66: 0 | AD66: 0 | AF66: =SUM(AF6:AF65) -> 1787788.55 | AG66: 53297455.2 | AH66: 5946.85971 | AI66: 1879.721821 | AJ66: 7756.075015 | AK66: 10372411.5 | AL66: 271.2221482 | AM66: =SUM(AM6:AM65) -> 0 | AN66: 0 | AO66: 2528734.405 | AP66: 0 | AQ66: 0 | AR66: 0 | AS66: 68002243.53

Sheet Est2019TransRev
B1: ="Tariff Approval - "&'Model update'!C3 -> Tariff Approval - Jemena | D1: ="Est"&'Model update'!$C$5-1&"TransRev" -> Est2019TransRev
B3: ="ESTIMATED "&'Model update'!C8&" TRANSMISSION TARIFF REVENUE" -> ESTIMATED 2019 TRANSMISSION TARIFF REVENUE
D4: ="Current Transmission Tariffs (Pt-1) for "&'Model update'!$C$8 -> Current Transmission Tariffs (Pt-1) for 2019 | R4: ="Estimated Quantities (Qt-1) for "&'Model update'!$C$8 -> Estimated Quantities (Qt-1) for 2019 | AF4: ="Estimated Revenue (Pt-1 "&'Model update'!$C$8&")*(Qt-1 " &'Model update'!$C$8&")" -> Estimated Revenue (Pt-1 2019)*(Qt-1 2019)
B5: ="Tariffs "&'Model update'!C8 -> Tariffs 2019 | D5: CurrentTar Fixed | E5: CurrentTar PkBlk1 | F5: CurrentTar Shoulder summer | G5: CurrentTar peak non-summer | H5: CurrentTar Shoulder non-summer | I5: CurrentTar OPkBlk1 | J5: CurrentTar off peak non-summer | K5: CurrentTar OPkBlk3 | L5: CurrentTar OPkBlk4 | M5: CurrentTar DemBlk1 | N5: CurrentTar DemBlk2 | O5: CurrentTar DemBlk3 | P5: CurrentTar DemBlk4 | R5: EstVol Fixed | S5: EstVol PkBlk1 | T5: EstVol Shoulder summer | U5: EstVol peak non-summer | V5: EstVol Shoulder non-summer | W5: EstVol OPkBlk1 | X5: EstVol off peak non-summer | Y5: EstVol OPkBlk3 | Z5: EstVol OPkBlk4 | AA5: EstVol DemBlk1 | AB5: EstVol DemBlk2 | AC5: EstVol DemBlk3 | AD5: EstVol DemBlk4 | AF5: EstRev Fixed | AG5: EstRev PkBlk1 | AH5: EstRev Shoulder summer | AI5: EstRev peak non-summer | AJ5: EstRev Shoulder non-summer | AK5: EstRev OPkBlk1 | AL5: EstRev off peak non-summer | AM5: EstRev OPkBlk3 | AN5: EstRev OPkBlk4 | AO5: EstRev DemBlk1 | AP5: EstRev DemBlk2 | AQ5: EstRev DemBlk3 | AR5: EstRev DemBlk4 | AS5: EstRev Total
B6: =Est2019DistRev!B6 -> Residential - General Purpose | D6: 0.3 | E6: 0.299 | F6: 0 | G6: 0 | H6: 0 | I6: 0 | J6: 0 | K6: 0 | L6: 0 | M6: 0 | N6: 0 | O6: 0 | P6: 0 | R6: =Est2019DistRev!R6 -> 301686.4437 | S6: =Est2019DistRev!S6 -> 1176483463 | T6: =Est2019DistRev!T6 -> 0 | U6: =Est2019DistRev!U6 -> 0 | V6: =Est2019DistRev!V6 -> 0 | W6: =Est2019DistRev!W6 -> 0 | X6: =Est2019DistRev!X6 -> 0 | Y6: =Est2019DistRev!Y6 -> 0 | Z6: =Est2019DistRev!Z6 -> 0 | AA6: =Est2019DistRev!AA6 -> 0 | AB6: =Est2019DistRev!AB6 -> 0 | AC6: =Est2019DistRev!AC6 -> 0 | AD6: =Est2019DistRev!AD6 -> 0 | AF6: =D6*R6 -> 90505.93312 | AG6: =E6/100*S6 -> 3517685.555 | AH6: 0 | AI6: 0 | AJ6: 0 | AK6: 0 | AL6: 0 | AM6: 0 | AN6: 0 | AO6: =M6*AA6 -> 0 | AP6: 0 | AQ6: 0 | AR6: 0 | AS6: =SUM(AF6:AR6) -> 3608191.488
B7: =Est2019DistRev!B7 -> Residential - General Purpose Demand | D7: 0.3 | E7: 0.299 | F7: 0 | G7: 0 | H7: 0 | I7: 0 | J7: 0 | K7: 0 | L7: 0 | M7: 0 | N7: 0 | O7: 0 | P7: 0 | R7: =Est2019DistRev!R7 -> 1.001220543 | S7: =Est2019DistRev!S7 -> 3199.47119 | T7: =Est2019DistRev!T7 -> 0 | U7: =Est2019DistRev!U7 -> 0 | V7: =Est2019DistRev!V7 -> 0 | W7: =Est2019DistRev!W7 -> 0 | X7: =Est2019DistRev!X7 -> 0 | Y7: =Est2019DistRev!Y7 -> 0 | Z7: =Est2019DistRev!Z7 -> 0 | AA7: =Est2019DistRev!AA7 -> 50.58160812 | AB7: =Est2019DistRev!AB7 -> 0 | AC7: =Est2019DistRev!AC7 -> 0 | AD7: =Est2019DistRev!AD7 -> 0 | AF7: =D7*R7 -> 0.3003661629 | AG7: =E7/100*S7 -> 9.566418857 | AH7: 0 | AI7: 0 | AJ7: 0 | AK7: 0 | AL7: 0 | AM7: 0 | AN7: 0 | AO7: =M7*AA7 -> 0 | AP7: =N7*AB7 -> 0 | AQ7: =O7*AC7 -> 0 | AR7: =P7*AD7 -> 0 | AS7: =SUM(AF7:AR7) -> 9.86678502
B8: =Est2019DistRev!B8 -> Residential - Flexible | D8: 0.3 | E8: 0.074 | F8: 0.299 | G8: 0.074 | H8: 0.299 | I8: 0.017 | J8: 0.017 | K8: 0 | L8: 0 | M8: 0 | N8: 0 | O8: 0 | P8: 0 | R8: =Est2019DistRev!R8 -> 1000 | S8: =Est2019DistRev!S8 -> 729714.5627 | T8: =Est2019DistRev!T8 -> 1368615.722 | U8: =Est2019DistRev!U8 -> 960125.0095 | V8: =Est2019DistRev!V8 -> 1784990.184 | W8: =Est2019DistRev!W8 -> 1448837.789 | X8: =Est2019DistRev!X8 -> 1167051.999 | Y8: =Est2019DistRev!Y8 -> 0 | Z8: =Est2019DistRev!Z8 -> 0 | AA8: =Est2019DistRev!AA8 -> 0 | AB8: =Est2019DistRev!AB8 -> 0 | AC8: =Est2019DistRev!AC8 -> 0 | AD8: =Est2019DistRev!AD8 -> 0 | AF8: 300 | AG8: 539.9887764 | AH8: 4092.161009 | AI8: 710.492507 | AJ8: 5337.12065 | AK8: 246.3024242 | AL8: 198.3988399 | AM8: 0 | AN8: 0 | AO8: 0 | AP8: 0 | AQ8: 0 | AR8: 0 | AS8: 11424.46421
B9: =Est2019DistRev!B9 -> Residential - Time of Use Interval Meter | D9: 0.3 | E9: 0.074 | F9: 0 | G9: 0 | H9: 0 | I9: 0.381 | J9: 0 | K9: 0 | L9: 0 | M9: 0 | N9: 0 | O9: 0 | P9: 0 | R9: =Est2019DistRev!R9 -> 15783.3079 | S9: =Est2019DistRev!S9 -> 38414734.81 | T9: =Est2019DistRev!T9 -> 0 | U9: =Est2019DistRev!U9 -> 0 | V9: =Est2019DistRev!V9 -> 0 | W9: =Est2019DistRev!W9 -> 39759423.7 | X9: =Est2019DistRev!X9 -> 0 | Y9: =Est2019DistRev!Y9 -> 0 | Z9: =Est2019DistRev!Z9 -> 0 | AA9: =Est2019DistRev!AA9 -> 0 | AB9: =Est2019DistRev!AB9 -> 0 | AC9: =Est2019DistRev!AC9 -> 0 | AD9: =Est2019DistRev!AD9 -> 0 | AF9: 4734.992371 | AG9: 28426.90376 | AH9: 0 | AI9: 0 | AJ9: 0 | AK9: 151483.4043 | AL9: 0 | AM9: 0 | AN9: 0 | AO9: 0 | AP9: 0 | AQ9: 0 | AR9: 0 | AS9: 184645.3004
B10: =Est2019DistRev!B10 -> Residential - TOU | D10: 0.3 | E10: 1.774 | F10: 0 | G10: 0 | H10: 0 | I10: 1.013 | J10: 0 | K10: 0 | L10: 0 | M10: 0 | N10: 0 | O10: 0 | P10: 0 | R10: =Est2019DistRev!R10 -> 1607.472743 | S10: =Est2019DistRev!S10 -> 6286480.773 | T10: =Est2019DistRev!T10 -> 0 | U10: =Est2019DistRev!U10 -> 0 | V10: =Est2019DistRev!V10 -> 0 | W10: =Est2019DistRev!W10 -> 6884654.453 | X10: =Est2019DistRev!X10 -> 0 | Y10: =Est2019DistRev!Y10 -> 0 | Z10: =Est2019DistRev!Z10 -> 0 | AA10: =Est2019DistRev!AA10 -> 0 | AB10: =Est2019DistRev!AB10 -> 0 | AC10: =Est2019DistRev!AC10 -> 0 | AD10: =Est2019DistRev!AD10 -> 0 | AF10: 482.2418228 | AG10: 111522.1689 | AH10: 0 | AI10: 0 | AJ10: 0 | AK10: 69741.54961 | AL10: 0 | AM10: 0 | AN10: 0 | AO10: 0 | AP10: 0 | AQ10: 0 | AR10: 0 | AS10: 181745.9603
B11: =Est2019DistRev!B11 -> Residential - Off Peak Only | D11: 0 | E11: 0 | F11: 0 | G11: 0 | H11: 0 | I11: 0.765 | J11: 0 | K11: 0 | L11: 0 | M11: 0 | N11: 0 | O11: 0 | P11: 0 | R11: =Est2019DistRev!R11 -> 0 | S11: =Est2019DistRev!S11 -> 0 | T11: =Est2019DistRev!T11 -> 0 | U11: =Est2019DistRev!U11 -> 0 | V11: =Est2019DistRev!V11 -> 0 | W11: =Est2019DistRev!W11 -> 35388865.33 | X11: =Est2019DistRev!X11 -> 0 | Y11: =Est2019DistRev!Y11 -> 0 | Z11: =Est2019DistRev!Z11 -> 0 | AA11: =Est2019DistRev!AA11 -> 0 | AB11: =Est2019DistRev!AB11 -> 0 | AC11: =Est2019DistRev!AC11 -> 0 | AD11: =Est2019DistRev!AD11 -> 0 | AF11: 0 | AG11: 0 | AH11: 0 | AI11: 0 | AJ11: 0 | AK11: 270724.8198 | AL11: 0 | AM11: 0 | AN11: 0 | AO11: 0 | AP11: 0 | AQ11: 0 | AR11: 0 | AS11: 270724.8198
B12: =Est2019DistRev!B12 -> Small Business - General Purpose | D12: 0.761 | E12: 0.755 | F12: 0 | G12: 0 | H12: 0 | I12: 0 | J12: 0 | K12: 0 | L12: 0 | M12: 0 | N12: 0 | O12: 0 | P12: 0 | R12: =Est2019DistRev!R12 -> 16330.65672 | S12: =Est2019DistRev!S12 -> 200365882 | T12: =Est2019DistRev!T12 -> 0 | U12: =Est2019DistRev!U12 -> 0 | V12: =Est2019DistRev!V12 -> 0 | W12: =Est2019DistRev!W12 -> 0 | X12: =Est2019DistRev!X12 -> 0 | Y12: =Est2019DistRev!Y12 -> 0 | Z12: =Est2019DistRev!Z12 -> 0 | AA12: =Est2019DistRev!AA12 -> 0 | AB12: =Est2019DistRev!AB12 -> 0 | AC12: =Est2019DistRev!AC12 -> 0 | AD12: =Est2019DistRev!AD12 -> 0 | AF12: 12427.62976 | AG12: 1512762.409 | AH12: 0 | AI12: 0 | AJ12: 0 | AK12: 0 | AL12: 0 | AM12: 0 | AN12: 0 | AO12: 0 | AP12: 0 | AQ12: 0 | AR12: 0 | AS12: 1525190.039
B13: =Est2019DistRev!B13 -> Small Business - General Purpose Demand | D13: 0.761 | E13: 0.755 | F13: 0 | G13: 0 | H13: 0 | I13: 0 | J13: 0 | K13: 0 | L13: 0 | M13: 0 | N13: 0 | O13: 0 | P13: 0 | R13: =Est2019DistRev!R13 -> 1.001826222 | S13: =Est2019DistRev!S13 -> 0 | T13: =Est2019DistRev!T13 -> 0 | U13: =Est2019DistRev!U13 -> 0 | V13: =Est2019DistRev!V13 -> 0 | W13: =Est2019DistRev!W13 -> 0 | X13: =Est2019DistRev!X13 -> 0 | Y13: =Est2019DistRev!Y13 -> 0 | Z13: =Est2019DistRev!Z13 -> 0 | AA13: =Est2019DistRev!AA13 -> 120.4626903 | AB13: =Est2019DistRev!AB13 -> 0 | AC13: =Est2019DistRev!AC13 -> 0 | AD13: =Est2019DistRev!AD13 -> 0 | AF13: 0.7623897549 | AG13: 0 | AH13: 0 | AI13: 0 | AJ13: 0 | AK13: 0 | AL13: 0 | AM13: 0 | AN13: 0 | AO13: 0 | AP13: 0 | AQ13: 0 | AR13: 0 | AS13: 0.7623897549
B14: =Est2019DistRev!B14 -> Small Business - TOU Weekdays | D14: 10.017 | E14: 1.324 | F14: 0 | G14: 0 | H14: 0 | I14: 0.695 | J14: 0 | K14: 0 | L14: 0 | M14: 0 | N14: 0 | O14: 0 | P14: 0 | R14: =Est2019DistRev!R14 -> 7570.796506 | S14: =Est2019DistRev!S14 -> 164109568.5 | T14: =Est2019DistRev!T14 -> 0 | U14: =Est2019DistRev!U14 -> 0 | V14: =Est2019DistRev!V14 -> 0 | W14: =Est2019DistRev!W14 -> 107036487.7 | X14: =Est2019DistRev!X14 -> 0 | Y14: =Est2019DistRev!Y14 -> 0 | Z14: =Est2019DistRev!Z14 -> 0 | AA14: =Est2019DistRev!AA14 -> 0 | AB14: =Est2019DistRev!AB14 -> 0 | AC14: =Est2019DistRev!AC14 -> 0 | AD14: =Est2019DistRev!AD14 -> 0 | AF14: 75836.6686 | AG14: 2172810.687 | AH14: 0 | AI14: 0 | AJ14: 0 | AK14: 743903.5897 | AL14: 0 | AM14: 0 | AN14: 0 | AO14: 0 | AP14: 0 | AQ14: 0 | AR14: 0 | AS14: 2992550.945
B15: =Est2019DistRev!B15 -> Small Business - TOU Weekdays Demand | D15: 95.249 | E15: 0.643 | F15: 0 | G15: 0 | H15: 0 | I15: 0.481 | J15: 0 | K15: 0 | L15: 0 | M15: 0.386 | N15: 0 | O15: 0 | P15: 0 | R15: =Est2019DistRev!R15 -> 724.0324079 | S15: =Est2019DistRev!S15 -> 73421991.06 | T15: =Est2019DistRev!T15 -> 0 | U15: =Est2019DistRev!U15 -> 0 | V15: =Est2019DistRev!V15 -> 0 | W15: =Est2019DistRev!W15 -> 51078288.44 | X15: =Est2019DistRev!X15 -> 0 | Y15: =Est2019DistRev!Y15 -> 0 | Z15: =Est2019DistRev!Z15 -> 0 | AA15: =Est2019DistRev!AA15 -> 60952.52378 | AB15: =Est2019DistRev!AB15 -> 0 | AC15: =Est2019DistRev!AC15 -> 0 | AD15: =Est2019DistRev!AD15 -> 0 | AF15: 68963.36282 | AG15: 472103.4025 | AH15: 0 | AI15: 0 | AJ15: 0 | AK15: 245686.5674 | AL15: 0 | AM15: 0 | AN15: 0 | AO15: 23527.67418 | AP15: 0 | AQ15: 0 | AR15: 0 | AS15: 810281.0069
B16: =Est2019DistRev!B16 -> Small Business - TOU Opt out | D16: 95.249 | E16: 1.324 | F16: 0 | G16: 0 | H16: 0 | I16: 0.695 | J16: 0 | K16: 0 | L16: 0 | M16: 0 | N16: 0 | O16: 0 | P16: 0 | R16: =Est2019DistRev!R16 -> 9 | S16: =Est2019DistRev!S16 -> 0 | T16: =Est2019DistRev!T16 -> 0 | U16: =Est2019DistRev!U16 -> 0 | V16: =Est2019DistRev!V16 -> 0 | W16: =Est2019DistRev!W16 -> 0 | X16: =Est2019DistRev!X16 -> 0 | Y16: =Est2019DistRev!Y16 -> 0 | Z16: =Est2019DistRev!Z16 -> 0 | AA16: =Est2019DistRev!AA16 -> 0 | AB16: =Est2019DistRev!AB16 -> 0 | AC16: =Est2019DistRev!AC16 -> 0 | AD16: =Est2019DistRev!AD16 -> 0 | AF16: 857.241 | AG16: 0 | AH16: 0 | AI16: 0 | AJ16: 0 | AK16: 0 | AL16: 0 | AM16: 0 | AN16: 0 | AO16: 0 | AP16: 0 | AQ16: 0 | AR16: 0 | AS16: 857.241
B17: =Est2019DistRev!B17 -> Small Business - TOU Extended | D17: 10.017 | E17: 1.186 | F17: 0 | G17: 0 | H17: 0 | I17: 0.726 | J17: 0 | K17: 0 | L17: 0 | M17: 0 | N17: 0 | O17: 0 | P17: 0 | R17: =Est2019DistRev!R17 -> 2204.800723 | S17: =Est2019DistRev!S17 -> 44161400.27 | T17: =Est2019DistRev!T17 -> 0 | U17: =Est2019DistRev!U17 -> 0 | V17: =Est2019DistRev!V17 -> 0 | W17: =Est2019DistRev!W17 -> 13513510.64 | X17: =Est2019DistRev!X17 -> 0 | Y17: =Est2019DistRev!Y17 -> 0 | Z17: =Est2019DistRev!Z17 -> 0 | AA17: =Est2019DistRev!AA17 -> 0 | AB17: =Est2019DistRev!AB17 -> 0 | AC17: =Est2019DistRev!AC17 -> 0 | AD17: =Est2019DistRev!AD17 -> 0 | AF17: 22085.48884 | AG17: 523754.2072 | AH17: 0 | AI17: 0 | AJ17: 0 | AK17: 98108.08723 | AL17: 0 | AM17: 0 | AN17: 0 | AO17: 0 | AP17: 0 | AQ17: 0 | AR17: 0 | AS17: 643947.7832
B18: =Est2019DistRev!B18 -> Small Business - TOU Extended Demand | D18: 95.249 | E18: 1.061 | F18: 0 | G18: 0 | H18: 0 | I18: 0.468 | J18: 0 | K18: 0 | L18: 0 | M18: 0.386 | N18: 0 | O18: 0 | P18: 0 | R18: =Est2019DistRev!R18 -> 113.8928135 | S18: =Est2019DistRev!S18 -> 17007407.77 | T18: =Est2019DistRev!T18 -> 0 | U18: =Est2019DistRev!U18 -> 0 | V18: =Est2019DistRev!V18 -> 0 | W18: =Est2019DistRev!W18 -> 5001051.888 | X18: =Est2019DistRev!X18 -> 0 | Y18: =Est2019DistRev!Y18 -> 0 | Z18: =Est2019DistRev!Z18 -> 0 | AA18: =Est2019DistRev!AA18 -> 10805.42002 | AB18: =Est2019DistRev!AB18 -> 0 | AC18: =Est2019DistRev!AC18 -> 0 | AD18: =Est2019DistRev!AD18 -> 0 | AF18: 10848.1766 | AG18: 180448.5965 | AH18: 0 | AI18: 0 | AJ18: 0 | AK18: 23404.92283 | AL18: 0 | AM18: 0 | AN18: 0 | AO18: 4170.892128 | AP18: 0 | AQ18: 0 | AR18: 0 | AS18: 218872.588
B19: =Est2019DistRev!B19 -> Small Business - Unmetered Supply | D19: 0 | E19: 0.803 | F19: 0 | G19: 0 | H19: 0 | I19: 0.829 | J19: 0 | K19: 0 | L19: 0 | M19: 0 | N19: 0 | O19: 0 | P19: 0 | R19: =Est2019DistRev!R19 -> 0 | S19: =Est2019DistRev!S19 -> 11563166.52 | T19: =Est2019DistRev!T19 -> 0 | U19: =Est2019DistRev!U19 -> 0 | V19: =Est2019DistRev!V19 -> 0 | W19: =Est2019DistRev!W19 -> 25740120.96 | X19: =Est2019DistRev!X19 -> 0 | Y19: =Est2019DistRev!Y19 -> 0 | Z19: =Est2019DistRev!Z19 -> 0 | AA19: =Est2019DistRev!AA19 -> 0 | AB19: =Est2019DistRev!AB19 -> 0 | AC19: =Est2019DistRev!AC19 -> 0 | AD19: =Est2019DistRev!AD19 -> 0 | AF19: 0 | AG19: 92852.22714 | AH19: 0 | AI19: 0 | AJ19: 0 | AK19: 213385.6027 | AL19: 0 | AM19: 0 | AN19: 0 | AO19: 0 | AP19: 0 | AQ19: 0 | AR19: 0 | AS19: 306237.8299
B20: =Est2019DistRev!B20 -> Large Business - LV 0.4 - 0.8 GWh | D20: 67.903 | E20: 2.144 | F20: 0 | G20: 0 | H20: 0 | I20: 1.021 | J20: 0 | K20: 0 | L20: 0 | M20: 1.046 | N20: 0 | O20: 0 | P20: 0 | R20: =Est2019DistRev!R20 -> 787.9057242 | S20: =Est2019DistRev!S20 -> 177669042.6 | T20: =Est2019DistRev!T20 -> 0 | U20: =Est2019DistRev!U20 -> 0 | V20: =Est2019DistRev!V20 -> 0 | W20: =Est2019DistRev!W20 -> 114127368.6 | X20: =Est2019DistRev!X20 -> 0 | Y20: =Est2019DistRev!Y20 -> 0 | Z20: =Est2019DistRev!Z20 -> 0 | AA20: =Est2019DistRev!AA20 -> 148592.5231 | AB20: =Est2019DistRev!AB20 -> 0 | AC20: =Est2019DistRev!AC20 -> 0 | AD20: =Est2019DistRev!AD20 -> 0 | AF20: 53501.16239 | AG20: 3809224.273 | AH20: 0 | AI20: 0 | AJ20: 0 | AK20: 1165240.433 | AL20: 0 | AM20: 0 | AN20: 0 | AO20: 155427.7792 | AP20: 0 | AQ20: 0 | AR20: 0 | AS20: 5183393.648
B21: =Est2019DistRev!B21 -> Large Business – LVEN Annual Consumption <= 0.8 GWh | D21: 67.903 | E21: 2.156 | F21: 0 | G21: 0 | H21: 0 | I21: 1.021 | J21: 0 | K21: 0 | L21: 0 | M21: 1.416 | N21: 0 | O21: 0 | P21: 0 | R21: =Est2019DistRev!R21 -> 69.51925736 | S21: =Est2019DistRev!S21 -> 26628111.53 | T21: =Est2019DistRev!T21 -> 0 | U21: =Est2019DistRev!U21 -> 0 | V21: =Est2019DistRev!V21 -> 0 | W21: =Est2019DistRev!W21 -> 18394205.09 | X21: =Est2019DistRev!X21 -> 0 | Y21: =Est2019DistRev!Y21 -> 0 | Z21: =Est2019DistRev!Z21 -> 0 | AA21: =Est2019DistRev!AA21 -> 12631.46 | AB21: =Est2019DistRev!AB21 -> 0 | AC21: =Est2019DistRev!AC21 -> 0 | AD21: =Est2019DistRev!AD21 -> 0 | AF21: 4720.566133 | AG21: 574102.0846 | AH21: 0 | AI21: 0 | AJ21: 0 | AK21: 187804.8339 | AL21: 0 | AM21: 0 | AN21: 0 | AO21: 17886.14736 | AP21: 0 | AQ21: 0 | AR21: 0 | AS21: 784513.632
B22: =Est2019DistRev!B22 -> Large Business - LV 0.8+ - 2.2 GWh | D22: 143.759 | E22: 2.318 | F22: 0 | G22: 0 | H22: 0 | I22: 1.027 | J22: 0 | K22: 0 | L22: 0 | M22: 1.814 | N22: 0 | O22: 0 | P22: 0 | R22: =Est2019DistRev!R22 -> 378.7002524 | S22: =Est2019DistRev!S22 -> 248248736.1 | T22: =Est2019DistRev!T22 -> 0 | U22: =Est2019DistRev!U22 -> 0 | V22: =Est2019DistRev!V22 -> 0 | W22: =Est2019DistRev!W22 -> 171548799.9 | X22: =Est2019DistRev!X22 -> 0 | Y22: =Est2019DistRev!Y22 -> 0 | Z22: =Est2019DistRev!Z22 -> 0 | AA22: =Est2019DistRev!AA22 -> 177995.9966 | AB22: =Est2019DistRev!AB22 -> 0 | AC22: =Est2019DistRev!AC22 -> 0 | AD22: =Est2019DistRev!AD22 -> 0 | AF22: 54441.56959 | AG22: 5754405.704 | AH22: 0 | AI22: 0 | AJ22: 0 | AK22: 1761806.175 | AL22: 0 | AM22: 0 | AN22: 0 | AO22: 322884.7378 | AP22: 0 | AQ22: 0 | AR22: 0 | AS22: 7893538.186
B23: =Est2019DistRev!B23 -> Large Business - LVEN 0.8+ - 2.2 GWh | D23: 143.759 | E23: 2.171 | F23: 0 | G23: 0 | H23: 0 | I23: 1.027 | J23: 0 | K23: 0 | L23: 0 | M23: 2.346 | N23: 0 | O23: 0 | P23: 0 | R23: =Est2019DistRev!R23 -> 43.7184462 | S23: =Est2019DistRev!S23 -> 42504195.74 | T23: =Est2019DistRev!T23 -> 0 | U23: =Est2019DistRev!U23 -> 0 | V23: =Est2019DistRev!V23 -> 0 | W23: =Est2019DistRev!W23 -> 27960118.15 | X23: =Est2019DistRev!X23 -> 0 | Y23: =Est2019DistRev!Y23 -> 0 | Z23: =Est2019DistRev!Z23 -> 0 | AA23: =Est2019DistRev!AA23 -> 15557.7673 | AB23: =Est2019DistRev!AB23 -> 0 | AC23: =Est2019DistRev!AC23 -> 0 | AD23: =Est2019DistRev!AD23 -> 0 | AF23: 6284.920108 | AG23: 922766.0896 | AH23: 0 | AI23: 0 | AJ23: 0 | AK23: 287150.4134 | AL23: 0 | AM23: 0 | AN23: 0 | AO23: 36498.52209 | AP23: 0 | AQ23: 0 | AR23: 0 | AS23: 1252699.945
B24: =Est2019DistRev!B24 -> Large Business - LV 2.2+ - 6.0 GWh | D24: 955.545 | E24: 2.388 | F24: 0 | G24: 0 | H24: 0 | I24: 1.026 | J24: 0 | K24: 0 | L24: 0 | M24: 1.87 | N24: 0 | O24: 0 | P24: 0 | R24: =Est2019DistRev!R24 -> 68.09921351 | S24: =Est2019DistRev!S24 -> 112557828.5 | T24: =Est2019DistRev!T24 -> 0 | U24: =Est2019DistRev!U24 -> 0 | V24: =Est2019DistRev!V24 -> 0 | W24: =Est2019DistRev!W24 -> 85103892.83 | X24: =Est2019DistRev!X24 -> 0 | Y24: =Est2019DistRev!Y24 -> 0 | Z24: =Est2019DistRev!Z24 -> 0 | AA24: =Est2019DistRev!AA24 -> 68062.284 | AB24: =Est2019DistRev!AB24 -> 0 | AC24: =Est2019DistRev!AC24 -> 0 | AD24: =Est2019DistRev!AD24 -> 0 | AF24: 65071.86297 | AG24: 2687880.944 | AH24: 0 | AI24: 0 | AJ24: 0 | AK24: 873165.9404 | AL24: 0 | AM24: 0 | AN24: 0 | AO24: 127276.4711 | AP24: 0 | AQ24: 0 | AR24: 0 | AS24: 3753395.219
B25: =Est2019DistRev!B25 -> Large Business - LVEN 2.2+ GWh | D25: 955.545 | E25: 2.017 | F25: 0 | G25: 0 | H25: 0 | I25: 1.022 | J25: 0 | K25: 0 | L25: 0 | M25: 3.234 | N25: 0 | O25: 0 | P25: 0 | R25: =Est2019DistRev!R25 -> 23.7110561 | S25: =Est2019DistRev!S25 -> 46012309.97 | T25: =Est2019DistRev!T25 -> 0 | U25: =Est2019DistRev!U25 -> 0 | V25: =Est2019DistRev!V25 -> 0 | W25: =Est2019DistRev!W25 -> 33126706.47 | X25: =Est2019DistRev!X25 -> 0 | Y25: =Est2019DistRev!Y25 -> 0 | Z25: =Est2019DistRev!Z25 -> 0 | AA25: =Est2019DistRev!AA25 -> 16068.8071 | AB25: =Est2019DistRev!AB25 -> 0 | AC25: =Est2019DistRev!AC25 -> 0 | AD25: =Est2019DistRev!AD25 -> 0 | AF25: 22656.9811 | AG25: 928068.292 | AH25: 0 | AI25: 0 | AJ25: 0 | AK25: 338554.9401 | AL25: 0 | AM25: 0 | AN25: 0 | AO25: 51966.52216 | AP25: 0 | AQ25: 0 | AR25: 0 | AS25: 1341246.735
B26: =Est2019DistRev!B26 -> Large Business - LVMS 2.2+ - 6.0 GWh | D26: 1276.617 | E26: 2.626 | F26: 0 | G26: 0 | H26: 0 | I26: 1.019 | J26: 0 | K26: 0 | L26: 0 | M26: 2.5 | N26: 0 | O26: 0 | P26: 0 | R26: =Est2019DistRev!R26 -> 9.489905592 | S26: =Est2019DistRev!S26 -> 10547630.32 | T26: =Est2019DistRev!T26 -> 0 | U26: =Est2019DistRev!U26 -> 0 | V26: =Est2019DistRev!V26 -> 0 | W26: =Est2019DistRev!W26 -> 8508704.15 | X26: =Est2019DistRev!X26 -> 0 | Y26: =Est2019DistRev!Y26 -> 0 | Z26: =Est2019DistRev!Z26 -> 0 | AA26: =Est2019DistRev!AA26 -> 8214.0472 | AB26: =Est2019DistRev!AB26 -> 0 | AC26: =Est2019DistRev!AC26 -> 0 | AD26: =Est2019DistRev!AD26 -> 0 | AF26: 12114.97481 | AG26: 276980.7722 | AH26: 0 | AI26: 0 | AJ26: 0 | AK26: 86703.69529 | AL26: 0 | AM26: 0 | AN26: 0 | AO26: 20535.118 | AP26: 0 | AQ26: 0 | AR26: 0 | AS26: 396334.5603
B27: =Est2019DistRev!B27 -> Large Business - LV 6.0+ GWh | D27: 2462.269 | E27: 2.119 | F27: 0 | G27: 0 | H27: 0 | I27: 1.018 | J27: 0 | K27: 0 | L27: 0 | M27: 2.042 | N27: 0 | O27: 0 | P27: 0 | R27: =Est2019DistRev!R27 -> 19.94934005 | S27: =Est2019DistRev!S27 -> 53512172.17 | T27: =Est2019DistRev!T27 -> 0 | U27: =Est2019DistRev!U27 -> 0 | V27: =Est2019DistRev!V27 -> 0 | W27: =Est2019DistRev!W27 -> 44845318.59 | X27: =Est2019DistRev!X27 -> 0 | Y27: =Est2019DistRev!Y27 -> 0 | Z27: =Est2019DistRev!Z27 -> 0 | AA27: =Est2019DistRev!AA27 -> 24090.3584 | AB27: =Est2019DistRev!AB27 -> 0 | AC27: =Est2019DistRev!AC27 -> 0 | AD27: =Est2019DistRev!AD27 -> 0 | AF27: 49120.64157 | AG27: 1133922.928 | AH27: 0 | AI27: 0 | AJ27: 0 | AK27: 456525.3433 | AL27: 0 | AM27: 0 | AN27: 0 | AO27: 49192.51185 | AP27: 0 | AQ27: 0 | AR27: 0 | AS27: 1688761.425
B28: =Est2019DistRev!B28 -> Large Business - LVMS 6.0+ GWh | D28: 3060.085 | E28: 2.225 | F28: 0 | G28: 0 | H28: 0 | I28: 1.018 | J28: 0 | K28: 0 | L28: 0 | M28: 2.537 | N28: 0 | O28: 0 | P28: 0 | R28: =Est2019DistRev!R28 -> 31.26710731 | S28: =Est2019DistRev!S28 -> 45265727.44 | T28: =Est2019DistRev!T28 -> 0 | U28: =Est2019DistRev!U28 -> 0 | V28: =Est2019DistRev!V28 -> 0 | W28: =Est2019DistRev!W28 -> 35236918.99 | X28: =Est2019DistRev!X28 -> 0 | Y28: =Est2019DistRev!Y28 -> 0 | Z28: =Est2019DistRev!Z28 -> 0 | AA28: =Est2019DistRev!AA28 -> 31405.6672 | AB28: =Est2019DistRev!AB28 -> 0 | AC28: =Est2019DistRev!AC28 -> 0 | AD28: =Est2019DistRev!AD28 -> 0 | AF28: 95680.00607 | AG28: 1007162.436 | AH28: 0 | AI28: 0 | AJ28: 0 | AK28: 358711.8353 | AL28: 0 | AM28: 0 | AN28: 0 | AO28: 79676.17769 | AP28: 0 | AQ28: 0 | AR28: 0 | AS28: 1541230.455
B29: =Est2019DistRev!B29 -> Large Business - HV | D29: 7214.176 | E29: 2.424 | F29: 0 | G29: 0 | H29: 0 | I29: 0.757 | J29: 0 | K29: 0 | L29: 0 | M29: 2.321 | N29: 0 | O29: 0 | P29: 0 | R29: =Est2019DistRev!R29 -> 82 | S29: =Est2019DistRev!S29 -> 234092242.4 | T29: =Est2019DistRev!T29 -> 0 | U29: =Est2019DistRev!U29 -> 0 | V29: =Est2019DistRev!V29 -> 0 | W29: =Est2019DistRev!W29 -> 185725976.8 | X29: =Est2019DistRev!X29 -> 0 | Y29: =Est2019DistRev!Y29 -> 0 | Z29: =Est2019DistRev!Z29 -> 0 | AA29: =Est2019DistRev!AA29 -> 172015.5139 | AB29: =Est2019DistRev!AB29 -> 0 | AC29: =Est2019DistRev!AC29 -> 0 | AD29: =Est2019DistRev!AD29 -> 0 | AF29: 591562.432 | AG29: 5674395.957 | AH29: 0 | AI29: 0 | AJ29: 0 | AK29: 1405945.645 | AL29: 0 | AM29: 0 | AN29: 0 | AO29: 399248.0078 | AP29: 0 | AQ29: 0 | AR29: 0 | AS29: 8071152.041
B30: =Est2019DistRev!B30 -> Large Business – HVEN | D30: 7214.176 | E30: 2.249 | F30: 0 | G30: 0 | H30: 0 | I30: 0.757 | J30: 0 | K30: 0 | L30: 0 | M30: 2.249 | N30: 0 | O30: 0 | P30: 0 | R30: =Est2019DistRev!R30 -> 2 | S30: =Est2019DistRev!S30 -> 19354907.87 | T30: =Est2019DistRev!T30 -> 0 | U30: =Est2019DistRev!U30 -> 0 | V30: =Est2019DistRev!V30 -> 0 | W30: =Est2019DistRev!W30 -> 15176809.37 | X30: =Est2019DistRev!X30 -> 0 | Y30: =Est2019DistRev!Y30 -> 0 | Z30: =Est2019DistRev!Z30 -> 0 | AA30: =Est2019DistRev!AA30 -> 3213.3352 | AB30: =Est2019DistRev!AB30 -> 0 | AC30: =Est2019DistRev!AC30 -> 0 | AD30: =Est2019DistRev!AD30 -> 0 | AF30: 14428.352 | AG30: 435291.8779 | AH30: 0 | AI30: 0 | AJ30: 0 | AK30: 114888.447 | AL30: 0 | AM30: 0 | AN30: 0 | AO30: 7226.790865 | AP30: 0 | AQ30: 0 | AR30: 0 | AS30: 571835.4677
B31: =Est2019DistRev!B31 -> Large Business - HVRF | D31: 7214.176 | E31: 2.428 | F31: 0 | G31: 0 | H31: 0 | I31: 0.757 | J31: 0 | K31: 0 | L31: 0 | M31: 5.627 | N31: 0 | O31: 0 | P31: 0 | R31: =Est2019DistRev!R31 -> 4.649315068 | S31: =Est2019DistRev!S31 -> 47442355.76 | T31: =Est2019DistRev!T31 -> 0 | U31: =Est2019DistRev!U31 -> 0 | V31: =Est2019DistRev!V31 -> 0 | W31: =Est2019DistRev!W31 -> 41773511.2 | X31: =Est2019DistRev!X31 -> 0 | Y31: =Est2019DistRev!Y31 -> 0 | Z31: =Est2019DistRev!Z31 -> 0 | AA31: =Est2019DistRev!AA31 -> 26423.3271 | AB31: =Est2019DistRev!AB31 -> 0 | AC31: =Est2019DistRev!AC31 -> 0 | AD31: =Est2019DistRev!AD31 -> 0 | AF31: 33540.97718 | AG31: 1151900.398 | AH31: 0 | AI31: 0 | AJ31: 0 | AK31: 316225.4798 | AL31: 0 | AM31: 0 | AN31: 0 | AO31: 148684.0616 | AP31: 0 | AQ31: 0 | AR31: 0 | AS31: 1650350.916
B32: =Est2019DistRev!B32 -> Large Business - HV Ann Cons >= 55GWh | D32: 7991.139 | E32: 2.232 | F32: 0 | G32: 0 | H32: 0 | I32: 0.726 | J32: 0 | K32: 0 | L32: 0 | M32: 5.373 | N32: 0 | O32: 0 | P32: 0 | R32: =Est2019DistRev!R32 -> 1.084931507 | S32: =Est2019DistRev!S32 -> 24210050.04 | T32: =Est2019DistRev!T32 -> 0 | U32: =Est2019DistRev!U32 -> 0 | V32: =Est2019DistRev!V32 -> 0 | W32: =Est2019DistRev!W32 -> 21527851.13 | X32: =Est2019DistRev!X32 -> 0 | Y32: =Est2019DistRev!Y32 -> 0 | Z32: =Est2019DistRev!Z32 -> 0 | AA32: =Est2019DistRev!AA32 -> 11217.80112 | AB32: =Est2019DistRev!AB32 -> 0 | AC32: =Est2019DistRev!AC32 -> 0 | AD32: =Est2019DistRev!AD32 -> 0 | AF32: 8669.838477 | AG32: 540368.3168 | AH32: 0 | AI32: 0 | AJ32: 0 | AK32: 156292.1992 | AL32: 0 | AM32: 0 | AN32: 0 | AO32: 60273.24541 | AP32: 0 | AQ32: 0 | AR32: 0 | AS32: 765603.5999
B33: =Est2019DistRev!B33 -> Large Business - Subtransmission | D33: 12678.034 | E33: 1.955 | F33: 0 | G33: 0 | H33: 0 | I33: 0.499 | J33: 0 | K33: 0 | L33: 0 | M33: 3.784 | N33: 0 | O33: 0 | P33: 0 | R33: =Est2019DistRev!R33 -> 2 | S33: =Est2019DistRev!S33 -> 110447526.3 | T33: =Est2019DistRev!T33 -> 0 | U33: =Est2019DistRev!U33 -> 0 | V33: =Est2019DistRev!V33 -> 0 | W33: =Est2019DistRev!W33 -> 119100805.6 | X33: =Est2019DistRev!X33 -> 0 | Y33: =Est2019DistRev!Y33 -> 0 | Z33: =Est2019DistRev!Z33 -> 0 | AA33: =Est2019DistRev!AA33 -> 39635.49 | AB33: =Est2019DistRev!AB33 -> 0 | AC33: =Est2019DistRev!AC33 -> 0 | AD33: =Est2019DistRev!AD33 -> 0 | AF33: =D33*R33 -> 25356.068 | AG33: =E33/100*S33 -> 2159249.139 | AH33: 0 | AI33: 0 | AJ33: 0 | AK33: 594313.0197 | AL33: 0 | AM33: 0 | AN33: 0 | AO33: =M33*AA33 -> 149980.6942 | AP33: =N33*AB33 -> 0 | AQ33: =O33*AC33 -> 0 | AR33: =P33*AD33 -> 0 | AS33: =SUM(AF33:AR33) -> 2928898.921
B34: =Est2019DistRev!B34 -> Large Business - Subtransmission MA | D34: 12678.034 | E34: 1.955 | F34: 0 | G34: 0 | H34: 0 | I34: 0.499 | J34: 0 | K34: 0 | L34: 0 | M34: 3.803 | N34: 0 | O34: 0 | P34: 0 | R34: =Est2019DistRev!R34 -> 1 | S34: =Est2019DistRev!S34 -> 68232338.71 | T34: =Est2019DistRev!T34 -> 0 | U34: =Est2019DistRev!U34 -> 0 | V34: =Est2019DistRev!V34 -> 0 | W34: =Est2019DistRev!W34 -> 67928284.49 | X34: =Est2019DistRev!X34 -> 0 | Y34: =Est2019DistRev!Y34 -> 0 | Z34: =Est2019DistRev!Z34 -> 0 | AA34: =Est2019DistRev!AA34 -> 42484 | AB34: =Est2019DistRev!AB34 -> 0 | AC34: =Est2019DistRev!AC34 -> 0 | AD34: =Est2019DistRev!AD34 -> 0 | AF34: 12678.034 | AG34: 1333942.222 | AH34: 0 | AI34: 0 | AJ34: 0 | AK34: 338962.1396 | AL34: 0 | AM34: 0 | AN34: 0 | AO34: 161566.652 | AP34: 0 | AQ34: 0 | AR34: 0 | AS34: 1847149.047
B35: =Est2019DistRev!B35 -> Large Business - Subtransmission EG | D35: 4046.972 | E35: 1.986 | F35: 0 | G35: 0 | H35: 0 | I35: 0.508 | J35: 0 | K35: 0 | L35: 0 | M35: 4.369 | N35: 0 | O35: 0 | P35: 0 | R35: =Est2019DistRev!R35 -> 1 | S35: =Est2019DistRev!S35 -> 7138026.819 | T35: =Est2019DistRev!T35 -> 0 | U35: =Est2019DistRev!U35 -> 0 | V35: =Est2019DistRev!V35 -> 0 | W35: =Est2019DistRev!W35 -> 8479174.156 | X35: =Est2019DistRev!X35 -> 0 | Y35: =Est2019DistRev!Y35 -> 0 | Z35: =Est2019DistRev!Z35 -> 0 | AA35: =Est2019DistRev!AA35 -> 36401.09 | AB35: =Est2019DistRev!AB35 -> 0 | AC35: =Est2019DistRev!AC35 -> 0 | AD35: =Est2019DistRev!AD35 -> 0 | AF35: =D35*R35 -> 4046.972 | AG35: =E35/100*S35 -> 141761.2126 | AH35: =F35/100*T35 -> 0 | AI35: =G35/100*U35 -> 0 | AJ35: =H35/100*V35 -> 0 | AK35: =I35/100*W35 -> 43074.20471 | AL35: =J35/100*X35 -> 0 | AM35: =K35/100*Y35 -> 0 | AN35: =L35/100*Z35 -> 0 | AO35: =M35*AA35 -> 159036.3622 | AP35: =N35*AB35 -> 0 | AQ35: =O35*AC35 -> 0 | AR35: =P35*AD35 -> 0 | AS35: =SUM(AF35:AR35) -> 347918.7515
AF36: 0 | AG36: 0 | AH36: 0 | AI36: 0 | AJ36: 0 | AK36: 0 | AL36: 0 | AM36: 0 | AN36: 0 | AO36: 0 | AP36: 0 | AQ36: 0 | AR36: 0 | AS36: 0
AF37: 0 | AG37: 0 | AH37: 0 | AI37: 0 | AJ37: 0 | AK37: 0 | AL37: 0 | AM37: 0 | AN37: 0 | AO37: 0 | AP37: 0 | AQ37: 0 | AR37: 0 | AS37: 0
AF38: 0 | AG38: 0 | AH38: 0 | AI38: 0 | AJ38: 0 | AK38: 0 | AL38: 0 | AM38: 0 | AN38: =L38/100*Z38 -> 0 | AO38: 0 | AP38: 0 | AQ38: 0 | AR38: 0 | AS38: 0
AF39: 0 | AG39: 0 | AH39: 0 | AI39: 0 | AJ39: 0 | AK39: 0 | AL39: 0 | AM39: 0 | AN39: 0 | AO39: 0 | AP39: 0 | AQ39: 0 | AR39: 0 | AS39: 0
AF40: 0 | AG40: 0 | AH40: 0 | AI40: 0 | AJ40: 0 | AK40: 0 | AL40: 0 | AM40: 0 | AN40: 0 | AO40: 0 | AP40: 0 | AQ40: 0 | AR40: 0 | AS40: 0
AF41: 0 | AG41: 0 | AH41: 0 | AI41: 0 | AJ41: 0 | AK41: 0 | AL41: 0 | AM41: 0 | AN41: 0 | AO41: 0 | AP41: 0 | AQ41: 0 | AR41: 0 | AS41: 0
AF42: 0 | AG42: 0 | AH42: 0 | AI42: 0 | AJ42: 0 | AK42: 0 | AL42: 0 | AM42: 0 | AN42: 0 | AO42: 0 | AP42: 0 | AQ42: 0 | AR42: 0 | AS42: 0
AF43: 0 | AG43: 0 | AH43: 0 | AI43: 0 | AJ43: 0 | AK43: 0 | AL43: 0 | AM43: 0 | AN43: 0 | AO43: 0 | AP43: 0 | AQ43: 0 | AR43: 0 | AS43: 0
AF44: 0 | AG44: 0 | AH44: 0 | AI44: 0 | AJ44: 0 | AK44: 0 | AL44: 0 | AM44: 0 | AN44: 0 | AO44: 0 | AP44: 0 | AQ44: 0 | AR44: 0 | AS44: 0
AF45: 0 | AG45: 0 | AH45: 0 | AI45: 0 | AJ45: 0 | AK45: 0 | AL45: 0 | AM45: 0 | AN45: 0 | AO45: 0 | AP45: 0 | AQ45: 0 | AR45: 0 | AS45: 0
AF46: 0 | AG46: 0 | AH46: 0 | AI46: 0 | AJ46: 0 | AK46: 0 | AL46: 0 | AM46: 0 | AN46: 0 | AO46: 0 | AP46: 0 | AQ46: 0 | AR46: 0 | AS46: 0
AF47: 0 | AG47: 0 | AH47: 0 | AI47: 0 | AJ47: 0 | AK47: 0 | AL47: 0 | AM47: 0 | AN47: 0 | AO47: 0 | AP47: 0 | AQ47: 0 | AR47: 0 | AS47: 0
AF48: 0 | AG48: 0 | AH48: 0 | AI48: 0 | AJ48: 0 | AK48: 0 | AL48: 0 | AM48: 0 | AN48: 0 | AO48: 0 | AP48: 0 | AQ48: 0 | AR48: 0 | AS48: 0
AF49: 0 | AG49: 0 | AH49: 0 | AI49: 0 | AJ49: 0 | AK49: 0 | AL49: 0 | AM49: 0 | AN49: 0 | AO49: 0 | AP49: 0 | AQ49: 0 | AR49: 0 | AS49: 0
AF50: 0 | AG50: 0 | AH50: 0 | AI50: 0 | AJ50: 0 | AK50: 0 | AL50: 0 | AM50: 0 | AN50: 0 | AO50: 0 | AP50: 0 | AQ50: 0 | AR50: 0 | AS50: 0
AF51: 0 | AG51: 0 | AH51: 0 | AI51: 0 | AJ51: 0 | AK51: 0 | AL51: 0 | AM51: 0 | AN51: 0 | AO51: 0 | AP51: 0 | AQ51: 0 | AR51: 0 | AS51: 0
AF52: 0 | AG52: 0 | AH52: 0 | AI52: 0 | AJ52: 0 | AK52: 0 | AL52: 0 | AM52: 0 | AN52: 0 | AO52: 0 | AP52: 0 | AQ52: 0 | AR52: 0 | AS52: 0
AF53: 0 | AG53: 0 | AH53: 0 | AI53: 0 | AJ53: 0 | AK53: 0 | AL53: 0 | AM53: 0 | AN53: 0 | AO53: 0 | AP53: 0 | AQ53: 0 | AR53: 0 | AS53: 0
AF54: 0 | AG54: 0 | AH54: 0 | AI54: 0 | AJ54: 0 | AK54: 0 | AL54: 0 | AM54: 0 | AN54: 0 | AO54: 0 | AP54: 0 | AQ54: 0 | AR54: 0 | AS54: 0
AF55: 0 | AG55: 0 | AH55: 0 | AI55: 0 | AJ55: 0 | AK55: 0 | AL55: 0 | AM55: 0 | AN55: 0 | AO55: 0 | AP55: 0 | AQ55: 0 | AR55: 0 | AS55: 0
AF56: 0 | AG56: 0 | AH56: 0 | AI56: 0 | AJ56: 0 | AK56: 0 | AL56: 0 | AM56: 0 | AN56: 0 | AO56: 0 | AP56: 0 | AQ56: 0 | AR56: 0 | AS56: 0
AF57: 0 | AG57: 0 | AH57: 0 | AI57: 0 | AJ57: 0 | AK57: 0 | AL57: 0 | AM57: 0 | AN57: 0 | AO57: 0 | AP57: 0 | AQ57: 0 | AR57: 0 | AS57: 0
AF58: 0 | AG58: 0 | AH58: 0 | AI58: 0 | AJ58: 0 | AK58: 0 | AL58: 0 | AM58: 0 | AN58: 0 | AO58: 0 | AP58: 0 | AQ58: 0 | AR58: 0 | AS58: 0
AF59: 0 | AG59: 0 | AH59: 0 | AI59: 0 | AJ59: 0 | AK59: 0 | AL59: 0 | AM59: 0 | AN59: 0 | AO59: 0 | AP59: 0 | AQ59: 0 | AR59: 0 | AS59: 0
AF60: 0 | AG60: 0 | AH60: 0 | AI60: 0 | AJ60: 0 | AK60: 0 | AL60: 0 | AM60: 0 | AN60: 0 | AO60: 0 | AP60: 0 | AQ60: 0 | AR60: 0 | AS60: 0
AF61: 0 | AG61: 0 | AH61: 0 | AI61: 0 | AJ61: 0 | AK61: 0 | AL61: 0 | AM61: 0 | AN61: 0 | AO61: 0 | AP61: 0 | AQ61: 0 | AR61: 0 | AS61: 0
AF62: 0 | AG62: 0 | AH62: 0 | AI62: 0 | AJ62: 0 | AK62: 0 | AL62: 0 | AM62: 0 | AN62: 0 | AO62: 0 | AP62: 0 | AQ62: 0 | AR62: 0 | AS62: 0
AF63: 0 | AG63: 0 | AH63: 0 | AI63: 0 | AJ63: 0 | AK63: 0 | AL63: 0 | AM63: 0 | AN63: 0 | AO63: 0 | AP63: 0 | AQ63: 0 | AR63: 0 | AS63: 0
AF64: 0 | AG64: 0 | AH64: 0 | AI64: 0 | AJ64: 0 | AK64: 0 | AL64: 0 | AM64: 0 | AN64: 0 | AO64: 0 | AP64: 0 | AQ64: 0 | AR64: 0 | AS64: 0
AF65: 0 | AG65: 0 | AH65: 0 | AI65: 0 | AJ65: 0 | AK65: 0 | AL65: 0 | AM65: 0 | AN65: 0 | AO65: 0 | AP65: 0 | AQ65: 0 | AR65: 0 | AS65: 0
R66: =SUM(R6:R65) -> 348558.5011 | S66: 3006410211 | T66: 1368615.722 | U66: 960125.0095 | V66: 1784990.184 | W66: 1284415686 | X66: 1167051.999 | Y66: 0 | Z66: 0 | AA66: 905938.4563 | AB66: 0 | AC66: 0 | AD66: 0 | AF66: =SUM(AF6:AF65) -> 1340918.156 | AG66: 37144338.36 | AH66: 4092.161009 | AI66: 710.492507 | AJ66: 5337.12065 | AK66: 10302049.59 | AL66: 198.3988399 | AM66: =SUM(AM6:AM65) -> 0 | AN66: 0 | AO66: 1975058.368 | AP66: 0 | AQ66: 0 | AR66: 0 | AS66: 50772702.64

Sheet 2020TransRevCont
B2: ="Tariff Approval - "&'Model update'!$C$3 -> Tariff Approval - Jemena | C2: ='Model update'!$C$5&"TransRevCont" -> 2020TransRevCont
B4: Designated pricing proposal charges (DPPC)
B6: Year (t) | C6: ='Model update'!C5 -> 2020
B8: Table 1- Compliance with DPPC Revenue Formula
B9: Revenue from designated pricing proposal charges for year t | C9: =Prop2020TransTar!AS66 -> 68002243.53
B10: Total DPPC related payments for year t | C10: =C17 -> 68002481.77
C11: =IF(C9="","",IF(C10>=C9,"DPPC REVENUE FORMULA COMPLIANT","DPPC REVENUE FORMULA BREACHED")) -> DPPC REVENUE FORMULA COMPLIANT
B13: Table 2 - Total DPPC related payments for year t
B14: Transmission charges for year t | C14: =C24 -> 66699141.22
B15: DPPC revenue under/over recovery approved | C15: =-E60*(1+E58)^0.5 -> 1303340.549
B16: Transmission revenue under/over recovery for years 2014 and 2015
B17: Total DPPC related payments for year t | C17: =SUM(C14:C16) -> 68002481.77
B19: Table 3 - Transmission charges for year t
B20: AEMO (TCt) | C20: 64250398.72
B21: Transmission connection (TCt) | C21: 5428100.689
B22: Embedded generators (Gt) | C22: 960143.8227
B23: Inter-network (Dt) | C23: 3939502.007
B24: TC + G - D | C24: =C20+C21+C22-C23 -> 66699141.22
B29: Table 4 - DPPC Recovery Arrangements
C30: Year t-2 | D30: Year t-1 | E30: Year t
C31: (actual) | D31: (estimate) | E31: (forecast)
C32: =D32-1 -> 2018 | D32: =E32-1 -> 2019 | E32: =C$6 -> 2020
B34: (A) Revenue from designated pricing proposal charges | C34: 56537626.89 | D34: =Est2019TransRev!AS66 -> 50772702.64 | E34: =C9 -> 68002243.53
B37: (B) Less Total DPPC related payments = | C37: =SUM(C39:C41) -> 54883791.73 | D37: =SUM(D39:D41) -> 60465752.86 | E37: =SUM(E39:E41) -> 66699141.22
B39: + Transmission revenue under/over recovery for years 2014 and 2015
B41: +Transmission charges = | C41: =C42+C43+C44-C45 -> 54883791.73 | D41: =D42+D43+D44-D45 -> 60465752.86 | E41: =E42+E43+E44-E45 -> 66699141.22
B42: +AEMO | C42: ='TUoS cost audit template'!F7 -> 53326147.44 | D42: 58455473.24 | E42: =C20 -> 64250398.72
B43: +PowerNet | C43: ='TUoS cost audit template'!F14 -> 5126101.78 | D43: 5274940.436 | E43: =C21 -> 5428100.689
B44: +Embedded generators | C44: ='TUoS cost audit template'!F42 -> 934089.66 | D44: 947027.15 | E44: =C22 -> 960143.8227
B45: -Inter-network | C45: ='TUoS cost audit template'!F24 -> 4502547.15 | D45: 4211687.967 | E45: =C23 -> 3939502.007
B49: (A minus B) Under/over recovery of revenue for regulatory year | C49: =C34-C37 -> 1653835.16 | D49: =D34-D37 -> -9693050.215 | E49: =E34-E37 -> 1303102.307
B53: Table 5 - DPPC Unders and Overs Account
C54: Year t-2 | D54: Year t-1 | E54: Year t
C55: (actual) | D55: (estimate) | E55: (forecast)
B56: Calendar year | C56: =D56-1 -> 2018 | D56: =E56-1 -> 2019 | E56: =C$6 -> 2020
B58: Nominal WACC | C58: =(1+'Model update'!$B$47)*(1+'Model update'!$C$28)-1 -> 0.05829063961 | D58: =(1+'Model update'!$B$45)*(1+'Model update'!$C$29)-1 -> 0.059228637 | E58: =(1+'Model update'!$B$43)*(1+'Model update'!$C$30)-1 -> 0.05307355732
B60: Opening balance | C60: 6158744.583 | D60: =C64 -> 8219095.79 | E60: =D64 -> -1270072.619
B61: Interest on Opening balance | C61: =C60*C58 -> 358997.1609 | D61: =D60*D58 -> 486805.841 | E61: =E60*E58 -> -67407.27194
B62: Under/over recovery of revenue for regulatory year | C62: =C49 -> 1653835.16 | D62: =D49 -> -9693050.215 | E62: =E49 -> 1303102.307
B63: Interest on under/over recovery for regulatory year | C63: =C62*((1+C58)^0.5-1) -> 47518.8855 | D63: =D62*((1+D58)^0.5-1) -> -282924.035 | E63: =E62*((1+E58)^0.5-1) -> 34133.101
B64: Closing balance of DPPC overs/ (unders) account | C64: =SUM(C60:C63) -> 8219095.79 | D64: =SUM(D60:D63) -> -1270072.619 | E64: -244.4826496
B66: The DNSP is expected to achieve a closing balance as close to zero as practicable in its DPPC unders and overs account in each forecast year in its annual pricing proposals in the 2016–20 regulatory control period.

Sheet TUoS cost audit template
B1: ="Tariff Approval - "&'Model update'!C3 -> Tariff Approval - Jemena
B2: TUOS charges (AEMO) | F2: t-2 actual
B4: AEMO Charges 2018 | F4: 53326147.44
E7: Total | F7: =SUM(F3:F6) -> 53326147.44
B9: Transmission connection fees (SPI Powernet) | F9: t-2 actual
B11: Prescribed Services charge | F11: 4874451
B12: Excluded Services charge | F12: 251650.78
E14: Total | F14: =SUM(F10:F13) -> 5126101.78
B16: Cross boundary network charges (internetwork charges) | F16: t-2 actual
B17: Distribution Business | C17: Amount (payable)/receivable
C18: HV crossings | D18: Subtransmission crossings | E18: TUoS Adjustment | F18: Total
B20: CitiPower | C20: 1917468.994 | D20: -44294.57944 | E20: 1505671.085 | F20: =SUM(C20:E20) -> 3378845.5
B21: Powercor | C21: -283934.8149 | D21: 5568367.765 | E21: 0 | F21: =SUM(C21:E21) -> 5284432.95
B22: AusNet | C22: -3827243.11 | D22: 100688.2664 | E22: -434176.4564 | F22: =SUM(C22:E22) -> -4160731.3
F23: =SUM(C23:E23) -> 0
B24: Total | F24: =SUM(F19:F23) -> 4502547.15
B26: Payments to embedded generators | F26: t-2 actual
B27: Avoided transmission costs
B29: Embedded generators | F29: 934089.66
B33: Total | F33: =SUM(F28:F32) -> 934089.66
B35: Avoided TUoS usage charges
B41: Total | F41: =SUM(F36:F40) -> 0
B42: Total payments to embedded generators | F42: =F41+F33 -> 934089.66
B44: Where the following definitions apply
B45: HV Crossings | C45: Payments/Receipts for energy transferred utilising the distributor’s HV and LV line assets.
B46: Sub-transmission Crossings | C46: Payments/Receipts for the Sub-transmission assets in shared loops that support each distributor’s Zone Substation capacity to ensure N-1 reliability is maintained.
B47: TuoS Adjustment | C47: Payments/Receipts for the adjustment of TuoS paid by a distributor for energy delivered to another distribution business through a shared loop.

Sheet Prop2020JSTar
B1: ="Tariff Approval - "&'Model update'!C3 -> Tariff Approval - Jemena | D1: ="Prop"&'Model update'!$C$5&"JSTar" -> Prop2020JSTar
B3: ="PROPOSED "&'Model update'!$C$5&" JURISDICTIONAL SCHEME TARIFFS" -> PROPOSED 2020 JURISDICTIONAL SCHEME TARIFFS
D4: ="Proposed Jurisdictional scheme Tariffs (Pt) for "&'Model update'!$C$5 -> Proposed Jurisdictional scheme Tariffs (Pt) for 2020 | R4: ="Forecast Quantities (Qt) for "&'Model update'!$C$5 -> Forecast Quantities (Qt) for 2020 | AF4: ="Forecast Revenue (Pt "&'Model update'!$C$5&")*(Qt " &'Model update'!$C$5&")" -> Forecast Revenue (Pt 2020)*(Qt 2020)
B5: Proposed tariff | D5: =Prop2020DistTar!D5 -> PropTar Fixed | E5: =Prop2020DistTar!E5 -> PropTar PkBlk1 | F5: =Prop2020DistTar!F5 -> PropTar Shoulder summer | G5: =Prop2020DistTar!G5 -> PropTar peak non-summer | H5: =Prop2020DistTar!H5 -> PropTar Shoulder non-summer | I5: =Prop2020DistTar!I5 -> PropTar OPkBlk1 | J5: =Prop2020DistTar!J5 -> PropTar off peak non-summer | K5: =Prop2020DistTar!K5 -> PropTar OPkBlk3 | L5: =Prop2020DistTar!L5 -> PropTar OPkBlk4 | M5: =Prop2020DistTar!M5 -> PropTar DemBlk1 | N5: =Prop2020DistTar!N5 -> PropTar DemBlk2 | O5: =Prop2020DistTar!O5 -> PropTar DemBlk3 | P5: =Prop2020DistTar!P5 -> PropTar DemBlk4 | R5: =Prop2020DistTar!AF5 -> FcastVol Fixed | S5: =Prop2020DistTar!AG5 -> FcastVol PkBlk1 | T5: =Prop2020DistTar!AH5 -> FcastVol Shoulder summer | U5: =Prop2020DistTar!AI5 -> FcastVol peak non-summer | V5: =Prop2020DistTar!AJ5 -> FcastVol Shoulder non-summer | W5: =Prop2020DistTar!AK5 -> FcastVol OPkBlk1 | X5: =Prop2020DistTar!AL5 -> FcastVol off peak non-summer | Y5: =Prop2020DistTar!AM5 -> FcastVol OPkBlk3 | Z5: =Prop2020DistTar!AN5 -> FcastVol OPkBlk4 | AA5: =Prop2020DistTar!AO5 -> FcastVol DemBlk1 | AB5: =Prop2020DistTar!AP5 -> FcastVol DemBlk2 | AC5: =Prop2020DistTar!AQ5 -> FcastVol DemBlk3 | AD5: =Prop2020DistTar!AR5 -> FcastVol DemBlk4 | AF5: PropRev Fixed | AG5: PropRev PkBlk1 | AH5: PropRev PkBlk2 | AI5: PropRev PkBlk3 | AJ5: PropRev PkBlk4 | AK5: PropRev OPkBlk1 | AL5: PropRev OPkBlk2 | AM5: PropRev OPkBlk3 | AN5: PropRev OPkBlk4 | AO5: PropRev DemBlk1 | AP5: PropRev DemBlk2 | AQ5: PropRev DemBlk3 | AR5: PropRev DemBlk4 | AS5: PropRev Total
B6: =Prop2020DistTar!B6 -> Residential - General Purpose | D6: 0 | E6: 0.142 | F6: 0 | G6: 0 | H6: 0 | I6: 0 | J6: 0 | K6: 0 | L6: 0 | M6: 0 | N6: 0 | O6: 0 | P6: 0 | R6: =Prop2020DistTar!AF6 -> 306575.3081 | S6: =Prop2020DistTar!AG6 -> 1266807387 | T6: =Prop2020DistTar!AH6 -> 0 | U6: =Prop2020DistTar!AI6 -> 0 | V6: =Prop2020DistTar!AJ6 -> 0 | W6: =Prop2020DistTar!AK6 -> 0 | X6: =Prop2020DistTar!AL6 -> 0 | Y6: =Prop2020DistTar!AM6 -> 0 | Z6: =Prop2020DistTar!AN6 -> 0 | AA6: =Prop2020DistTar!AO6 -> 0 | AB6: =Prop2020DistTar!AP6 -> 0 | AC6: =Prop2020DistTar!AQ6 -> 0 | AD6: =Prop2020DistTar!AR6 -> 0 | AF6: =D6*R6 -> 0 | AG6: =E6/100*S6 -> 1798866.49 | AH6: 0 | AI6: 0 | AJ6: 0 | AK6: 0 | AL6: 0 | AM6: 0 | AN6: 0 | AO6: =M6*AA6 -> 0 | AP6: 0 | AQ6: 0 | AR6: 0 | AS6: =SUM(AF6:AR6) -> 1798866.49
B7: =Prop2020DistTar!B7 -> Residential - General Purpose Demand | D7: 0 | E7: 0.142 | F7: 0 | G7: 0 | H7: 0 | I7: 0 | J7: 0 | K7: 0 | L7: 0 | M7: 0 | N7: 0 | O7: 0 | P7: 0 | R7: =Prop2020DistTar!AF7 -> 5.134764017 | S7: =Prop2020DistTar!AG7 -> 21217.48495 | T7: =Prop2020DistTar!AH7 -> 0 | U7: =Prop2020DistTar!AI7 -> 0 | V7: =Prop2020DistTar!AJ7 -> 0 | W7: =Prop2020DistTar!AK7 -> 0 | X7: =Prop2020DistTar!AL7 -> 0 | Y7: =Prop2020DistTar!AM7 -> 0 | Z7: =Prop2020DistTar!AN7 -> 0 | AA7: =Prop2020DistTar!AO7 -> 18.72011342 | AB7: =Prop2020DistTar!AP7 -> 0 | AC7: =Prop2020DistTar!AQ7 -> 0 | AD7: =Prop2020DistTar!AR7 -> 0 | AF7: =D7*R7 -> 0 | AG7: =E7/100*S7 -> 30.12882864 | AH7: 0 | AI7: 0 | AJ7: 0 | AK7: 0 | AL7: 0 | AM7: 0 | AN7: 0 | AO7: =M7*AA7 -> 0 | AP7: =N7*AB7 -> 0 | AQ7: =O7*AC7 -> 0 | AR7: =P7*AD7 -> 0 | AS7: =SUM(AF7:AR7) -> 30.12882864
B8: =Prop2020DistTar!B8 -> Residential - Flexible | D8: 0 | E8: 0.142 | F8: 0.142 | G8: 0.142 | H8: 0.142 | I8: 0.136 | J8: 0.136 | K8: 0 | L8: 0 | M8: 0 | N8: 0 | O8: 0 | P8: 0 | R8: =Prop2020DistTar!AF8 -> 1066.249258 | S8: =Prop2020DistTar!AG8 -> 513894.5572 | T8: =Prop2020DistTar!AH8 -> 963834.6369 | U8: =Prop2020DistTar!AI8 -> 676158.9282 | V8: =Prop2020DistTar!AJ8 -> 1257062.401 | W8: =Prop2020DistTar!AK8 -> 1020330.267 | X8: =Prop2020DistTar!AL8 -> 821885.2976 | Y8: =Prop2020DistTar!AM8 -> 0 | Z8: =Prop2020DistTar!AN8 -> 0 | AA8: =Prop2020DistTar!AO8 -> 0 | AB8: =Prop2020DistTar!AP8 -> 0 | AC8: =Prop2020DistTar!AQ8 -> 0 | AD8: =Prop2020DistTar!AR8 -> 0 | AF8: 0 | AG8: 729.7302713 | AH8: 1368.645184 | AI8: 960.1456781 | AJ8: 1785.02861 | AK8: 1387.649163 | AL8: 1117.764005 | AM8: 0 | AN8: 0 | AO8: 0 | AP8: 0 | AQ8: 0 | AR8: 0 | AS8: 7348.962911
B9: =Prop2020DistTar!B9 -> Residential - Time of Use Interval Meter | D9: 0 | E9: 0.142 | F9: 0 | G9: 0 | H9: 0 | I9: 0.105 | J9: 0 | K9: 0 | L9: 0 | M9: 0 | N9: 0 | O9: 0 | P9: 0 | R9: =Prop2020DistTar!AF9 -> 14984.05089 | S9: =Prop2020DistTar!AG9 -> 31652210.5 | T9: =Prop2020DistTar!AH9 -> 0 | U9: =Prop2020DistTar!AI9 -> 0 | V9: =Prop2020DistTar!AJ9 -> 0 | W9: =Prop2020DistTar!AK9 -> 32760180.55 | X9: =Prop2020DistTar!AL9 -> 0 | Y9: =Prop2020DistTar!AM9 -> 0 | Z9: =Prop2020DistTar!AN9 -> 0 | AA9: =Prop2020DistTar!AO9 -> 0 | AB9: =Prop2020DistTar!AP9 -> 0 | AC9: =Prop2020DistTar!AQ9 -> 0 | AD9: =Prop2020DistTar!AR9 -> 0 | AF9: 0 | AG9: 44946.13891 | AH9: 0 | AI9: 0 | AJ9: 0 | AK9: 34398.18958 | AL9: 0 | AM9: 0 | AN9: 0 | AO9: 0 | AP9: 0 | AQ9: 0 | AR9: 0 | AS9: 79344.32849
B10: =Prop2020DistTar!B10 -> Residential - TOU | D10: 0 | E10: 0.142 | F10: 0 | G10: 0 | H10: 0 | I10: 0.105 | J10: 0 | K10: 0 | L10: 0 | M10: 0 | N10: 0 | O10: 0 | P10: 0 | R10: =Prop2020DistTar!AF10 -> 1371.286329 | S10: =Prop2020DistTar!AG10 -> 5320045.464 | T10: =Prop2020DistTar!AH10 -> 0 | U10: =Prop2020DistTar!AI10 -> 0 | V10: =Prop2020DistTar!AJ10 -> 0 | W10: =Prop2020DistTar!AK10 -> 5826260.514 | X10: =Prop2020DistTar!AL10 -> 0 | Y10: =Prop2020DistTar!AM10 -> 0 | Z10: =Prop2020DistTar!AN10 -> 0 | AA10: =Prop2020DistTar!AO10 -> 0 | AB10: =Prop2020DistTar!AP10 -> 0 | AC10: =Prop2020DistTar!AQ10 -> 0 | AD10: =Prop2020DistTar!AR10 -> 0 | AF10: 0 | AG10: 7554.464559 | AH10: 0 | AI10: 0 | AJ10: 0 | AK10: 6117.57354 | AL10: 0 | AM10: 0 | AN10: 0 | AO10: 0 | AP10: 0 | AQ10: 0 | AR10: 0 | AS10: 13672.0381
B11: =Prop2020DistTar!B11 -> Residential - Off Peak Only | D11: 0 | E11: 0 | F11: 0 | G11: 0 | H11: 0 | I11: 0.105 | J11: 0 | K11: 0 | L11: 0 | M11: 0 | N11: 0 | O11: 0 | P11: 0 | R11: =Prop2020DistTar!AF11 -> 0 | S11: =Prop2020DistTar!AG11 -> 0 | T11: =Prop2020DistTar!AH11 -> 0 | U11: =Prop2020DistTar!AI11 -> 0 | V11: =Prop2020DistTar!AJ11 -> 0 | W11: =Prop2020DistTar!AK11 -> 35918450.4 | X11: =Prop2020DistTar!AL11 -> 0 | Y11: =Prop2020DistTar!AM11 -> 0 | Z11: =Prop2020DistTar!AN11 -> 0 | AA11: =Prop2020DistTar!AO11 -> 0 | AB11: =Prop2020DistTar!AP11 -> 0 | AC11: =Prop2020DistTar!AQ11 -> 0 | AD11: =Prop2020DistTar!AR11 -> 0 | AF11: 0 | AG11: 0 | AH11: 0 | AI11: 0 | AJ11: 0 | AK11: 37714.37292 | AL11: 0 | AM11: 0 | AN11: 0 | AO11: 0 | AP11: 0 | AQ11: 0 | AR11: 0 | AS11: 37714.37292
B12: =Prop2020DistTar!B12 -> Small Business - General Purpose | D12: 0 | E12: 0.165 | F12: 0 | G12: 0 | H12: 0 | I12: 0 | J12: 0 | K12: 0 | L12: 0 | M12: 0 | N12: 0 | O12: 0 | P12: 0 | R12: =Prop2020DistTar!AF12 -> 16418.55905 | S12: =Prop2020DistTar!AG12 -> 206322791.9 | T12: =Prop2020DistTar!AH12 -> 0 | U12: =Prop2020DistTar!AI12 -> 0 | V12: =Prop2020DistTar!AJ12 -> 0 | W12: =Prop2020DistTar!AK12 -> 0 | X12: =Prop2020DistTar!AL12 -> 0 | Y12: =Prop2020DistTar!AM12 -> 0 | Z12: =Prop2020DistTar!AN12 -> 0 | AA12: =Prop2020DistTar!AO12 -> 0 | AB12: =Prop2020DistTar!AP12 -> 0 | AC12: =Prop2020DistTar!AQ12 -> 0 | AD12: =Prop2020DistTar!AR12 -> 0 | AF12: 0 | AG12: 340432.6066 | AH12: 0 | AI12: 0 | AJ12: 0 | AK12: 0 | AL12: 0 | AM12: 0 | AN12: 0 | AO12: 0 | AP12: 0 | AQ12: 0 | AR12: 0 | AS12: 340432.6066
B13: =Prop2020DistTar!B13 -> Small Business - General Purpose Demand | D13: 0 | E13: 0.165 | F13: 0 | G13: 0 | H13: 0 | I13: 0 | J13: 0 | K13: 0 | L13: 0 | M13: 0 | N13: 0 | O13: 0 | P13: 0 | R13: =Prop2020DistTar!AF13 -> 1.344102883 | S13: =Prop2020DistTar!AG13 -> 48984.18044 | T13: =Prop2020DistTar!AH13 -> 0 | U13: =Prop2020DistTar!AI13 -> 0 | V13: =Prop2020DistTar!AJ13 -> 0 | W13: =Prop2020DistTar!AK13 -> 0 | X13: =Prop2020DistTar!AL13 -> 0 | Y13: =Prop2020DistTar!AM13 -> 0 | Z13: =Prop2020DistTar!AN13 -> 0 | AA13: =Prop2020DistTar!AO13 -> 14.96792971 | AB13: =Prop2020DistTar!AP13 -> 0 | AC13: =Prop2020DistTar!AQ13 -> 0 | AD13: =Prop2020DistTar!AR13 -> 0 | AF13: 0 | AG13: 80.82389772 | AH13: 0 | AI13: 0 | AJ13: 0 | AK13: 0 | AL13: 0 | AM13: 0 | AN13: 0 | AO13: 0 | AP13: 0 | AQ13: 0 | AR13: 0 | AS13: 80.82389772
B14: =Prop2020DistTar!B14 -> Small Business - TOU Weekdays | D14: 0 | E14: 0.165 | F14: 0 | G14: 0 | H14: 0 | I14: 0.112 | J14: 0 | K14: 0 | L14: 0 | M14: 0 | N14: 0 | O14: 0 | P14: 0 | R14: =Prop2020DistTar!AF14 -> 7696.463709 | S14: =Prop2020DistTar!AG14 -> 170924694.6 | T14: =Prop2020DistTar!AH14 -> 0 | U14: =Prop2020DistTar!AI14 -> 0 | V14: =Prop2020DistTar!AJ14 -> 0 | W14: =Prop2020DistTar!AK14 -> 111481488.5 | X14: =Prop2020DistTar!AL14 -> 0 | Y14: =Prop2020DistTar!AM14 -> 0 | Z14: =Prop2020DistTar!AN14 -> 0 | AA14: =Prop2020DistTar!AO14 -> 0 | AB14: =Prop2020DistTar!AP14 -> 0 | AC14: =Prop2020DistTar!AQ14 -> 0 | AD14: =Prop2020DistTar!AR14 -> 0 | AF14: 0 | AG14: 282025.7462 | AH14: 0 | AI14: 0 | AJ14: 0 | AK14: 124859.2672 | AL14: 0 | AM14: 0 | AN14: 0 | AO14: 0 | AP14: 0 | AQ14: 0 | AR14: 0 | AS14: 406885.0133
B15: =Prop2020DistTar!B15 -> Small Business - TOU Weekdays Demand | D15: 0 | E15: 0.165 | F15: 0 | G15: 0 | H15: 0 | I15: 0.112 | J15: 0 | K15: 0 | L15: 0 | M15: 0 | N15: 0 | O15: 0 | P15: 0 | R15: =Prop2020DistTar!AF15 -> 667.2837814 | S15: =Prop2020DistTar!AG15 -> 69784438.34 | T15: =Prop2020DistTar!AH15 -> 0 | U15: =Prop2020DistTar!AI15 -> 0 | V15: =Prop2020DistTar!AJ15 -> 0 | W15: =Prop2020DistTar!AK15 -> 48547711.91 | X15: =Prop2020DistTar!AL15 -> 0 | Y15: =Prop2020DistTar!AM15 -> 0 | Z15: =Prop2020DistTar!AN15 -> 0 | AA15: =Prop2020DistTar!AO15 -> 52693.96892 | AB15: =Prop2020DistTar!AP15 -> 0 | AC15: =Prop2020DistTar!AQ15 -> 0 | AD15: =Prop2020DistTar!AR15 -> 0 | AF15: 0 | AG15: 115144.3233 | AH15: 0 | AI15: 0 | AJ15: 0 | AK15: 54373.43734 | AL15: 0 | AM15: 0 | AN15: 0 | AO15: 0 | AP15: 0 | AQ15: 0 | AR15: 0 | AS15: 169517.7606
B16: =Prop2020DistTar!B16 -> Small Business - TOU Opt out | D16: 0 | E16: 0.165 | F16: 0 | G16: 0 | H16: 0 | I16: 0.112 | J16: 0 | K16: 0 | L16: 0 | M16: 0 | N16: 0 | O16: 0 | P16: 0 | R16: =Prop2020DistTar!AF16 -> 51 | S16: =Prop2020DistTar!AG16 -> 5349072.517 | T16: =Prop2020DistTar!AH16 -> 0 | U16: =Prop2020DistTar!AI16 -> 0 | V16: =Prop2020DistTar!AJ16 -> 0 | W16: =Prop2020DistTar!AK16 -> 0 | X16: =Prop2020DistTar!AL16 -> 0 | Y16: =Prop2020DistTar!AM16 -> 0 | Z16: =Prop2020DistTar!AN16 -> 0 | AA16: =Prop2020DistTar!AO16 -> 0 | AB16: =Prop2020DistTar!AP16 -> 0 | AC16: =Prop2020DistTar!AQ16 -> 0 | AD16: =Prop2020DistTar!AR16 -> 0 | AF16: 0 | AG16: 8825.969653 | AH16: 0 | AI16: 0 | AJ16: 0 | AK16: 0 | AL16: 0 | AM16: 0 | AN16: 0 | AO16: 0 | AP16: 0 | AQ16: 0 | AR16: 0 | AS16: 8825.969653
B17: =Prop2020DistTar!B17 -> Small Business - TOU Extended | D17: 0 | E17: 0.165 | F17: 0 | G17: 0 | H17: 0 | I17: 0.112 | J17: 0 | K17: 0 | L17: 0 | M17: 0 | N17: 0 | O17: 0 | P17: 0 | R17: =Prop2020DistTar!AF17 -> 2331.830229 | S17: =Prop2020DistTar!AG17 -> 41771214.93 | T17: =Prop2020DistTar!AH17 -> 0 | U17: =Prop2020DistTar!AI17 -> 0 | V17: =Prop2020DistTar!AJ17 -> 0 | W17: =Prop2020DistTar!AK17 -> 12782107.32 | X17: =Prop2020DistTar!AL17 -> 0 | Y17: =Prop2020DistTar!AM17 -> 0 | Z17: =Prop2020DistTar!AN17 -> 0 | AA17: =Prop2020DistTar!AO17 -> 0 | AB17: =Prop2020DistTar!AP17 -> 0 | AC17: =Prop2020DistTar!AQ17 -> 0 | AD17: =Prop2020DistTar!AR17 -> 0 | AF17: 0 | AG17: 68922.50464 | AH17: 0 | AI17: 0 | AJ17: 0 | AK17: 14315.96019 | AL17: 0 | AM17: 0 | AN17: 0 | AO17: 0 | AP17: 0 | AQ17: 0 | AR17: 0 | AS17: 83238.46483
B18: =Prop2020DistTar!B18 -> Small Business - TOU Extended Demand | D18: 0 | E18: 0.165 | F18: 0 | G18: 0 | H18: 0 | I18: 0.112 | J18: 0 | K18: 0 | L18: 0 | M18: 0 | N18: 0 | O18: 0 | P18: 0 | R18: =Prop2020DistTar!AF18 -> 115.4249261 | S18: =Prop2020DistTar!AG18 -> 18810985.69 | T18: =Prop2020DistTar!AH18 -> 0 | U18: =Prop2020DistTar!AI18 -> 0 | V18: =Prop2020DistTar!AJ18 -> 0 | W18: =Prop2020DistTar!AK18 -> 5531396.48 | X18: =Prop2020DistTar!AL18 -> 0 | Y18: =Prop2020DistTar!AM18 -> 0 | Z18: =Prop2020DistTar!AN18 -> 0 | AA18: =Prop2020DistTar!AO18 -> 11957.52292 | AB18: =Prop2020DistTar!AP18 -> 0 | AC18: =Prop2020DistTar!AQ18 -> 0 | AD18: =Prop2020DistTar!AR18 -> 0 | AF18: 0 | AG18: 31038.12639 | AH18: 0 | AI18: 0 | AJ18: 0 | AK18: 6195.164058 | AL18: 0 | AM18: 0 | AN18: 0 | AO18: 0 | AP18: 0 | AQ18: 0 | AR18: 0 | AS18: 37233.29045
B19: =Prop2020DistTar!B19 -> Small Business - Unmetered Supply | D19: 0 | E19: 0.165 | F19: 0 | G19: 0 | H19: 0 | I19: 0.111 | J19: 0 | K19: 0 | L19: 0 | M19: 0 | N19: 0 | O19: 0 | P19: 0 | R19: =Prop2020DistTar!AF19 -> 0 | S19: =Prop2020DistTar!AG19 -> 11872124.14 | T19: =Prop2020DistTar!AH19 -> 0 | U19: =Prop2020DistTar!AI19 -> 0 | V19: =Prop2020DistTar!AJ19 -> 0 | W19: =Prop2020DistTar!AK19 -> 26427874.32 | X19: =Prop2020DistTar!AL19 -> 0 | Y19: =Prop2020DistTar!AM19 -> 0 | Z19: =Prop2020DistTar!AN19 -> 0 | AA19: =Prop2020DistTar!AO19 -> 0 | AB19: =Prop2020DistTar!AP19 -> 0 | AC19: =Prop2020DistTar!AQ19 -> 0 | AD19: =Prop2020DistTar!AR19 -> 0 | AF19: 0 | AG19: 19589.00483 | AH19: 0 | AI19: 0 | AJ19: 0 | AK19: 29334.94049 | AL19: 0 | AM19: 0 | AN19: 0 | AO19: 0 | AP19: 0 | AQ19: 0 | AR19: 0 | AS19: 48923.94532
B20: =Prop2020DistTar!B20 -> Large Business - LV 0.4 - 0.8 GWh | D20: 0 | E20: 0.145 | F20: 0 | G20: 0 | H20: 0 | I20: 0.119 | J20: 0 | K20: 0 | L20: 0 | M20: 0 | N20: 0 | O20: 0 | P20: 0 | R20: =Prop2020DistTar!AF20 -> 749.2560244 | S20: =Prop2020DistTar!AG20 -> 175307653.6 | T20: =Prop2020DistTar!AH20 -> 0 | U20: =Prop2020DistTar!AI20 -> 0 | V20: =Prop2020DistTar!AJ20 -> 0 | W20: =Prop2020DistTar!AK20 -> 112610508.3 | X20: =Prop2020DistTar!AL20 -> 0 | Y20: =Prop2020DistTar!AM20 -> 0 | Z20: =Prop2020DistTar!AN20 -> 0 | AA20: =Prop2020DistTar!AO20 -> 158812.0352 | AB20: =Prop2020DistTar!AP20 -> 0 | AC20: =Prop2020DistTar!AQ20 -> 0 | AD20: =Prop2020DistTar!AR20 -> 0 | AF20: 0 | AG20: 254196.0977 | AH20: 0 | AI20: 0 | AJ20: 0 | AK20: 134006.5049 | AL20: 0 | AM20: 0 | AN20: 0 | AO20: 0 | AP20: 0 | AQ20: 0 | AR20: 0 | AS20: 388202.6026
B21: =Prop2020DistTar!B21 -> Large Business – LVEN Annual Consumption <= 0.8 GWh | D21: 0 | E21: 0.145 | F21: 0 | G21: 0 | H21: 0 | I21: 0.119 | J21: 0 | K21: 0 | L21: 0 | M21: 0 | N21: 0 | O21: 0 | P21: 0 | R21: =Prop2020DistTar!AF21 -> 70.7 | S21: =Prop2020DistTar!AG21 -> 20519791.04 | T21: =Prop2020DistTar!AH21 -> 0 | U21: =Prop2020DistTar!AI21 -> 0 | V21: =Prop2020DistTar!AJ21 -> 0 | W21: =Prop2020DistTar!AK21 -> 14174690.69 | X21: =Prop2020DistTar!AL21 -> 0 | Y21: =Prop2020DistTar!AM21 -> 0 | Z21: =Prop2020DistTar!AN21 -> 0 | AA21: =Prop2020DistTar!AO21 -> 17202.08125 | AB21: =Prop2020DistTar!AP21 -> 0 | AC21: =Prop2020DistTar!AQ21 -> 0 | AD21: =Prop2020DistTar!AR21 -> 0 | AF21: 0 | AG21: 29753.69701 | AH21: 0 | AI21: 0 | AJ21: 0 | AK21: 16867.88192 | AL21: 0 | AM21: 0 | AN21: 0 | AO21: 0 | AP21: 0 | AQ21: 0 | AR21: 0 | AS21: 46621.57893
B22: =Prop2020DistTar!B22 -> Large Business - LV 0.8+ - 2.2 GWh | D22: 0 | E22: 0.145 | F22: 0 | G22: 0 | H22: 0 | I22: 0.119 | J22: 0 | K22: 0 | L22: 0 | M22: 0 | N22: 0 | O22: 0 | P22: 0 | R22: =Prop2020DistTar!AF22 -> 374.988246 | S22: =Prop2020DistTar!AG22 -> 269437471.1 | T22: =Prop2020DistTar!AH22 -> 0 | U22: =Prop2020DistTar!AI22 -> 0 | V22: =Prop2020DistTar!AJ22 -> 0 | W22: =Prop2020DistTar!AK22 -> 186190977.4 | X22: =Prop2020DistTar!AL22 -> 0 | Y22: =Prop2020DistTar!AM22 -> 0 | Z22: =Prop2020DistTar!AN22 -> 0 | AA22: =Prop2020DistTar!AO22 -> 177693.8618 | AB22: =Prop2020DistTar!AP22 -> 0 | AC22: =Prop2020DistTar!AQ22 -> 0 | AD22: =Prop2020DistTar!AR22 -> 0 | AF22: 0 | AG22: 390684.3331 | AH22: 0 | AI22: 0 | AJ22: 0 | AK22: 221567.2631 | AL22: 0 | AM22: 0 | AN22: 0 | AO22: 0 | AP22: 0 | AQ22: 0 | AR22: 0 | AS22: 612251.5962
B23: =Prop2020DistTar!B23 -> Large Business - LVEN 0.8+ - 2.2 GWh | D23: 0 | E23: 0.145 | F23: 0 | G23: 0 | H23: 0 | I23: 0.119 | J23: 0 | K23: 0 | L23: 0 | M23: 0 | N23: 0 | O23: 0 | P23: 0 | R23: =Prop2020DistTar!AF23 -> 44 | S23: =Prop2020DistTar!AG23 -> 28725458.95 | T23: =Prop2020DistTar!AH23 -> 0 | U23: =Prop2020DistTar!AI23 -> 0 | V23: =Prop2020DistTar!AJ23 -> 0 | W23: =Prop2020DistTar!AK23 -> 18896186.89 | X23: =Prop2020DistTar!AL23 -> 0 | Y23: =Prop2020DistTar!AM23 -> 0 | Z23: =Prop2020DistTar!AN23 -> 0 | AA23: =Prop2020DistTar!AO23 -> 19831.31559 | AB23: =Prop2020DistTar!AP23 -> 0 | AC23: =Prop2020DistTar!AQ23 -> 0 | AD23: =Prop2020DistTar!AR23 -> 0 | AF23: 0 | AG23: 41651.91548 | AH23: 0 | AI23: 0 | AJ23: 0 | AK23: 22486.4624 | AL23: 0 | AM23: 0 | AN23: 0 | AO23: 0 | AP23: 0 | AQ23: 0 | AR23: 0 | AS23: 64138.37788
B24: =Prop2020DistTar!B24 -> Large Business - LV 2.2+ - 6.0 GWh | D24: 0 | E24: 0.145 | F24: 0 | G24: 0 | H24: 0 | I24: 0.119 | J24: 0 | K24: 0 | L24: 0 | M24: 0 | N24: 0 | O24: 0 | P24: 0 | R24: =Prop2020DistTar!AF24 -> 72.65840564 | S24: =Prop2020DistTar!AG24 -> 123632421.4 | T24: =Prop2020DistTar!AH24 -> 0 | U24: =Prop2020DistTar!AI24 -> 0 | V24: =Prop2020DistTar!AJ24 -> 0 | W24: =Prop2020DistTar!AK24 -> 93477286.13 | X24: =Prop2020DistTar!AL24 -> 0 | Y24: =Prop2020DistTar!AM24 -> 0 | Z24: =Prop2020DistTar!AN24 -> 0 | AA24: =Prop2020DistTar!AO24 -> 71075.88411 | AB24: =Prop2020DistTar!AP24 -> 0 | AC24: =Prop2020DistTar!AQ24 -> 0 | AD24: =Prop2020DistTar!AR24 -> 0 | AF24: 0 | AG24: 179267.011 | AH24: 0 | AI24: 0 | AJ24: 0 | AK24: 111237.9705 | AL24: 0 | AM24: 0 | AN24: 0 | AO24: 0 | AP24: 0 | AQ24: 0 | AR24: 0 | AS24: 290504.9815
B25: =Prop2020DistTar!B25 -> Large Business - LVEN 2.2+ GWh | D25: 0 | E25: 0.145 | F25: 0 | G25: 0 | H25: 0 | I25: 0.119 | J25: 0 | K25: 0 | L25: 0 | M25: 0 | N25: 0 | O25: 0 | P25: 0 | R25: =Prop2020DistTar!AF25 -> 17.35673809 | S25: =Prop2020DistTar!AG25 -> 31188816.3 | T25: =Prop2020DistTar!AH25 -> 0 | U25: =Prop2020DistTar!AI25 -> 0 | V25: =Prop2020DistTar!AJ25 -> 0 | W25: =Prop2020DistTar!AK25 -> 22454485.84 | X25: =Prop2020DistTar!AL25 -> 0 | Y25: =Prop2020DistTar!AM25 -> 0 | Z25: =Prop2020DistTar!AN25 -> 0 | AA25: =Prop2020DistTar!AO25 -> 16630.35649 | AB25: =Prop2020DistTar!AP25 -> 0 | AC25: =Prop2020DistTar!AQ25 -> 0 | AD25: =Prop2020DistTar!AR25 -> 0 | AF25: 0 | AG25: 45223.78363 | AH25: 0 | AI25: 0 | AJ25: 0 | AK25: 26720.83815 | AL25: 0 | AM25: 0 | AN25: 0 | AO25: 0 | AP25: 0 | AQ25: 0 | AR25: 0 | AS25: 71944.62178
B26: =Prop2020DistTar!B26 -> Large Business - LVMS 2.2+ - 6.0 GWh | D26: 0 | E26: 0.145 | F26: 0 | G26: 0 | H26: 0 | I26: 0.119 | J26: 0 | K26: 0 | L26: 0 | M26: 0 | N26: 0 | O26: 0 | P26: 0 | R26: =Prop2020DistTar!AF26 -> 11 | S26: =Prop2020DistTar!AG26 -> 10947685.65 | T26: =Prop2020DistTar!AH26 -> 0 | U26: =Prop2020DistTar!AI26 -> 0 | V26: =Prop2020DistTar!AJ26 -> 0 | W26: =Prop2020DistTar!AK26 -> 8831426.158 | X26: =Prop2020DistTar!AL26 -> 0 | Y26: =Prop2020DistTar!AM26 -> 0 | Z26: =Prop2020DistTar!AN26 -> 0 | AA26: =Prop2020DistTar!AO26 -> 7857.658684 | AB26: =Prop2020DistTar!AP26 -> 0 | AC26: =Prop2020DistTar!AQ26 -> 0 | AD26: =Prop2020DistTar!AR26 -> 0 | AF26: 0 | AG26: 15874.14419 | AH26: 0 | AI26: 0 | AJ26: 0 | AK26: 10509.39713 | AL26: 0 | AM26: 0 | AN26: 0 | AO26: 0 | AP26: 0 | AQ26: 0 | AR26: 0 | AS26: 26383.54132
B27: =Prop2020DistTar!B27 -> Large Business - LV 6.0+ GWh | D27: 0 | E27: 0.145 | F27: 0 | G27: 0 | H27: 0 | I27: 0.119 | J27: 0 | K27: 0 | L27: 0 | M27: 0 | N27: 0 | O27: 0 | P27: 0 | R27: =Prop2020DistTar!AF27 -> 19 | S27: =Prop2020DistTar!AG27 -> 54016087.34 | T27: =Prop2020DistTar!AH27 -> 0 | U27: =Prop2020DistTar!AI27 -> 0 | V27: =Prop2020DistTar!AJ27 -> 0 | W27: =Prop2020DistTar!AK27 -> 45267619.45 | X27: =Prop2020DistTar!AL27 -> 0 | Y27: =Prop2020DistTar!AM27 -> 0 | Z27: =Prop2020DistTar!AN27 -> 0 | AA27: =Prop2020DistTar!AO27 -> 24539.6823 | AB27: =Prop2020DistTar!AP27 -> 0 | AC27: =Prop2020DistTar!AQ27 -> 0 | AD27: =Prop2020DistTar!AR27 -> 0 | AF27: 0 | AG27: 78323.32665 | AH27: 0 | AI27: 0 | AJ27: 0 | AK27: 53868.46715 | AL27: 0 | AM27: 0 | AN27: 0 | AO27: 0 | AP27: 0 | AQ27: 0 | AR27: 0 | AS27: 132191.7938
B28: =Prop2020DistTar!B28 -> Large Business - LVMS 6.0+ GWh | D28: 0 | E28: 0.145 | F28: 0 | G28: 0 | H28: 0 | I28: 0.119 | J28: 0 | K28: 0 | L28: 0 | M28: 0 | N28: 0 | O28: 0 | P28: 0 | R28: =Prop2020DistTar!AF28 -> 31 | S28: =Prop2020DistTar!AG28 -> 51574099.3 | T28: =Prop2020DistTar!AH28 -> 0 | U28: =Prop2020DistTar!AI28 -> 0 | V28: =Prop2020DistTar!AJ28 -> 0 | W28: =Prop2020DistTar!AK28 -> 40147645.06 | X28: =Prop2020DistTar!AL28 -> 0 | Y28: =Prop2020DistTar!AM28 -> 0 | Z28: =Prop2020DistTar!AN28 -> 0 | AA28: =Prop2020DistTar!AO28 -> 29061.41144 | AB28: =Prop2020DistTar!AP28 -> 0 | AC28: =Prop2020DistTar!AQ28 -> 0 | AD28: =Prop2020DistTar!AR28 -> 0 | AF28: 0 | AG28: 74782.44398 | AH28: 0 | AI28: 0 | AJ28: 0 | AK28: 47775.69762 | AL28: 0 | AM28: 0 | AN28: 0 | AO28: 0 | AP28: 0 | AQ28: 0 | AR28: 0 | AS28: 122558.1416
B29: =Prop2020DistTar!B29 -> Large Business - HV | D29: 0 | E29: 0.153 | F29: 0 | G29: 0 | H29: 0 | I29: 0.13 | J29: 0 | K29: 0 | L29: 0 | M29: 0 | N29: 0 | O29: 0 | P29: 0 | R29: =Prop2020DistTar!AF29 -> 79.96666667 | S29: =Prop2020DistTar!AG29 -> 261382203.5 | T29: =Prop2020DistTar!AH29 -> 0 | U29: =Prop2020DistTar!AI29 -> 0 | V29: =Prop2020DistTar!AJ29 -> 0 | W29: =Prop2020DistTar!AK29 -> 207377504.5 | X29: =Prop2020DistTar!AL29 -> 0 | Y29: =Prop2020DistTar!AM29 -> 0 | Z29: =Prop2020DistTar!AN29 -> 0 | AA29: =Prop2020DistTar!AO29 -> 179403.3486 | AB29: =Prop2020DistTar!AP29 -> 0 | AC29: =Prop2020DistTar!AQ29 -> 0 | AD29: =Prop2020DistTar!AR29 -> 0 | AF29: 0 | AG29: 399914.7713 | AH29: 0 | AI29: 0 | AJ29: 0 | AK29: 269590.7558 | AL29: 0 | AM29: 0 | AN29: 0 | AO29: 0 | AP29: 0 | AQ29: 0 | AR29: 0 | AS29: 669505.5271
B30: =Prop2020DistTar!B30 -> Large Business – HVEN | D30: 0 | E30: 0.153 | F30: 0 | G30: 0 | H30: 0 | I30: 0.13 | J30: 0 | K30: 0 | L30: 0 | M30: 0 | N30: 0 | O30: 0 | P30: 0 | R30: =Prop2020DistTar!AF30 -> 2 | S30: =Prop2020DistTar!AG30 -> 10026148.25 | T30: =Prop2020DistTar!AH30 -> 0 | U30: =Prop2020DistTar!AI30 -> 0 | V30: =Prop2020DistTar!AJ30 -> 0 | W30: =Prop2020DistTar!AK30 -> 7861827.181 | X30: =Prop2020DistTar!AL30 -> 0 | Y30: =Prop2020DistTar!AM30 -> 0 | Z30: =Prop2020DistTar!AN30 -> 0 | AA30: =Prop2020DistTar!AO30 -> 3283.976925 | AB30: =Prop2020DistTar!AP30 -> 0 | AC30: =Prop2020DistTar!AQ30 -> 0 | AD30: =Prop2020DistTar!AR30 -> 0 | AF30: 0 | AG30: 15340.00682 | AH30: 0 | AI30: 0 | AJ30: 0 | AK30: 10220.37534 | AL30: 0 | AM30: 0 | AN30: 0 | AO30: 0 | AP30: 0 | AQ30: 0 | AR30: 0 | AS30: 25560.38216
B31: =Prop2020DistTar!B31 -> Large Business - HVRF | D31: 0 | E31: 0.153 | F31: 0 | G31: 0 | H31: 0 | I31: 0.13 | J31: 0 | K31: 0 | L31: 0 | M31: 0 | N31: 0 | O31: 0 | P31: 0 | R31: =Prop2020DistTar!AF31 -> 1.966666667 | S31: =Prop2020DistTar!AG31 -> 20779374.23 | T31: =Prop2020DistTar!AH31 -> 0 | U31: =Prop2020DistTar!AI31 -> 0 | V31: =Prop2020DistTar!AJ31 -> 0 | W31: =Prop2020DistTar!AK31 -> 18296465.43 | X31: =Prop2020DistTar!AL31 -> 0 | Y31: =Prop2020DistTar!AM31 -> 0 | Z31: =Prop2020DistTar!AN31 -> 0 | AA31: =Prop2020DistTar!AO31 -> 12318.36753 | AB31: =Prop2020DistTar!AP31 -> 0 | AC31: =Prop2020DistTar!AQ31 -> 0 | AD31: =Prop2020DistTar!AR31 -> 0 | AF31: 0 | AG31: 31792.44257 | AH31: 0 | AI31: 0 | AJ31: 0 | AK31: 23785.40506 | AL31: 0 | AM31: 0 | AN31: 0 | AO31: 0 | AP31: 0 | AQ31: 0 | AR31: 0 | AS31: 55577.84763
B32: =Prop2020DistTar!B32 -> Large Business - HV Ann Cons >= 55GWh | D32: 0 | E32: 0.153 | F32: 0 | G32: 0 | H32: 0 | I32: 0.13 | J32: 0 | K32: 0 | L32: 0 | M32: 0 | N32: 0 | O32: 0 | P32: 0 | R32: =Prop2020DistTar!AF32 -> 1 | S32: =Prop2020DistTar!AG32 -> 30160498.85 | T32: =Prop2020DistTar!AH32 -> 0 | U32: =Prop2020DistTar!AI32 -> 0 | V32: =Prop2020DistTar!AJ32 -> 0 | W32: =Prop2020DistTar!AK32 -> 26819057.71 | X32: =Prop2020DistTar!AL32 -> 0 | Y32: =Prop2020DistTar!AM32 -> 0 | Z32: =Prop2020DistTar!AN32 -> 0 | AA32: =Prop2020DistTar!AO32 -> 10095.62244 | AB32: =Prop2020DistTar!AP32 -> 0 | AC32: =Prop2020DistTar!AQ32 -> 0 | AD32: =Prop2020DistTar!AR32 -> 0 | AF32: 0 | AG32: 46145.56324 | AH32: 0 | AI32: 0 | AJ32: 0 | AK32: 34864.77503 | AL32: 0 | AM32: 0 | AN32: 0 | AO32: 0 | AP32: 0 | AQ32: 0 | AR32: 0 | AS32: 81010.33827
B33: =Prop2020DistTar!B33 -> Large Business - Subtransmission | D33: 0 | E33: 0.131 | F33: 0 | G33: 0 | H33: 0 | I33: 0.11 | J33: 0 | K33: 0 | L33: 0 | M33: 0 | N33: 0 | O33: 0 | P33: 0 | R33: =Prop2020DistTar!AF33 -> 3 | S33: =Prop2020DistTar!AG33 -> 127353390.8 | T33: =Prop2020DistTar!AH33 -> 0 | U33: =Prop2020DistTar!AI33 -> 0 | V33: =Prop2020DistTar!AJ33 -> 0 | W33: =Prop2020DistTar!AK33 -> 137331201.1 | X33: =Prop2020DistTar!AL33 -> 0 | Y33: =Prop2020DistTar!AM33 -> 0 | Z33: =Prop2020DistTar!AN33 -> 0 | AA33: =Prop2020DistTar!AO33 -> 62414.39064 | AB33: =Prop2020DistTar!AP33 -> 0 | AC33: =Prop2020DistTar!AQ33 -> 0 | AD33: =Prop2020DistTar!AR33 -> 0 | AF33: =D33*R33 -> 0 | AG33: =E33/100*S33 -> 166832.942 | AH33: 0 | AI33: 0 | AJ33: 0 | AK33: 151064.3212 | AL33: 0 | AM33: 0 | AN33: 0 | AO33: =M33*AA33 -> 0 | AP33: =N33*AB33 -> 0 | AQ33: =O33*AC33 -> 0 | AR33: =P33*AD33 -> 0 | AS33: =SUM(AF33:AR33) -> 317897.2632
B34: =Prop2020DistTar!B34 -> Large Business - Subtransmission MA | D34: 0 | E34: 0.131 | F34: 0 | G34: 0 | H34: 0 | I34: 0.11 | J34: 0 | K34: 0 | L34: 0 | M34: 0 | N34: 0 | O34: 0 | P34: 0 | R34: =Prop2020DistTar!AF34 -> 1 | S34: =Prop2020DistTar!AG34 -> 72878283.53 | T34: =Prop2020DistTar!AH34 -> 0 | U34: =Prop2020DistTar!AI34 -> 0 | V34: =Prop2020DistTar!AJ34 -> 0 | W34: =Prop2020DistTar!AK34 -> 72553526.24 | X34: =Prop2020DistTar!AL34 -> 0 | Y34: =Prop2020DistTar!AM34 -> 0 | Z34: =Prop2020DistTar!AN34 -> 0 | AA34: =Prop2020DistTar!AO34 -> 43108.52324 | AB34: =Prop2020DistTar!AP34 -> 0 | AC34: =Prop2020DistTar!AQ34 -> 0 | AD34: =Prop2020DistTar!AR34 -> 0 | AF34: 0 | AG34: 95470.55143 | AH34: 0 | AI34: 0 | AJ34: 0 | AK34: 79808.87887 | AL34: 0 | AM34: 0 | AN34: 0 | AO34: 0 | AP34: 0 | AQ34: 0 | AR34: 0 | AS34: 175279.4303
B35: =Prop2020DistTar!B35 -> Large Business - Subtransmission EG | D35: 0 | E35: 0.131 | F35: 0 | G35: 0 | H35: 0 | I35: 0.11 | J35: 0 | K35: 0 | L35: 0 | M35: 0 | N35: 0 | O35: 0 | P35: 0 | R35: =Prop2020DistTar!AF35 -> 1 | S35: =Prop2020DistTar!AG35 -> 1437945.657 | T35: =Prop2020DistTar!AH35 -> 0 | U35: =Prop2020DistTar!AI35 -> 0 | V35: =Prop2020DistTar!AJ35 -> 0 | W35: =Prop2020DistTar!AK35 -> 1708117.938 | X35: =Prop2020DistTar!AL35 -> 0 | Y35: =Prop2020DistTar!AM35 -> 0 | Z35: =Prop2020DistTar!AN35 -> 0 | AA35: =Prop2020DistTar!AO35 -> 32052.45056 | AB35: =Prop2020DistTar!AP35 -> 0 | AC35: =Prop2020DistTar!AQ35 -> 0 | AD35: =Prop2020DistTar!AR35 -> 0 | AF35: =D35*R35 -> 0 | AG35: =E35/100*S35 -> 1883.708811 | AH35: =F35/100*T35 -> 0 | AI35: =G35/100*U35 -> 0 | AJ35: =H35/100*V35 -> 0 | AK35: =I35/100*W35 -> 1878.929732 | AL35: =J35/100*X35 -> 0 | AM35: =K35/100*Y35 -> 0 | AN35: =L35/100*Z35 -> 0 | AO35: =M35*AA35 -> 0 | AP35: =N35*AB35 -> 0 | AQ35: =O35*AC35 -> 0 | AR35: =P35*AD35 -> 0 | AS35: =SUM(AF35:AR35) -> 3762.638543
AF36: 0 | AG36: 0 | AH36: 0 | AI36: 0 | AJ36: 0 | AK36: 0 | AL36: 0 | AM36: 0 | AN36: 0 | AO36: 0 | AP36: 0 | AQ36: 0 | AR36: 0 | AS36: 0
AF37: 0 | AG37: 0 | AH37: 0 | AI37: 0 | AJ37: 0 | AK37: 0 | AL37: 0 | AM37: 0 | AN37: 0 | AO37: 0 | AP37: 0 | AQ37: 0 | AR37: 0 | AS37: 0
AF38: 0 | AG38: 0 | AH38: 0 | AI38: 0 | AJ38: 0 | AK38: 0 | AL38: 0 | AM38: 0 | AN38: =L38/100*Z38 -> 0 | AO38: 0 | AP38: 0 | AQ38: 0 | AR38: 0 | AS38: 0
AF39: 0 | AG39: 0 | AH39: 0 | AI39: 0 | AJ39: 0 | AK39: 0 | AL39: 0 | AM39: 0 | AN39: 0 | AO39: 0 | AP39: 0 | AQ39: 0 | AR39: 0 | AS39: 0
AF40: 0 | AG40: 0 | AH40: 0 | AI40: 0 | AJ40: 0 | AK40: 0 | AL40: 0 | AM40: 0 | AN40: 0 | AO40: 0 | AP40: 0 | AQ40: 0 | AR40: 0 | AS40: 0
AF41: 0 | AG41: 0 | AH41: 0 | AI41: 0 | AJ41: 0 | AK41: 0 | AL41: 0 | AM41: 0 | AN41: 0 | AO41: 0 | AP41: 0 | AQ41: 0 | AR41: 0 | AS41: 0
AF42: 0 | AG42: 0 | AH42: 0 | AI42: 0 | AJ42: 0 | AK42: 0 | AL42: 0 | AM42: 0 | AN42: 0 | AO42: 0 | AP42: 0 | AQ42: 0 | AR42: 0 | AS42: 0
AF43: 0 | AG43: 0 | AH43: 0 | AI43: 0 | AJ43: 0 | AK43: 0 | AL43: 0 | AM43: 0 | AN43: 0 | AO43: 0 | AP43: 0 | AQ43: 0 | AR43: 0 | AS43: 0
AF44: 0 | AG44: 0 | AH44: 0 | AI44: 0 | AJ44: 0 | AK44: 0 | AL44: 0 | AM44: 0 | AN44: 0 | AO44: 0 | AP44: 0 | AQ44: 0 | AR44: 0 | AS44: 0
AF45: 0 | AG45: 0 | AH45: 0 | AI45: 0 | AJ45: 0 | AK45: 0 | AL45: 0 | AM45: 0 | AN45: 0 | AO45: 0 | AP45: 0 | AQ45: 0 | AR45: 0 | AS45: 0
AF46: 0 | AG46: 0 | AH46: 0 | AI46: 0 | AJ46: 0 | AK46: 0 | AL46: 0 | AM46: 0 | AN46: 0 | AO46: 0 | AP46: 0 | AQ46: 0 | AR46: 0 | AS46: 0
AF47: 0 | AG47: 0 | AH47: 0 | AI47: 0 | AJ47: 0 | AK47: 0 | AL47: 0 | AM47: 0 | AN47: 0 | AO47: 0 | AP47: 0 | AQ47: 0 | AR47: 0 | AS47: 0
AF48: 0 | AG48: 0 | AH48: 0 | AI48: 0 | AJ48: 0 | AK48: 0 | AL48: 0 | AM48: 0 | AN48: 0 | AO48: 0 | AP48: 0 | AQ48: 0 | AR48: 0 | AS48: 0
AF49: 0 | AG49: 0 | AH49: 0 | AI49: 0 | AJ49: 0 | AK49: 0 | AL49: 0 | AM49: 0 | AN49: 0 | AO49: 0 | AP49: 0 | AQ49: 0 | AR49: 0 | AS49: 0
AF50: 0 | AG50: 0 | AH50: 0 | AI50: 0 | AJ50: 0 | AK50: 0 | AL50: 0 | AM50: 0 | AN50: 0 | AO50: 0 | AP50: 0 | AQ50: 0 | AR50: 0 | AS50: 0
AF51: 0 | AG51: 0 | AH51: 0 | AI51: 0 | AJ51: 0 | AK51: 0 | AL51: 0 | AM51: 0 | AN51: 0 | AO51: 0 | AP51: 0 | AQ51: 0 | AR51: 0 | AS51: 0
AF52: 0 | AG52: 0 | AH52: 0 | AI52: 0 | AJ52: 0 | AK52: 0 | AL52: 0 | AM52: 0 | AN52: 0 | AO52: 0 | AP52: 0 | AQ52: 0 | AR52: 0 | AS52: 0
AF53: 0 | AG53: 0 | AH53: 0 | AI53: 0 | AJ53: 0 | AK53: 0 | AL53: 0 | AM53: 0 | AN53: 0 | AO53: 0 | AP53: 0 | AQ53: 0 | AR53: 0 | AS53: 0
AF54: 0 | AG54: 0 | AH54: 0 | AI54: 0 | AJ54: 0 | AK54: 0 | AL54: 0 | AM54: 0 | AN54: 0 | AO54: 0 | AP54: 0 | AQ54: 0 | AR54: 0 | AS54: 0
AF55: 0 | AG55: 0 | AH55: 0 | AI55: 0 | AJ55: 0 | AK55: 0 | AL55: 0 | AM55: 0 | AN55: 0 | AO55: 0 | AP55: 0 | AQ55: 0 | AR55: 0 | AS55: 0
AF56: 0 | AG56: 0 | AH56: 0 | AI56: 0 | AJ56: 0 | AK56: 0 | AL56: 0 | AM56: 0 | AN56: 0 | AO56: 0 | AP56: 0 | AQ56: 0 | AR56: 0 | AS56: 0
AF57: 0 | AG57: 0 | AH57: 0 | AI57: 0 | AJ57: 0 | AK57: 0 | AL57: 0 | AM57: 0 | AN57: 0 | AO57: 0 | AP57: 0 | AQ57: 0 | AR57: 0 | AS57: 0
AF58: 0 | AG58: 0 | AH58: 0 | AI58: 0 | AJ58: 0 | AK58: 0 | AL58: 0 | AM58: 0 | AN58: 0 | AO58: 0 | AP58: 0 | AQ58: 0 | AR58: 0 | AS58: 0
AF59: 0 | AG59: 0 | AH59: 0 | AI59: 0 | AJ59: 0 | AK59: 0 | AL59: 0 | AM59: 0 | AN59: 0 | AO59: 0 | AP59: 0 | AQ59: 0 | AR59: 0 | AS59: 0
AF60: 0 | AG60: 0 | AH60: 0 | AI60: 0 | AJ60: 0 | AK60: 0 | AL60: 0 | AM60: 0 | AN60: 0 | AO60: 0 | AP60: 0 | AQ60: 0 | AR60: 0 | AS60: 0
AF61: 0 | AG61: 0 | AH61: 0 | AI61: 0 | AJ61: 0 | AK61: 0 | AL61: 0 | AM61: 0 | AN61: 0 | AO61: 0 | AP61: 0 | AQ61: 0 | AR61: 0 | AS61: 0
AF62: 0 | AG62: 0 | AH62: 0 | AI62: 0 | AJ62: 0 | AK62: 0 | AL62: 0 | AM62: 0 | AN62: 0 | AO62: 0 | AP62: 0 | AQ62: 0 | AR62: 0 | AS62: 0
AF63: 0 | AG63: 0 | AH63: 0 | AI63: 0 | AJ63: 0 | AK63: 0 | AL63: 0 | AM63: 0 | AN63: 0 | AO63: 0 | AP63: 0 | AQ63: 0 | AR63: 0 | AS63: 0
AF64: 0 | AG64: 0 | AH64: 0 | AI64: 0 | AJ64: 0 | AK64: 0 | AL64: 0 | AM64: 0 | AN64: 0 | AO64: 0 | AP64: 0 | AQ64: 0 | AR64: 0 | AS64: 0
AF65: 0 | AG65: 0 | AH65: 0 | AI65: 0 | AJ65: 0 | AK65: 0 | AL65: 0 | AM65: 0 | AN65: 0 | AO65: 0 | AP65: 0 | AQ65: 0 | AR65: 0 | AS65: 0
R66: =SUM(R6:R65) -> 352763.8279 | S66: 3118566391 | T66: 963834.6369 | U66: 676158.9282 | V66: 1257062.401 | W66: 1294294326 | X66: 821885.2976 | Y66: =SUM(Y6:Y65) -> 0 | Z66: 0 | AA66: 930066.1467 | AB66: 0 | AC66: 0 | AD66: 0 | AF66: =SUM(AF6:AF65) -> 0 | AG66: 4585322.797 | AH66: 1368.645184 | AI66: 960.1456781 | AJ66: 1785.02861 | AK66: 1524950.478 | AL66: 1117.764005 | AM66: =SUM(AM6:AM65) -> 0 | AN66: 0 | AO66: 0 | AP66: 0 | AQ66: 0 | AR66: 0 | AS66: 6115504.858

Sheet Est2019JSRev
B1: ="Tariff Approval - "&'Model update'!C3 -> Tariff Approval - Jemena | D1: ="Est"&'Model update'!$C$5-1&"JSRev" -> Est2019JSRev
B3: ="ESTIMATED "&'Model update'!C8&" JURISDICTIONAL SCHEME REVENUE" -> ESTIMATED 2019 JURISDICTIONAL SCHEME REVENUE
D4: ="Current Jurisdictional scheme Tariffs (Pt-1) for "&'Model update'!$C$8 -> Current Jurisdictional scheme Tariffs (Pt-1) for 2019 | R4: ="Estimated Quantities (Qt-1) for "&'Model update'!$C$8 -> Estimated Quantities (Qt-1) for 2019 | AF4: ="Estimated Revenue (Pt-1 "&'Model update'!$C$8&")*(Qt-1 " &'Model update'!$C$8&")" -> Estimated Revenue (Pt-1 2019)*(Qt-1 2019)
B5: ="Tariffs "&'Model update'!C8 -> Tariffs 2019 | D5: CurrentTar Fixed | E5: CurrentTar PkBlk1 | F5: CurrentTar Shoulder summer | G5: CurrentTar peak non-summer | H5: CurrentTar Shoulder non-summer | I5: CurrentTar OPkBlk1 | J5: CurrentTar off peak non-summer | K5: CurrentTar OPkBlk3 | L5: CurrentTar OPkBlk4 | M5: CurrentTar DemBlk1 | N5: CurrentTar DemBlk2 | O5: CurrentTar DemBlk3 | P5: CurrentTar DemBlk4 | R5: EstVol Fixed | S5: EstVol PkBlk1 | T5: EstVol Shoulder summer | U5: EstVol peak non-summer | V5: EstVol Shoulder non-summer | W5: EstVol OPkBlk1 | X5: EstVol off peak non-summer | Y5: EstVol OPkBlk3 | Z5: EstVol OPkBlk4 | AA5: EstVol DemBlk1 | AB5: EstVol DemBlk2 | AC5: EstVol DemBlk3 | AD5: EstVol DemBlk4 | AF5: EstRev Fixed | AG5: EstRev PkBlk1 | AH5: EstRev Shoulder summer | AI5: EstRev peak non-summer | AJ5: EstRev Shoulder non-summer | AK5: EstRev OPkBlk1 | AL5: EstRev off peak non-summer | AM5: EstRev OPkBlk3 | AN5: EstRev OPkBlk4 | AO5: EstRev DemBlk1 | AP5: EstRev DemBlk2 | AQ5: EstRev DemBlk3 | AR5: EstRev DemBlk4 | AS5: EstRev Total
B6: =Est2019TransRev!B6 -> Residential - General Purpose | D6: 0 | E6: 0.109 | F6: 0 | G6: 0 | H6: 0 | I6: 0 | J6: 0 | K6: 0 | L6: 0 | M6: 0 | N6: 0 | O6: 0 | P6: 0 | R6: =Est2019DistRev!R6 -> 301686.4437 | S6: =Est2019DistRev!S6 -> 1176483463 | T6: =Est2019DistRev!T6 -> 0 | U6: =Est2019DistRev!U6 -> 0 | V6: =Est2019DistRev!V6 -> 0 | W6: =Est2019DistRev!W6 -> 0 | X6: =Est2019DistRev!X6 -> 0 | Y6: =Est2019DistRev!Y6 -> 0 | Z6: =Est2019DistRev!Z6 -> 0 | AA6: =Est2019DistRev!AA6 -> 0 | AB6: =Est2019DistRev!AB6 -> 0 | AC6: =Est2019DistRev!AC6 -> 0 | AD6: =Est2019DistRev!AD6 -> 0 | AF6: =D6*R6 -> 0 | AG6: =E6/100*S6 -> 1282366.975 | AH6: 0 | AI6: 0 | AJ6: 0 | AK6: 0 | AL6: 0 | AM6: 0 | AN6: 0 | AO6: =M6*AA6 -> 0 | AP6: 0 | AQ6: 0 | AR6: 0 | AS6: =SUM(AF6:AR6) -> 1282366.975
B7: =Est2019TransRev!B7 -> Residential - General Purpose Demand | D7: 0 | E7: 0.109 | F7: 0 | G7: 0 | H7: 0 | I7: 0 | J7: 0 | K7: 0 | L7: 0 | M7: 0 | N7: 0 | O7: 0 | P7: 0 | R7: =Est2019DistRev!R7 -> 1.001220543 | S7: =Est2019DistRev!S7 -> 3199.47119 | T7: =Est2019DistRev!T7 -> 0 | U7: =Est2019DistRev!U7 -> 0 | V7: =Est2019DistRev!V7 -> 0 | W7: =Est2019DistRev!W7 -> 0 | X7: =Est2019DistRev!X7 -> 0 | Y7: =Est2019DistRev!Y7 -> 0 | Z7: =Est2019DistRev!Z7 -> 0 | AA7: =Est2019DistRev!AA7 -> 50.58160812 | AB7: =Est2019DistRev!AB7 -> 0 | AC7: =Est2019DistRev!AC7 -> 0 | AD7: =Est2019DistRev!AD7 -> 0 | AF7: =D7*R7 -> 0 | AG7: =E7/100*S7 -> 3.487423597 | AH7: 0 | AI7: 0 | AJ7: 0 | AK7: 0 | AL7: 0 | AM7: 0 | AN7: 0 | AO7: =M7*AA7 -> 0 | AP7: =N7*AB7 -> 0 | AQ7: =O7*AC7 -> 0 | AR7: =P7*AD7 -> 0 | AS7: =SUM(AF7:AR7) -> 3.487423597
B8: =Est2019TransRev!B8 -> Residential - Flexible | D8: 0 | E8: 0.109 | F8: 0.109 | G8: 0.109 | H8: 0.109 | I8: 0.105 | J8: 0.105 | K8: 0 | L8: 0 | M8: 0 | N8: 0 | O8: 0 | P8: 0 | R8: =Est2019DistRev!R8 -> 1000 | S8: =Est2019DistRev!S8 -> 729714.5627 | T8: =Est2019DistRev!T8 -> 1368615.722 | U8: =Est2019DistRev!U8 -> 960125.0095 | V8: =Est2019DistRev!V8 -> 1784990.184 | W8: =Est2019DistRev!W8 -> 1448837.789 | X8: =Est2019DistRev!X8 -> 1167051.999 | Y8: =Est2019DistRev!Y8 -> 0 | Z8: =Est2019DistRev!Z8 -> 0 | AA8: =Est2019DistRev!AA8 -> 0 | AB8: =Est2019DistRev!AB8 -> 0 | AC8: =Est2019DistRev!AC8 -> 0 | AD8: =Est2019DistRev!AD8 -> 0 | AF8: 0 | AG8: 795.3888733 | AH8: 1491.791137 | AI8: 1046.53626 | AJ8: 1945.639301 | AK8: 1521.279679 | AL8: 1225.404599 | AM8: 0 | AN8: 0 | AO8: 0 | AP8: 0 | AQ8: 0 | AR8: 0 | AS8: 8026.03985
B9: =Est2019TransRev!B9 -> Residential - Time of Use Interval Meter | D9: 0 | E9: 0.109 | F9: 0 | G9: 0 | H9: 0 | I9: 0.105 | J9: 0 | K9: 0 | L9: 0 | M9: 0 | N9: 0 | O9: 0 | P9: 0 | R9: =Est2019DistRev!R9 -> 15783.3079 | S9: =Est2019DistRev!S9 -> 38414734.81 | T9: =Est2019DistRev!T9 -> 0 | U9: =Est2019DistRev!U9 -> 0 | V9: =Est2019DistRev!V9 -> 0 | W9: =Est2019DistRev!W9 -> 39759423.7 | X9: =Est2019DistRev!X9 -> 0 | Y9: =Est2019DistRev!Y9 -> 0 | Z9: =Est2019DistRev!Z9 -> 0 | AA9: =Est2019DistRev!AA9 -> 0 | AB9: =Est2019DistRev!AB9 -> 0 | AC9: =Est2019DistRev!AC9 -> 0 | AD9: =Est2019DistRev!AD9 -> 0 | AF9: 0 | AG9: 41872.06094 | AH9: 0 | AI9: 0 | AJ9: 0 | AK9: 41747.39489 | AL9: 0 | AM9: 0 | AN9: 0 | AO9: 0 | AP9: 0 | AQ9: 0 | AR9: 0 | AS9: 83619.45583
B10: =Est2019TransRev!B10 -> Residential - TOU | D10: 0 | E10: 0.109 | F10: 0 | G10: 0 | H10: 0 | I10: 0.105 | J10: 0 | K10: 0 | L10: 0 | M10: 0 | N10: 0 | O10: 0 | P10: 0 | R10: =Est2019DistRev!R10 -> 1607.472743 | S10: =Est2019DistRev!S10 -> 6286480.773 | T10: =Est2019DistRev!T10 -> 0 | U10: =Est2019DistRev!U10 -> 0 | V10: =Est2019DistRev!V10 -> 0 | W10: =Est2019DistRev!W10 -> 6884654.453 | X10: =Est2019DistRev!X10 -> 0 | Y10: =Est2019DistRev!Y10 -> 0 | Z10: =Est2019DistRev!Z10 -> 0 | AA10: =Est2019DistRev!AA10 -> 0 | AB10: =Est2019DistRev!AB10 -> 0 | AC10: =Est2019DistRev!AC10 -> 0 | AD10: =Est2019DistRev!AD10 -> 0 | AF10: 0 | AG10: 6852.264042 | AH10: 0 | AI10: 0 | AJ10: 0 | AK10: 7228.887176 | AL10: 0 | AM10: 0 | AN10: 0 | AO10: 0 | AP10: 0 | AQ10: 0 | AR10: 0 | AS10: 14081.15122
B11: =Est2019TransRev!B11 -> Residential - Off Peak Only | D11: 0 | E11: 0 | F11: 0 | G11: 0 | H11: 0 | I11: 0.103 | J11: 0 | K11: 0 | L11: 0 | M11: 0 | N11: 0 | O11: 0 | P11: 0 | R11: =Est2019DistRev!R11 -> 0 | S11: =Est2019DistRev!S11 -> 0 | T11: =Est2019DistRev!T11 -> 0 | U11: =Est2019DistRev!U11 -> 0 | V11: =Est2019DistRev!V11 -> 0 | W11: =Est2019DistRev!W11 -> 35388865.33 | X11: =Est2019DistRev!X11 -> 0 | Y11: =Est2019DistRev!Y11 -> 0 | Z11: =Est2019DistRev!Z11 -> 0 | AA11: =Est2019DistRev!AA11 -> 0 | AB11: =Est2019DistRev!AB11 -> 0 | AC11: =Est2019DistRev!AC11 -> 0 | AD11: =Est2019DistRev!AD11 -> 0 | AF11: 0 | AG11: 0 | AH11: 0 | AI11: 0 | AJ11: 0 | AK11: 36450.53129 | AL11: 0 | AM11: 0 | AN11: 0 | AO11: 0 | AP11: 0 | AQ11: 0 | AR11: 0 | AS11: 36450.53129
B12: =Est2019TransRev!B12 -> Small Business - General Purpose | D12: 0 | E12: 0.129 | F12: 0 | G12: 0 | H12: 0 | I12: 0 | J12: 0 | K12: 0 | L12: 0 | M12: 0 | N12: 0 | O12: 0 | P12: 0 | R12: =Est2019DistRev!R12 -> 16330.65672 | S12: =Est2019DistRev!S12 -> 200365882 | T12: =Est2019DistRev!T12 -> 0 | U12: =Est2019DistRev!U12 -> 0 | V12: =Est2019DistRev!V12 -> 0 | W12: =Est2019DistRev!W12 -> 0 | X12: =Est2019DistRev!X12 -> 0 | Y12: =Est2019DistRev!Y12 -> 0 | Z12: =Est2019DistRev!Z12 -> 0 | AA12: =Est2019DistRev!AA12 -> 0 | AB12: =Est2019DistRev!AB12 -> 0 | AC12: =Est2019DistRev!AC12 -> 0 | AD12: =Est2019DistRev!AD12 -> 0 | AF12: 0 | AG12: 258471.9878 | AH12: 0 | AI12: 0 | AJ12: 0 | AK12: 0 | AL12: 0 | AM12: 0 | AN12: 0 | AO12: 0 | AP12: 0 | AQ12: 0 | AR12: 0 | AS12: 258471.9878
B13: =Est2019TransRev!B13 -> Small Business - General Purpose Demand | D13: 0 | E13: 0.129 | F13: 0 | G13: 0 | H13: 0 | I13: 0 | J13: 0 | K13: 0 | L13: 0 | M13: 0 | N13: 0 | O13: 0 | P13: 0 | R13: =Est2019DistRev!R13 -> 1.001826222 | S13: =Est2019DistRev!S13 -> 0 | T13: =Est2019DistRev!T13 -> 0 | U13: =Est2019DistRev!U13 -> 0 | V13: =Est2019DistRev!V13 -> 0 | W13: =Est2019DistRev!W13 -> 0 | X13: =Est2019DistRev!X13 -> 0 | Y13: =Est2019DistRev!Y13 -> 0 | Z13: =Est2019DistRev!Z13 -> 0 | AA13: =Est2019DistRev!AA13 -> 120.4626903 | AB13: =Est2019DistRev!AB13 -> 0 | AC13: =Est2019DistRev!AC13 -> 0 | AD13: =Est2019DistRev!AD13 -> 0 | AF13: 0 | AG13: 0 | AH13: 0 | AI13: 0 | AJ13: 0 | AK13: 0 | AL13: 0 | AM13: 0 | AN13: 0 | AO13: 0 | AP13: 0 | AQ13: 0 | AR13: 0 | AS13: 0
B14: =Est2019TransRev!B14 -> Small Business - TOU Weekdays | D14: 0 | E14: 0.129 | F14: 0 | G14: 0 | H14: 0 | I14: 0.112 | J14: 0 | K14: 0 | L14: 0 | M14: 0 | N14: 0 | O14: 0 | P14: 0 | R14: =Est2019DistRev!R14 -> 7570.796506 | S14: =Est2019DistRev!S14 -> 164109568.5 | T14: =Est2019DistRev!T14 -> 0 | U14: =Est2019DistRev!U14 -> 0 | V14: =Est2019DistRev!V14 -> 0 | W14: =Est2019DistRev!W14 -> 107036487.7 | X14: =Est2019DistRev!X14 -> 0 | Y14: =Est2019DistRev!Y14 -> 0 | Z14: =Est2019DistRev!Z14 -> 0 | AA14: =Est2019DistRev!AA14 -> 0 | AB14: =Est2019DistRev!AB14 -> 0 | AC14: =Est2019DistRev!AC14 -> 0 | AD14: =Est2019DistRev!AD14 -> 0 | AF14: 0 | AG14: 211701.3434 | AH14: 0 | AI14: 0 | AJ14: 0 | AK14: 119880.8663 | AL14: 0 | AM14: 0 | AN14: 0 | AO14: 0 | AP14: 0 | AQ14: 0 | AR14: 0 | AS14: 331582.2096
B15: =Est2019TransRev!B15 -> Small Business - TOU Weekdays Demand | D15: 0 | E15: 0.129 | F15: 0 | G15: 0 | H15: 0 | I15: 0.112 | J15: 0 | K15: 0 | L15: 0 | M15: 0 | N15: 0 | O15: 0 | P15: 0 | R15: =Est2019DistRev!R15 -> 724.0324079 | S15: =Est2019DistRev!S15 -> 73421991.06 | T15: =Est2019DistRev!T15 -> 0 | U15: =Est2019DistRev!U15 -> 0 | V15: =Est2019DistRev!V15 -> 0 | W15: =Est2019DistRev!W15 -> 51078288.44 | X15: =Est2019DistRev!X15 -> 0 | Y15: =Est2019DistRev!Y15 -> 0 | Z15: =Est2019DistRev!Z15 -> 0 | AA15: =Est2019DistRev!AA15 -> 60952.52378 | AB15: =Est2019DistRev!AB15 -> 0 | AC15: =Est2019DistRev!AC15 -> 0 | AD15: =Est2019DistRev!AD15 -> 0 | AF15: 0 | AG15: 94714.36846 | AH15: 0 | AI15: 0 | AJ15: 0 | AK15: 57207.68305 | AL15: 0 | AM15: 0 | AN15: 0 | AO15: 0 | AP15: 0 | AQ15: 0 | AR15: 0 | AS15: 151922.0515
B16: =Est2019TransRev!B16 -> Small Business - TOU Opt out | D16: 0 | E16: 0.129 | F16: 0 | G16: 0 | H16: 0 | I16: 0.112 | J16: 0 | K16: 0 | L16: 0 | M16: 0 | N16: 0 | O16: 0 | P16: 0 | R16: =Est2019DistRev!R16 -> 9 | S16: =Est2019DistRev!S16 -> 0 | T16: =Est2019DistRev!T16 -> 0 | U16: =Est2019DistRev!U16 -> 0 | V16: =Est2019DistRev!V16 -> 0 | W16: =Est2019DistRev!W16 -> 0 | X16: =Est2019DistRev!X16 -> 0 | Y16: =Est2019DistRev!Y16 -> 0 | Z16: =Est2019DistRev!Z16 -> 0 | AA16: =Est2019DistRev!AA16 -> 0 | AB16: =Est2019DistRev!AB16 -> 0 | AC16: =Est2019DistRev!AC16 -> 0 | AD16: =Est2019DistRev!AD16 -> 0 | AF16: 0 | AG16: 0 | AH16: 0 | AI16: 0 | AJ16: 0 | AK16: 0 | AL16: 0 | AM16: 0 | AN16: 0 | AO16: 0 | AP16: 0 | AQ16: 0 | AR16: 0 | AS16: 0
B17: =Est2019TransRev!B17 -> Small Business - TOU Extended | D17: 0 | E17: 0.129 | F17: 0 | G17: 0 | H17: 0 | I17: 0.112 | J17: 0 | K17: 0 | L17: 0 | M17: 0 | N17: 0 | O17: 0 | P17: 0 | R17: =Est2019DistRev!R17 -> 2204.800723 | S17: =Est2019DistRev!S17 -> 44161400.27 | T17: =Est2019DistRev!T17 -> 0 | U17: =Est2019DistRev!U17 -> 0 | V17: =Est2019DistRev!V17 -> 0 | W17: =Est2019DistRev!W17 -> 13513510.64 | X17: =Est2019DistRev!X17 -> 0 | Y17: =Est2019DistRev!Y17 -> 0 | Z17: =Est2019DistRev!Z17 -> 0 | AA17: =Est2019DistRev!AA17 -> 0 | AB17: =Est2019DistRev!AB17 -> 0 | AC17: =Est2019DistRev!AC17 -> 0 | AD17: =Est2019DistRev!AD17 -> 0 | AF17: 0 | AG17: 56968.20634 | AH17: 0 | AI17: 0 | AJ17: 0 | AK17: 15135.13191 | AL17: 0 | AM17: 0 | AN17: 0 | AO17: 0 | AP17: 0 | AQ17: 0 | AR17: 0 | AS17: 72103.33826
B18: =Est2019TransRev!B18 -> Small Business - TOU Extended Demand | D18: 0 | E18: 0.129 | F18: 0 | G18: 0 | H18: 0 | I18: 0.112 | J18: 0 | K18: 0 | L18: 0 | M18: 0 | N18: 0 | O18: 0 | P18: 0 | R18: =Est2019DistRev!R18 -> 113.8928135 | S18: =Est2019DistRev!S18 -> 17007407.77 | T18: =Est2019DistRev!T18 -> 0 | U18: =Est2019DistRev!U18 -> 0 | V18: =Est2019DistRev!V18 -> 0 | W18: =Est2019DistRev!W18 -> 5001051.888 | X18: =Est2019DistRev!X18 -> 0 | Y18: =Est2019DistRev!Y18 -> 0 | Z18: =Est2019DistRev!Z18 -> 0 | AA18: =Est2019DistRev!AA18 -> 10805.42002 | AB18: =Est2019DistRev!AB18 -> 0 | AC18: =Est2019DistRev!AC18 -> 0 | AD18: =Est2019DistRev!AD18 -> 0 | AF18: 0 | AG18: 21939.55603 | AH18: 0 | AI18: 0 | AJ18: 0 | AK18: 5601.178114 | AL18: 0 | AM18: 0 | AN18: 0 | AO18: 0 | AP18: 0 | AQ18: 0 | AR18: 0 | AS18: 27540.73414
B19: =Est2019TransRev!B19 -> Small Business - Unmetered Supply | D19: 0 | E19: 0.129 | F19: 0 | G19: 0 | H19: 0 | I19: 0.112 | J19: 0 | K19: 0 | L19: 0 | M19: 0 | N19: 0 | O19: 0 | P19: 0 | R19: =Est2019DistRev!R19 -> 0 | S19: =Est2019DistRev!S19 -> 11563166.52 | T19: =Est2019DistRev!T19 -> 0 | U19: =Est2019DistRev!U19 -> 0 | V19: =Est2019DistRev!V19 -> 0 | W19: =Est2019DistRev!W19 -> 25740120.96 | X19: =Est2019DistRev!X19 -> 0 | Y19: =Est2019DistRev!Y19 -> 0 | Z19: =Est2019DistRev!Z19 -> 0 | AA19: =Est2019DistRev!AA19 -> 0 | AB19: =Est2019DistRev!AB19 -> 0 | AC19: =Est2019DistRev!AC19 -> 0 | AD19: =Est2019DistRev!AD19 -> 0 | AF19: 0 | AG19: 14916.48481 | AH19: 0 | AI19: 0 | AJ19: 0 | AK19: 28828.93547 | AL19: 0 | AM19: 0 | AN19: 0 | AO19: 0 | AP19: 0 | AQ19: 0 | AR19: 0 | AS19: 43745.42028
B20: =Est2019TransRev!B20 -> Large Business - LV 0.4 - 0.8 GWh | D20: 0 | E20: 0.145 | F20: 0 | G20: 0 | H20: 0 | I20: 0.119 | J20: 0 | K20: 0 | L20: 0 | M20: 0 | N20: 0 | O20: 0 | P20: 0 | R20: =Est2019DistRev!R20 -> 787.9057242 | S20: =Est2019DistRev!S20 -> 177669042.6 | T20: =Est2019DistRev!T20 -> 0 | U20: =Est2019DistRev!U20 -> 0 | V20: =Est2019DistRev!V20 -> 0 | W20: =Est2019DistRev!W20 -> 114127368.6 | X20: =Est2019DistRev!X20 -> 0 | Y20: =Est2019DistRev!Y20 -> 0 | Z20: =Est2019DistRev!Z20 -> 0 | AA20: =Est2019DistRev!AA20 -> 148592.5231 | AB20: =Est2019DistRev!AB20 -> 0 | AC20: =Est2019DistRev!AC20 -> 0 | AD20: =Est2019DistRev!AD20 -> 0 | AF20: 0 | AG20: 257620.1118 | AH20: 0 | AI20: 0 | AJ20: 0 | AK20: 135811.5686 | AL20: 0 | AM20: 0 | AN20: 0 | AO20: 0 | AP20: 0 | AQ20: 0 | AR20: 0 | AS20: 393431.6804
B21: =Est2019TransRev!B21 -> Large Business – LVEN Annual Consumption <= 0.8 GWh | D21: 0 | E21: 0.145 | F21: 0 | G21: 0 | H21: 0 | I21: 0.119 | J21: 0 | K21: 0 | L21: 0 | M21: 0 | N21: 0 | O21: 0 | P21: 0 | R21: =Est2019DistRev!R21 -> 69.51925736 | S21: =Est2019DistRev!S21 -> 26628111.53 | T21: =Est2019DistRev!T21 -> 0 | U21: =Est2019DistRev!U21 -> 0 | V21: =Est2019DistRev!V21 -> 0 | W21: =Est2019DistRev!W21 -> 18394205.09 | X21: =Est2019DistRev!X21 -> 0 | Y21: =Est2019DistRev!Y21 -> 0 | Z21: =Est2019DistRev!Z21 -> 0 | AA21: =Est2019DistRev!AA21 -> 12631.46 | AB21: =Est2019DistRev!AB21 -> 0 | AC21: =Est2019DistRev!AC21 -> 0 | AD21: =Est2019DistRev!AD21 -> 0 | AF21: 0 | AG21: 38610.76172 | AH21: 0 | AI21: 0 | AJ21: 0 | AK21: 21889.10405 | AL21: 0 | AM21: 0 | AN21: 0 | AO21: 0 | AP21: 0 | AQ21: 0 | AR21: 0 | AS21: 60499.86577
B22: =Est2019TransRev!B22 -> Large Business - LV 0.8+ - 2.2 GWh | D22: 0 | E22: 0.145 | F22: 0 | G22: 0 | H22: 0 | I22: 0.119 | J22: 0 | K22: 0 | L22: 0 | M22: 0 | N22: 0 | O22: 0 | P22: 0 | R22: =Est2019DistRev!R22 -> 378.7002524 | S22: =Est2019DistRev!S22 -> 248248736.1 | T22: =Est2019DistRev!T22 -> 0 | U22: =Est2019DistRev!U22 -> 0 | V22: =Est2019DistRev!V22 -> 0 | W22: =Est2019DistRev!W22 -> 171548799.9 | X22: =Est2019DistRev!X22 -> 0 | Y22: =Est2019DistRev!Y22 -> 0 | Z22: =Est2019DistRev!Z22 -> 0 | AA22: =Est2019DistRev!AA22 -> 177995.9966 | AB22: =Est2019DistRev!AB22 -> 0 | AC22: =Est2019DistRev!AC22 -> 0 | AD22: =Est2019DistRev!AD22 -> 0 | AF22: 0 | AG22: 359960.6674 | AH22: 0 | AI22: 0 | AJ22: 0 | AK22: 204143.0718 | AL22: 0 | AM22: 0 | AN22: 0 | AO22: 0 | AP22: 0 | AQ22: 0 | AR22: 0 | AS22: 564103.7392
B23: =Est2019TransRev!B23 -> Large Business - LVEN 0.8+ - 2.2 GWh | D23: 0 | E23: 0.145 | F23: 0 | G23: 0 | H23: 0 | I23: 0.119 | J23: 0 | K23: 0 | L23: 0 | M23: 0 | N23: 0 | O23: 0 | P23: 0 | R23: =Est2019DistRev!R23 -> 43.7184462 | S23: =Est2019DistRev!S23 -> 42504195.74 | T23: =Est2019DistRev!T23 -> 0 | U23: =Est2019DistRev!U23 -> 0 | V23: =Est2019DistRev!V23 -> 0 | W23: =Est2019DistRev!W23 -> 27960118.15 | X23: =Est2019DistRev!X23 -> 0 | Y23: =Est2019DistRev!Y23 -> 0 | Z23: =Est2019DistRev!Z23 -> 0 | AA23: =Est2019DistRev!AA23 -> 15557.7673 | AB23: =Est2019DistRev!AB23 -> 0 | AC23: =Est2019DistRev!AC23 -> 0 | AD23: =Est2019DistRev!AD23 -> 0 | AF23: 0 | AG23: 61631.08383 | AH23: 0 | AI23: 0 | AJ23: 0 | AK23: 33272.5406 | AL23: 0 | AM23: 0 | AN23: 0 | AO23: 0 | AP23: 0 | AQ23: 0 | AR23: 0 | AS23: 94903.62443
B24: =Est2019TransRev!B24 -> Large Business - LV 2.2+ - 6.0 GWh | D24: 0 | E24: 0.145 | F24: 0 | G24: 0 | H24: 0 | I24: 0.119 | J24: 0 | K24: 0 | L24: 0 | M24: 0 | N24: 0 | O24: 0 | P24: 0 | R24: =Est2019DistRev!R24 -> 68.09921351 | S24: =Est2019DistRev!S24 -> 112557828.5 | T24: =Est2019DistRev!T24 -> 0 | U24: =Est2019DistRev!U24 -> 0 | V24: =Est2019DistRev!V24 -> 0 | W24: =Est2019DistRev!W24 -> 85103892.83 | X24: =Est2019DistRev!X24 -> 0 | Y24: =Est2019DistRev!Y24 -> 0 | Z24: =Est2019DistRev!Z24 -> 0 | AA24: =Est2019DistRev!AA24 -> 68062.284 | AB24: =Est2019DistRev!AB24 -> 0 | AC24: =Est2019DistRev!AC24 -> 0 | AD24: =Est2019DistRev!AD24 -> 0 | AF24: 0 | AG24: 163208.8513 | AH24: 0 | AI24: 0 | AJ24: 0 | AK24: 101273.6325 | AL24: 0 | AM24: 0 | AN24: 0 | AO24: 0 | AP24: 0 | AQ24: 0 | AR24: 0 | AS24: 264482.4838
B25: =Est2019TransRev!B25 -> Large Business - LVEN 2.2+ GWh | D25: 0 | E25: 0.145 | F25: 0 | G25: 0 | H25: 0 | I25: 0.119 | J25: 0 | K25: 0 | L25: 0 | M25: 0 | N25: 0 | O25: 0 | P25: 0 | R25: =Est2019DistRev!R25 -> 23.7110561 | S25: =Est2019DistRev!S25 -> 46012309.97 | T25: =Est2019DistRev!T25 -> 0 | U25: =Est2019DistRev!U25 -> 0 | V25: =Est2019DistRev!V25 -> 0 | W25: =Est2019DistRev!W25 -> 33126706.47 | X25: =Est2019DistRev!X25 -> 0 | Y25: =Est2019DistRev!Y25 -> 0 | Z25: =Est2019DistRev!Z25 -> 0 | AA25: =Est2019DistRev!AA25 -> 16068.8071 | AB25: =Est2019DistRev!AB25 -> 0 | AC25: =Est2019DistRev!AC25 -> 0 | AD25: =Est2019DistRev!AD25 -> 0 | AF25: 0 | AG25: 66717.84945 | AH25: 0 | AI25: 0 | AJ25: 0 | AK25: 39420.7807 | AL25: 0 | AM25: 0 | AN25: 0 | AO25: 0 | AP25: 0 | AQ25: 0 | AR25: 0 | AS25: 106138.6302
B26: =Est2019TransRev!B26 -> Large Business - LVMS 2.2+ - 6.0 GWh | D26: 0 | E26: 0.145 | F26: 0 | G26: 0 | H26: 0 | I26: 0.119 | J26: 0 | K26: 0 | L26: 0 | M26: 0 | N26: 0 | O26: 0 | P26: 0 | R26: =Est2019DistRev!R26 -> 9.489905592 | S26: =Est2019DistRev!S26 -> 10547630.32 | T26: =Est2019DistRev!T26 -> 0 | U26: =Est2019DistRev!U26 -> 0 | V26: =Est2019DistRev!V26 -> 0 | W26: =Est2019DistRev!W26 -> 8508704.15 | X26: =Est2019DistRev!X26 -> 0 | Y26: =Est2019DistRev!Y26 -> 0 | Z26: =Est2019DistRev!Z26 -> 0 | AA26: =Est2019DistRev!AA26 -> 8214.0472 | AB26: =Est2019DistRev!AB26 -> 0 | AC26: =Est2019DistRev!AC26 -> 0 | AD26: =Est2019DistRev!AD26 -> 0 | AF26: 0 | AG26: 15294.06396 | AH26: 0 | AI26: 0 | AJ26: 0 | AK26: 10125.35794 | AL26: 0 | AM26: 0 | AN26: 0 | AO26: 0 | AP26: 0 | AQ26: 0 | AR26: 0 | AS26: 25419.4219
B27: =Est2019TransRev!B27 -> Large Business - LV 6.0+ GWh | D27: 0 | E27: 0.145 | F27: 0 | G27: 0 | H27: 0 | I27: 0.119 | J27: 0 | K27: 0 | L27: 0 | M27: 0 | N27: 0 | O27: 0 | P27: 0 | R27: =Est2019DistRev!R27 -> 19.94934005 | S27: =Est2019DistRev!S27 -> 53512172.17 | T27: =Est2019DistRev!T27 -> 0 | U27: =Est2019DistRev!U27 -> 0 | V27: =Est2019DistRev!V27 -> 0 | W27: =Est2019DistRev!W27 -> 44845318.59 | X27: =Est2019DistRev!X27 -> 0 | Y27: =Est2019DistRev!Y27 -> 0 | Z27: =Est2019DistRev!Z27 -> 0 | AA27: =Est2019DistRev!AA27 -> 24090.3584 | AB27: =Est2019DistRev!AB27 -> 0 | AC27: =Est2019DistRev!AC27 -> 0 | AD27: =Est2019DistRev!AD27 -> 0 | AF27: 0 | AG27: 77592.64964 | AH27: 0 | AI27: 0 | AJ27: 0 | AK27: 53365.92912 | AL27: 0 | AM27: 0 | AN27: 0 | AO27: 0 | AP27: 0 | AQ27: 0 | AR27: 0 | AS27: 130958.5788
B28: =Est2019TransRev!B28 -> Large Business - LVMS 6.0+ GWh | D28: 0 | E28: 0.145 | F28: 0 | G28: 0 | H28: 0 | I28: 0.119 | J28: 0 | K28: 0 | L28: 0 | M28: 0 | N28: 0 | O28: 0 | P28: 0 | R28: =Est2019DistRev!R28 -> 31.26710731 | S28: =Est2019DistRev!S28 -> 45265727.44 | T28: =Est2019DistRev!T28 -> 0 | U28: =Est2019DistRev!U28 -> 0 | V28: =Est2019DistRev!V28 -> 0 | W28: =Est2019DistRev!W28 -> 35236918.99 | X28: =Est2019DistRev!X28 -> 0 | Y28: =Est2019DistRev!Y28 -> 0 | Z28: =Est2019DistRev!Z28 -> 0 | AA28: =Est2019DistRev!AA28 -> 31405.6672 | AB28: =Est2019DistRev!AB28 -> 0 | AC28: =Est2019DistRev!AC28 -> 0 | AD28: =Est2019DistRev!AD28 -> 0 | AF28: 0 | AG28: 65635.30479 | AH28: 0 | AI28: 0 | AJ28: 0 | AK28: 41931.93359 | AL28: 0 | AM28: 0 | AN28: 0 | AO28: 0 | AP28: 0 | AQ28: 0 | AR28: 0 | AS28: 107567.2384
B29: =Est2019TransRev!B29 -> Large Business - HV | D29: 0 | E29: 0.153 | F29: 0 | G29: 0 | H29: 0 | I29: 0.13 | J29: 0 | K29: 0 | L29: 0 | M29: 0 | N29: 0 | O29: 0 | P29: 0 | R29: =Est2019DistRev!R29 -> 82 | S29: =Est2019DistRev!S29 -> 234092242.4 | T29: =Est2019DistRev!T29 -> 0 | U29: =Est2019DistRev!U29 -> 0 | V29: =Est2019DistRev!V29 -> 0 | W29: =Est2019DistRev!W29 -> 185725976.8 | X29: =Est2019DistRev!X29 -> 0 | Y29: =Est2019DistRev!Y29 -> 0 | Z29: =Est2019DistRev!Z29 -> 0 | AA29: =Est2019DistRev!AA29 -> 172015.5139 | AB29: =Est2019DistRev!AB29 -> 0 | AC29: =Est2019DistRev!AC29 -> 0 | AD29: =Est2019DistRev!AD29 -> 0 | AF29: 0 | AG29: 358161.1309 | AH29: 0 | AI29: 0 | AJ29: 0 | AK29: 241443.7699 | AL29: 0 | AM29: 0 | AN29: 0 | AO29: 0 | AP29: 0 | AQ29: 0 | AR29: 0 | AS29: 599604.9008
B30: =Est2019TransRev!B30 -> Large Business – HVEN | D30: 0 | E30: 0.153 | F30: 0 | G30: 0 | H30: 0 | I30: 0.13 | J30: 0 | K30: 0 | L30: 0 | M30: 0 | N30: 0 | O30: 0 | P30: 0 | R30: =Est2019DistRev!R30 -> 2 | S30: =Est2019DistRev!S30 -> 19354907.87 | T30: =Est2019DistRev!T30 -> 0 | U30: =Est2019DistRev!U30 -> 0 | V30: =Est2019DistRev!V30 -> 0 | W30: =Est2019DistRev!W30 -> 15176809.37 | X30: =Est2019DistRev!X30 -> 0 | Y30: =Est2019DistRev!Y30 -> 0 | Z30: =Est2019DistRev!Z30 -> 0 | AA30: =Est2019DistRev!AA30 -> 3213.3352 | AB30: =Est2019DistRev!AB30 -> 0 | AC30: =Est2019DistRev!AC30 -> 0 | AD30: =Est2019DistRev!AD30 -> 0 | AF30: 0 | AG30: 29613.00903 | AH30: 0 | AI30: 0 | AJ30: 0 | AK30: 19729.85219 | AL30: 0 | AM30: 0 | AN30: 0 | AO30: 0 | AP30: 0 | AQ30: 0 | AR30: 0 | AS30: 49342.86122
B31: =Est2019TransRev!B31 -> Large Business - HVRF | D31: 0 | E31: 0.153 | F31: 0 | G31: 0 | H31: 0 | I31: 0.13 | J31: 0 | K31: 0 | L31: 0 | M31: 0 | N31: 0 | O31: 0 | P31: 0 | R31: =Est2019DistRev!R31 -> 4.649315068 | S31: =Est2019DistRev!S31 -> 47442355.76 | T31: =Est2019DistRev!T31 -> 0 | U31: =Est2019DistRev!U31 -> 0 | V31: =Est2019DistRev!V31 -> 0 | W31: =Est2019DistRev!W31 -> 41773511.2 | X31: =Est2019DistRev!X31 -> 0 | Y31: =Est2019DistRev!Y31 -> 0 | Z31: =Est2019DistRev!Z31 -> 0 | AA31: =Est2019DistRev!AA31 -> 26423.3271 | AB31: =Est2019DistRev!AB31 -> 0 | AC31: =Est2019DistRev!AC31 -> 0 | AD31: =Est2019DistRev!AD31 -> 0 | AF31: 0 | AG31: 72586.80431 | AH31: 0 | AI31: 0 | AJ31: 0 | AK31: 54305.56455 | AL31: 0 | AM31: 0 | AN31: 0 | AO31: 0 | AP31: 0 | AQ31: 0 | AR31: 0 | AS31: 126892.3689
B32: =Est2019TransRev!B32 -> Large Business - HV Ann Cons >= 55GWh | D32: 0 | E32: 0.153 | F32: 0 | G32: 0 | H32: 0 | I32: 0.13 | J32: 0 | K32: 0 | L32: 0 | M32: 0 | N32: 0 | O32: 0 | P32: 0 | R32: =Est2019DistRev!R32 -> 1.084931507 | S32: =Est2019DistRev!S32 -> 24210050.04 | T32: =Est2019DistRev!T32 -> 0 | U32: =Est2019DistRev!U32 -> 0 | V32: =Est2019DistRev!V32 -> 0 | W32: =Est2019DistRev!W32 -> 21527851.13 | X32: =Est2019DistRev!X32 -> 0 | Y32: =Est2019DistRev!Y32 -> 0 | Z32: =Est2019DistRev!Z32 -> 0 | AA32: =Est2019DistRev!AA32 -> 11217.80112 | AB32: =Est2019DistRev!AB32 -> 0 | AC32: =Est2019DistRev!AC32 -> 0 | AD32: =Est2019DistRev!AD32 -> 0 | AF32: 0 | AG32: 37041.37656 | AH32: 0 | AI32: 0 | AJ32: 0 | AK32: 27986.20646 | AL32: 0 | AM32: 0 | AN32: 0 | AO32: 0 | AP32: 0 | AQ32: 0 | AR32: 0 | AS32: 65027.58302
B33: =Est2019TransRev!B33 -> Large Business - Subtransmission | D33: 0 | E33: 0.131 | F33: 0 | G33: 0 | H33: 0 | I33: 0.11 | J33: 0 | K33: 0 | L33: 0 | M33: 0 | N33: 0 | O33: 0 | P33: 0 | R33: =Est2019DistRev!R33 -> 2 | S33: =Est2019DistRev!S33 -> 110447526.3 | T33: =Est2019DistRev!T33 -> 0 | U33: =Est2019DistRev!U33 -> 0 | V33: =Est2019DistRev!V33 -> 0 | W33: =Est2019DistRev!W33 -> 119100805.6 | X33: =Est2019DistRev!X33 -> 0 | Y33: =Est2019DistRev!Y33 -> 0 | Z33: =Est2019DistRev!Z33 -> 0 | AA33: =Est2019DistRev!AA33 -> 39635.49 | AB33: =Est2019DistRev!AB33 -> 0 | AC33: =Est2019DistRev!AC33 -> 0 | AD33: =Est2019DistRev!AD33 -> 0 | AF33: =D33*R33 -> 0 | AG33: =E33/100*S33 -> 144686.2594 | AH33: 0 | AI33: 0 | AJ33: 0 | AK33: 131010.8861 | AL33: 0 | AM33: 0 | AN33: 0 | AO33: =M33*AA33 -> 0 | AP33: =N33*AB33 -> 0 | AQ33: =O33*AC33 -> 0 | AR33: =P33*AD33 -> 0 | AS33: =SUM(AF33:AR33) -> 275697.1456
B34: =Est2019TransRev!B34 -> Large Business - Subtransmission MA | D34: 0 | E34: 0.131 | F34: 0 | G34: 0 | H34: 0 | I34: 0.11 | J34: 0 | K34: 0 | L34: 0 | M34: 0 | N34: 0 | O34: 0 | P34: 0 | R34: =Est2019DistRev!R34 -> 1 | S34: =Est2019DistRev!S34 -> 68232338.71 | T34: =Est2019DistRev!T34 -> 0 | U34: =Est2019DistRev!U34 -> 0 | V34: =Est2019DistRev!V34 -> 0 | W34: =Est2019DistRev!W34 -> 67928284.49 | X34: =Est2019DistRev!X34 -> 0 | Y34: =Est2019DistRev!Y34 -> 0 | Z34: =Est2019DistRev!Z34 -> 0 | AA34: =Est2019DistRev!AA34 -> 42484 | AB34: =Est2019DistRev!AB34 -> 0 | AC34: =Est2019DistRev!AC34 -> 0 | AD34: =Est2019DistRev!AD34 -> 0 | AF34: 0 | AG34: 89384.3637 | AH34: 0 | AI34: 0 | AJ34: 0 | AK34: 74721.11294 | AL34: 0 | AM34: 0 | AN34: 0 | AO34: 0 | AP34: 0 | AQ34: 0 | AR34: 0 | AS34: 164105.4766
B35: =Est2019TransRev!B35 -> Large Business - Subtransmission EG | D35: 0 | E35: 0.131 | F35: 0 | G35: 0 | H35: 0 | I35: 0.11 | J35: 0 | K35: 0 | L35: 0 | M35: 0 | N35: 0 | O35: 0 | P35: 0 | R35: =Est2019DistRev!R35 -> 1 | S35: =Est2019DistRev!S35 -> 7138026.819 | T35: =Est2019DistRev!T35 -> 0 | U35: =Est2019DistRev!U35 -> 0 | V35: =Est2019DistRev!V35 -> 0 | W35: =Est2019DistRev!W35 -> 8479174.156 | X35: =Est2019DistRev!X35 -> 0 | Y35: =Est2019DistRev!Y35 -> 0 | Z35: =Est2019DistRev!Z35 -> 0 | AA35: =Est2019DistRev!AA35 -> 36401.09 | AB35: =Est2019DistRev!AB35 -> 0 | AC35: =Est2019DistRev!AC35 -> 0 | AD35: =Est2019DistRev!AD35 -> 0 | AF35: =D35*R35 -> 0 | AG35: =E35/100*S35 -> 9350.815133 | AH35: =F35/100*T35 -> 0 | AI35: =G35/100*U35 -> 0 | AJ35: =H35/100*V35 -> 0 | AK35: =I35/100*W35 -> 9327.091572 | AL35: =J35/100*X35 -> 0 | AM35: =K35/100*Y35 -> 0 | AN35: =L35/100*Z35 -> 0 | AO35: =M35*AA35 -> 0 | AP35: =N35*AB35 -> 0 | AQ35: =O35*AC35 -> 0 | AR35: =P35*AD35 -> 0 | AS35: =SUM(AF35:AR35) -> 18677.9067
AF36: 0 | AG36: 0 | AH36: 0 | AI36: 0 | AJ36: 0 | AK36: 0 | AL36: 0 | AM36: 0 | AN36: 0 | AO36: 0 | AP36: 0 | AQ36: 0 | AR36: 0 | AS36: 0
AF37: 0 | AG37: 0 | AH37: 0 | AI37: 0 | AJ37: 0 | AK37: 0 | AL37: 0 | AM37: 0 | AN37: 0 | AO37: 0 | AP37: 0 | AQ37: 0 | AR37: 0 | AS37: 0
AF38: 0 | AG38: 0 | AH38: 0 | AI38: 0 | AJ38: 0 | AK38: 0 | AL38: 0 | AM38: 0 | AN38: =L38/100*Z38 -> 0 | AO38: 0 | AP38: 0 | AQ38: 0 | AR38: 0 | AS38: 0
AF39: 0 | AG39: 0 | AH39: 0 | AI39: 0 | AJ39: 0 | AK39: 0 | AL39: 0 | AM39: 0 | AN39: 0 | AO39: 0 | AP39: 0 | AQ39: 0 | AR39: 0 | AS39: 0
AF40: 0 | AG40: 0 | AH40: 0 | AI40: 0 | AJ40: 0 | AK40: 0 | AL40: 0 | AM40: 0 | AN40: 0 | AO40: 0 | AP40: 0 | AQ40: 0 | AR40: 0 | AS40: 0
AF41: 0 | AG41: 0 | AH41: 0 | AI41: 0 | AJ41: 0 | AK41: 0 | AL41: 0 | AM41: 0 | AN41: 0 | AO41: 0 | AP41: 0 | AQ41: 0 | AR41: 0 | AS41: 0
AF42: 0 | AG42: 0 | AH42: 0 | AI42: 0 | AJ42: 0 | AK42: 0 | AL42: 0 | AM42: 0 | AN42: 0 | AO42: 0 | AP42: 0 | AQ42: 0 | AR42: 0 | AS42: 0
AF43: 0 | AG43: 0 | AH43: 0 | AI43: 0 | AJ43: 0 | AK43: 0 | AL43: 0 | AM43: 0 | AN43: 0 | AO43: 0 | AP43: 0 | AQ43: 0 | AR43: 0 | AS43: 0
AF44: 0 | AG44: 0 | AH44: 0 | AI44: 0 | AJ44: 0 | AK44: 0 | AL44: 0 | AM44: 0 | AN44: 0 | AO44: 0 | AP44: 0 | AQ44: 0 | AR44: 0 | AS44: 0
AF45: 0 | AG45: 0 | AH45: 0 | AI45: 0 | AJ45: 0 | AK45: 0 | AL45: 0 | AM45: 0 | AN45: 0 | AO45: 0 | AP45: 0 | AQ45: 0 | AR45: 0 | AS45: 0
AF46: 0 | AG46: 0 | AH46: 0 | AI46: 0 | AJ46: 0 | AK46: 0 | AL46: 0 | AM46: 0 | AN46: 0 | AO46: 0 | AP46: 0 | AQ46: 0 | AR46: 0 | AS46: 0
AF47: 0 | AG47: 0 | AH47: 0 | AI47: 0 | AJ47: 0 | AK47: 0 | AL47: 0 | AM47: 0 | AN47: 0 | AO47: 0 | AP47: 0 | AQ47: 0 | AR47: 0 | AS47: 0
AF48: 0 | AG48: 0 | AH48: 0 | AI48: 0 | AJ48: 0 | AK48: 0 | AL48: 0 | AM48: 0 | AN48: 0 | AO48: 0 | AP48: 0 | AQ48: 0 | AR48: 0 | AS48: 0
AF49: 0 | AG49: 0 | AH49: 0 | AI49: 0 | AJ49: 0 | AK49: 0 | AL49: 0 | AM49: 0 | AN49: 0 | AO49: 0 | AP49: 0 | AQ49: 0 | AR49: 0 | AS49: 0
AF50: 0 | AG50: 0 | AH50: 0 | AI50: 0 | AJ50: 0 | AK50: 0 | AL50: 0 | AM50: 0 | AN50: 0 | AO50: 0 | AP50: 0 | AQ50: 0 | AR50: 0 | AS50: 0
AF51: 0 | AG51: 0 | AH51: 0 | AI51: 0 | AJ51: 0 | AK51: 0 | AL51: 0 | AM51: 0 | AN51: 0 | AO51: 0 | AP51: 0 | AQ51: 0 | AR51: 0 | AS51: 0
AF52: 0 | AG52: 0 | AH52: 0 | AI52: 0 | AJ52: 0 | AK52: 0 | AL52: 0 | AM52: 0 | AN52: 0 | AO52: 0 | AP52: 0 | AQ52: 0 | AR52: 0 | AS52: 0
AF53: 0 | AG53: 0 | AH53: 0 | AI53: 0 | AJ53: 0 | AK53: 0 | AL53: 0 | AM53: 0 | AN53: 0 | AO53: 0 | AP53: 0 | AQ53: 0 | AR53: 0 | AS53: 0
AF54: 0 | AG54: 0 | AH54: 0 | AI54: 0 | AJ54: 0 | AK54: 0 | AL54: 0 | AM54: 0 | AN54: 0 | AO54: 0 | AP54: 0 | AQ54: 0 | AR54: 0 | AS54: 0
AF55: 0 | AG55: 0 | AH55: 0 | AI55: 0 | AJ55: 0 | AK55: 0 | AL55: 0 | AM55: 0 | AN55: 0 | AO55: 0 | AP55: 0 | AQ55: 0 | AR55: 0 | AS55: 0
AF56: 0 | AG56: 0 | AH56: 0 | AI56: 0 | AJ56: 0 | AK56: 0 | AL56: 0 | AM56: 0 | AN56: 0 | AO56: 0 | AP56: 0 | AQ56: 0 | AR56: 0 | AS56: 0
AF57: 0 | AG57: 0 | AH57: 0 | AI57: 0 | AJ57: 0 | AK57: 0 | AL57: 0 | AM57: 0 | AN57: 0 | AO57: 0 | AP57: 0 | AQ57: 0 | AR57: 0 | AS57: 0
AF58: 0 | AG58: 0 | AH58: 0 | AI58: 0 | AJ58: 0 | AK58: 0 | AL58: 0 | AM58: 0 | AN58: 0 | AO58: 0 | AP58: 0 | AQ58: 0 | AR58: 0 | AS58: 0
AF59: 0 | AG59: 0 | AH59: 0 | AI59: 0 | AJ59: 0 | AK59: 0 | AL59: 0 | AM59: 0 | AN59: 0 | AO59: 0 | AP59: 0 | AQ59: 0 | AR59: 0 | AS59: 0
AF60: 0 | AG60: 0 | AH60: 0 | AI60: 0 | AJ60: 0 | AK60: 0 | AL60: 0 | AM60: 0 | AN60: 0 | AO60: 0 | AP60: 0 | AQ60: 0 | AR60: 0 | AS60: 0
AF61: 0 | AG61: 0 | AH61: 0 | AI61: 0 | AJ61: 0 | AK61: 0 | AL61: 0 | AM61: 0 | AN61: 0 | AO61: 0 | AP61: 0 | AQ61: 0 | AR61: 0 | AS61: 0
AF62: 0 | AG62: 0 | AH62: 0 | AI62: 0 | AJ62: 0 | AK62: 0 | AL62: 0 | AM62: 0 | AN62: 0 | AO62: 0 | AP62: 0 | AQ62: 0 | AR62: 0 | AS62: 0
AF63: 0 | AG63: 0 | AH63: 0 | AI63: 0 | AJ63: 0 | AK63: 0 | AL63: 0 | AM63: 0 | AN63: 0 | AO63: 0 | AP63: 0 | AQ63: 0 | AR63: 0 | AS63: 0
AF64: 0 | AG64: 0 | AH64: 0 | AI64: 0 | AJ64: 0 | AK64: 0 | AL64: 0 | AM64: 0 | AN64: 0 | AO64: 0 | AP64: 0 | AQ64: 0 | AR64: 0 | AS64: 0
AF65: 0 | AG65: 0 | AH65: 0 | AI65: 0 | AJ65: 0 | AK65: 0 | AL65: 0 | AM65: 0 | AN65: 0 | AO65: 0 | AP65: 0 | AQ65: 0 | AR65: 0 | AS65: 0
R66: =SUM(R6:R65) -> 348558.5011 | S66: 3006410211 | T66: 1368615.722 | U66: 960125.0095 | V66: 1784990.184 | W66: 1284415686 | X66: 1167051.999 | Y66: 0 | Z66: 0 | AA66: 905938.4563 | AB66: 0 | AC66: 0 | AD66: =SUM(AD6:AD65) -> 0 | AF66: 0 | AG66: 3837697.226 | AH66: 1491.791137 | AI66: 1046.53626 | AJ66: 1945.639301 | AK66: 1513360.29 | AL66: 1225.404599 | AM66: =SUM(AM6:AM65) -> 0 | AN66: 0 | AO66: 0 | AP66: 0 | AQ66: 0 | AR66: 0 | AS66: 5356766.888

Sheet 2020JSRevCont
B2: ="Tariff Approval - "&'Model update'!$C$3 -> Tariff Approval - Jemena | C2: ='Model update'!$C$5&"JSRevCont" -> 2020JSRevCont
B4: Jurisdictional Scheme Amounts (JSA)
B6: Year (t) | C6: ='Model update'!C5 -> 2020
B8: Table 1- Compliance with JSA Revenue Formula
B9: Revenue from Jurisdictional Scheme Amounts charges for year t | C9: =Prop2020JSTar!AS66 -> 6115504.858
B10: Total JSA related payments for year t | C10: =C17 -> 6115744.373
C11: =IF(C9="","",IF(C10>=C9,"JSA REVENUE FORMULA COMPLIANT","JSA REVENUE FORMULA BREACHED")) -> JSA REVENUE FORMULA COMPLIANT
B13: Table 2 - Total JSA related payments for year t
B14: PFIT & TFIT charges for year t | C14: =C22 -> 6130080
B15: JSA revenue under/over recovery approved | C15: =-E56*(1+E54)^0.5 -> -14335.62727
B16: JSA revenue under/over recovery for years 2014 and 2015
B17: Total JSA related payments for year t | C17: =SUM(C14:C16) -> 6115744.373
B19: Table 3 - PFIT & TFIT charges for year t
B20: PFIT | C20: 6130080
B21: TFIT | C21: 0
B22: PFIT & TFIT charges | C22: =SUM(C20:C21) -> 6130080
B27: Table 4 - JSA Recovery Arrangements
C28: Year t-2 | D28: Year t-1 | E28: Year t
C29: (actual) | D29: (estimate) | E29: (forecast)
C30: =D30-1 -> 2018 | D30: =E30-1 -> 2019 | E30: =C$6 -> 2020
B32: (A) Revenue from JSA proposal charges | C32: 7083075.787 | D32: =Est2019JSRev!AS66 -> 5356766.888 | E32: =C9 -> 6115504.858
B35: (B) Less Total JSA related payments = | C35: =SUM(C37:C39) -> 6074738.39 | D35: =SUM(D37:D39) -> 6187000 | E35: =SUM(E37:E39) -> 6130080
B37: + JSA revenue under/over recovery for years 2014 and 2015
B39: +PFIT & TFIT charges = | C39: =SUM(C40:C41) -> 6074738.39 | D39: =SUM(D40:D41) -> 6187000 | E39: =SUM(E40:E41) -> 6130080
B40: +PFIT amount | C40: ='JS cost audit template'!F4 -> 6074738.39 | D40: 6187000 | E40: =C20 -> 6130080
B41: +TFIT amount | C41: ='JS cost audit template'!F5 -> 0 | D41: 0 | E41: =C21 -> 0
B45: (A minus B) Under/over recovery of revenue for regulatory year | C45: =C32-C35 -> 1008337.397 | D45: =D32-D35 -> -830233.1124 | E45: =E32-E35 -> -14575.14169
B49: Table 5 - JSA Unders and Overs Account
C50: Year t-2 | D50: Year t-1 | E50: Year t
C51: (actual) | D51: (estimate) | E51: (forecast)
B52: Calendar year | C52: =D52-1 -> 2018 | D52: =E52-1 -> 2019 | E52: =C$6 -> 2020
B54: Nominal WACC | C54: =(1+'Model update'!$B$47)*(1+'Model update'!$C$28)-1 -> 0.05829063961 | D54: =(1+'Model update'!$B$45)*(1+'Model update'!$C$29)-1 -> 0.059228637 | E54: =(1+'Model update'!$B$43)*(1+'Model update'!$C$30)-1 -> 0.05307355732
B56: Opening balance | C56: -205457.428 | D56: =C60 -> 819875.8191 | E56: =D60 -> 13969.70859
B57: Interest on Opening balance | C57: =C56*C54 -> -11976.24489 | D57: =D56*D54 -> 48560.12728 | E57: =E56*E54 -> 741.4221295
B58: Under/over recovery of revenue for regulatory year | C58: =C45 -> 1008337.397 | D58: =D45 -> -830233.1124 | E58: =E45 -> -14575.14169
B59: Interest on under/over recovery for regulatory year | C59: =C58*((1+C54)^0.5-1) -> 28972.09496 | D59: =D58*((1+D54)^0.5-1) -> -24233.12548 | E59: =E58*((1+E54)^0.5-1) -> -381.7772255
B60: Closing balance of JSA overs/ (unders) account | C60: =SUM(C56:C59) -> 819875.8191 | D60: =SUM(D56:D59) -> 13969.70859 | E60: -245.7881969
B62: The DNSP is expected to achieve a closing balance as close to zero as practicable in its jurisdictional scheme amount unders and overs account in each forecast year in its annual pricing proposals in the 2016–20 regulatory control period.

Sheet JS cost audit template
B1: ="Tariff Approval - "&'Model update'!C3 -> Tariff Approval - Jemena
B2: Jurisdictional scheme amounts | F2: t-2 actual
B4: PFIT | F4: 6074738.39
B5: TFIT | F5: 0
E7: Total | F7: =SUM(F3:F6) -> 6074738.39
B10: Where the following definitions apply
B11: PFIT | C11: Premium feed-in tariff payments
B12: TFIT | C12: Transitional feed-in tariff payments

Sheet Prop2020TSSComp
B1: ="Tariff Approval - "&'Model update'!$C$3 -> Tariff Approval - Jemena | C1: ="Prop"&'Model update'!$C$5&"TSSComp" -> Prop2020TSSComp
B3: ="COMPARISON OF "&'Model update'!$C$5&" PROPOSED AND TSS INDICATIVE DISTRIBUTION TARIFFS" -> COMPARISON OF 2020 PROPOSED AND TSS INDICATIVE DISTRIBUTION TARIFFS | AT3: Materiality threshold
D4: ="Proposed NUOS Tariffs (Pt) for "&'Model update'!$C$5 -> Proposed NUOS Tariffs (Pt) for 2020 | R4: ="TSS indicative tariffs for "&'Model update'!$C$5 -> TSS indicative tariffs for 2020 | AG4: ="Percentage difference between proposed "&'Model update'!$C$5&" tariffs and indicative TSS tariffs" -> Percentage difference between proposed 2020 tariffs and indicative TSS tariffs | AT4: 0.15
B5: TSS name | C5: Proposal name | D5: PropTar Fixed | E5: PropTar PkBlk1 | F5: PropTar Shoulder summer | G5: PropTar peak non-summer | H5: PropTar Shoulder non-summer | I5: PropTar OPkBlk1 | J5: PropTar off peak non-summer | K5: PropTar OPkBlk3 | L5: PropTar OPkBlk4 | M5: PropTar DemBlk1 | N5: PropTar DemBlk2 | O5: PropTar DemBlk3 | P5: PropTar DemBlk4 | R5: IndTar Fixed | S5: IndTar PkBlk1 | T5: IndTar Shoulder summer | U5: IndTar peak non-summer | V5: IndTar Shoulder non-summer | W5: IndTar OPkBlk1 | X5: IndTar off peak non-summer | Y5: IndTar OPkBlk3 | Z5: IndTar OPkBlk4 | AA5: IndTar DemBlk1 | AB5: IndTar DemBlk2 | AC5: IndTar DemBlk3 | AD5: IndTar DemBlk4 | AG5: Fixed | AH5: PkBlk1 | AI5: Shoulder summer | AJ5: peak non-summer | AK5: Shoulder non-summer | AL5: OPkBlk1 | AM5: off peak non-summer | AN5: OPkBlk3 | AO5: OPkBlk4 | AP5: DemBlk1 | AQ5: DemBlk2 | AR5: DemBlk3 | AS5: DemBlk4 | AT5: Explanation required?
B6: Residential - General Purpose | C6: =Prop2020DistTar!B6 -> Residential - General Purpose | D6: =SUM(Prop2020DistTar!D6,Prop2020TransTar!D6,Prop2020JSTar!D6) -> 59.18 | E6: =SUM(Prop2020DistTar!E6,Prop2020TransTar!E6,Prop2020JSTar!E6) -> 8.58 | F6: =SUM(Prop2020DistTar!F6,Prop2020TransTar!F6,Prop2020JSTar!F6) -> 0 | G6: =SUM(Prop2020DistTar!G6,Prop2020TransTar!G6,Prop2020JSTar!G6) -> 0 | H6: =SUM(Prop2020DistTar!H6,Prop2020TransTar!H6,Prop2020JSTar!H6) -> 0 | I6: =SUM(Prop2020DistTar!I6,Prop2020TransTar!I6,Prop2020JSTar!I6) -> 0 | J6: =SUM(Prop2020DistTar!J6,Prop2020TransTar!J6,Prop2020JSTar!J6) -> 0 | K6: =SUM(Prop2020DistTar!K6,Prop2020TransTar!K6,Prop2020JSTar!K6) -> 0 | L6: =SUM(Prop2020DistTar!L6,Prop2020TransTar!L6,Prop2020JSTar!L6) -> 0 | M6: =SUM(Prop2020DistTar!M6,Prop2020TransTar!M6,Prop2020JSTar!M6) -> 0 | N6: =SUM(Prop2020DistTar!N6,Prop2020TransTar!N6,Prop2020JSTar!N6) -> 0 | O6: =SUM(Prop2020DistTar!O6,Prop2020TransTar!O6,Prop2020JSTar!O6) -> 0 | P6: =SUM(Prop2020DistTar!P6,Prop2020TransTar!P6,Prop2020JSTar!P6) -> 0 | R6: 58.94865089 | S6: 8.392680832 | AG6: =IFERROR(D6/R6-1,0) -> 0.003924587032 | AH6: 0.02231934849 | AI6: 0 | AJ6: 0 | AK6: 0 | AL6: 0 | AM6: 0 | AN6: 0 | AO6: 0 | AP6: 0 | AQ6: 0 | AR6: 0 | AS6: 0 | AT6: =IF(MAX(ABS(AG6:AS6))>$AT$4,"EXPLAIN","") -> 
B7: Residential - General purpose demand | C7: =Prop2020DistTar!B7 -> Residential - General Purpose Demand | D7: =SUM(Prop2020DistTar!D7,Prop2020TransTar!D7,Prop2020JSTar!D7) -> 59.18 | E7: =SUM(Prop2020DistTar!E7,Prop2020TransTar!E7,Prop2020JSTar!E7) -> 4.202 | F7: =SUM(Prop2020DistTar!F7,Prop2020TransTar!F7,Prop2020JSTar!F7) -> 0 | G7: =SUM(Prop2020DistTar!G7,Prop2020TransTar!G7,Prop2020JSTar!G7) -> 0 | H7: =SUM(Prop2020DistTar!H7,Prop2020TransTar!H7,Prop2020JSTar!H7) -> 0 | I7: =SUM(Prop2020DistTar!I7,Prop2020TransTar!I7,Prop2020JSTar!I7) -> 0 | J7: =SUM(Prop2020DistTar!J7,Prop2020TransTar!J7,Prop2020JSTar!J7) -> 0 | K7: =SUM(Prop2020DistTar!K7,Prop2020TransTar!K7,Prop2020JSTar!K7) -> 0 | L7: =SUM(Prop2020DistTar!L7,Prop2020TransTar!L7,Prop2020JSTar!L7) -> 0 | M7: =SUM(Prop2020DistTar!M7,Prop2020TransTar!M7,Prop2020JSTar!M7) -> 60.031 | N7: =SUM(Prop2020DistTar!N7,Prop2020TransTar!N7,Prop2020JSTar!N7) -> 0 | O7: 4.92425 | P7: 4.92425 | R7: 58.94865089 | S7: 4.028680832 | AA7: 60.91778707 | AC7: 5.076482256 | AD7: 5.076482256 | AG7: 0.003924587032 | AH7: 0.04302132025 | AI7: 0 | AJ7: 0 | AK7: 0 | AL7: 0 | AM7: 0 | AN7: 0 | AO7: 0 | AP7: -0.01455711231 | AQ7: 0 | AR7: -0.02998774505 | AS7: -0.02998774505 | AT7: =IF(MAX(ABS(AG7:AS7))>$AT$4,"EXPLAIN","") -> 
B8: Residential - Flexible | C8: =Prop2020DistTar!B8 -> Residential - Flexible | D8: =SUM(Prop2020DistTar!D8,Prop2020TransTar!D8,Prop2020JSTar!D8) -> 59.18 | E8: =SUM(Prop2020DistTar!E8,Prop2020TransTar!E8,Prop2020JSTar!E8) -> 13.021 | F8: =SUM(Prop2020DistTar!F8,Prop2020TransTar!F8,Prop2020JSTar!F8) -> 8.58 | G8: =SUM(Prop2020DistTar!G8,Prop2020TransTar!G8,Prop2020JSTar!G8) -> 13.021 | H8: =SUM(Prop2020DistTar!H8,Prop2020TransTar!H8,Prop2020JSTar!H8) -> 8.58 | I8: =SUM(Prop2020DistTar!I8,Prop2020TransTar!I8,Prop2020JSTar!I8) -> 3.97127356 | J8: =SUM(Prop2020DistTar!J8,Prop2020TransTar!J8,Prop2020JSTar!J8) -> 3.971 | K8: =SUM(Prop2020DistTar!K8,Prop2020TransTar!K8,Prop2020JSTar!K8) -> 0 | L8: =SUM(Prop2020DistTar!L8,Prop2020TransTar!L8,Prop2020JSTar!L8) -> 0 | M8: =SUM(Prop2020DistTar!M8,Prop2020TransTar!M8,Prop2020JSTar!M8) -> 0 | N8: =SUM(Prop2020DistTar!N8,Prop2020TransTar!N8,Prop2020JSTar!N8) -> 0 | O8: =SUM(Prop2020DistTar!O8,Prop2020TransTar!O8,Prop2020JSTar!O8) -> 0 | P8: =SUM(Prop2020DistTar!P8,Prop2020TransTar!P8,Prop2020JSTar!P8) -> 0 | R8: 58.94865089 | S8: 13.36043645 | T8: 8.315730246 | U8: 13.36043645 | V8: 8.315730246 | W8: 3.871102249 | X8: 3.871102249 | AG8: 0.003924587032 | AH8: -0.02540609024 | AI8: 0.03177950062 | AJ8: -0.02540609024 | AK8: 0.03177950062 | AL8: 0.02587668953 | AM8: 0.02580602232 | AN8: 0 | AO8: 0 | AP8: 0 | AQ8: 0 | AR8: 0 | AS8: 0 | AT8: =IF(MAX(ABS(AG8:AS8))>$AT$4,"EXPLAIN","") -> 
B9: Residential - Time of Use Interval Meter | C9: =Prop2020DistTar!B9 -> Residential - Time of Use Interval Meter | D9: =SUM(Prop2020DistTar!D9,Prop2020TransTar!D9,Prop2020JSTar!D9) -> 59.18 | E9: =SUM(Prop2020DistTar!E9,Prop2020TransTar!E9,Prop2020JSTar!E9) -> 13.09 | F9: =SUM(Prop2020DistTar!F9,Prop2020TransTar!F9,Prop2020JSTar!F9) -> 0 | G9: =SUM(Prop2020DistTar!G9,Prop2020TransTar!G9,Prop2020JSTar!G9) -> 0 | H9: =SUM(Prop2020DistTar!H9,Prop2020TransTar!H9,Prop2020JSTar!H9) -> 0 | I9: =SUM(Prop2020DistTar!I9,Prop2020TransTar!I9,Prop2020JSTar!I9) -> 2.33 | J9: =SUM(Prop2020DistTar!J9,Prop2020TransTar!J9,Prop2020JSTar!J9) -> 0 | K9: =SUM(Prop2020DistTar!K9,Prop2020TransTar!K9,Prop2020JSTar!K9) -> 0 | L9: =SUM(Prop2020DistTar!L9,Prop2020TransTar!L9,Prop2020JSTar!L9) -> 0 | M9: =SUM(Prop2020DistTar!M9,Prop2020TransTar!M9,Prop2020JSTar!M9) -> 0 | N9: =SUM(Prop2020DistTar!N9,Prop2020TransTar!N9,Prop2020JSTar!N9) -> 0 | O9: =SUM(Prop2020DistTar!O9,Prop2020TransTar!O9,Prop2020JSTar!O9) -> 0 | P9: =SUM(Prop2020DistTar!P9,Prop2020TransTar!P9,Prop2020JSTar!P9) -> 0 | R9: 58.94865089 | S9: 13.38650503 | W9: 2.411751068 | AG9: 0.003924587032 | AH9: -0.02214954788 | AI9: 0 | AJ9: 0 | AK9: 0 | AL9: -0.03389697595 | AM9: 0 | AN9: 0 | AO9: 0 | AP9: 0 | AQ9: 0 | AR9: 0 | AS9: 0 | AT9: =IF(MAX(ABS(AG9:AS9))>$AT$4,"EXPLAIN","") -> 
B10: Residential - TOU | C10: =Prop2020DistTar!B10 -> Residential - TOU | D10: =SUM(Prop2020DistTar!D10,Prop2020TransTar!D10,Prop2020JSTar!D10) -> 99.643 | E10: =SUM(Prop2020DistTar!E10,Prop2020TransTar!E10,Prop2020JSTar!E10) -> 12.003 | F10: =SUM(Prop2020DistTar!F10,Prop2020TransTar!F10,Prop2020JSTar!F10) -> 0 | G10: =SUM(Prop2020DistTar!G10,Prop2020TransTar!G10,Prop2020JSTar!G10) -> 0 | H10: =SUM(Prop2020DistTar!H10,Prop2020TransTar!H10,Prop2020JSTar!H10) -> 0 | I10: =SUM(Prop2020DistTar!I10,Prop2020TransTar!I10,Prop2020JSTar!I10) -> 2.593 | J10: =SUM(Prop2020DistTar!J10,Prop2020TransTar!J10,Prop2020JSTar!J10) -> 0 | K10: =SUM(Prop2020DistTar!K10,Prop2020TransTar!K10,Prop2020JSTar!K10) -> 0 | L10: =SUM(Prop2020DistTar!L10,Prop2020TransTar!L10,Prop2020JSTar!L10) -> 0 | M10: =SUM(Prop2020DistTar!M10,Prop2020TransTar!M10,Prop2020JSTar!M10) -> 0 | N10: =SUM(Prop2020DistTar!N10,Prop2020TransTar!N10,Prop2020JSTar!N10) -> 0 | O10: =SUM(Prop2020DistTar!O10,Prop2020TransTar!O10,Prop2020JSTar!O10) -> 0 | P10: =SUM(Prop2020DistTar!P10,Prop2020TransTar!P10,Prop2020JSTar!P10) -> 0 | R10: 100.1492952 | S10: 10.58048889 | W10: 2.695051604 | AG10: -0.005055404063 | AH10: =IFERROR(E10/S10-1,0) -> 0.1344466337 | AI10: 0 | AJ10: 0 | AK10: 0 | AL10: -0.03786628947 | AM10: 0 | AN10: 0 | AO10: 0 | AP10: 0 | AQ10: 0 | AR10: 0 | AS10: 0 | AT10: =IF(MAX(ABS(AG10:AS10))>$AT$4,"EXPLAIN","") -> 
